Workbook

Sheet START

Sheet Instructions
D2: 2020
X4: Yes
X5: No
W7: Type of Entities Range:
X8: Parent Municipality
X9: Consolidated Information
W17: MTREF Range: | X17: 2008
X18: 2009
X19: 2010
X20: 2011
X21: 2012
X22: 2013
X23: 2014
X24: 2015
X25: 2016
X26: 2017
X27: 2018
X28: 2019
X29: 2020
X30: 2021
X31: 2022
W33: MTREF Linked: | X33: 13
W34: MTREF: | X34: =INDEX(X17:X31,X33,1) -> 2020
W36: Fin Year: | X36: =MTREF&"/"&RIGHT(MTREF,2)+1 -> 2020/21

Sheet Template names (hidden)
A1: Common sheet headings
A2: Head1 | B2: =HLOOKUP(MTREF,Headings,2) -> 2018/19 | C2: Prior year -1
A3: Head1A | B3: =HLOOKUP(MTREF,Headings,3) -> 2017/18 | C3: Prior year -2
A4: Head1B | B4: =HLOOKUP(MTREF,Headings,4) -> 2016/17 | C4: Prior year -3
A5: Head2 | B5: =HLOOKUP(MTREF,Headings,5) -> Current Year 2019/20 | C5: Year in which budget is being prepared
A6: Head2A | B6: =HLOOKUP(MTREF,Headings,6) -> 2019/20 | C6: Year in which budget is being prepared
A7: Head3 | B7: =HLOOKUP(MTREF,Headings,7) -> 2020/21 Medium Term Revenue & Expenditure Framework | C7: MTREF name
A8: Head4 | B8: LTFS | C8: Long term financial strategy
A9: Head5 | B9: Audited Outcome
A10: Head5A | B10: Outcome
A11: Head5B | B11: Pre-audit outcome
A12: Head6 | B12: Original Budget
A13: Head7 | B13: Adjusted Budget
A14: Head8 | B14: Full Year Forecast
A15: Head9 | B15: =HLOOKUP(MTREF,Headings,8) -> Budget Year 2020/21 | C15: 1st year of MTREF | D15: Year1
A16: Head10 | B16: =HLOOKUP(MTREF,Headings,9) -> Budget Year +1 2021/22 | C16: 2nd year of MTREF | D16: Year2
A17: Head11 | B17: =HLOOKUP(MTREF,Headings,10) -> Budget Year +2 2022/23 | C17: 3rd year of MTREF | D17: Year3
A18: Head12 | B18: =HLOOKUP(MTREF,Headings,11) -> Forecast 2023/24 | C18: 1st yr of long term forecast | D18: Year4
A19: Head13 | B19: =HLOOKUP(MTREF,Headings,12) -> Forecast 2024/25 | C19: Next yr of long term forecast | D19: Year5
A20: Head14 | B20: =HLOOKUP(MTREF,Headings,13) -> Forecast 2025/26 | C20: Next yr of long term forecast | D20: Year6
A21: Head15 | B21: =HLOOKUP(MTREF,Headings,14) -> Forecast 2026/27 | C21: Next yr of long term forecast | D21: Year7
A22: Head16 | B22: =HLOOKUP(MTREF,Headings,15) -> Forecast 2027/28 | C22: Next yr of long term forecast | D22: Year8
A23: Head17 | B23: =HLOOKUP(MTREF,Headings,16) -> Forecast 2028/29 | C23: Next yr of long term forecast | D23: Year9
A24: Head18 | B24: =HLOOKUP(MTREF,Headings,17) -> Forecast 2029/30 | C24: Next yr of long term forecast | D24: Year10
A25: Head19 | B25: =HLOOKUP(MTREF,Headings,18) -> Forecast 2030/31 | C25: Next yr of long term forecast | D25: Year11
A26: Head20 | B26: =HLOOKUP(MTREF,Headings,19) -> Forecast 2031/32 | C26: Next yr of long term forecast | D26: Year12
A27: Head21 | B27: =HLOOKUP(MTREF,Headings,20) -> Forecast 2032/33 | C27: Next yr of long term forecast | D27: Year13
A28: Head22 | B28: =HLOOKUP(MTREF,Headings,21) -> Forecast 2033/34 | C28: Next yr of long term forecast | D28: Year14
A29: Head23 | B29: =HLOOKUP(MTREF,Headings,22) -> Forecast 2034/35 | C29: Next yr of long term forecast | D29: Year15
A30: Head24 | B30: Description
A31: Head25
A32: Head26 | B32: Vote Description
A33: Head27 | B33: Ref
A34: Head27a | B34: References
A35: Head28 | B35: Surplus/(Deficit) for the year | D35: Result
A36: Head29 | B36: =HLOOKUP(MTREF,Headings,23) -> Annual target 2020/21
A37: Head30 | B37: =HLOOKUP(MTREF,Headings,24) -> Revised target 2020/21
A38: Head31 | B38: Quarter ended 30 September
A39: Head32 | B39: Quarter ended 31 December
A40: Head33 | B40: Quarter ended 31 March
A41: Head34 | B41: Quarter ended 30 June
A42: Head35 | B42: Variance explanation
A43: Head36 | B43: YTD Actual 31 Dec
A44: Head37 | B44: YTD Budget 31 Dec
A45: Head38 | B45: Monthly actual
A46: Head39 | B46: YTD actual
A47: Head40 | B47: YTD budget
A48: Head41 | B48: YTD variance
A49: Head42 | B49: Surplus/ (Deficit) for the yr/period
A50: Head43 | B50: =Head3&" Summary" -> 2020/21 Medium Term Revenue & Expenditure Framework Summary
A51: Head44 | B51: 2001 Census
A52: Head45 | B52: 2011 Census
A53: Head46 | B53: - Adjustments Budget - January 2007
A54: Head47 | B54: Previous target year to complete
A55: Head48 | B55: Present value
A56: Head49
A57: Head50 | B57: Other Adjusts.
A58: Head51 | B58: Accum. Funds
A59: Head52 | B59: Multi-year capital
A60: Head53 | B60: Unfore. Unavoid.
A61: Head54 | B61: Prior Adjusted
A62: Head55 | B62: Nat. or Prov. Govt
A63: Head56 | B63: Total Adjusts.
A64: SFPerf1 | B64: Budgeted Financial Performance
A65: SFPerf2 | B65: Forecast Financial Performance
A66: SFPos1 | B66: Budgeted Financial Position
A67: SFPos2 | B67: Forecast Financial Position
A68: Cash1 | B68: Budget Cash Flow
A69: Cash2 | B69: Forecast Cash Flow
A70: RandM | B70: Expenditure includes repairs & maintenance of R'000
A71: Depart1 | B71: Department 1 - | D71: DEP1
A72: Depart2 | B72: Department 2 - | D72: DEP2
A73: Depart3 | B73: Department 3 - | D73: DEP3
A74: Depart4 | B74: Department 4 - | D74: DEP4
A75: Depart5 | B75: Department 5 - | D75: DEP5
A76: Depart6 | B76: Department 6 - | D76: DEP6
A77: Depart7 | B77: Department 7 - | D77: DEP7
A78: Depart8 | B78: Department 8 - | D78: DEP8
A79: Depart9 | B79: Department 9 - | D79: DEP9
A80: Depart10 | B80: Department 10 - | D80: DEP10
A81: Depart11 | B81: Department 11 - | D81: DEP11
A82: Depart12 | B82: Department 12 - | D82: DEP12
A83: Depart13 | B83: Department 13 - | D83: DEP13
A84: Depart14 | B84: Department 14 - | D84: DEP14
A87: Base year of forecast column selection names
A88: Choose | B88: ACT
B89: APP
B90: ADJ
A92: Standard nomenclature
A93: Muni | B93: ='Lookup and lists'!B28 -> KZN434 Ubuhlebezwe
A94: Municipal Entities | B94: 2 | C94: Type of report: | D94: 2
A95: =IF((MuniEntities=1)*(MuniType=2),"YES","NO") -> NO | B95: Does this municipality have entities (consolidated budget and entity budgets required)? YES/NO
A96: Entity 1 | B96: (Pty) Ltd Example 1 - Municipal entity - | D96: Ent1
A97: Entity 2 | B97: (Pty) Ltd Example 2 - Municipal entity - | D97: Ent2
A98: Entity 3 | B98: Municipal Entity Example 3 | D98: Ent3
A99: Budget approval tables | C99: Chart x-ref | D99: Sch/Tab/Ch | E99: Alternative for municipalities without entities | F99: Alternative for municipalities without entities
B100: =IF(Consolques="YES",E100,F100) -> Table A1 Budget Summary | D100: Table A1 | E100: =D100&"Consolidated Budget Summary" -> Table A1 Consolidated Budget Summary | F100: =D100&"Budget Summary" -> Table A1 Budget Summary
B101: Table A2 Budgeted Financial Performance (revenue and expenditure by functional classification) | C101: Charts 5, 6 | D101: Table A2 | E101: =D101&"Consolidated Budgeted Financial Performance (revenue and expenditure by functional classification)" -> Table A2 Consolidated Budgeted Financial Performance (revenue and expenditure by functional classification) | F101: =D101&"Budgeted Financial Performance (revenue and expenditure by functional classification)" -> Table A2 Budgeted Financial Performance (revenue and expenditure by functional classification)
B102: Table A3 Budgeted Financial Performance (revenue and expenditure by municipal vote) | D102: Table A3 | E102: =D102&"Consolidated Budgeted Financial Performance (revenue and expenditure by municipal vote)" -> Table A3 Consolidated Budgeted Financial Performance (revenue and expenditure by municipal vote) | F102: =D102&"Budgeted Financial Performance (revenue and expenditure by municipal vote)" -> Table A3 Budgeted Financial Performance (revenue and expenditure by municipal vote)
B103: Table A4 Budgeted Financial Performance (revenue and expenditure) | C103: Charts 1, 2, 3, 4 | D103: Table A4 | E103: =D103&"Consolidated Budgeted Financial Performance (revenue and expenditure)" -> Table A4 Consolidated Budgeted Financial Performance (revenue and expenditure) | F103: =D103&"Budgeted Financial Performance (revenue and expenditure)" -> Table A4 Budgeted Financial Performance (revenue and expenditure)
B104: Table A5 Budgeted Capital Expenditure by vote, functional classification and funding | C104: Charts 7, 8, 9, 10, 20 | D104: Table A5 | E104: =D104&"Consolidated Budgeted Capital Expenditure by vote, functional classification and funding" -> Table A5 Consolidated Budgeted Capital Expenditure by vote, functional classification and funding | F104: =D104&"Budgeted Capital Expenditure by vote, functional classification and funding" -> Table A5 Budgeted Capital Expenditure by vote, functional classification and funding
B105: Table A6 Budgeted Financial Position | D105: Table A6 | E105: =D105&"Consolidated Budgeted Financial Position" -> Table A6 Consolidated Budgeted Financial Position | F105: =D105&"Budgeted Financial Position" -> Table A6 Budgeted Financial Position
B106: Table A7 Budgeted Cash Flows | D106: Table A7 | E106: =D106&"Consolidated Budgeted Cash Flows" -> Table A7 Consolidated Budgeted Cash Flows | F106: =D106&"Budgeted Cash Flows" -> Table A7 Budgeted Cash Flows
B107: Table A8 Cash backed reserves/accumulated surplus reconciliation | D107: Table A8 | E107: =D107&"Consolidated Cash backed reserves/accumulated surplus reconciliation" -> Table A8 Consolidated Cash backed reserves/accumulated surplus reconciliation | F107: =D107&"Cash backed reserves/accumulated surplus reconciliation" -> Table A8 Cash backed reserves/accumulated surplus reconciliation
B108: Table A9 Asset Management | D108: Table A9 | E108: =D108&"Consolidated Asset Management" -> Table A9 Consolidated Asset Management | F108: =D108&"Asset Management" -> Table A9 Asset Management
B109: Table A10 Basic service delivery measurement | D109: Table A10 | E109: =D109&"Consolidated basic service delivery measurement" -> Table A10 Consolidated basic service delivery measurement | F109: =D109&"Basic service delivery measurement" -> Table A10 Basic service delivery measurement
A110: Supportinging Tables to the Budget Approval Tables | C110: =$C$99 -> Chart x-ref | D110: =$D$99 -> Sch/Tab/Ch
A111: Supporting Table SA1 | B111: =A111&" Supportinging detail to 'Budgeted Financial Performance'" -> Supporting Table SA1 Supportinging detail to 'Budgeted Financial Performance'
A112: Supporting Table SA2 | B112: =IF(Consolques="YES",E112,F112) -> Supporting Table SA2 Matrix Financial Performance Budget (revenue source/expenditure type and dept.) | E112: =A112&"Consolidated Matrix Financial Performance Budget (revenue source/expenditure type & dept.)" -> Supporting Table SA2 Consolidated Matrix Financial Performance Budget (revenue source/expenditure type & dept.) | F112: =A112&"Matrix Financial Performance Budget (revenue source/expenditure type and dept.)" -> Supporting Table SA2 Matrix Financial Performance Budget (revenue source/expenditure type and dept.)
A113: Supporting Table SA3 | B113: =A113&"Supportinging detail to 'Budgeted Financial Position'" -> Supporting Table SA3 Supportinging detail to 'Budgeted Financial Position'
A114: Supporting Table SA4 | B114: =A114&"Reconciliation of IDP strategic objectives and budget (revenue)" -> Supporting Table SA4 Reconciliation of IDP strategic objectives and budget (revenue) | C114: Chart 11
A115: Supporting Table SA5 | B115: =A115&"Reconciliation of IDP strategic objectives and budget (operating expenditure)" -> Supporting Table SA5 Reconciliation of IDP strategic objectives and budget (operating expenditure) | C115: Chart 12
A116: Supporting Table SA6 | B116: =A116&"Reconciliation of IDP strategic objectives and budget (capital expenditure)" -> Supporting Table SA6 Reconciliation of IDP strategic objectives and budget (capital expenditure) | C116: Chart 13
A117: Supporting Table SA7 | B117: =A117&" Measureable performance objectives" -> Supporting Table SA7 Measureable performance objectives
A118: Supporting Table SA8 | B118: =A118&" Performance indicators and benchmarks" -> Supporting Table SA8 Performance indicators and benchmarks | C118: Chts 15-19
A119: Supporting Table SA9 | B119: =A119&" Social, economic and demographic statistics and assumptions" -> Supporting Table SA9 Social, economic and demographic statistics and assumptions
A120: Supporting Table SA10 | B120: =A120&" Funding measurement" -> Supporting Table SA10 Funding measurement | C120: Chart 14
A121: Supporting Table SA11 | B121: =A121&" Property rates summary" -> Supporting Table SA11 Property rates summary
A122: Supporting Table SA12a | B122: =A122&" Property rates by category (current year)" -> Supporting Table SA12a Property rates by category (current year)
A123: Supporting Table SA12b | B123: =A123&" Property rates by category (budget year)" -> Supporting Table SA12b Property rates by category (budget year)
A124: Supporting Table SA13a | B124: =A124&" Service Tariffs by category" -> Supporting Table SA13a Service Tariffs by category
A125: Supporting Table SA13b | B125: =A125&" Service Tariffs by category - explanatory" -> Supporting Table SA13b Service Tariffs by category - explanatory
A126: Supporting Table SA14 | B126: =A126&" Household bills" -> Supporting Table SA14 Household bills
A127: Supporting Table SA15 | B127: =A127&" Investment particulars by type" -> Supporting Table SA15 Investment particulars by type
A128: Supporting Table SA16 | B128: =A128&" Investment particulars by maturity" -> Supporting Table SA16 Investment particulars by maturity
A129: Supporting Table SA17 | B129: =A129&" Borrowing" -> Supporting Table SA17 Borrowing
A130: Supporting Table SA18 | B130: =A130&" Transfers and grant receipts" -> Supporting Table SA18 Transfers and grant receipts
A131: Supporting Table SA19 | B131: =A131&" Expenditure on transfers and grant programme" -> Supporting Table SA19 Expenditure on transfers and grant programme
A132: Supporting Table SA20 | B132: =A132&" Reconciliation of transfers, grant receipts and unspent funds" -> Supporting Table SA20 Reconciliation of transfers, grant receipts and unspent funds
A133: Supporting Table SA21 | B133: =A133&" Transfers and grants made by the municipality" -> Supporting Table SA21 Transfers and grants made by the municipality
A134: Supporting Table SA22 | B134: =A134&" Summary councillor and staff benefits" -> Supporting Table SA22 Summary councillor and staff benefits
A135: Supporting Table SA23 | B135: =A135&" Salaries, allowances & benefits (political office bearers/councillors/senior managers)" -> Supporting Table SA23 Salaries, allowances & benefits (political office bearers/councillors/senior managers)
A136: Supporting Table SA24 | B136: =A136&" Summary of personnel numbers" -> Supporting Table SA24 Summary of personnel numbers
A137: Supporting Table SA25 | B137: =IF(Consolques="YES",E137,F137) -> Supporting Table SA25 Budgeted monthly revenue and expenditure | E137: =A137&" Consolidated budgeted monthly revenue and expenditure" -> Supporting Table SA25 Consolidated budgeted monthly revenue and expenditure | F137: =A137&" Budgeted monthly revenue and expenditure" -> Supporting Table SA25 Budgeted monthly revenue and expenditure
A138: Supporting Table SA26 | B138: Supporting Table SA26 Budgeted monthly revenue and expenditure (municipal vote) | E138: =A138&" Consolidated budgeted monthly revenue and expenditure (municipal vote)" -> Supporting Table SA26 Consolidated budgeted monthly revenue and expenditure (municipal vote) | F138: =A138&" Budgeted monthly revenue and expenditure (municipal vote)" -> Supporting Table SA26 Budgeted monthly revenue and expenditure (municipal vote)
A139: Supporting Table SA27 | B139: Supporting Table SA27 Budgeted monthly revenue and expenditure (functional classification) | E139: =A139&" Consolidated budgeted monthly revenue and expenditure (functional classification)" -> Supporting Table SA27 Consolidated budgeted monthly revenue and expenditure (functional classification) | F139: =A139&" Budgeted monthly revenue and expenditure (functional classification)" -> Supporting Table SA27 Budgeted monthly revenue and expenditure (functional classification)
A140: Supporting Table SA28 | B140: Supporting Table SA28 Budgeted monthly capital expenditure (municipal vote) | E140: =A140&" Consolidated budgeted monthly capital expenditure (municipal vote)" -> Supporting Table SA28 Consolidated budgeted monthly capital expenditure (municipal vote) | F140: =A140&" Budgeted monthly capital expenditure (municipal vote)" -> Supporting Table SA28 Budgeted monthly capital expenditure (municipal vote)
A141: Supporting Table SA29 | B141: Supporting Table SA29 Budgeted monthly capital expenditure (functional classification) | E141: =A141&" Consolidated budgeted monthly capital expenditure (functional classification)" -> Supporting Table SA29 Consolidated budgeted monthly capital expenditure (functional classification) | F141: =A141&" Budgeted monthly capital expenditure (functional classification)" -> Supporting Table SA29 Budgeted monthly capital expenditure (functional classification)
A142: Supporting Table SA30 | B142: Supporting Table SA30 Budgeted monthly cash flow | E142: =A142&" Consolidated budgeted monthly cash flow" -> Supporting Table SA30 Consolidated budgeted monthly cash flow | F142: =A142&" Budgeted monthly cash flow" -> Supporting Table SA30 Budgeted monthly cash flow
A143: Supporting Table SA31 | B143: NOT REQUIRED - municipality does not have entities | E143: =A143&" Aggregated entity budget" -> Supporting Table SA31 Aggregated entity budget | F143: NOT REQUIRED - municipality does not have entities
A144: Supporting Table SA32 | B144: =A144&" List of external mechanisms" -> Supporting Table SA32 List of external mechanisms
A145: Supporting Table SA33 | B145: =A145&" Contracts having future budgetary implications" -> Supporting Table SA33 Contracts having future budgetary implications
A146: Supporting Table SA34a | B146: =IF(Consolques="YES",E146,F146) -> Supporting Table SA34a Capital expenditure on new assets by asset class | E146: =A146&" Consolidated capital expenditure on new assets by asset class" -> Supporting Table SA34a Consolidated capital expenditure on new assets by asset class | F146: =A146&" Capital expenditure on new assets by asset class" -> Supporting Table SA34a Capital expenditure on new assets by asset class
A147: Supporting Table SA34b | B147: Supporting Table SA34b Capital expenditure on the renewal of existing assets by asset class | E147: =A147&" Consolidated capital expenditure on the renewal of existing assets by asset class" -> Supporting Table SA34b Consolidated capital expenditure on the renewal of existing assets by asset class | F147: =A147&" Capital expenditure on the renewal of existing assets by asset class" -> Supporting Table SA34b Capital expenditure on the renewal of existing assets by asset class
A148: Supporting Table SA34c | B148: Supporting Table SA34c Repairs and maintenance expenditure by asset class | E148: =A148&" Consolidated repairs and maintenance by asset class" -> Supporting Table SA34c Consolidated repairs and maintenance by asset class | F148: =A148&" Repairs and maintenance expenditure by asset class" -> Supporting Table SA34c Repairs and maintenance expenditure by asset class
A149: Supporting Table SA34d | B149: =IF(Consolques="YES",E149,F149) -> Supporting Table SA34d Depreciation by asset class | E149: =A149&" Consolidated Depreciation by asset class" -> Supporting Table SA34d Consolidated Depreciation by asset class | F149: =A149&" Depreciation by asset class" -> Supporting Table SA34d Depreciation by asset class
A150: Supporting Table SA34e | B150: =IF(Consolques="YES",E150,F150) -> Supporting Table SA34e Capital expenditure on the upgrading of existing assets by asset class | E150: =A150&" Consolidated capital expenditure on the upgrading of existing assets by asset class" -> Supporting Table SA34e Consolidated capital expenditure on the upgrading of existing assets by asset class | F150: =A150&" Capital expenditure on the upgrading of existing assets by asset class" -> Supporting Table SA34e Capital expenditure on the upgrading of existing assets by asset class
A151: Supporting Table SA35 | B151: Supporting Table SA35 Future financial implications of the capital budget | E151: =A151&" Consolidated future financial implications of the capital budget" -> Supporting Table SA35 Consolidated future financial implications of the capital budget | F151: =A151& " Future financial implications of the capital budget" -> Supporting Table SA35 Future financial implications of the capital budget
A152: Supporting Table SA36 | B152: Supporting Table SA36 Detailed capital budget | E152: =A152&" Consolidated detailed capital budget" -> Supporting Table SA36 Consolidated detailed capital budget | F152: =A152& " Detailed capital budget" -> Supporting Table SA36 Detailed capital budget
A153: Supporting Table SA37 | B153: Supporting Table SA37 Projects delayed from previous financial year/s | E153: =A153&" Consolidated projects delayed from previous financial year/s" -> Supporting Table SA37 Consolidated projects delayed from previous financial year/s | F153: =A153& " Projects delayed from previous financial year/s" -> Supporting Table SA37 Projects delayed from previous financial year/s
A154: Supporting Table SA38 | B154: =IF(Consolques="YES",E154,F154) -> Supporting Table SA38 Detailed operational projects | E154: =A154&" Consolidated detailed operational projects" -> Supporting Table SA38 Consolidated detailed operational projects | F154: =A154& " Detailed operational projects" -> Supporting Table SA38 Detailed operational projects
A156: Budget Charts | B156: Charts | C156: Cross reference
A157: Chart A1 | B157: =A157&"Revenue by Municipal Vote" -> Chart A1 Revenue by Municipal Vote
A158: Chart A2 | B158: =A158&"Expenditure by Municipal Vote" -> Chart A2 Expenditure by Municipal Vote
A159: Chart A3 | B159: =A159&"Revenue by Standard Classification" -> Chart A3 Revenue by Standard Classification | C159: A2
A160: Chart A4 | B160: =A160&"Expenditure by Standard Classification" -> Chart A4 Expenditure by Standard Classification | C160: A2
A161: Chart A5 | B161: =A161&"Revenue by Major Source (refer 'Minor' source for 'Other Revenue' allocation" -> Chart A5 Revenue by Major Source (refer 'Minor' source for 'Other Revenue' allocation | C161: A3
A162: Chart A6 | B162: =A162&"Revenue by Minor Source (Other)" -> Chart A6 Revenue by Minor Source (Other) | C162: A3
A163: Chart A7 | B163: =A163&"Expenditure by Major Type" -> Chart A7 Expenditure by Major Type | C163: A3
A164: Chart A8 | B164: =A164&"Expenditure by Minor Type (Other)" -> Chart A8 Expenditure by Minor Type (Other) | C164: A3
A165: Chart A9 | B165: =A165&"Capital Expenditure by Municipal Vote/Appropriation (Major)" -> Chart A9 Capital Expenditure by Municipal Vote/Appropriation (Major) | C165: A5
A166: Chart A10 | B166: =A166&"Capital Expenditure by Municipal Vote/Appropriation (Minor)" -> Chart A10 Capital Expenditure by Municipal Vote/Appropriation (Minor) | C166: A5
A167: Chart A11 | B167: =A166&"Capital Expenditure by Standard Classification" -> Chart A10 Capital Expenditure by Standard Classification | C167: A5
A168: Chart A12 | B168: =A168&"Capital expenditure performance trend" -> Chart A12 Capital expenditure performance trend | C168: A5
A169: Chart A13 | B169: =A169&"Capital funding by Source" -> Chart A13 Capital funding by Source | C169: A5
A170: Chart A14 | B170: =A170&"Cash flow trend" -> Chart A14 Cash flow trend | C170: A7
A171: Chart A15 | B171: =A171&"IDP Strategic Objective - Revenue" -> Chart A15 IDP Strategic Objective - Revenue | C171: Table A4
A172: Chart A16 | B172: =A172&"IDP Strategic Objective - Expenditure" -> Chart A16 IDP Strategic Objective - Expenditure | C172: Table A5
A173: Chart A17 | B173: =A173&"IDP Strategic Objective - Capital Expenditure" -> Chart A17 IDP Strategic Objective - Capital Expenditure | C173: Table A6
A174: Chart A18 | B174: =A174&"Debt (borrowing to Total Revenue)" -> Chart A18 Debt (borrowing to Total Revenue) | C174: Table A8
A175: Chart A19 | B175: =A175&"Debtors' trend analysis" -> Chart A19 Debtors' trend analysis | C175: Table A8
A176: Chart A20 | B176: =A176&"Distribution losses" -> Chart A20 Distribution losses | C176: Table A8
A177: Chart A21 | B177: =A177&"Borrowed funding of capital expenditure" -> Chart A21 Borrowed funding of capital expenditure | C177: Table A8
A178: Chart A22 | B178: =A178&"Expenditure analysis (% of Revenue)" -> Chart A22 Expenditure analysis (% of Revenue) | C178: Table A8
A179: Chart A23 | B179: =A179&"Increases in service charges" -> Chart A23 Increases in service charges | C179: Table A10

Sheet Lookup and lists (hidden)
A1: Description | B1: 2007 | C1: 2008 | D1: 2009 | E1: 2010 | F1: 2011 | G1: 2012 | H1: 2013 | I1: 2014 | J1: 2015 | K1: 2016 | L1: 2017 | M1: 2018 | N1: 2019 | O1: 2020 | Q1: Lists | Y1: Grants: | Z1: National - opex | AA1: Provincial - opex | AB1: National - capex | AC1: Provincial - capex
A2: ='Template names'!C2 -> Prior year -1 | B2: 2005/06 | C2: 2006/07 | D2: 2007/08 | E2: =E1-2&"/"&RIGHT(E1,2)-1 -> 2008/9 | F2: 2009/10 | G2: 2010/11 | H2: 2011/12 | I2: 2012/13 | J2: 2013/14 | K2: 2014/15 | L2: 2015/16 | M2: 2016/17 | N2: 2017/18 | O2: 2018/19 | Q2: Yes | R2: <1 | S2: <4 | T2: Market | U2: Land & impr. | V2: Yes | W2: Uniform | X2: Yrs | Z2: Local Government Equitable Share | AA2: Health subsidy | AB2: Municipal Infrastructure Grant (MIG) | AC2: Agriculture
A3: ='Template names'!C3 -> Prior year -2 | B3: 2004/05 | C3: 2005/06 | D3: 2006/07 | E3: =E1-3&"/"&RIGHT(E1,2)-2 -> 2007/8 | F3: 2008/9 | G3: 2009/10 | H3: 2010/11 | I3: 2011/12 | J3: 2012/13 | K3: 2013/14 | L3: 2014/15 | M3: 2015/16 | N3: 2016/17 | O3: 2017/18 | Q3: No | R3: 1 | S3: 4 | T3: Dep.Replace | U3: Land only | V3: No | W3: Variable | X3: Mths | Z3: RSC Levy Replacement | AA3: Ambulance subsidy | AB3: Public Transport and Systems | AC3: Education
A4: ='Template names'!C4 -> Prior year -3 | B4: 2003/04 | C4: 2004/05 | D4: 2005/06 | E4: =E1-4&"/"&RIGHT(E1,2)-3 -> 2006/7 | F4: 2007/8 | G4: 2008/9 | H4: 2009/10 | I4: 2010/11 | J4: 2011/12 | K4: 2012/13 | L4: 2013/14 | M4: 2014/15 | N4: 2015/16 | O4: 2016/17 | R4: 2 | S4: 5 | T4: Other | U4: Other | Z4: Finance Management | AA4: Housing | AB4: Rural Transport Services and Infrastructure | AC4: Health
A5: ='Template names'!C5 -> Year in which budget is being prepared | B5: Current Year 2006/07 | C5: Current Year 2007/08 | D5: Current Year 2008/09 | E5: ="Current Year "& E1-1&"/"&RIGHT(E1,2) -> Current Year 2009/10 | F5: Current Year 2010/11 | G5: Current Year 2011/12 | H5: Current Year 2012/13 | I5: Current Year 2013/14 | J5: Current Year 2014/15 | K5: Current Year 2015/16 | L5: Current Year 2016/17 | M5: Current Year 2017/18 | N5: Current Year 2018/19 | O5: Current Year 2019/20 | R5: 3 | S5: 6 | Z5: Municipal Systems Improvement | AA5: Sport and Recreation | AB5: Regional Bulk Infrastructure | AC5: Housing and Local Government
A6: ='Template names'!C6 -> Year in which budget is being prepared | B6: 2006/07 | C6: 2007/08 | D6: 2008/09 | E6: =E1-1&"/"&RIGHT(E1,2) -> 2009/10 | F6: 2010/11 | G6: 2011/12 | H6: 2012/13 | I6: 2013/14 | J6: 2014/15 | K6: 2015/16 | L6: 2016/17 | M6: 2017/18 | N6: 2018/19 | O6: 2019/20 | R6: 4 | S6: 6-10 | Z6: Water Services Operating Subsidy | AB6: Rural Households Infrastructure | AC6: Other Departments
A7: ='Template names'!C7 -> MTREF name | B7: 2007/08 Medium Term Revenue & Expenditure Framework | C7: 2008/09 Medium Term Revenue & Expenditure Framework | D7: 2009/10 Medium Term Revenue & Expenditure Framework | E7: =E1&"/"&RIGHT(E1,2)+1&" Medium Term Revenue & Expenditure Framework" -> 2010/11 Medium Term Revenue & Expenditure Framework | F7: 2011/12 Medium Term Revenue & Expenditure Framework | G7: 2012/13 Medium Term Revenue & Expenditure Framework | H7: 2013/14 Medium Term Revenue & Expenditure Framework | I7: 2014/15 Medium Term Revenue & Expenditure Framework | J7: 2015/16 Medium Term Revenue & Expenditure Framework | K7: 2016/17 Medium Term Revenue & Expenditure Framework | L7: 2017/18 Medium Term Revenue & Expenditure Framework | M7: 2018/19 Medium Term Revenue & Expenditure Framework | N7: 2019/20 Medium Term Revenue & Expenditure Framework | O7: 2020/21 Medium Term Revenue & Expenditure Framework | R7: 5 | S7: >10 | Z7: Energy Efficiency and Demand Management | AB7: Neighbourhood Development Partnership | AC7: Public Works, Roads, Transport
A8: ='Template names'!C15 -> 1st year of MTREF | B8: Budget Year 2007/08 | C8: Budget Year 2008/09 | D8: Budget Year 2009/10 | E8: ="Budget Year "&E1&"/"&RIGHT(E1,2)+1 -> Budget Year 2010/11 | F8: Budget Year 2011/12 | G8: Budget Year 2012/13 | H8: Budget Year 2013/14 | I8: Budget Year 2014/15 | J8: Budget Year 2015/16 | K8: Budget Year 2016/17 | L8: Budget Year 2017/18 | M8: Budget Year 2018/19 | N8: Budget Year 2019/20 | O8: Budget Year 2020/21 | R8: >5 | Z8: Integrated National Electrification Programme | AB8: 2010 FIFA World Cup Stadiums Development | AC8: Sport and Recreation
A9: ='Template names'!C16 -> 2nd year of MTREF | B9: Budget Year +1 2008/09 | C9: Budget Year +1 2009/10 | D9: Budget Year +1 2010/11 | E9: ="Budget Year +1 "&E1+1&"/"&RIGHT(E1,2)+2 -> Budget Year +1 2011/12 | F9: Budget Year +1 2012/13 | G9: Budget Year +1 2013/14 | H9: Budget Year +1 2014/15 | I9: Budget Year +1 2015/16 | J9: Budget Year +1 2016/17 | K9: Budget Year +1 2017/18 | L9: Budget Year +1 2018/19 | M9: Budget Year +1 2019/20 | N9: Budget Year +1 2020/21 | O9: Budget Year +1 2021/22 | Z9: Municipal Drought Relief
A10: ='Template names'!C17 -> 3rd year of MTREF | B10: Budget Year +2 2009/10 | C10: Budget Year +2 2010/11 | D10: Budget Year +2 2011/12 | E10: ="Budget Year +2 "&E1+2&"/"&RIGHT(E1,2)+3 -> Budget Year +2 2012/13 | F10: Budget Year +2 2013/14 | G10: Budget Year +2 2014/15 | H10: Budget Year +2 2015/16 | I10: Budget Year +2 2016/17 | J10: Budget Year +2 2017/18 | K10: Budget Year +2 2018/19 | L10: Budget Year +2 2019/20 | M10: Budget Year +2 2020/21 | N10: Budget Year +2 2021/22 | O10: Budget Year +2 2022/23 | Z10: 2010 FIFA World Cup Operating
A11: ='Template names'!C18 -> 1st yr of long term forecast | B11: Forecast 2010/11 | C11: Forecast 2011/12 | D11: Forecast 2012/13 | E11: ="Forecast "&E1+3&"/"&RIGHT(E1,2)+4 -> Forecast 2013/14 | F11: Forecast 2014/15 | G11: Forecast 2015/16 | H11: Forecast 2016/17 | I11: Forecast 2017/18 | J11: Forecast 2018/19 | K11: Forecast 2019/20 | L11: Forecast 2020/21 | M11: Forecast 2021/22 | N11: Forecast 2022/23 | O11: Forecast 2023/24 | Z11: Electricity Demand Side Management
A12: ='Template names'!C19 -> Next yr of long term forecast | B12: Forecast 2011/12 | C12: Forecast 2012/13 | D12: Forecast 2013/14 | E12: ="Forecast "&E1+4&"/"&RIGHT(E1,2)+5 -> Forecast 2014/15 | F12: Forecast 2015/16 | G12: Forecast 2016/17 | H12: Forecast 2017/18 | I12: Forecast 2018/19 | J12: Forecast 2019/20 | K12: Forecast 2020/21 | L12: Forecast 2021/22 | M12: Forecast 2022/23 | N12: Forecast 2023/24 | O12: Forecast 2024/25 | Z12: EPWP Incentive
A13: ='Template names'!C20 -> Next yr of long term forecast | B13: Forecast 2012/13 | C13: Forecast 2013/14 | D13: Forecast 2014/15 | E13: ="Forecast "&E1+5&"/"&RIGHT(E1,2)+6 -> Forecast 2015/16 | F13: Forecast 2016/17 | G13: Forecast 2017/18 | H13: Forecast 2018/19 | I13: Forecast 2019/20 | J13: Forecast 2020/21 | K13: Forecast 2021/22 | L13: Forecast 2022/23 | M13: Forecast 2023/24 | N13: Forecast 2024/25 | O13: Forecast 2025/26
A14: ='Template names'!C21 -> Next yr of long term forecast | B14: Forecast 2013/14 | C14: Forecast 2014/15 | D14: Forecast 2015/16 | E14: ="Forecast "&E1+6&"/"&RIGHT(E1,2)+7 -> Forecast 2016/17 | F14: Forecast 2017/18 | G14: Forecast 2018/19 | H14: Forecast 2019/20 | I14: Forecast 2020/21 | J14: Forecast 2021/22 | K14: Forecast 2022/23 | L14: Forecast 2023/24 | M14: Forecast 2024/25 | N14: Forecast 2025/26 | O14: Forecast 2026/27 | Z14: Asset Class | AA14: Asset sub-class old | AB14: Asset sub-class | AC14: IUDF | AD14: MTSF
A15: ='Template names'!C22 -> Next yr of long term forecast | B15: Forecast 2014/15 | C15: Forecast 2015/16 | D15: Forecast 2016/17 | E15: ="Forecast "&E1+7&"/"&RIGHT(E1,2)+8 -> Forecast 2017/18 | F15: Forecast 2018/19 | G15: Forecast 2019/20 | H15: Forecast 2020/21 | I15: Forecast 2021/22 | J15: Forecast 2022/23 | K15: Forecast 2023/24 | L15: Forecast 2024/25 | M15: Forecast 2025/26 | N15: Forecast 2026/27 | O15: Forecast 2027/28
A16: ='Template names'!C23 -> Next yr of long term forecast | B16: Forecast 2015/16 | C16: Forecast 2016/17 | D16: Forecast 2017/18 | E16: ="Forecast "&E1+8&"/"&RIGHT(E1,2)+9 -> Forecast 2018/19 | F16: Forecast 2019/20 | G16: Forecast 2020/21 | H16: Forecast 2021/22 | I16: Forecast 2022/23 | J16: Forecast 2023/24 | K16: Forecast 2024/25 | L16: Forecast 2025/26 | M16: Forecast 2026/27 | N16: Forecast 2027/28 | O16: Forecast 2028/29 | Z16: Roads Infrastructure | AA16: Roads, Pavements & Bridges | AB16: Roads | AC16: Spatial integration | AD16: Quality basic education
A17: ='Template names'!C24 -> Next yr of long term forecast | B17: Forecast 2016/17 | C17: Forecast 2017/18 | D17: Forecast 2018/19 | E17: ="Forecast "&E1+9&"/"&RIGHT(E1,2)+10 -> Forecast 2019/20 | F17: Forecast 2020/21 | G17: Forecast 2021/22 | H17: Forecast 2022/23 | I17: Forecast 2023/24 | J17: Forecast 2024/25 | K17: Forecast 2025/26 | L17: Forecast 2026/27 | M17: Forecast 2027/28 | N17: Forecast 2028/29 | O17: Forecast 2029/30 | Z17: Storm water Infrastructure | AA17: Storm water | AB17: Road Structures | AC17: Inclusion and access | AD17: A long and healthy life for all South Africans
A18: ='Template names'!C25 -> Next yr of long term forecast | B18: Forecast 2017/18 | C18: Forecast 2018/19 | D18: Forecast 2019/20 | E18: ="Forecast "&E1+10&"/"&RIGHT(E1,2)+11 -> Forecast 2020/21 | F18: Forecast 2021/22 | G18: Forecast 2022/23 | H18: Forecast 2023/24 | I18: Forecast 2024/25 | J18: Forecast 2025/26 | K18: Forecast 2026/27 | L18: Forecast 2027/28 | M18: Forecast 2028/29 | N18: Forecast 2029/30 | O18: Forecast 2030/31 | Z18: Electrical Infrastructure | AA18: Generation | AB18: Road Furniture | AC18: Growth | AD18: All people in South Africa are and feel safe
A19: ='Template names'!C26 -> Next yr of long term forecast | B19: Forecast 2018/19 | C19: Forecast 2019/20 | D19: Forecast 2020/21 | E19: ="Forecast "&E1+11&"/"&RIGHT(E1,2)+12 -> Forecast 2021/22 | F19: Forecast 2022/23 | G19: Forecast 2023/24 | H19: Forecast 2024/25 | I19: Forecast 2025/26 | J19: Forecast 2026/27 | K19: Forecast 2027/28 | L19: Forecast 2028/29 | M19: Forecast 2029/30 | N19: Forecast 2030/31 | O19: Forecast 2031/32 | Z19: Water Supply Infrastructure | AA19: Transmission & Reticulation | AB19: Capital Spares | AC19: Governance | AD19: Decent employment through inclusive growth
A20: ='Template names'!C27 -> Next yr of long term forecast | B20: Forecast 2019/20 | C20: Forecast 2020/21 | D20: Forecast 2021/22 | E20: ="Forecast "&E1+12&"/"&RIGHT(E1,2)+13 -> Forecast 2022/23 | F20: Forecast 2023/24 | G20: Forecast 2024/25 | H20: Forecast 2025/26 | I20: Forecast 2026/27 | J20: Forecast 2027/28 | K20: Forecast 2028/29 | L20: Forecast 2029/30 | M20: Forecast 2030/31 | N20: Forecast 2031/32 | O20: Forecast 2032/33 | Z20: Sanitation Infrastructure | AA20: Street Lighting | AB20: Drainage Collection | AD20: A skilled and capable workforce to support an inclusive growth path
A21: ='Template names'!C28 -> Next yr of long term forecast | B21: Forecast 2020/21 | C21: Forecast 2021/22 | D21: Forecast 2022/23 | E21: ="Forecast "&E1+13&"/"&RIGHT(E1,2)+14 -> Forecast 2023/24 | F21: Forecast 2024/25 | G21: Forecast 2025/26 | H21: Forecast 2026/27 | I21: Forecast 2027/28 | J21: Forecast 2028/29 | K21: Forecast 2029/30 | L21: Forecast 2030/31 | M21: Forecast 2031/32 | N21: Forecast 2032/33 | O21: Forecast 2033/34 | Z21: Solid Waste Infrastructure | AA21: Dams & Reservoirs | AB21: Storm water Conveyance | AD21: An efficient, competitive and responsive economic infrastructure network
A22: ='Template names'!C29 -> Next yr of long term forecast | B22: Forecast 2021/22 | C22: Forecast 2022/23 | D22: Forecast 2023/24 | E22: ="Forecast "&E1+14&"/"&RIGHT(E1,2)+15 -> Forecast 2024/25 | F22: Forecast 2025/26 | G22: Forecast 2026/27 | H22: Forecast 2027/28 | I22: Forecast 2028/29 | J22: Forecast 2029/30 | K22: Forecast 2030/31 | L22: Forecast 2031/32 | M22: Forecast 2032/33 | N22: Forecast 2033/34 | O22: Forecast 2034/35 | Z22: Rail Infrastructure | AA22: Water purification | AB22: Attenuation | AD22: Vibrant, equitable, sustainable rural communities contributing towards food security for all
A23: Adjustments Budget | B23: Annual target 2007/08 | C23: Annual target 2008/09 | D23: Annual target 2009/10 | E23: ="Annual target " & E1&"/"&RIGHT(E1,2)+1 -> Annual target 2010/11 | F23: Annual target 2011/12 | G23: Annual target 2012/13 | H23: Annual target 2013/14 | I23: Annual target 2014/15 | J23: Annual target 2015/16 | K23: Annual target 2016/17 | L23: Annual target 2017/18 | M23: Annual target 2018/19 | N23: Annual target 2019/20 | O23: Annual target 2020/21 | Z23: Coastal Infrastructure | AA23: Reticulation | AB23: Power Plants | AD23: Sustainable human settlements and improved quality of household life
A24: =A23 -> Adjustments Budget | B24: Revised target 2007/08 | C24: Revised target 2008/09 | D24: Revised target 2009/10 | E24: ="Revised target "& E1&"/"&RIGHT(E1,2)+1 -> Revised target 2010/11 | F24: Revised target 2011/12 | G24: Revised target 2012/13 | H24: Revised target 2013/14 | I24: Revised target 2014/15 | J24: Revised target 2015/16 | K24: Revised target 2016/17 | L24: Revised target 2017/18 | M24: Revised target 2018/19 | N24: Revised target 2019/20 | O24: Revised target 2020/21 | Z24: Information and Communication Infrastructure | AA24: Sewerage purification | AB24: HV Substations | AD24: Responsive, accountable, effective and efficient local government
A25: NOTE: This sheet should not be directly amended - select headings from sheet 'S' | Z25: Community Facilities | AA25: Waste Management | AB25: HV Switching Station | AD25: Protect and enhance our environmental assets and natural resources
Z26: Sport and Recreation Facilities | AA26: Transportation | AB26: HV Transmission Conductors | AD26: Create a better South Africa and contribute to a better Africa and a better world
A27: Name link | B27: 125 | Z27: Heritage assets | AA27: Gas | AB27: MV Substations | AD27: An efficient, effective and development-oriented public service
A28: Name of Muni | B28: =INDEX(B29:B307,B27,1) -> KZN434 Ubuhlebezwe | Z28: Revenue Generating | AA28: Parks & gardens | AB28: MV Switching Stations | AD28: A comprehensive, responsive and sustainable social protection system
B29: Choose name from list | C29: Set name on 'Instructions' sheet | Z29: Non-revenue Generating | AA29: Sportsfields & stadia | AB29: MV Networks | AD29: A diverse, socially cohesive society with a common national identity
B30: BUF Buffalo City | C30: EC EASTERN CAPE | Z30: Operational Buildings | AA30: Swimming pools | AB30: LV Networks
B31: NMA Nelson Mandela Bay | C31: EC EASTERN CAPE | Z31: Housing | AA31: Community halls | AB31: Capital Spares
B32: EC101 Dr Beyers Naude | C32: EC EASTERN CAPE | Z32: Biological or Cultivated Assets | AA32: Libraries | AB32: Dams and Weirs
B33: EC102 Blue Crane Route | C33: EC EASTERN CAPE | Z33: Servitudes | AA33: Recreational facilities | AB33: Boreholes
B34: EC104 Makana | C34: EC EASTERN CAPE | Z34: Licences and Rights | AA34: Fire, safety & emergency | AB34: Reservoirs
B35: EC105 Ndlambe | C35: EC EASTERN CAPE | Z35: Computer Equipment | AA35: Security and policing | AB35: Pump Stations
B36: EC106 Sundays River Valley | C36: EC EASTERN CAPE | Z36: Furniture and Office Equipment | AA36: Buses | AB36: Water Treatment Works
B37: EC108 Kouga | C37: EC EASTERN CAPE | Z37: Machinery and Equipment | AA37: Clinics | AB37: Bulk Mains
B38: EC109 Kou-Kamma | C38: EC EASTERN CAPE | Z38: Transport Assets | AA38: Museums & Art Galleries | AB38: Distribution
B39: DC10 Sarah Baartman | C39: EC EASTERN CAPE | Z39: Land | AA39: Cemeteries | AB39: Distribution Points
B40: EC121 Mbhashe | C40: EC EASTERN CAPE | Z40: Zoo's, Marine and Non-biological Animals | AA40: Social rental housing | AB40: PRV Stations
B41: EC122 Mnquma | C41: EC EASTERN CAPE | AA41: Buildings | AB41: Capital Spares
B42: EC123 Great Kei | C42: EC EASTERN CAPE | AA42: Housing development | AB42: Pump Station
B43: EC124 Amahlathi | C43: EC EASTERN CAPE | AA43: General vehicles | AB43: Reticulation
B44: EC126 Ngqushwa | C44: EC EASTERN CAPE | AA44: Specialised vehicles - Refuse | AB44: Waste Water Treatment Works
B45: EC129 Raymond Mhlaba | C45: EC EASTERN CAPE | AA45: Specialised vehicles - Fire | AB45: Outfall Sewers
B46: DC12 Amathole | C46: EC EASTERN CAPE | AA46: Specialised vehicles - Conservancy | AB46: Toilet Facilities
B47: EC131 Inxuba Yethemba | C47: EC EASTERN CAPE | AA47: Specialised vehicles - Ambulances | AB47: Capital Spares
B48: EC135 Intsika Yethu | C48: EC EASTERN CAPE | AA48: Plant & equipment | AB48: Landfill Sites
B49: EC136 Emalahleni (Ec) | C49: EC EASTERN CAPE | AA49: Computers - hardware/equipment | AB49: Waste Transfer Stations
B50: EC137 Engcobo | C50: EC EASTERN CAPE | AA50: Furniture and other office equipment | AB50: Waste Processing Facilities
B51: EC138 Sakhisizwe | C51: EC EASTERN CAPE | AA51: Abattoirs | AB51: Waste Drop-off Points
B52: EC139 Enoch Mgijima | C52: EC EASTERN CAPE | AA52: Markets | AB52: Waste Separation Facilities
B53: DC13 Chris Hani | C53: EC EASTERN CAPE | AA53: Civic Land and Buildings | AB53: Electricity Generation Facilities
B54: EC141 Elundini | C54: EC EASTERN CAPE | AA54: Other Buildings | AB54: Capital Spares
B55: EC142 Senqu | C55: EC EASTERN CAPE | AA55: Other Land | AB55: Rail Lines
B56: EC145 Walter Sisulu | C56: EC EASTERN CAPE | AA56: Surplus Assets - (Investment or Inventory) | AB56: Rail Structures
B57: DC14 Joe Gqabi | C57: EC EASTERN CAPE | AA57: Computers - software & programming | AB57: Rail Furniture
B58: EC153 Ngquza Hills | C58: EC EASTERN CAPE | AA58: Other | AB58: Drainage Collection
B59: EC154 Port St Johns | C59: EC EASTERN CAPE | AB59: Storm water Conveyance
B60: EC155 Nyandeni | C60: EC EASTERN CAPE | Z60: SA16 - Investments | AB60: Attenuation
B61: EC156 Mhlontlo | C61: EC EASTERN CAPE | Z61: Security | AA61: Interest rate | AB61: MV Substations
B62: EC157 King Sabata Dalindyebo | C62: EC EASTERN CAPE | Z62: Yes | AA62: Fixed | AB62: LV Networks
B63: DC15 O .R. Tambo | C63: EC EASTERN CAPE | Z63: No | AA63: Variable | AB63: Capital Spares
B64: EC441 Matatiele | C64: EC EASTERN CAPE | AB64: Sand Pumps
B65: EC442 Umzimvubu | C65: EC EASTERN CAPE | AB65: Piers
B66: EC443 Mbizana | C66: EC EASTERN CAPE | Z66: SA36, SA37 - Capital projects | AB66: Revetments
B67: EC444 Ntabankulu | C67: EC EASTERN CAPE | Z67: Yes | AB67: Promenades
B68: DC44 Alfred Nzo | C68: EC EASTERN CAPE | Z68: No | AB68: Capital Spares
B69: MAN Mangaung | C69: FS FREE STATE | AB69: Data Centres
B70: FS161 Letsemeng | C70: FS FREE STATE | AB70: Core Layers
B71: FS162 Kopanong | C71: FS FREE STATE | AB71: Distribution Layers
B72: FS163 Mohokare | C72: FS FREE STATE | AB72: Capital Spares
B73: DC16 Xhariep | C73: FS FREE STATE | AB73: Halls
B74: FS181 Masilonyana | C74: FS FREE STATE | AB74: Centres
B75: FS182 Tokologo | C75: FS FREE STATE | AB75: Crèches
B76: FS183 Tswelopele | C76: FS FREE STATE | AB76: Clinics/Care Centres
B77: FS184 Matjhabeng | C77: FS FREE STATE | AB77: Fire/Ambulance Stations
B78: FS185 Nala | C78: FS FREE STATE | AB78: Testing Stations
B79: DC18 Lejweleputswa | C79: FS FREE STATE | AB79: Museums
B80: FS191 Setsoto | C80: FS FREE STATE | AB80: Galleries
B81: FS192 Dihlabeng | C81: FS FREE STATE | AB81: Theatres
B82: FS193 Nketoana | C82: FS FREE STATE | AB82: Libraries
B83: FS194 Maluti-a-Phofung | C83: FS FREE STATE | AB83: Cemeteries/Crematoria
B84: FS195 Phumelela | C84: FS FREE STATE | AB84: Police
B85: FS196 Mantsopa | C85: FS FREE STATE | AB85: Purls
B86: DC19 Thabo Mofutsanyana | C86: FS FREE STATE | AB86: Public Open Space
B87: FS201 Moqhaka | C87: FS FREE STATE | AB87: Nature Reserves
B88: FS203 Ngwathe | C88: FS FREE STATE | AB88: Public Ablution Facilities
B89: FS204 Metsimaholo | C89: FS FREE STATE | AB89: Markets
B90: FS205 Mafube | C90: FS FREE STATE | AB90: Stalls
B91: DC20 Fezile Dabi | C91: FS FREE STATE | AB91: Abattoirs
B92: EKU City of Ekurhuleni | C92: GT GAUTENG | AB92: Airports
B93: JHB City Of Johannesburg | C93: GT GAUTENG | AB93: Taxi Ranks/Bus Terminals
B94: TSH City Of Tshwane | C94: GT GAUTENG | AB94: Capital Spares
B95: GT421 Emfuleni | C95: GT GAUTENG | AB95: Indoor Facilities
B96: GT422 Midvaal | C96: GT GAUTENG | AB96: Outdoor Facilities
B97: GT423 Lesedi | C97: GT GAUTENG | AB97: Capital Spares
B98: DC42 Sedibeng | C98: GT GAUTENG | AB98: Monuments
B99: GT481 Mogale City | C99: GT GAUTENG | AB99: Historic Buildings
B100: GT484 Merafong City | C100: GT GAUTENG | AB100: Works of Art
B101: GT485 Rand West City | C101: GT GAUTENG | AB101: Conservation Areas
B102: DC48 West Rand | C102: GT GAUTENG | AB102: Other Heritage
B103: ETH eThekwini | C103: KZN KWAZULU-NATAL | AB103: Improved Property
B104: KZN212 Umdoni | C104: KZN KWAZULU-NATAL | AB104: Unimproved Property
B105: KZN213 Umzumbe | C105: KZN KWAZULU-NATAL | AB105: Municipal Offices
B106: KZN214 uMuziwabantu | C106: KZN KWAZULU-NATAL | AB106: Pay/Enquiry Points
B107: KZN216 Ray Nkonyeni | C107: KZN KWAZULU-NATAL | AB107: Building Plan Offices
B108: DC21 Ugu | C108: KZN KWAZULU-NATAL | AB108: Workshops
B109: KZN221 uMshwathi | C109: KZN KWAZULU-NATAL | AB109: Yards
B110: KZN222 uMngeni | C110: KZN KWAZULU-NATAL | AB110: Stores
B111: KZN223 Mpofana | C111: KZN KWAZULU-NATAL | AB111: Laboratories
B112: KZN224 Impendle | C112: KZN KWAZULU-NATAL | AB112: Training Centres
B113: KZN225 Msunduzi | C113: KZN KWAZULU-NATAL | AB113: Manufacturing Plant
B114: KZN226 Mkhambathini | C114: KZN KWAZULU-NATAL | AB114: Depots
B115: KZN227 Richmond | C115: KZN KWAZULU-NATAL | AB115: Capital Spares
B116: DC22 uMgungundlovu | C116: KZN KWAZULU-NATAL | AB116: Staff Housing
B117: KZN235 Okhahlamba | C117: KZN KWAZULU-NATAL | AB117: Social Housing
B118: KZN237 Inkosi Langalibalele | C118: KZN KWAZULU-NATAL | AB118: Capital Spares
B119: KZN238 Alfred Duma | C119: KZN KWAZULU-NATAL | AB119: Water Rights
B120: DC23 Uthukela | C120: KZN KWAZULU-NATAL | AB120: Effluent Licenses
B121: KZN241 Endumeni | C121: KZN KWAZULU-NATAL | AB121: Solid Waste Licenses
B122: KZN242 Nquthu | C122: KZN KWAZULU-NATAL | AB122: Computer Software and Applications
B123: KZN244 Msinga | C123: KZN KWAZULU-NATAL | AB123: Load Settlement Software Applications
B124: KZN245 Umvoti | C124: KZN KWAZULU-NATAL | AB124: Unspecified
B125: DC24 Umzinyathi | C125: KZN KWAZULU-NATAL
B126: KZN252 Newcastle | C126: KZN KWAZULU-NATAL
B127: KZN253 Emadlangeni | C127: KZN KWAZULU-NATAL
B128: KZN254 Dannhauser | C128: KZN KWAZULU-NATAL
B129: DC25 Amajuba | C129: KZN KWAZULU-NATAL
B130: KZN261 eDumbe | C130: KZN KWAZULU-NATAL
B131: KZN262 uPhongolo | C131: KZN KWAZULU-NATAL
B132: KZN263 Abaqulusi | C132: KZN KWAZULU-NATAL
B133: KZN265 Nongoma | C133: KZN KWAZULU-NATAL
B134: KZN266 Ulundi | C134: KZN KWAZULU-NATAL
B135: DC26 Zululand | C135: KZN KWAZULU-NATAL
B136: KZN271 Umhlabuyalingana | C136: KZN KWAZULU-NATAL
B137: KZN272 Jozini | C137: KZN KWAZULU-NATAL
B138: KZN275 Mtubatuba | C138: KZN KWAZULU-NATAL
B139: KZN276 Hlabisa Big Five | C139: KZN KWAZULU-NATAL
B140: DC27 Umkhanyakude | C140: KZN KWAZULU-NATAL
B141: KZN281 Mfolozi | C141: KZN KWAZULU-NATAL
B142: KZN282 uMhlathuze | C142: KZN KWAZULU-NATAL
B143: KZN284 uMlalazi | C143: KZN KWAZULU-NATAL
B144: KZN285 Mthonjaneni | C144: KZN KWAZULU-NATAL
B145: KZN286 Nkandla | C145: KZN KWAZULU-NATAL
B146: DC28 King Cetshwayo | C146: KZN KWAZULU-NATAL
B147: KZN291 Mandeni | C147: KZN KWAZULU-NATAL
B148: KZN292 KwaDukuza | C148: KZN KWAZULU-NATAL
B149: KZN293 Ndwedwe | C149: KZN KWAZULU-NATAL
B150: KZN294 Maphumulo | C150: KZN KWAZULU-NATAL
B151: DC29 iLembe | C151: KZN KWAZULU-NATAL
B152: KZN433 Greater Kokstad | C152: KZN KWAZULU-NATAL
B153: KZN434 Ubuhlebezwe | C153: KZN KWAZULU-NATAL
B154: KZN435 Umzimkhulu | C154: KZN KWAZULU-NATAL
B155: KZN436 Dr Nkosazana Dlamini Zuma | C155: KZN KWAZULU-NATAL
B156: DC43 Harry Gwala | C156: KZN KWAZULU-NATAL
B157: LIM331 Greater Giyani | C157: LIM LIMPOPO
B158: LIM332 Greater Letaba | C158: LIM LIMPOPO
B159: LIM333 Greater Tzaneen | C159: LIM LIMPOPO
B160: LIM334 Ba-Phalaborwa | C160: LIM LIMPOPO
B161: LIM335 Maruleng | C161: LIM LIMPOPO
B162: DC33 Mopani | C162: LIM LIMPOPO
B163: LIM341 Musina | C163: LIM LIMPOPO
B164: LIM343 Thulamela | C164: LIM LIMPOPO
B165: LIM344 Makhado | C165: LIM LIMPOPO
B166: LIM345 Collins Chabane | C166: LIM LIMPOPO
B167: DC34 Vhembe | C167: LIM LIMPOPO
B168: LIM351 Blouberg | C168: LIM LIMPOPO
B169: LIM353 Molemole | C169: LIM LIMPOPO
B170: LIM354 Polokwane | C170: LIM LIMPOPO
B171: LIM355 Lepelle-Nkumpi | C171: LIM LIMPOPO
B172: DC35 Capricorn | C172: LIM LIMPOPO
B173: LIM361 Thabazimbi | C173: LIM LIMPOPO
B174: LIM362 Lephalale | C174: LIM LIMPOPO
B175: LIM366 Bela Bela | C175: LIM LIMPOPO
B176: LIM367 Mogalakwena | C176: LIM LIMPOPO
B177: LIM368 Modimolle-Mookgopong | C177: LIM LIMPOPO
B178: DC36 Waterberg | C178: LIM LIMPOPO
B179: LIM471 Ephraim Mogale | C179: LIM LIMPOPO
B180: LIM472 Elias Motsoaledi | C180: LIM LIMPOPO
B181: LIM473 Makhuduthamaga | C181: LIM LIMPOPO
B182: LIM476 Tubatse Fetakgomo | C182: LIM LIMPOPO
B183: DC47 Sekhukhune | C183: LIM LIMPOPO
B184: MP301 Albert Luthuli | C184: MP MPUMALANGA
B185: MP302 Msukaligwa | C185: MP MPUMALANGA
B186: MP303 Mkhondo | C186: MP MPUMALANGA
B187: MP304 Pixley Ka Seme (MP) | C187: MP MPUMALANGA
B188: MP305 Lekwa | C188: MP MPUMALANGA
B189: MP306 Dipaleseng | C189: MP MPUMALANGA
B190: MP307 Govan Mbeki | C190: MP MPUMALANGA
B191: DC30 Gert Sibande | C191: MP MPUMALANGA
B192: MP311 Victor Khanye | C192: MP MPUMALANGA
B193: MP312 Emalahleni (Mp) | C193: MP MPUMALANGA
B194: MP313 Steve Tshwete | C194: MP MPUMALANGA
B195: MP314 Emakhazeni | C195: MP MPUMALANGA
B196: MP315 Thembisile Hani | C196: MP MPUMALANGA
B197: MP316 Dr J.S. Moroka | C197: MP MPUMALANGA
B198: DC31 Nkangala | C198: MP MPUMALANGA
B199: MP321 Thaba Chweu | C199: MP MPUMALANGA
B200: MP324 Nkomazi | C200: MP MPUMALANGA
... 87 more rows

Sheet Org structure
A1: Organisational Structure Votes | C1: Organisational Structure Sub-Votes
A2: =B2&" - "&C2 -> Vote 1 - Finance & Admin | B2: Vote 1 | C2: Finance & Admin
A3: =B13&" - "& C13 -> Vote 2 - Executive & Council | B3: 1.1 | C3: Asset Management | D3: =CONCATENATE(B3, " - ", C3) -> 1.1 - Asset Management
A4: =B24&" - "&C24 -> Vote 3 - Community and Social Services | B4: 1.2 | C4: Information Technology | D4: 1.2 - Information Technology
A5: =B35&" - "&C35 -> Vote 4 - Housing | B5: 1.3 | C5: Finance | D5: 1.3 - Finance
A6: =B46&" - "&C46 -> Vote 5 - Public Safety | B6: 1.4 | C6: Fleet Management | D6: 1.4 - Fleet Management
A7: =B57&" - "&C57 -> Vote 6 - Road Transport | B7: 1.5 | C7: Administrative and Corporate Support | D7: 1.5 - Administrative and Corporate Support
A8: =B68&" - "&C68 -> Vote 7 - Waste Management | B8: 1.6 | C8: Property Services | D8: 1.6 - Property Services
A9: =B79&" - "&C79 -> Vote 8 - Energy Sources | B9: 1.7 | C9: Legal Services | D9: 1.7 - Legal Services
A10: =B90&" - "&C90 -> Vote 9 - Planning and Development | B10: 1.8 | C10: Human Resources | D10: 1.8 - Human Resources
A11: =B101&" - "&C101 -> Vote 10 - Sport and Recreation | B11: 1.9 | C11: [Name of sub-vote] | D11: 1.9 - [Name of sub-vote]
A12: =B112&" - "&C112 -> Vote 11 - [NAME OF VOTE 11] | B12: 1.10 | C12: [Name of sub-vote] | D12: 1.10 - [Name of sub-vote]
A13: =B123&" - "&C123 -> Vote 12 - [NAME OF VOTE 12] | B13: Vote 2 | C13: Executive & Council
A14: =B134&" - "&C134 -> Vote 13 - [NAME OF VOTE 13] | B14: 2.1 | C14: Mayor and Council | D14: =CONCATENATE(B14, " - ", C14) -> 2.1 - Mayor and Council
A15: =B145&" - "&C145 -> Vote 14 - [NAME OF VOTE 14] | B15: 2.2 | C15: Municipal Manager, Town Secretary and Chief Executive | D15: 2.2 - Municipal Manager, Town Secretary and Chief Executive
A16: =B156&" - "&C156 -> Vote 15 - [NAME OF VOTE 15] | B16: 2.3 | C16: Governance Function | D16: 2.3 - Governance Function
B17: 2.4 | C17: [Name of sub-vote] | D17: 2.4 - [Name of sub-vote]
B18: 2.5 | C18: [Name of sub-vote] | D18: 2.5 - [Name of sub-vote]
B19: 2.6 | C19: [Name of sub-vote] | D19: 2.6 - [Name of sub-vote]
B20: 2.7 | C20: [Name of sub-vote] | D20: 2.7 - [Name of sub-vote]
B21: 2.8 | C21: [Name of sub-vote] | D21: 2.8 - [Name of sub-vote]
B22: 2.9 | C22: [Name of sub-vote] | D22: 2.9 - [Name of sub-vote]
B23: 2.10 | C23: [Name of sub-vote] | D23: 2.10 - [Name of sub-vote]
B24: Vote 3 | C24: Community and Social Services
B25: 3.1 | C25: Cultural Matters | D25: =CONCATENATE(B25, " - ", C25) -> 3.1 - Cultural Matters
B26: 3.2 | C26: Population Development | D26: 3.2 - Population Development
B27: 3.3 | C27: Recreational Facilities | D27: 3.3 - Recreational Facilities
B28: 3.4 | C28: Education | D28: 3.4 - Education
B29: 3.5 | C29: Libraries and Archives | D29: 3.5 - Libraries and Archives
B30: 3.6 | C30: Community Halls and Facilities | D30: 3.6 - Community Halls and Facilities
B31: 3.7 | C31: Development Facilitation | D31: 3.7 - Development Facilitation
B32: 3.8 | C32: Community Parks (including Nurseries) | D32: 3.8 - Community Parks (including Nurseries)
B33: 3.9 | C33: Tourism | D33: 3.9 - Tourism
B34: 3.10 | C34: Aged Care | D34: 3.10 - Aged Care
B35: Vote 4 | C35: Housing
B36: 4.1 | C36: Housing | D36: =CONCATENATE(B36, " - ", C36) -> 4.1 - Housing
B37: 4.2 | C37: [Name of sub-vote] | D37: 4.2 - [Name of sub-vote]
B38: 4.3 | C38: [Name of sub-vote] | D38: 4.3 - [Name of sub-vote]
B39: 4.4 | C39: [Name of sub-vote] | D39: 4.4 - [Name of sub-vote]
B40: 4.5 | C40: [Name of sub-vote] | D40: 4.5 - [Name of sub-vote]
B41: 4.6 | C41: [Name of sub-vote] | D41: 4.6 - [Name of sub-vote]
B42: 4.7 | C42: [Name of sub-vote] | D42: 4.7 - [Name of sub-vote]
B43: 4.8 | C43: [Name of sub-vote] | D43: 4.8 - [Name of sub-vote]
B44: 4.9 | C44: [Name of sub-vote] | D44: 4.9 - [Name of sub-vote]
B45: 4.10 | C45: [Name of sub-vote] | D45: 4.10 - [Name of sub-vote]
B46: Vote 5 | C46: Public Safety
B47: 5.1 | C47: Civil Defence | D47: =CONCATENATE(B47, " - ", C47) -> 5.1 - Civil Defence
B48: 5.2 | C48: Fire Fighting and Protection | D48: 5.2 - Fire Fighting and Protection
B49: 5.3 | C49: [Name of sub-vote] | D49: 5.3 - [Name of sub-vote]
B50: 5.4 | C50: [Name of sub-vote] | D50: 5.4 - [Name of sub-vote]
B51: 5.5 | C51: [Name of sub-vote] | D51: 5.5 - [Name of sub-vote]
B52: 5.6 | C52: [Name of sub-vote] | D52: 5.6 - [Name of sub-vote]
B53: 5.7 | C53: [Name of sub-vote] | D53: 5.7 - [Name of sub-vote]
B54: 5.8 | C54: [Name of sub-vote] | D54: 5.8 - [Name of sub-vote]
B55: 5.9 | C55: [Name of sub-vote] | D55: 5.9 - [Name of sub-vote]
B56: 5.10 | C56: [Name of sub-vote] | D56: 5.10 - [Name of sub-vote]
B57: Vote 6 | C57: Road Transport
B58: 6.1 | C58: Roads | D58: =CONCATENATE(B58, " - ", C58) -> 6.1 - Roads
B59: 6.2 | C59: [Name of sub-vote] | D59: 6.2 - [Name of sub-vote]
B60: 6.3 | C60: [Name of sub-vote] | D60: 6.3 - [Name of sub-vote]
B61: 6.4 | C61: [Name of sub-vote] | D61: 6.4 - [Name of sub-vote]
B62: 6.5 | C62: [Name of sub-vote] | D62: 6.5 - [Name of sub-vote]
B63: 6.6 | C63: [Name of sub-vote] | D63: 6.6 - [Name of sub-vote]
B64: 6.7 | C64: [Name of sub-vote] | D64: 6.7 - [Name of sub-vote]
B65: 6.8 | C65: [Name of sub-vote] | D65: 6.8 - [Name of sub-vote]
B66: 6.9 | C66: [Name of sub-vote] | D66: 6.9 - [Name of sub-vote]
B67: 6.10 | C67: [Name of sub-vote] | D67: 6.10 - [Name of sub-vote]
B68: Vote 7 | C68: Waste Management
B69: 7.1 | C69: Solid Waste Removal | D69: =CONCATENATE(B69, " - ", C69) -> 7.1 - Solid Waste Removal
B70: 7.2 | C70: [Name of sub-vote] | D70: 7.2 - [Name of sub-vote]
B71: 7.3 | C71: [Name of sub-vote] | D71: 7.3 - [Name of sub-vote]
B72: 7.4 | C72: [Name of sub-vote] | D72: 7.4 - [Name of sub-vote]
B73: 7.5 | C73: [Name of sub-vote] | D73: 7.5 - [Name of sub-vote]
B74: 7.6 | C74: [Name of sub-vote] | D74: 7.6 - [Name of sub-vote]
B75: 7.7 | C75: [Name of sub-vote] | D75: 7.7 - [Name of sub-vote]
B76: 7.8 | C76: [Name of sub-vote] | D76: 7.8 - [Name of sub-vote]
B77: 7.9 | C77: [Name of sub-vote] | D77: 7.9 - [Name of sub-vote]
B78: 7.10 | C78: [Name of sub-vote] | D78: 7.10 - [Name of sub-vote]
B79: Vote 8 | C79: Energy Sources
B80: 8.1 | C80: Electricity | D80: =CONCATENATE(B80, " - ", C80) -> 8.1 - Electricity
B81: 8.2 | C81: [Name of sub-vote] | D81: 8.2 - [Name of sub-vote]
B82: 8.3 | C82: [Name of sub-vote] | D82: 8.3 - [Name of sub-vote]
B83: 8.4 | C83: [Name of sub-vote] | D83: 8.4 - [Name of sub-vote]
B84: 8.5 | C84: [Name of sub-vote] | D84: 8.5 - [Name of sub-vote]
B85: 8.6 | C85: [Name of sub-vote] | D85: 8.6 - [Name of sub-vote]
B86: 8.7 | C86: [Name of sub-vote] | D86: 8.7 - [Name of sub-vote]
B87: 8.8 | C87: [Name of sub-vote] | D87: 8.8 - [Name of sub-vote]
B88: 8.9 | C88: [Name of sub-vote] | D88: 8.9 - [Name of sub-vote]
B89: 8.10 | C89: [Name of sub-vote] | D89: 8.10 - [Name of sub-vote]
B90: Vote 9 | C90: Planning and Development
B91: 9.1 | C91: Town Planning, Building Regulations and Enforcement, and City Engineer | D91: =CONCATENATE(B91, " - ", C91) -> 9.1 - Town Planning, Building Regulations and Enforcement, and City Engineer
B92: 9.2 | C92: Economic Development/Planning | D92: 9.2 - Economic Development/Planning
B93: 9.3 | C93: Regional Planning and Development | D93: 9.3 - Regional Planning and Development
B94: 9.4 | C94: Street Lighting and Signal Systems | D94: 9.4 - Street Lighting and Signal Systems
B95: 9.5 | C95: Project Management Unit | D95: 9.5 - Project Management Unit
B96: 9.6 | C96: [Name of sub-vote] | D96: 9.6 - [Name of sub-vote]
B97: 9.7 | C97: [Name of sub-vote] | D97: 9.7 - [Name of sub-vote]
B98: 9.8 | C98: [Name of sub-vote] | D98: 9.8 - [Name of sub-vote]
B99: 9.9 | C99: [Name of sub-vote] | D99: 9.9 - [Name of sub-vote]
B100: 9.10 | C100: [Name of sub-vote] | D100: 9.10 - [Name of sub-vote]
B101: Vote 10 | C101: Sport and Recreation
B102: 10.1 | C102: Sports Grounds and Stadiums | D102: =CONCATENATE(B102, " - ", C102) -> 10.1 - Sports Grounds and Stadiums
B103: 10.2 | C103: [Name of sub-vote] | D103: 10.2 - [Name of sub-vote]
B104: 10.3 | C104: [Name of sub-vote] | D104: 10.3 - [Name of sub-vote]
B105: 10.4 | C105: [Name of sub-vote] | D105: 10.4 - [Name of sub-vote]
B106: 10.5 | C106: [Name of sub-vote] | D106: 10.5 - [Name of sub-vote]
B107: 10.6 | C107: [Name of sub-vote] | D107: 10.6 - [Name of sub-vote]
B108: 10.7 | C108: [Name of sub-vote] | D108: 10.7 - [Name of sub-vote]
B109: 10.8 | C109: [Name of sub-vote] | D109: 10.8 - [Name of sub-vote]
B110: 10.9 | C110: [Name of sub-vote] | D110: 10.9 - [Name of sub-vote]
B111: 10.10 | C111: [Name of sub-vote] | D111: 10.10 - [Name of sub-vote]
B112: Vote 11 | C112: [NAME OF VOTE 11]
B113: 11.1 | C113: [Name of sub-vote] | D113: =CONCATENATE(B113, " - ", C113) -> 11.1 - [Name of sub-vote]
B114: 11.2 | C114: [Name of sub-vote] | D114: 11.2 - [Name of sub-vote]
B115: 11.3 | C115: [Name of sub-vote] | D115: 11.3 - [Name of sub-vote]
B116: 11.4 | C116: [Name of sub-vote] | D116: 11.4 - [Name of sub-vote]
B117: 11.5 | C117: [Name of sub-vote] | D117: 11.5 - [Name of sub-vote]
B118: 11.6 | C118: [Name of sub-vote] | D118: 11.6 - [Name of sub-vote]
B119: 11.7 | C119: [Name of sub-vote] | D119: 11.7 - [Name of sub-vote]
B120: 11.8 | C120: [Name of sub-vote] | D120: 11.8 - [Name of sub-vote]
B121: 11.9 | C121: [Name of sub-vote] | D121: 11.9 - [Name of sub-vote]
B122: 11.10 | C122: [Name of sub-vote] | D122: 11.10 - [Name of sub-vote]
B123: Vote 12 | C123: [NAME OF VOTE 12]
B124: 12.1 | C124: [Name of sub-vote] | D124: =CONCATENATE(B124, " - ", C124) -> 12.1 - [Name of sub-vote]
B125: 12.2 | C125: [Name of sub-vote] | D125: 12.2 - [Name of sub-vote]
B126: 12.3 | C126: [Name of sub-vote] | D126: 12.3 - [Name of sub-vote]
B127: 12.4 | C127: [Name of sub-vote] | D127: 12.4 - [Name of sub-vote]
B128: 12.5 | C128: [Name of sub-vote] | D128: 12.5 - [Name of sub-vote]
B129: 12.6 | C129: [Name of sub-vote] | D129: 12.6 - [Name of sub-vote]
B130: 12.7 | C130: [Name of sub-vote] | D130: 12.7 - [Name of sub-vote]
B131: 12.8 | C131: [Name of sub-vote] | D131: 12.8 - [Name of sub-vote]
B132: 12.9 | C132: [Name of sub-vote] | D132: 12.9 - [Name of sub-vote]
B133: 12.10 | C133: [Name of sub-vote] | D133: 12.10 - [Name of sub-vote]
B134: Vote 13 | C134: [NAME OF VOTE 13]
B135: 13.1 | C135: [Name of sub-vote] | D135: =CONCATENATE(B135, " - ", C135) -> 13.1 - [Name of sub-vote]
B136: 13.2 | C136: [Name of sub-vote] | D136: 13.2 - [Name of sub-vote]
B137: 13.3 | C137: [Name of sub-vote] | D137: 13.3 - [Name of sub-vote]
B138: 13.4 | C138: [Name of sub-vote] | D138: 13.4 - [Name of sub-vote]
B139: 13.5 | C139: [Name of sub-vote] | D139: 13.5 - [Name of sub-vote]
B140: 13.6 | C140: [Name of sub-vote] | D140: 13.6 - [Name of sub-vote]
B141: 13.7 | C141: [Name of sub-vote] | D141: 13.7 - [Name of sub-vote]
B142: 13.8 | C142: [Name of sub-vote] | D142: 13.8 - [Name of sub-vote]
B143: 13.9 | C143: [Name of sub-vote] | D143: 13.9 - [Name of sub-vote]
B144: 13.10 | C144: [Name of sub-vote] | D144: 13.10 - [Name of sub-vote]
B145: Vote 14 | C145: [NAME OF VOTE 14]
B146: 14.1 | C146: [Name of sub-vote] | D146: =CONCATENATE(B146, " - ", C146) -> 14.1 - [Name of sub-vote]
B147: 14.2 | C147: [Name of sub-vote] | D147: 14.2 - [Name of sub-vote]
B148: 14.3 | C148: [Name of sub-vote] | D148: 14.3 - [Name of sub-vote]
B149: 14.4 | C149: [Name of sub-vote] | D149: 14.4 - [Name of sub-vote]
B150: 14.5 | C150: [Name of sub-vote] | D150: 14.5 - [Name of sub-vote]
B151: 14.6 | C151: [Name of sub-vote] | D151: 14.6 - [Name of sub-vote]
B152: 14.7 | C152: [Name of sub-vote] | D152: 14.7 - [Name of sub-vote]
B153: 14.8 | C153: [Name of sub-vote] | D153: 14.8 - [Name of sub-vote]
B154: 14.9 | C154: [Name of sub-vote] | D154: 14.9 - [Name of sub-vote]
B155: 14.10 | C155: [Name of sub-vote] | D155: 14.10 - [Name of sub-vote]
B156: Vote 15 | C156: [NAME OF VOTE 15]
B157: 15.1 | C157: [Name of sub-vote] | D157: =CONCATENATE(B157, " - ", C157) -> 15.1 - [Name of sub-vote]
B158: 15.2 | C158: [Name of sub-vote] | D158: 15.2 - [Name of sub-vote]
B159: 15.3 | C159: [Name of sub-vote] | D159: 15.3 - [Name of sub-vote]
B160: 15.4 | C160: [Name of sub-vote] | D160: 15.4 - [Name of sub-vote]
B161: 15.5 | C161: [Name of sub-vote] | D161: 15.5 - [Name of sub-vote]
B162: 15.6 | C162: [Name of sub-vote] | D162: 15.6 - [Name of sub-vote]
B163: 15.7 | C163: [Name of sub-vote] | D163: 15.7 - [Name of sub-vote]
B164: 15.8 | C164: [Name of sub-vote] | D164: 15.8 - [Name of sub-vote]
B165: 15.9 | C165: [Name of sub-vote] | D165: 15.9 - [Name of sub-vote]
B166: 15.10 | C166: [Name of sub-vote] | D166: 15.10 - [Name of sub-vote]

Sheet Contacts
A1: =muni&" - "&" Contact Information" -> KZN434 Ubuhlebezwe - Contact Information
A3: A. GENERAL INFORMATION
A4: Municipality | B4: =muni -> KZN434 Ubuhlebezwe | C4: =IF(B4="Choose name from List","Set name on 'Instructions' sheet", "") -> 
A6: Grade | C6: 1 Grade in terms of the Remuneration of Public Office Bearers Act.
A8: Province | B8: =IF(B4>" ",VLOOKUP(B4,'Lookup and lists'!B29:C307,2, FALSE)," ") -> KZN KWAZULU-NATAL
A10: Web Address | B10: www.ubuhlebezwe.org.za
A12: e-mail Address | B12: mm@ubuhlebezwe.org.za
A14: B. CONTACT INFORMATION
A15: Postal address:
A16: P.O. Box | B16: 132
A17: City / Town | B17: Ixopo
A18: Postal Code | B18: 3276
A20: Street address
A21: Building | B21: Ubuhlebezwe Municipality
A22: Street No. & Name | B22: 29 Margaret Street
A23: City / Town | B23: Ixopo
A24: Postal Code | B24: 3276
A26: General Contacts
A27: Telephone number | B27: 27398347700
A28: Fax number | B28: 27398341168
A30: C. POLITICAL LEADERSHIP
A31: Speaker: | C31: Secretary/PA to the Speaker:
A32: ID Number | B32: 5206045632088 | C32: ID Number | D32: 8711251243089
A33: Title | B33: SPEAKER | C33: Title | D33: SECRETARY TO EXECUTIVE
A34: Name | B34: THULANI CONRAD DLAMINI | C34: Name | D34: ZODUMO DLAMINI
A35: Telephone number | B35: 0398347700 | C35: Telephone number | D35: 0398347700
A36: Cell number | C36: Cell number
A37: Fax number | C37: Fax number
A38: E-mail address | B38: tdlamini@ubuhlebezwe.gov.za | C38: E-mail address | D38: zdlamini@ubuhlebezwe.gov.za
A40: Mayor/Executive Mayor: | C40: Secretary/PA to the Mayor/Executive Mayor:
A41: ID Number | B41: 7002020544085 | C41: ID Number | D41: 8307280874083
A42: Title | B42: MAYOR | C42: Title | D42: MRS
A43: Name | B43: ELIZABETH BATHOBILE NGUBO | C43: Name | D43: NOBUHLE MBANJWA
A44: Telephone number | B44: 0398347700 | C44: Telephone number | D44: 0398347700
A45: Cell number | C45: Cell number
A46: Fax number | C46: Fax number
A47: E-mail address | C47: E-mail address
A49: Deputy Mayor/Executive Mayor: | C49: Secretary/PA to the Deputy Mayor/Executive Mayor:
A50: ID Number | B50: 8210085550082 | C50: ID Number | D50: 8711251243089
A51: Title | B51: DEPUTY MAYOR | C51: Title | D51: PA TO MAYOR
A52: Name | B52: CONDRAD ZAKHELE MNGOMYAMA | C52: Name | D52: ZODUMO DLAMINI
A53: Telephone number | B53: 0398347700 | C53: Telephone number | D53: 0398347700
A54: Cell number | C54: Cell number
A55: Fax number | C55: Fax number
A56: E-mail address | C56: E-mail address | D56: zdlamini@ubuhlebezwe.gov.za
A58: D. MANAGEMENT LEADERSHIP
A59: Municipal Manager: | C59: Secretary/PA to the Municipal Manager:
A60: ID Number | B60: 6204225721085 | C60: ID Number | D60: 8508090675087
A61: Title | B61: MR | C61: Title | D61: PA TO THE MM
A62: Name | B62: GAMAKHULU MA ART SINEKE | C62: Name | D62: SBONGILE KUNENE
A63: Telephone number | B63: 0398347700 | C63: Telephone number | D63: 0398347700
A64: Cell number | C64: Cell number
A65: Fax number | C65: Fax number
A66: E-mail address | B66: mm@ubuhlebezwe.gov.za | C66: E-mail address | D66: skunene@ubuhlebezwe.gov.za
A68: Chief Financial Officer | C68: Secretary/PA to the Chief Financial Officer
A69: ID Number | B69: 8712260631082 | C69: ID Number | D69: 8507220560086
A70: Title | B70: Assistant CFO | C70: Title | D70: PA TO THE CFO
A71: Name | B71: MP Mbatha | C71: Name | D71: NOMPUMELELO NMCWABE
A72: Telephone number | B72: 0398347700 | C72: Telephone number | D72: 0398347700
A73: Cell number | C73: Cell number
A74: Fax number | C74: Fax number
A75: E-mail address | B75: mpmbatha@ubuhlebezwe.gov.za | C75: E-mail address | D75: nmngcwabe@ubuhlebezwe.gov.za
A77: Official responsible for submitting financial information | C77: Official responsible for submitting financial information
A78: ID Number | B78: 9104055619085 | C78: ID Number | D78: 8402235459088
A79: Title | B79: Budget and Reporting Accountant | C79: Title | D79: BUDGET AND REPORTING MANAGER
A80: Name | B80: MAZWI MOGAN BIYASE | C80: Name | D80: LAWERENCE LINDOKUHLE MAKHAYE
A81: Telephone number | B81: 0398347700 | C81: Telephone number | D81: 0398347700
A82: Cell number | C82: Cell number
A83: Fax number | C83: Fax number
A84: E-mail address | B84: mbiyase@ubuhlebezwe.gov.za | C84: E-mail address | D84: lmkhaye@ubuhlebezwe.gov.za
A85: Official responsible for submitting financial information | C85: Official responsible for submitting financial information
A86: ID Number | B86: 9606195316083 | C86: ID Number | D86: 9406145813085
A87: Title | B87: Budget and Reporting Clerk | C87: Title | D87: SENIOR BUDGET AND REPORTING CLERK
A88: Name | B88: Mbuso Dlamini | C88: Name | D88: MTHOKOZISI TSENGANE
A89: Telephone number | B89: 0398347700 | C89: Telephone number | D89: 0398347700
A90: Cell number | C90: Cell number
A91: Fax number | C91: Fax number
A92: E-mail address | B92: mbdlamini@ubuhlebezwe.gov.za | C92: E-mail address | D92: mdtsengane@ubuhlebezwe.gov.za
A93: Official responsible for submitting financial information | C93: Official responsible for submitting financial information
A94: ID Number | C94: ID Number
A95: Title | C95: Title
A96: Name | C96: Name
A97: Telephone number | C97: Telephone number
A98: Cell number | C98: Cell number
A99: Fax number | C99: Fax number
A100: E-mail address | C100: E-mail address
A101: Official responsible for submitting financial information | C101: Official responsible for submitting financial information
A102: ID Number | C102: ID Number
A103: Title | C103: Title
A104: Name | C104: Name
A105: Telephone number | C105: Telephone number
A106: Cell number | C106: Cell number
A107: Fax number | C107: Fax number
A108: E-mail address | C108: E-mail address
A109: Official responsible for submitting financial information | C109: Official responsible for submitting financial information
A110: ID Number | C110: ID Number
A111: Title | C111: Title
A112: Name | C112: Name
A113: Telephone number | C113: Telephone number
A114: Cell number | C114: Cell number
A115: Fax number | C115: Fax number
A116: E-mail address | C116: E-mail address
A117: Official responsible for submitting financial information | C117: Official responsible for submitting financial information
A118: ID Number | C118: ID Number
A119: Title | C119: Title
A120: Name | C120: Name
A121: Telephone number | C121: Telephone number
A122: Cell number | C122: Cell number
A123: Fax number | C123: Fax number
A124: E-mail address | C124: E-mail address
A125: Official responsible for submitting financial information | C125: Official responsible for submitting financial information
A126: ID Number | C126: ID Number
A127: Title | C127: Title
A128: Name | C128: Name
A129: Telephone number | C129: Telephone number
A130: Cell number | C130: Cell number
A131: Fax number | C131: Fax number
A132: E-mail address | C132: E-mail address
A133: Official responsible for submitting financial information
A134: ID Number
A135: Title
A136: Name
A137: Telephone number
A138: Cell number
A139: Fax number
A140: E-mail address

Sheet A1-Sum
A1: =muni&" - "&Approve1 -> KZN434 Ubuhlebezwe - Table A1 Budget Summary
A2: =desc -> Description | B2: =head1b -> 2016/17 | C2: =head1A -> 2017/18 | D2: =Head1 -> 2018/19 | E2: =Head2 -> Current Year 2019/20 | I2: =Head3 -> 2020/21 Medium Term Revenue & Expenditure Framework
A3: R thousands | B3: =Head5 -> Audited Outcome | C3: =Head5 -> Audited Outcome | D3: =Head5 -> Audited Outcome | E3: =Head6 -> Original Budget | F3: =Head7 -> Adjusted Budget | G3: =Head8 -> Full Year Forecast | H3: =Head5b -> Pre-audit outcome | I3: =Head9 -> Budget Year 2020/21 | J3: =Head10 -> Budget Year +1 2021/22 | K3: =Head11 -> Budget Year +2 2022/23
A4: Financial Performance
A5: Property rates | B5: ='A4-FinPerf RE'!C5 -> 13122243 | C5: ='A4-FinPerf RE'!D5 -> 12744064 | D5: ='A4-FinPerf RE'!E5 -> 21926722 | E5: ='A4-FinPerf RE'!F5 -> 23023059.33 | F5: ='A4-FinPerf RE'!G5 -> 23023059.33 | G5: ='A4-FinPerf RE'!H5 -> 23023059.33 | H5: ='A4-FinPerf RE'!I5 -> 23023059.33 | I5: ='A4-FinPerf RE'!J5 -> 23573023.94 | J5: ='A4-FinPerf RE'!K5 -> 24633810.01 | K5: ='A4-FinPerf RE'!L5 -> 25742331.47
A6: Service charges | B6: =SUM('A4-FinPerf RE'!C6:C9) -> 1726005 | C6: =SUM('A4-FinPerf RE'!D6:D9) -> 2155141 | D6: =SUM('A4-FinPerf RE'!E6:E9) -> 2000000 | E6: =SUM('A4-FinPerf RE'!F6:F9) -> 2100000 | F6: =SUM('A4-FinPerf RE'!G6:G9) -> 2100000 | G6: =SUM('A4-FinPerf RE'!H6:H9) -> 2100000 | H6: =SUM('A4-FinPerf RE'!I6:I9) -> 2100000 | I6: =SUM('A4-FinPerf RE'!J6:J9) -> 3299864.16 | J6: =SUM('A4-FinPerf RE'!K6:K9) -> 3448358.047 | K6: =SUM('A4-FinPerf RE'!L6:L9) -> 3603534.159
A7: Investment revenue | B7: ='A4-FinPerf RE'!C12 -> 9215250 | C7: ='A4-FinPerf RE'!D12 -> 11001948 | D7: ='A4-FinPerf RE'!E12 -> 16000000 | E7: ='A4-FinPerf RE'!F12 -> 16000000 | F7: ='A4-FinPerf RE'!G12 -> 13000000 | G7: ='A4-FinPerf RE'!H12 -> 13000000 | H7: ='A4-FinPerf RE'!I12 -> 13000000 | I7: ='A4-FinPerf RE'!J12 -> 12000000 | J7: ='A4-FinPerf RE'!K12 -> 12540000 | K7: ='A4-FinPerf RE'!L12 -> 13104300
A8: Transfers recognised - operational | B8: ='A4-FinPerf RE'!C18 -> 95039000 | C8: ='A4-FinPerf RE'!D18 -> 99114000 | D8: ='A4-FinPerf RE'!E18 -> 142130906 | E8: ='A4-FinPerf RE'!F18 -> 186786511.6 | F8: ='A4-FinPerf RE'!G18 -> 115301777 | G8: ='A4-FinPerf RE'!H18 -> 115301777 | H8: ='A4-FinPerf RE'!I18 -> 115301777 | I8: ='A4-FinPerf RE'!J18 -> 122063000 | J8: ='A4-FinPerf RE'!K18 -> 127555835 | K8: ='A4-FinPerf RE'!L18 -> 133295847.6
A9: Other own revenue | B9: ='A4-FinPerf RE'!C11+'A4-FinPerf RE'!C13+'A4-FinPerf RE'!C14+'A4-FinPerf RE'!C15+'A4-FinPerf RE'!C16+'A4-FinPerf RE'!C17+'A4-FinPerf RE'!C19+'A4-FinPerf RE'!C20 -> 12033023 | C9: ='A4-FinPerf RE'!D11+'A4-FinPerf RE'!D13+'A4-FinPerf RE'!D14+'A4-FinPerf RE'!D15+'A4-FinPerf RE'!D16+'A4-FinPerf RE'!D17+'A4-FinPerf RE'!D19+'A4-FinPerf RE'!D20 -> 6573117 | D9: ='A4-FinPerf RE'!E11+'A4-FinPerf RE'!E13+'A4-FinPerf RE'!E14+'A4-FinPerf RE'!E15+'A4-FinPerf RE'!E16+'A4-FinPerf RE'!E17+'A4-FinPerf RE'!E19+'A4-FinPerf RE'!E20 -> 6816392 | E9: ='A4-FinPerf RE'!F11+'A4-FinPerf RE'!F13+'A4-FinPerf RE'!F14+'A4-FinPerf RE'!F15+'A4-FinPerf RE'!F16+'A4-FinPerf RE'!F17+'A4-FinPerf RE'!F19+'A4-FinPerf RE'!F20 -> 6721606.72 | F9: ='A4-FinPerf RE'!G11+'A4-FinPerf RE'!G13+'A4-FinPerf RE'!G14+'A4-FinPerf RE'!G15+'A4-FinPerf RE'!G16+'A4-FinPerf RE'!G17+'A4-FinPerf RE'!G19+'A4-FinPerf RE'!G20 -> 7321607 | G9: ='A4-FinPerf RE'!H11+'A4-FinPerf RE'!H13+'A4-FinPerf RE'!H14+'A4-FinPerf RE'!H15+'A4-FinPerf RE'!H16+'A4-FinPerf RE'!H17+'A4-FinPerf RE'!H19+'A4-FinPerf RE'!H20 -> 7321607 | H9: ='A4-FinPerf RE'!I11+'A4-FinPerf RE'!I13+'A4-FinPerf RE'!I14+'A4-FinPerf RE'!I15+'A4-FinPerf RE'!I16+'A4-FinPerf RE'!I17+'A4-FinPerf RE'!I19+'A4-FinPerf RE'!I20 -> 7321607 | I9: ='A4-FinPerf RE'!J11+'A4-FinPerf RE'!J13+'A4-FinPerf RE'!J14+'A4-FinPerf RE'!J15+'A4-FinPerf RE'!J16+'A4-FinPerf RE'!J17+'A4-FinPerf RE'!J19+'A4-FinPerf RE'!J20 -> 7122450.72 | J9: ='A4-FinPerf RE'!K11+'A4-FinPerf RE'!K13+'A4-FinPerf RE'!K14+'A4-FinPerf RE'!K15+'A4-FinPerf RE'!K16+'A4-FinPerf RE'!K17+'A4-FinPerf RE'!K19+'A4-FinPerf RE'!K20 -> 7450212.12 | K9: ='A4-FinPerf RE'!L11+'A4-FinPerf RE'!L13+'A4-FinPerf RE'!L14+'A4-FinPerf RE'!L15+'A4-FinPerf RE'!L16+'A4-FinPerf RE'!L17+'A4-FinPerf RE'!L19+'A4-FinPerf RE'!L20 -> 7792921.87
A10: ='A4-FinPerf RE'!A21 -> Total Revenue (excluding capital transfers and contributions) | B10: =SUM(B5:B9) -> 131135521 | C10: 131588270 | D10: 188874020 | E10: 234631177.7 | F10: 160746443.3 | G10: 160746443.3 | H10: 160746443.3 | I10: 168058338.8 | J10: 175628215.2 | K10: 183538935.1
A11: Employee costs | B11: ='A4-FinPerf RE'!C24 -> 52842444 | C11: ='A4-FinPerf RE'!D24 -> 62912128 | D11: ='A4-FinPerf RE'!E24 -> 67856351 | E11: ='A4-FinPerf RE'!F24 -> 77459290.38 | F11: ='A4-FinPerf RE'!G24 -> 77893785 | G11: ='A4-FinPerf RE'!H24 -> 77893785 | H11: ='A4-FinPerf RE'!I24 -> 77893785 | I11: ='A4-FinPerf RE'!J24 -> 84552341.28 | J11: ='A4-FinPerf RE'!K24 -> 86463712.98 | K11: ='A4-FinPerf RE'!L24 -> 90441043.76
A12: Remuneration of councillors | B12: ='A4-FinPerf RE'!C25 -> 8378802 | C12: ='A4-FinPerf RE'!D25 -> 9901684 | D12: ='A4-FinPerf RE'!E25 -> 10358844 | E12: ='A4-FinPerf RE'!F25 -> 11097335.02 | F12: ='A4-FinPerf RE'!G25 -> 11097336 | G12: ='A4-FinPerf RE'!H25 -> 11097336 | H12: ='A4-FinPerf RE'!I25 -> 11097336 | I12: ='A4-FinPerf RE'!J25 -> 11097335.06 | J12: ='A4-FinPerf RE'!K25 -> 11607812.47 | K12: ='A4-FinPerf RE'!L25 -> 12141771.85
A13: Depreciation & asset impairment | B13: ='A4-FinPerf RE'!C27 -> 20172670 | C13: ='A4-FinPerf RE'!D27 -> 21270935 | D13: ='A4-FinPerf RE'!E27 -> 20000000 | E13: ='A4-FinPerf RE'!F27 -> 20000000 | F13: ='A4-FinPerf RE'!G27 -> 22000000 | G13: ='A4-FinPerf RE'!H27 -> 22000000 | H13: ='A4-FinPerf RE'!I27 -> 22000000 | I13: ='A4-FinPerf RE'!J27 -> 23188000 | J13: ='A4-FinPerf RE'!K27 -> 24254647.99 | K13: ='A4-FinPerf RE'!L27 -> 25370361.81
A14: Finance charges | B14: ='A4-FinPerf RE'!C28 -> 0 | C14: ='A4-FinPerf RE'!D28 -> 2856 | D14: ='A4-FinPerf RE'!E28 -> 0 | E14: ='A4-FinPerf RE'!F28 -> 0 | F14: ='A4-FinPerf RE'!G28 -> 0 | G14: ='A4-FinPerf RE'!H28 -> 0 | H14: ='A4-FinPerf RE'!I28 -> 0 | I14: ='A4-FinPerf RE'!J28 -> 0 | J14: ='A4-FinPerf RE'!K28 -> 0 | K14: ='A4-FinPerf RE'!L28 -> 0
A15: Materials and bulk purchases | B15: ='A4-FinPerf RE'!C29+'A4-FinPerf RE'!C30 -> 2882897 | C15: ='A4-FinPerf RE'!D29+'A4-FinPerf RE'!D30 -> 0 | D15: ='A4-FinPerf RE'!E29+'A4-FinPerf RE'!E30 -> 770454 | E15: ='A4-FinPerf RE'!F29+'A4-FinPerf RE'!F30 -> 869840 | F15: ='A4-FinPerf RE'!G29+'A4-FinPerf RE'!G30 -> 1145840 | G15: ='A4-FinPerf RE'!H29+'A4-FinPerf RE'!H30 -> 1145840 | H15: ='A4-FinPerf RE'!I29+'A4-FinPerf RE'!I30 -> 1145840 | I15: ='A4-FinPerf RE'!J29+'A4-FinPerf RE'!J30 -> 1121002.8 | J15: ='A4-FinPerf RE'!K29+'A4-FinPerf RE'!K30 -> 1172568.94 | K15: ='A4-FinPerf RE'!L29+'A4-FinPerf RE'!L30 -> 1226507.09
A16: Transfers and grants | B16: ='A4-FinPerf RE'!C32 -> 1296000 | C16: ='A4-FinPerf RE'!D32 -> 0 | D16: ='A4-FinPerf RE'!E32 -> 40767000 | E16: ='A4-FinPerf RE'!F32 -> 86040321.17 | F16: ='A4-FinPerf RE'!G32 -> 14603947.28 | G16: ='A4-FinPerf RE'!H32 -> 14603947.28 | H16: ='A4-FinPerf RE'!I32 -> 14603947.28 | I16: ='A4-FinPerf RE'!J32 -> 3844875.2 | J16: ='A4-FinPerf RE'!K32 -> 4021739.46 | K16: ='A4-FinPerf RE'!L32 -> 4206739.47
A17: Other expenditure | B17: ='A4-FinPerf RE'!C26+'A4-FinPerf RE'!C31+'A4-FinPerf RE'!C33+'A4-FinPerf RE'!C34 -> 40619288 | C17: ='A4-FinPerf RE'!D26+'A4-FinPerf RE'!D31+'A4-FinPerf RE'!D33+'A4-FinPerf RE'!D34 -> 39589222 | D17: ='A4-FinPerf RE'!E26+'A4-FinPerf RE'!E31+'A4-FinPerf RE'!E33+'A4-FinPerf RE'!E34 -> 47777506 | E17: ='A4-FinPerf RE'!F26+'A4-FinPerf RE'!F31+'A4-FinPerf RE'!F33+'A4-FinPerf RE'!F34 -> 48619861.65 | F17: ='A4-FinPerf RE'!G26+'A4-FinPerf RE'!G31+'A4-FinPerf RE'!G33+'A4-FinPerf RE'!G34 -> 49082642.84 | G17: ='A4-FinPerf RE'!H26+'A4-FinPerf RE'!H31+'A4-FinPerf RE'!H33+'A4-FinPerf RE'!H34 -> 49082642.84 | H17: ='A4-FinPerf RE'!I26+'A4-FinPerf RE'!I31+'A4-FinPerf RE'!I33+'A4-FinPerf RE'!I34 -> 49082642.84 | I17: ='A4-FinPerf RE'!J26+'A4-FinPerf RE'!J31+'A4-FinPerf RE'!J33+'A4-FinPerf RE'!J34 -> 50279239.04 | J17: ='A4-FinPerf RE'!K26+'A4-FinPerf RE'!K31+'A4-FinPerf RE'!K33+'A4-FinPerf RE'!K34 -> 50106164.49 | K17: ='A4-FinPerf RE'!L26+'A4-FinPerf RE'!L31+'A4-FinPerf RE'!L33+'A4-FinPerf RE'!L34 -> 52411048.1
A18: ='A4-FinPerf RE'!A35 -> Total Expenditure | B18: =SUM(B11:B17) -> 126192101 | C18: =SUM(C11:C17) -> 133676825 | D18: 187530155 | E18: 244086648.2 | F18: 175823551.1 | G18: 175823551.1 | H18: 175823551.1 | I18: 174082793.4 | J18: 177626646.3 | K18: 185797472.1
A19: ='A4-FinPerf RE'!A37 -> Surplus/(Deficit) | B19: =B10-B18 -> 4943420 | C19: -2088555 | D19: 1343865 | E19: -9455470.53 | F19: -15077107.79 | G19: -15077107.79 | H19: -15077107.79 | I19: -6024454.56 | J19: -1998431.153 | K19: -2258537.006
A20: ='A4-FinPerf RE'!A38 -> Transfers and subsidies - capital (monetary allocations) (National / Provincial and District) | B20: ='A4-FinPerf RE'!C38 -> 29718917 | C20: ='A4-FinPerf RE'!D38 -> 27330000 | D20: ='A4-FinPerf RE'!E38 -> 31439000 | E20: ='A4-FinPerf RE'!F38 -> 33317000 | F20: ='A4-FinPerf RE'!G38 -> 33317000 | G20: ='A4-FinPerf RE'!H38 -> 33317000 | H20: ='A4-FinPerf RE'!I38 -> 33317000 | I20: ='A4-FinPerf RE'!J38 -> 26759000 | J20: ='A4-FinPerf RE'!K38 -> 27989914 | K20: ='A4-FinPerf RE'!L38 -> 29277450.04
A21: Contributions recognised - capital & contributed assets | B21: ='A4-FinPerf RE'!C39+'A4-FinPerf RE'!C40 -> 0 | C21: ='A4-FinPerf RE'!D39+'A4-FinPerf RE'!D40 -> 0 | D21: ='A4-FinPerf RE'!E39+'A4-FinPerf RE'!E40 -> 0 | E21: ='A4-FinPerf RE'!F39+'A4-FinPerf RE'!F40 -> 0 | F21: ='A4-FinPerf RE'!G39+'A4-FinPerf RE'!G40 -> 0 | G21: ='A4-FinPerf RE'!H39+'A4-FinPerf RE'!H40 -> 0 | H21: ='A4-FinPerf RE'!I39+'A4-FinPerf RE'!I40 -> 0 | I21: ='A4-FinPerf RE'!J39+'A4-FinPerf RE'!J40 -> 0 | J21: ='A4-FinPerf RE'!K39+'A4-FinPerf RE'!K40 -> 0 | K21: ='A4-FinPerf RE'!L39+'A4-FinPerf RE'!L40 -> 0
A22: ='A4-FinPerf RE'!A41 -> Surplus/(Deficit) after capital transfers & contributions | B22: =B19+SUM(B20:B21) -> 34662337 | C22: =C19+SUM(C20:C21) -> 25241445 | D22: 32782865 | E22: 23861529.47 | F22: 18239892.21 | G22: 18239892.21 | H22: 18239892.21 | I22: 20734545.44 | J22: 25991482.85 | K22: 27018913.03
A23: ='A4-FinPerf RE'!A46 -> Share of surplus/ (deficit) of associate | B23: ='A4-FinPerf RE'!C46 -> 0 | C23: ='A4-FinPerf RE'!D46 -> 0 | D23: ='A4-FinPerf RE'!E46 -> 0 | E23: ='A4-FinPerf RE'!F46 -> 0 | F23: ='A4-FinPerf RE'!G46 -> 0 | G23: ='A4-FinPerf RE'!H46 -> 0 | H23: ='A4-FinPerf RE'!I46 -> 0 | I23: ='A4-FinPerf RE'!J46 -> 0 | J23: ='A4-FinPerf RE'!K46 -> 0 | K23: ='A4-FinPerf RE'!L46 -> 0
A24: ='A4-FinPerf RE'!A47 -> Surplus/(Deficit) for the year | B24: =B22+B23 -> 34662337 | C24: =C22+C23 -> 25241445 | D24: 32782865 | E24: 23861529.47 | F24: 18239892.21 | G24: 18239892.21 | H24: 18239892.21 | I24: 20734545.44 | J24: 25991482.85 | K24: 27018913.03
A26: Capital expenditure & funds sources
A27: Capital expenditure | B27: ='A5-Capex'!C63 -> 73317502 | C27: ='A5-Capex'!D63 -> 38020019.59 | D27: ='A5-Capex'!E63 -> 60899447 | E27: ='A5-Capex'!F63 -> 78295829.01 | F27: ='A5-Capex'!G63 -> 76454174.24 | G27: ='A5-Capex'!H63 -> 76454174.24 | H27: ='A5-Capex'!I63 -> 76454174.24 | I27: ='A5-Capex'!J63 -> 59178682.59 | J27: ='A5-Capex'!K63 -> 45075588.92 | K27: ='A5-Capex'!L63 -> 47149065.99
A28: Transfers recognised - capital | B28: ='A5-Capex'!C70 -> 56089892 | C28: ='A5-Capex'!D70 -> 26279731.55 | D28: ='A5-Capex'!E70 -> 31439003 | E28: ='A5-Capex'!F70 -> 33317000.01 | F28: ='A5-Capex'!G70 -> 33317001 | G28: ='A5-Capex'!H70 -> 33317001 | H28: ='A5-Capex'!I70 -> 33317001 | I28: ='A5-Capex'!J70 -> 26758999.98 | J28: ='A5-Capex'!K70 -> 22826540.49 | K28: ='A5-Capex'!L70 -> 23876561.34
A30: ='A5-Capex'!A72 -> Borrowing | B30: ='A5-Capex'!C72 -> 0 | C30: ='A5-Capex'!D72 -> 0 | D30: ='A5-Capex'!E72 -> 0 | E30: ='A5-Capex'!F72 -> 0 | F30: ='A5-Capex'!G72 -> 0 | G30: ='A5-Capex'!H72 -> 0 | H30: ='A5-Capex'!I72 -> 0 | I30: ='A5-Capex'!J72 -> 0 | J30: ='A5-Capex'!K72 -> 0 | K30: ='A5-Capex'!L72 -> 0
A31: ='A5-Capex'!A73 -> Internally generated funds | B31: ='A5-Capex'!C73 -> 17227610 | C31: ='A5-Capex'!D73 -> 11740288.04 | D31: ='A5-Capex'!E73 -> 29460444 | E31: ='A5-Capex'!F73 -> 44978829 | F31: ='A5-Capex'!G73 -> 43137173.24 | G31: ='A5-Capex'!H73 -> 43137173.24 | H31: ='A5-Capex'!I73 -> 43137173.24 | I31: ='A5-Capex'!J73 -> 32420326.61 | J31: ='A5-Capex'!K73 -> 22249000 | K31: ='A5-Capex'!L73 -> 23272438.66
A32: Total sources of capital funds | B32: =+B28+B30+B31 -> 73317502 | C32: =+C28+C30+C31 -> 38020019.59 | D32: 60899447 | E32: 78295829.01 | F32: 76454174.24 | G32: 76454174.24 | H32: 76454174.24 | I32: 59179326.59 | J32: 45075540.49 | K32: 47149000
A34: Financial position
A35: ='A6-FinPos'!A12 -> Total current assets | B35: ='A6-FinPos'!C12 -> 135186064 | C35: ='A6-FinPos'!D12 -> 102395778 | D35: ='A6-FinPos'!E12 -> 134870211 | E35: ='A6-FinPos'!F12 -> 105302255 | F35: ='A6-FinPos'!G12 -> 201048274.1 | G35: ='A6-FinPos'!H12 -> 201048274.1 | H35: ='A6-FinPos'!I12 -> 203953007.5 | I35: ='A6-FinPos'!J12 -> 216958474 | J35: ='A6-FinPos'!K12 -> 226721605.3 | K35: ='A6-FinPos'!L12 -> 236924077.6
A36: ='A6-FinPos'!A24 -> Total non current assets | B36: ='A6-FinPos'!C24 -> 260457614 | C36: ='A6-FinPos'!D24 -> 271555307 | D36: ='A6-FinPos'!E24 -> 337311222 | E36: ='A6-FinPos'!F24 -> 81159684.01 | F36: ='A6-FinPos'!G24 -> 349203034.9 | G36: ='A6-FinPos'!H24 -> 345973777 | H36: ='A6-FinPos'!I24 -> 346998499.7 | I36: ='A6-FinPos'!J24 -> 325201259.6 | J36: ='A6-FinPos'!K24 -> 337838247.6 | K36: ='A6-FinPos'!L24 -> 360889890
A37: ='A6-FinPos'!A34 -> Total current liabilities | B37: ='A6-FinPos'!C34 -> 37579225 | C37: ='A6-FinPos'!D34 -> 62656371 | D37: ='A6-FinPos'!E34 -> 26129834 | E37: ='A6-FinPos'!F34 -> -27338825 | F37: ='A6-FinPos'!G34 -> 33373081 | G37: ='A6-FinPos'!H34 -> 33373081 | H37: ='A6-FinPos'!I34 -> 33373081 | I37: ='A6-FinPos'!J34 -> 36687792 | J37: ='A6-FinPos'!K34 -> 38280892.71 | K37: ='A6-FinPos'!L34 -> 39945682.95
A38: ='A6-FinPos'!A39 -> Total non current liabilities | B38: ='A6-FinPos'!C39 -> 6700000 | C38: ='A6-FinPos'!D39 -> 8444000 | D38: ='A6-FinPos'!E39 -> 9410201 | E38: ='A6-FinPos'!F39 -> 0 | F38: ='A6-FinPos'!G39 -> 0 | G38: ='A6-FinPos'!H39 -> 0 | H38: ='A6-FinPos'!I39 -> 0 | I38: ='A6-FinPos'!J39 -> 7217000 | J38: ='A6-FinPos'!K39 -> 7541765 | K38: ='A6-FinPos'!L39 -> 7881144.425
A39: Community wealth/Equity | B39: ='A6-FinPos'!C48 -> 695788453.4 | C39: ='A6-FinPos'!D48 -> 386262949 | D39: ='A6-FinPos'!E48 -> 429718500.9 | E39: ='A6-FinPos'!F48 -> 132398433 | F39: ='A6-FinPos'!G48 -> 594677056 | G39: ='A6-FinPos'!H48 -> 594677056 | H39: ='A6-FinPos'!I48 -> 594677056 | I39: ='A6-FinPos'!J48 -> 504694395.6 | J39: ='A6-FinPos'!K48 -> 527388823 | K39: ='A6-FinPos'!L48 -> 551104499.6
A41: Cash flows
A42: Net cash from (used) operating | B42: ='A7-CFlow'!C17 -> 104738646 | C42: ='A7-CFlow'!D17 -> 59968999 | D42: ='A7-CFlow'!E17 -> 39781942.75 | E42: ='A7-CFlow'!F17 -> 47691030.94 | F42: ='A7-CFlow'!G17 -> 40245089.87 | G42: ='A7-CFlow'!H17 -> 40245089.87 | H42: ='A7-CFlow'!I17 -> 40245089.87 | I42: ='A7-CFlow'!J17 -> 35375674.67 | J42: ='A7-CFlow'!K17 -> 42587523.98 | K42: ='A7-CFlow'!L17 -> 45877005.63
A43: Net cash from (used) investing | B43: ='A7-CFlow'!C27 -> -73317502 | C43: ='A7-CFlow'!D27 -> -38020019.59 | D43: ='A7-CFlow'!E27 -> -60899447 | E43: ='A7-CFlow'!F27 -> -77295829.01 | F43: ='A7-CFlow'!G27 -> -75454174.24 | G43: ='A7-CFlow'!H27 -> -75454174.24 | H43: ='A7-CFlow'!I27 -> -75454174.24 | I43: ='A7-CFlow'!J27 -> -59198682.61 | J43: ='A7-CFlow'!K27 -> -45075588.92 | K43: ='A7-CFlow'!L27 -> -47149065.99
A44: Net cash from (used) financing | B44: ='A7-CFlow'!C36 -> 0 | C44: ='A7-CFlow'!D36 -> 0 | D44: ='A7-CFlow'!E36 -> 0 | E44: ='A7-CFlow'!F36 -> 0 | F44: ='A7-CFlow'!G36 -> 0 | G44: ='A7-CFlow'!H36 -> 0 | H44: ='A7-CFlow'!I36 -> 0 | I44: ='A7-CFlow'!J36 -> 0 | J44: ='A7-CFlow'!K36 -> 0 | K44: ='A7-CFlow'!L36 -> 0
A45: =LEFT('A7-CFlow'!A40,37) -> Cash/cash equivalents at the year end | B45: ='A7-CFlow'!C40 -> 134650908 | C45: ='A7-CFlow'!D40 -> 303234891.4 | D45: ='A7-CFlow'!E40 -> 358157426.3 | E45: ='A7-CFlow'!F40 -> 450351522.3 | F45: ='A7-CFlow'!G40 -> 303785977.6 | G45: ='A7-CFlow'!H40 -> 231322160.7 | H45: ='A7-CFlow'!I40 -> 162037166.7 | I45: ='A7-CFlow'!J40 -> 163351442.1 | J45: ='A7-CFlow'!K40 -> 160863377.1 | K45: ='A7-CFlow'!L40 -> 159591316.8
A47: Cash backing/surplus reconciliation
A48: ='A8-ResRecon'!A4 -> Cash and investments available | B48: ='A8-ResRecon'!C8 -> 118300602 | C48: ='A8-ResRecon'!D8 -> 102395778 | D48: ='A8-ResRecon'!E8 -> 104404376 | E48: ='A8-ResRecon'!F8 -> 105302255 | F48: ='A8-ResRecon'!G8 -> 171455319 | G48: ='A8-ResRecon'!H8 -> 171455319 | H48: ='A8-ResRecon'!I8 -> 171455319 | I48: ='A8-ResRecon'!J8 -> 166768745.5 | J48: ='A8-ResRecon'!K8 -> 174273339 | K48: ='A8-ResRecon'!L8 -> 182115639.3
A49: ='A8-ResRecon'!A10 -> Application of cash and investments | B49: ='A8-ResRecon'!C18 -> 23227225 | C49: ='A8-ResRecon'!D18 -> 29963137 | D49: ='A8-ResRecon'!E18 -> 8271834 | E49: ='A8-ResRecon'!F18 -> -27338825 | F49: ='A8-ResRecon'!G18 -> 12173081 | G49: ='A8-ResRecon'!H18 -> 12173081 | H49: ='A8-ResRecon'!I18 -> 12173081 | I49: ='A8-ResRecon'!J18 -> 5121256 | J49: ='A8-ResRecon'!K18 -> 5045452.59 | K49: ='A8-ResRecon'!L18 -> 4922728.027
A50: Balance - surplus (shortfall) | B50: =B48-B49 -> 95073377 | C50: =C48-C49 -> 72432641 | D50: 96132542 | E50: 132641080 | F50: 159282238 | G50: 159282238 | H50: 159282238 | I50: 161647489.5 | J50: 169227886.4 | K50: 177192911.3
A52: Asset management
A53: Asset register summary (WDV) | B53: ='A9-Asset'!C165 -> 127145077.5 | C53: ='A9-Asset'!D165 -> 6500091.44 | D53: ='A9-Asset'!E165 -> 17656715.77 | E53: ='A9-Asset'!F165 -> 43481885.4 | F53: ='A9-Asset'!G165 -> 38179656.51 | G53: ='A9-Asset'!H165 -> 38179656.51 | H53: ='A9-Asset'!H165 -> 38179656.51 | I53: ='A9-Asset'!I165 -> 34955343.19 | J53: ='A9-Asset'!J165 -> 20757684.43 | K53: ='A9-Asset'!K165 -> 21712537.9
A54: ='A9-Asset'!A168 -> Depreciation | B54: ='A9-Asset'!C168 -> 20172670 | C54: ='A9-Asset'!D168 -> 21041469 | D54: ='A9-Asset'!E168 -> 20000039 | E54: ='A9-Asset'!F168 -> 20000000 | F54: ='A9-Asset'!G168 -> 22000000 | G54: ='A9-Asset'!H168 -> 22000000 | H54: ='A9-Asset'!H168 -> 22000000 | I54: ='A9-Asset'!I168 -> 23188000 | J54: ='A9-Asset'!J168 -> 24254647.99 | K54: ='A9-Asset'!K168 -> 25370361.81
A55: Renewal and Upgrading of Existing Assets | B55: ='A9-Asset'!C37+'A9-Asset'!C69 -> 8622659 | C55: ='A9-Asset'!D37+'A9-Asset'!D69 -> 19962688.47 | D55: ='A9-Asset'!E37+'A9-Asset'!E69 -> 13091477.49 | E55: ='A9-Asset'!F37+'A9-Asset'!F69 -> 22661007.52 | F55: ='A9-Asset'!G37+'A9-Asset'!G69 -> 22687413.63 | G55: ='A9-Asset'!H37+'A9-Asset'!H69 -> 22687413.63 | H55: ='A9-Asset'!H37+'A9-Asset'!H69 -> 22687413.63 | I55: ='A9-Asset'!I37+'A9-Asset'!I69 -> 12123651.14 | J55: ='A9-Asset'!J37+'A9-Asset'!J69 -> 12752817.77 | K55: ='A9-Asset'!K37+'A9-Asset'!K69 -> 13339447.38
A56: Repairs and Maintenance | B56: ='A9-Asset'!C169 -> 724861.83 | C56: ='A9-Asset'!D169 -> 724861.83 | D56: ='A9-Asset'!E169 -> 575693.83 | E56: ='A9-Asset'!F169 -> 1186156.56 | F56: ='A9-Asset'!G169 -> 1366157 | G56: ='A9-Asset'!H169 -> 1366157 | H56: ='A9-Asset'!H169 -> 1366157 | I56: ='A9-Asset'!I169 -> 1427633.11 | J56: ='A9-Asset'!J169 -> 1493304.23 | K56: ='A9-Asset'!K169 -> 1561996.22
A58: Free services
A59: Cost of Free Basic Services provided | B59: ='A10-SerDel'!C60 -> 0 | C59: ='A10-SerDel'!D60 -> 813554 | D59: ='A10-SerDel'!E60 -> 813554 | E59: ='A10-SerDel'!F60 -> 768237 | F59: ='A10-SerDel'!G60 -> 1114277 | G59: ='A10-SerDel'!H60 -> 1000247 | H59: ='A10-SerDel'!I60 -> 1400350 | I59: ='A10-SerDel'!I60 -> 1400350 | J59: ='A10-SerDel'!J60 -> 1400363 | K59: ='A10-SerDel'!K60 -> 1400376
A60: Revenue cost of free services provided | B60: ='A10-SerDel'!C79 -> 0 | C60: ='A10-SerDel'!D79 -> 0 | D60: ='A10-SerDel'!E79 -> 5685897 | E60: ='A10-SerDel'!F79 -> 5970191.75 | F60: ='A10-SerDel'!G79 -> 5970191.75 | G60: ='A10-SerDel'!H79 -> 5970191.75 | H60: ='A10-SerDel'!I79 -> 8721174.17 | I60: ='A10-SerDel'!I79 -> 8721174.17 | J60: ='A10-SerDel'!J79 -> 9113627.01 | K60: ='A10-SerDel'!K79 -> 9523740.22
A61: Households below minimum service level
A62: ='A10-SerDel'!A5 -> Water: | B62: ='A10-SerDel'!C14 -> 0 | C62: ='A10-SerDel'!D14 -> 10670 | D62: ='A10-SerDel'!E14 -> 10670 | E62: ='A10-SerDel'!F14 -> 11763.675 | F62: ='A10-SerDel'!G14 -> 10670 | G62: ='A10-SerDel'!H14 -> 11203.5 | H62: ='A10-SerDel'!I14 -> 11763.675 | I62: ='A10-SerDel'!I14 -> 11763.675 | J62: ='A10-SerDel'!J14 -> 11203.5 | K62: ='A10-SerDel'!K14 -> 11763.675
A63: ='A10-SerDel'!A16 -> Sanitation/sewerage: | B63: ='A10-SerDel'!C26 -> 0 | C63: ='A10-SerDel'!D26 -> 13469 | D63: ='A10-SerDel'!E26 -> 13469 | E63: ='A10-SerDel'!F26 -> 14849.5725 | F63: ='A10-SerDel'!G26 -> 14142.45 | G63: ='A10-SerDel'!H26 -> 13469 | H63: ='A10-SerDel'!I26 -> 14849.5725 | I63: ='A10-SerDel'!I26 -> 14849.5725 | J63: ='A10-SerDel'!J26 -> 14142.45 | K63: ='A10-SerDel'!K26 -> 14849.5725
A64: ='A10-SerDel'!A28 -> Energy: | B64: ='A10-SerDel'!C35 -> 0 | C64: ='A10-SerDel'!D35 -> 0 | D64: ='A10-SerDel'!E35 -> 0 | E64: ='A10-SerDel'!F35 -> 0 | F64: ='A10-SerDel'!G35 -> 0 | G64: ='A10-SerDel'!H35 -> 0 | H64: ='A10-SerDel'!I35 -> 0 | I64: ='A10-SerDel'!I35 -> 0 | J64: ='A10-SerDel'!J35 -> 0 | K64: ='A10-SerDel'!K35 -> 0
A65: ='A10-SerDel'!A37 -> Refuse: | B65: ='A10-SerDel'!C45 -> 0 | C65: ='A10-SerDel'!D45 -> 1 | D65: ='A10-SerDel'!E45 -> 1 | E65: ='A10-SerDel'!F45 -> 1 | F65: ='A10-SerDel'!G45 -> 1 | G65: ='A10-SerDel'!H45 -> 1 | H65: ='A10-SerDel'!I45 -> 1 | I65: ='A10-SerDel'!I45 -> 1 | J65: ='A10-SerDel'!J45 -> 1 | K65: ='A10-SerDel'!K45 -> 1

Sheet A2-FinPerf SC
A1: =muni&" - "&Approve3 -> KZN434 Ubuhlebezwe - Table A2 Budgeted Financial Performance (revenue and expenditure by functional classification)
A2: ="Functional Classification "&desc -> Functional Classification Description | B2: =head27 -> Ref | C2: =head1b -> 2016/17 | D2: =head1A -> 2017/18 | E2: =Head1 -> 2018/19 | F2: =Head2 -> Current Year 2019/20 | I2: =Head3 -> 2020/21 Medium Term Revenue & Expenditure Framework
A3: R thousand | B3: 1 | C3: =Head5 -> Audited Outcome | D3: =Head5 -> Audited Outcome | E3: =Head5 -> Audited Outcome | F3: =Head6 -> Original Budget | G3: =Head7 -> Adjusted Budget | H3: =Head8 -> Full Year Forecast | I3: =Head9 -> Budget Year 2020/21 | J3: =Head10 -> Budget Year +1 2021/22 | K3: =Head11 -> Budget Year +2 2022/23
A4: Revenue - Functional
A5: Governance and administration | C5: =SUM(C6:C8) -> 157549545 | D5: =SUM(D6:D8) -> 120964461 | E5: 138590018 | F5: 152440115.3 | G5: 149490116 | H5: 149490116 | I5: 156711923.9 | J5: 63749102.54 | K5: 66681561.25
A6: Executive and council | C6: =A2A!C6 -> 0 | D6: =A2A!D6 -> 0 | E6: =A2A!E6 -> 0 | F6: =A2A!F6 -> 0 | G6: =A2A!G6 -> 0 | H6: =A2A!H6 -> 0 | I6: =A2A!I6 -> 0 | J6: =A2A!J6 -> 0 | K6: =A2A!K6 -> 0
A7: Finance and administration | C7: =A2A!C9 -> 157549545 | D7: =A2A!D9 -> 120964461 | E7: =A2A!E9 -> 138590018 | F7: =A2A!F9 -> 152440115.3 | G7: =A2A!G9 -> 149490116 | H7: =A2A!H9 -> 149490116 | I7: =A2A!I9 -> 156711923.9 | J7: =A2A!J9 -> 63749102.54 | K7: =A2A!K9 -> 66681561.25
A8: Internal audit | C8: =A2A!C23 -> 0 | D8: =A2A!D23 -> 0 | E8: =A2A!E23 -> 0 | F8: =A2A!F23 -> 0 | G8: =A2A!G23 -> 0 | H8: =A2A!H23 -> 0 | I8: =A2A!I23 -> 0 | J8: =A2A!J23 -> 0 | K8: =A2A!K23 -> 0
A9: Community and public safety | C9: =SUM(C10:C14) -> 3304893 | D9: =SUM(D10:D14) -> 6854999 | E9: 32778703 | F9: 72808627.64 | G9: 14823893 | H9: 14823893 | I9: 9235116 | J9: 126288504.3 | K9: 132097775.5
A10: Community and social services | C10: =A2A!C26 -> 0 | D10: =A2A!D26 -> 2274446 | E10: =A2A!E26 -> 1935496 | F10: =A2A!F26 -> 3866416 | G10: =A2A!G26 -> 3932416 | H10: =A2A!H26 -> 3932416 | I10: =A2A!I26 -> 4272416 | J10: =A2A!J26 -> 4468947.14 | K10: =A2A!K26 -> 4674518.71
A11: Sport and recreation | C11: =A2A!C48 -> 0 | D11: =A2A!D48 -> 0 | E11: =A2A!E48 -> 2050000 | F11: =A2A!F48 -> 50000 | G11: =A2A!G48 -> 28777 | H11: =A2A!H48 -> 28777 | I11: =A2A!I48 -> 0 | J11: =A2A!J48 -> 0 | K11: =A2A!K48 -> 0
A12: Public safety | C12: =A2A!C54 -> 3304893 | D12: =A2A!D54 -> 4580553 | E12: =A2A!E54 -> 6626300 | F12: =A2A!F54 -> 10362700 | G12: =A2A!G54 -> 10862700 | H12: =A2A!H54 -> 10862700 | I12: =A2A!I54 -> 4962700 | J12: =A2A!J54 -> 5190984.2 | K12: =A2A!K54 -> 5429769.47
A13: Housing | C13: =A2A!C63 -> 0 | D13: =A2A!D63 -> 0 | E13: =A2A!E63 -> 22166907 | F13: =A2A!F63 -> 58529511.64 | G13: =A2A!G63 -> 0 | H13: =A2A!H63 -> 0 | I13: =A2A!I63 -> 0 | J13: =A2A!J63 -> 116628573 | K13: =A2A!K63 -> 121993487.3
A14: Health | C14: =A2A!C66 -> 0 | D14: =A2A!D66 -> 0 | E14: =A2A!E66 -> 0 | F14: =A2A!F66 -> 0 | G14: =A2A!G66 -> 0 | H14: =A2A!H66 -> 0 | I14: =A2A!I66 -> 0 | J14: =A2A!J66 -> 0 | K14: =A2A!K66 -> 0
A15: Economic and environmental services | C15: =SUM(C16:C18) -> 0 | D15: =SUM(D16:D18) -> 29061419 | E15: 28944299 | F15: 40599434.72 | G15: 27649435 | H15: 27649435 | I15: 27112434.72 | J15: 43923040.72 | K15: 45943500.59
A16: Planning and development | C16: =A2A!C75 -> 0 | D16: =A2A!D75 -> 67054 | E16: =A2A!E75 -> 26554779 | F16: =A2A!F75 -> 615780 | G16: =A2A!G75 -> 665780 | H16: =A2A!H75 -> 665780 | I16: =A2A!I75 -> 286780 | J16: =A2A!J75 -> 173405.88 | K16: =A2A!K75 -> 181382.55
A17: Road transport | C17: =A2A!C86 -> 0 | D17: =A2A!D86 -> 28994365 | E17: =A2A!E86 -> 2389520 | F17: =A2A!F86 -> 39983654.72 | G17: =A2A!G86 -> 26983655 | H17: =A2A!H86 -> 26983655 | I17: =A2A!I86 -> 26825654.72 | J17: =A2A!J86 -> 43749634.84 | K17: =A2A!K86 -> 45762118.04
A18: Environmental protection | C18: =A2A!C91 -> 0 | D18: =A2A!D91 -> 0 | E18: =A2A!E91 -> 0 | F18: =A2A!F91 -> 0 | G18: =A2A!G91 -> 0 | H18: =A2A!H91 -> 0 | I18: =A2A!I91 -> 0 | J18: =A2A!J91 -> 0 | K18: =A2A!K91 -> 0
A19: Trading services | C19: =SUM(C20:C23) -> 0 | D19: =SUM(D20:D23) -> 2037394 | E19: 18000000 | F19: 2100000 | G19: 2100000 | H19: 2100000 | I19: 2600000 | J19: =SUM(J20:J23) -> 2719600 | K19: 2844701.6
A20: Energy sources | C20: =A2A!C99 -> 0 | D20: =A2A!D99 -> 0 | E20: =A2A!E99 -> 16000000 | F20: =A2A!F99 -> 0 | G20: =A2A!G99 -> 0 | H20: =A2A!H99 -> 0 | I20: =A2A!I99 -> 0 | J20: =A2A!J99 -> 0 | K20: =A2A!K99 -> 0
A21: Water management | C21: =A2A!C103 -> 0 | D21: =A2A!D103 -> 0 | E21: =A2A!E103 -> 0 | F21: =A2A!F103 -> 0 | G21: =A2A!G103 -> 0 | H21: =A2A!H103 -> 0 | I21: =A2A!I103 -> 0 | J21: =A2A!J103 -> 0 | K21: =A2A!K103 -> 0
A22: Waste water management | C22: =A2A!C107 -> 0 | D22: =A2A!D107 -> 2037394 | E22: =A2A!E107 -> 0 | F22: =A2A!F107 -> 0 | G22: =A2A!G107 -> 0 | H22: =A2A!H107 -> 0 | I22: =A2A!I107 -> 0 | J22: =A2A!J107 -> 0 | K22: =A2A!K107 -> 0
A23: Waste management | C23: =A2A!C112 -> 0 | D23: =A2A!D112 -> 0 | E23: =A2A!E112 -> 2000000 | F23: =A2A!F112 -> 2100000 | G23: =A2A!G112 -> 2100000 | H23: =A2A!H112 -> 2100000 | I23: =A2A!I112 -> 2600000 | J23: =A2A!J112 -> 2719600 | K23: =A2A!K112 -> 2844701.6
A24: Other | B24: 4 | C24: =A2A!C117 -> 0 | D24: =A2A!D117 -> 0 | E24: =A2A!E117 -> 0 | F24: =A2A!F117 -> 0 | G24: =A2A!G117 -> 0 | H24: =A2A!H117 -> 0 | I24: =A2A!I117 -> 0 | J24: =A2A!J117 -> 0 | K24: =A2A!K117 -> 0
A25: ="Total "&A4 -> Total Revenue - Functional | B25: 2 | C25: =C5+C9+C15+C19+C24 -> 160854438 | D25: =D5+D9+D15+D19+D24 -> 158918273 | E25: =E5+E9+E15+E19+E24 -> 218313020 | F25: 267948177.7 | G25: 194063444 | H25: 194063444 | I25: =I5+I9+I15+I19+I24 -> 195659474.7 | J25: 236680247.6 | K25: 247567538.9
A27: Expenditure - Functional
A28: Governance and administration | C28: =SUM(C29:C31) -> 121945552 | D28: =SUM(D29:D31) -> 82776215 | E28: 86527012 | F28: 91581108.42 | G28: 95560560.54 | H28: 95560560.54 | I28: 100433442.3 | J28: 102183904.7 | K28: 106884364.3
A29: Executive and council | C29: =A2A!C128 -> 0 | D29: =A2A!D128 -> 20477617 | E29: =A2A!E128 -> 23324999 | F29: =A2A!F128 -> 25414361.14 | G29: =A2A!G128 -> 25060441.28 | H29: =A2A!H128 -> 25060441.28 | I29: =A2A!I128 -> 26508672.12 | J29: =A2A!J128 -> 26573877.68 | K29: =A2A!K128 -> 27796276.06
A30: Finance and administration | C30: =A2A!C131 -> 121945552 | D30: =A2A!D131 -> 62298598 | E30: =A2A!E131 -> 63095968 | F30: =A2A!F131 -> 66166747.28 | G30: =A2A!G131 -> 70500119.26 | H30: =A2A!H131 -> 70500119.26 | I30: =A2A!I131 -> 73844658.36 | J30: =A2A!J131 -> 75609909.99 | K30: =A2A!K131 -> 79087965.85
A31: Internal audit | C31: =A2A!C145 -> 0 | D31: =A2A!D145 -> 0 | E31: =A2A!E145 -> 106045 | F31: =A2A!F145 -> 0 | G31: =A2A!G145 -> 0 | H31: =A2A!H145 -> 0 | I31: =A2A!I145 -> 80111.84 | J31: =A2A!J145 -> 116.98 | K31: =A2A!K145 -> 122.37
A32: Community and public safety | C32: =SUM(C33:C37) -> 1364866 | D32: =SUM(D33:D37) -> 23060183 | E32: 47463655 | F32: 85976566.88 | G32: 27790871.59 | H32: 27790871.59 | I32: 30021803.05 | J32: 61540357.59 | K32: 64371214.08
A33: Community and social services | C33: =A2A!C148 -> 0 | D33: =A2A!D148 -> 7079850 | E33: =A2A!E148 -> 8874138 | F33: =A2A!F148 -> 8608052.35 | G33: =A2A!G148 -> 9002446.33 | H33: =A2A!H148 -> 9002446.33 | I33: =A2A!I148 -> 9033632.56 | J33: =A2A!J148 -> 8945435.28 | K33: =A2A!K148 -> 9356925.35
A34: Sport and recreation | C34: =A2A!C170 -> 0 | D34: =A2A!D170 -> 370714 | E34: =A2A!E170 -> 617356 | F34: =A2A!F170 -> 685538.53 | G34: =A2A!G170 -> 667678 | H34: =A2A!H170 -> 667678 | I34: =A2A!I170 -> 697724.06 | J34: =A2A!J170 -> 729819.37 | K34: =A2A!K170 -> 763391.06
A35: Public safety | C35: =A2A!C176 -> 1364866 | D35: =A2A!D176 -> 14429177 | E35: =A2A!E176 -> 14588201 | F35: =A2A!F176 -> 16427881.22 | G35: =A2A!G176 -> 16405224.07 | H35: =A2A!H176 -> 16405224.07 | I35: =A2A!I176 -> 18030667.14 | J35: =A2A!J176 -> 18605305.34 | K35: =A2A!K176 -> 19461149.39
A36: Housing | C36: =A2A!C185 -> 0 | D36: =A2A!D185 -> 1180442 | E36: =A2A!E185 -> 23383960 | F36: =A2A!F185 -> 60255094.78 | G36: =A2A!G185 -> 1715523.19 | H36: =A2A!H185 -> 1715523.19 | I36: =A2A!I185 -> 2259779.29 | J36: =A2A!J185 -> 33259797.6 | K36: =A2A!K185 -> 34789748.28
A37: Health | C37: =A2A!C188 -> 0 | D37: =A2A!D188 -> 0 | E37: =A2A!E188 -> 0 | F37: =A2A!F188 -> 0 | G37: =A2A!G188 -> 0 | H37: =A2A!H188 -> 0 | I37: =A2A!I188 -> 0 | J37: =A2A!J188 -> 0 | K37: =A2A!K188 -> 0
A38: Economic and environmental services | C38: =SUM(C39:C41) -> 0 | D38: =SUM(D39:D41) -> 23784303 | E38: 25987337 | F38: 41099019.2 | G38: 39971803.95 | H38: 39971803.95 | I38: 30290886.14 | J38: 31210311.91 | K38: 32645986.24
A39: Planning and development | C39: =A2A!C197 -> 0 | D39: =A2A!D197 -> 6218244 | E39: =A2A!E197 -> 8737021 | F39: =A2A!F197 -> 24953119.06 | G39: =A2A!G197 -> 24075696.79 | H39: =A2A!H197 -> 24075696.79 | I39: =A2A!I197 -> 14916364.75 | J39: =A2A!J197 -> 15128679.51 | K39: =A2A!K197 -> 15824598.77
A40: Road transport | C40: =A2A!C208 -> 0 | D40: =A2A!D208 -> 17566059 | E40: =A2A!E208 -> 17250316 | F40: =A2A!F208 -> 16145900.14 | G40: =A2A!G208 -> 15896107.16 | H40: =A2A!H208 -> 15896107.16 | I40: =A2A!I208 -> 15374521.39 | J40: =A2A!J208 -> 16081632.4 | K40: =A2A!K208 -> 16821387.47
A41: Environmental protection | C41: =A2A!C213 -> 0 | D41: =A2A!D213 -> 0 | E41: =A2A!E213 -> 0 | F41: =A2A!F213 -> 0 | G41: =A2A!G213 -> 0 | H41: =A2A!H213 -> 0 | I41: =A2A!I213 -> 0 | J41: =A2A!J213 -> 0 | K41: =A2A!K213 -> 0
A42: Trading services | C42: =SUM(C43:C46) -> 2881474 | D42: =SUM(D43:D46) -> 9359355 | E42: 26909071 | F42: =SUM(F43:F46) -> 25076761.4 | G42: 12146487.04 | H42: 12146487.04 | I42: 12966912.11 | J42: 13201382.39 | K42: =SUM(K43:K46) -> 13808645.96
A43: Energy sources | C43: =A2A!C221 -> 0 | D43: =A2A!D221 -> 0 | E43: =A2A!E221 -> 16000000 | F43: =A2A!F221 -> 13000000 | G43: =A2A!G221 -> 0 | H43: =A2A!H221 -> 0 | I43: =A2A!I221 -> 0 | J43: =A2A!J221 -> 0 | K43: =A2A!K221 -> 0
A44: Water management | C44: =A2A!C225 -> 0 | D44: =A2A!D225 -> 0 | E44: =A2A!E225 -> 0 | F44: =A2A!F225 -> 0 | G44: =A2A!G225 -> 0 | H44: =A2A!H225 -> 0 | I44: =A2A!I225 -> 0 | J44: =A2A!J225 -> 0 | K44: =A2A!K225 -> 0
A45: Waste water management | C45: =A2A!C229 -> 2881474 | D45: =A2A!D229 -> 0 | E45: =A2A!E229 -> 0 | F45: =A2A!F229 -> 0 | G45: =A2A!G229 -> 0 | H45: =A2A!H229 -> 0 | I45: =A2A!I229 -> 0 | J45: =A2A!J229 -> 0 | K45: =A2A!K229 -> 0
A46: Waste management | C46: =A2A!C234 -> 0 | D46: =A2A!D234 -> 9359355 | E46: =A2A!E234 -> 10909071 | F46: =A2A!F234 -> 12076761.4 | G46: =A2A!G234 -> 12146487.04 | H46: =A2A!H234 -> 12146487.04 | I46: =A2A!I234 -> 12966912.11 | J46: =A2A!J234 -> 13201382.39 | K46: =A2A!K234 -> 13808645.96
A47: Other | B47: 4 | C47: =A2A!C239 -> 0 | D47: =A2A!D239 -> 0 | E47: =A2A!E239 -> 0 | F47: =A2A!F239 -> 353827.52 | G47: =A2A!G239 -> 353828 | H47: =A2A!H239 -> 353828 | I47: =A2A!I239 -> 369749.76 | J47: =A2A!J239 -> 386758.25 | K47: =A2A!K239 -> 404549.13
A48: ="Total "&A27 -> Total Expenditure - Functional | B48: 3 | C48: =C28+C32+C38+C42+C47 -> 126191892 | D48: =D28+D32+D38+D42+D47 -> 138980056 | E48: =E28+E32+E38+E42+E47 -> 186887075 | F48: =F28+F32+F38+F42+F47 -> 244087283.4 | G48: 175823551.1 | H48: 175823551.1 | I48: 174082793.4 | J48: 208522714.8 | K48: 218114759.7
A49: =result -> Surplus/(Deficit) for the year | C49: =C25-C48 -> 34662546 | D49: =D25-D48 -> 19938217 | E49: 31425945 | F49: 23860894.27 | G49: 18239892.88 | H49: 18239892.88 | I49: 21576681.28 | J49: 28157532.77 | K49: 29452779.25
A50: =head27a -> References
A51: 1. Government Finance Statistics Functions and Sub-functions are standardised to assist the compilation of national and international accounts for comparison purposes
A52: 2. Total Revenue by functional classification must reconcile to Total Operating Revenue shown in Budgeted Financial Performance (revenue and expenditure)
A53: 3. Total Expenditure by Functional Classification must reconcile to Total Operating Expenditure shown in Budgeted Financial Performance (revenue and expenditure)
A54: 4. All amounts must be classified under a functional classification . The GFS function 'Other' is only for Abbatoirs, Air Transport, Forestry, Licensing and Regulation, Markets and Tourism - and if used must be supported by footnotes. Nothing else may be placed under 'Other'. Assign associate share to relevant classification.
A57: check oprev balance | C57: =C25-'A4-FinPerf RE'!C59 -> 0 | D57: =D25-'A4-FinPerf RE'!D59 -> 3 | E57: =E25-'A4-FinPerf RE'!E59 -> -2000000 | F57: =F25-'A4-FinPerf RE'!F59 -> 0 | G57: =G25-'A4-FinPerf RE'!G59 -> 0.6700000167 | H57: =H25-'A4-FinPerf RE'!H59 -> 0.6700000167 | I57: =I25-'A4-FinPerf RE'!J59 -> 842135.84 | J57: =J25-'A4-FinPerf RE'!K59 -> 33062118.38 | K57: =K25-'A4-FinPerf RE'!L59 -> 34751153.83
A58: check opexp balance | C58: =C48-'A4-FinPerf RE'!C35 -> -209 | D58: =D48-'A4-FinPerf RE'!D35 -> 5303231 | E58: =E48-'A4-FinPerf RE'!E35 -> -643080 | F58: =F48-'A4-FinPerf RE'!F35 -> 635.2 | G58: =G48-'A4-FinPerf RE'!G35 -> 0 | H58: =H48-'A4-FinPerf RE'!H35 -> 0 | I58: =I48-'A4-FinPerf RE'!J35 -> 0 | J58: =J48-'A4-FinPerf RE'!K35 -> 30896068.46 | K58: =K48-'A4-FinPerf RE'!L35 -> 32317287.61

Sheet A2A
A1: =muni&" - "&Approve3 -> KZN434 Ubuhlebezwe - Table A2 Budgeted Financial Performance (revenue and expenditure by functional classification)
A2: ="Functional Classification "&desc -> Functional Classification Description | B2: =head27 -> Ref | C2: =head1b -> 2016/17 | D2: =head1A -> 2017/18 | E2: =Head1 -> 2018/19 | F2: =Head2 -> Current Year 2019/20 | I2: =Head3 -> 2020/21 Medium Term Revenue & Expenditure Framework
A3: R thousand | B3: 1 | C3: =Head5 -> Audited Outcome | D3: =Head5 -> Audited Outcome | E3: =Head5 -> Audited Outcome | F3: =Head6 -> Original Budget | G3: =Head7 -> Adjusted Budget | H3: =Head8 -> Full Year Forecast | I3: =Head9 -> Budget Year 2020/21 | J3: =Head10 -> Budget Year +1 2021/22 | K3: =Head11 -> Budget Year +2 2022/23
A4: Revenue - Functional
A5: Municipal governance and administration | C5: =C6+C9+C23 -> 157549545 | D5: 120964461 | E5: 138590018 | F5: 152440115.3 | G5: 149490116 | H5: 149490116 | I5: 156711923.9 | J5: 63749102.54 | K5: 66681561.25
A6: Executive and council | C6: =SUM(C7:C8) -> 0 | D6: =SUM(D7:D8) -> 0 | E6: 0 | F6: 0 | G6: 0 | H6: 0 | I6: 0 | J6: 0 | K6: 0
A7: Mayor and Council | C7: 0 | D7: 0 | E7: 0 | F7: 0 | G7: 0 | H7: 0 | I7: 0 | J7: 0 | K7: 0
A8: Municipal Manager, Town Secretary and Chief Executive | C8: 0 | D8: 0 | E8: 0 | F8: 0 | G8: 0 | H8: 0 | I8: 0 | J8: 0 | K8: 0
A9: Finance and administration | C9: =SUM(C10:C22) -> 157549545 | D9: 120964461 | E9: 138590018 | F9: 152440115.3 | G9: 149490116 | H9: 149490116 | I9: 156711923.9 | J9: 63749102.54 | K9: 66681561.25
A10: Administrative and Corporate Support | C10: 1173223 | D10: 327929 | E10: 1000000 | F10: 1000000 | G10: 1000000 | H10: 1000000 | I10: 500000 | J10: 523000 | K10: 547058
A11: Asset Management | D11: 0 | E11: 0 | F11: 0 | G11: 0 | H11: 0 | I11: 0 | J11: 0 | K11: 0
A12: Finance | C12: 156376322 | D12: 120564517 | E12: 137440018 | F12: 151440115.3 | G12: 148490116 | H12: 148490116 | I12: 156211923.9 | J12: 63226102.54 | K12: 66134503.25
A13: Fleet Management | C13: 0 | D13: 0 | E13: 0 | F13: 0 | G13: 0 | H13: 0 | I13: 0 | J13: 0 | K13: 0
A14: Human Resources | C14: 0 | D14: 0 | E14: 0 | F14: 0 | G14: 0 | H14: 0 | I14: 0 | J14: 0 | K14: 0
A15: Information Technology | C15: 0 | D15: 0 | E15: 0 | F15: 0 | G15: 0 | H15: 0 | I15: 0 | J15: 0 | K15: 0
A16: Legal Services | C16: 0 | D16: 0 | E16: 0 | F16: 0 | G16: 0 | H16: 0 | I16: 0 | J16: 0 | K16: 0
A17: Marketing, Customer Relations, Publicity and Media Co-ordination | C17: 0 | D17: 0 | E17: 0 | F17: 0 | G17: 0 | H17: 0 | I17: 0 | J17: 0 | K17: 0
A18: Property Services | C18: 0 | D18: 72015 | E18: 0 | F18: 0 | G18: 0 | H18: 0 | I18: 0 | J18: 0 | K18: 0
A19: Risk Management | C19: 0 | D19: 0 | E19: 150000 | F19: 0 | G19: 0 | H19: 0 | I19: 0 | J19: 0 | K19: 0
A20: Security Services | C20: 0 | D20: 0 | E20: 0 | F20: 0 | G20: 0 | H20: 0 | I20: 0 | J20: 0 | K20: 0
A21: Supply Chain Management | C21: 0 | D21: 0 | E21: 0 | F21: 0 | G21: 0 | H21: 0 | I21: 0 | J21: 0 | K21: 0
A22: Valuation Service | C22: 0 | D22: 0 | E22: 0 | F22: 0 | G22: 0 | H22: 0 | I22: 0 | J22: 0 | K22: 0
A23: Internal audit | C23: =SUM(C24:C24) -> 0 | D23: 0 | E23: 0 | F23: 0 | G23: 0 | H23: 0 | I23: 0 | J23: 0 | K23: 0
A24: Governance Function | C24: 0
A25: Community and public safety | C25: =C26+C48+C54+C63+C66 -> 3304893 | D25: 6854999 | E25: 32778703 | F25: 72808627.64 | G25: 14823893 | H25: 14823893 | I25: 9235116 | J25: 126288504.3 | K25: 132097775.5
A26: Community and social services | C26: =SUM(C27:C47) -> 0 | D26: =SUM(D27:D47) -> 2274446 | E26: 1935496 | F26: 3866416 | G26: 3932416 | H26: 3932416 | I26: 4272416 | J26: 4468947.14 | K26: 4674518.71
A27: Aged Care | D27: 0 | E27: 0 | F27: 0 | G27: 0 | H27: 0 | I27: 0 | J27: 0 | K27: 0
A28: Agricultural | D28: 0 | E28: 0 | F28: 0 | G28: 0 | H28: 0 | I28: 0 | J28: 0 | K28: 0
A29: Animal Care and Diseases | D29: 0 | E29: 0 | F29: 0 | G29: 0 | H29: 0 | I29: 0 | J29: 0 | K29: 0
A30: Cemeteries, Funeral Parlours and Crematoriums | D30: 39581 | E30: 0 | F30: 0 | G30: 0 | H30: 0 | I30: 0 | J30: 0 | K30: 0
A31: Child Care Facilities | D31: 0 | E31: 0 | F31: 0 | G31: 0 | H31: 0 | I31: 0 | J31: 0 | K31: 0
A32: Community Halls and Facilities | D32: 0 | E32: 892080 | F32: 1030000 | G32: 1030000 | H32: 1030000 | I32: 1230000 | J32: 1286580 | K32: 1345762.68
A33: Consumer Protection | D33: 0 | E33: 0 | F33: 0 | G33: 0 | H33: 0 | I33: 0 | J33: 0 | K33: 0
A34: Cultural Matters | D34: 0 | E34: 0 | F34: 0 | G34: 0 | H34: 0 | I34: 0 | J34: 0 | K34: 0
A35: Disaster Management | D35: 1455208 | E35: 0 | F35: 0 | G35: 0 | H35: 0 | I35: 0 | J35: 0 | K35: 0
A36: Education | D36: 0 | E36: 0 | F36: 0 | G36: 0 | H36: 0 | I36: 0 | J36: 0 | K36: 0
A37: Indigenous and Customary Law | D37: 0 | E37: 0 | F37: 0 | G37: 0 | H37: 0 | I37: 0 | J37: 0 | K37: 0
A38: Industrial Promotion | D38: 0 | E38: 0 | F38: 0 | G38: 0 | H38: 0 | I38: 0 | J38: 0 | K38: 0
A39: Language Policy | D39: 0 | E39: 0 | F39: 0 | G39: 0 | H39: 0 | I39: 0 | J39: 0 | K39: 0
A40: Libraries and Archives | D40: 779657 | E40: 1043416 | F40: 1043416 | G40: 1109416 | H40: 1109416 | I40: 1139416 | J40: 1191829.14 | K40: 1246653.28
A41: Literacy Programmes | D41: 0 | E41: 0 | F41: 0 | G41: 0 | H41: 0 | I41: 0 | J41: 0 | K41: 0
A42: Media Services | D42: 0 | E42: 0 | F42: 0 | G42: 0 | H42: 0 | I42: 0 | J42: 0 | K42: 0
A43: Museums and Art Galleries | D43: 0 | E43: 0 | F43: 0 | G43: 0 | H43: 0 | I43: 0 | J43: 0 | K43: 0
A44: Population Development | D44: 0 | E44: 0 | F44: 1793000 | G44: 1793000 | H44: 1793000 | I44: 1903000 | J44: 1990538 | K44: 2082102.75
A45: Provincial Cultural Matters | D45: 0 | E45: 0 | F45: 0 | G45: 0 | H45: 0 | I45: 0 | J45: 0 | K45: 0
A46: Theatres | D46: 0 | E46: 0 | F46: 0 | G46: 0 | H46: 0 | I46: 0 | J46: 0 | K46: 0
A47: Zoo's | D47: 0 | E47: 0 | F47: 0 | G47: 0 | H47: 0 | I47: 0 | J47: 0 | K47: 0
A48: Sport and recreation | C48: =SUM(C49:C53) -> 0 | D48: =SUM(D49:D53) -> 0 | E48: 2050000 | F48: 50000 | G48: 28777 | H48: 28777 | I48: 0 | J48: 0 | K48: 0
A49: Beaches and Jetties | C49: 0 | D49: 0 | E49: 0 | F49: 0 | G49: 0 | H49: 0 | I49: 0 | J49: 0 | K49: 0
A50: Casinos, Racing, Gambling, Wagering | C50: 0 | D50: 0 | E50: 0 | F50: 0 | G50: 0 | H50: 0 | I50: 0 | J50: 0 | K50: 0
A51: Community Parks (including Nurseries) | C51: 0 | D51: 0 | E51: 2000000 | F51: 0 | G51: 0 | H51: 0 | I51: 0 | J51: 0 | K51: 0
A52: Recreational Facilities | C52: 0 | D52: 0 | E52: 0 | F52: 0 | G52: 0 | H52: 0 | I52: 0 | J52: 0 | K52: 0
A53: Sports Grounds and Stadiums | C53: 0 | D53: 0 | E53: 50000 | F53: 50000 | G53: 28777 | H53: 28777 | I53: 0 | J53: 0 | K53: 0
A54: Public safety | C54: =SUM(C55:C62) -> 3304893 | D54: 4580553 | E54: 6626300 | F54: 10362700 | G54: 10862700 | H54: 10862700 | I54: 4962700 | J54: 5190984.2 | K54: 5429769.47
A55: Civil Defence | C55: 3304893 | D55: 4565674 | E55: 3600000 | F55: 4336400 | G55: 4836400 | H55: 4836400 | I55: 4936400 | J55: 5163474.4 | K55: 5400994.22
A56: Cleansing | D56: 0 | E56: 0 | F56: 0 | G56: 0 | H56: 0 | I56: 0 | J56: 0 | K56: 0
A57: Control of Public Nuisances | D57: 0 | E57: 0 | F57: 0 | G57: 0 | H57: 0 | I57: 0 | J57: 0 | K57: 0
A58: Fencing and Fences | D58: 0 | E58: 0 | F58: 0 | G58: 0 | H58: 0 | I58: 0 | J58: 0 | K58: 0
A59: Fire Fighting and Protection | D59: 14879 | E59: 3026300 | F59: 6026300 | G59: 6026300 | H59: 6026300 | I59: 26300 | J59: 27509.8 | K59: 28775.25
A60: Licensing and Control of Animals | D60: 0 | E60: 0 | F60: 0 | G60: 0 | H60: 0 | I60: 0 | J60: 0 | K60: 0
A61: Police Forces, Traffic and Street Parking Control | C61: 0 | D61: 0 | E61: 0 | F61: 0 | G61: 0 | H61: 0 | I61: 0 | J61: 0 | K61: 0
A62: Pounds | C62: 0 | D62: 0 | E62: 0 | F62: 0 | G62: 0 | H62: 0 | I62: 0 | J62: 0 | K62: 0
A63: Housing | C63: =SUM(C64:C65) -> 0 | D63: =SUM(D64:D65) -> 0 | E63: 22166907 | F63: 58529511.64 | G63: 0 | H63: 0 | I63: 0 | J63: 116628573 | K63: 121993487.3
A64: Housing | C64: 0 | D64: 0 | E64: 22166907 | F64: 58529511.64 | G64: 0 | H64: 0 | I64: 0 | J64: 116628573 | K64: 121993487.3
A65: Informal Settlements | C65: 0 | D65: 0 | E65: 0 | F65: 0 | G65: 0 | H65: 0 | I65: 0 | J65: 0 | K65: 0
A66: Health | C66: =SUM(C67:C73) -> 0 | D66: =SUM(D67:D73) -> 0 | E66: 0 | F66: 0 | G66: 0 | H66: 0 | I66: 0 | J66: 0 | K66: 0
A67: Ambulance | C67: 0 | D67: 0 | E67: 0 | F67: 0 | G67: 0 | H67: 0 | I67: 0 | J67: 0 | K67: 0
A68: Health Services | C68: 0 | D68: 0 | E68: 0 | F68: 0 | G68: 0 | H68: 0 | I68: 0 | J68: 0 | K68: 0
A69: Laboratory Services | C69: 0 | D69: 0 | E69: 0 | F69: 0 | G69: 0 | H69: 0 | I69: 0 | J69: 0 | K69: 0
A70: Food Control | C70: 0 | D70: 0 | E70: 0 | F70: 0 | G70: 0 | H70: 0 | I70: 0 | J70: 0 | K70: 0
A71: Health Surveillance and Prevention of Communicable Diseases including immunizations | C71: 0 | D71: 0 | E71: 0 | F71: 0 | G71: 0 | H71: 0 | I71: 0 | J71: 0 | K71: 0
A72: Vector Control | C72: 0 | D72: 0 | E72: 0 | F72: 0 | G72: 0 | H72: 0 | I72: 0 | J72: 0 | K72: 0
A73: Chemical Safety | C73: 0 | D73: 0 | E73: 0 | F73: 0 | G73: 0 | H73: 0 | I73: 0 | J73: 0 | K73: 0
A74: Economic and environmental services | C74: =C75+C86+C91 -> 0 | D74: 29061419 | E74: 28944299 | F74: 40599434.72 | G74: 27649435 | H74: 27649435 | I74: 27112434.72 | J74: 43923040.72 | K74: 45943500.59
A75: Planning and development | C75: =SUM(C76:C85) -> 0 | D75: =SUM(D76:D85) -> 67054 | E75: 26554779 | F75: 615780 | G75: 665780 | H75: 665780 | I75: 286780 | J75: 173405.88 | K75: 181382.55
A76: Billboards | D76: 0 | E76: 0 | F76: 0 | G76: 0 | H76: 0 | I76: 0 | J76: 0 | K76: 0
A77: Corporate Wide Strategic Planning (IDPs, LEDs) | D77: 0 | E77: 0 | F77: 0 | G77: 0 | H77: 0 | I77: 0 | J77: 0 | K77: 0
A78: Central City Improvement District | D78: 0 | E78: 0 | F78: 0 | G78: 0 | H78: 0 | I78: 0 | J78: 0 | K78: 0
A79: Development Facilitation | D79: 0 | E79: 0 | F79: 0 | G79: 0 | H79: 0 | I79: 0 | J79: 0 | K79: 0
A80: Economic Development/Planning | D80: 3767 | E80: 26454780 | F80: 15780 | G80: 65780 | H80: 65780 | I80: 186780 | J80: 68805.88 | K80: 71970.95
A81: Regional Planning and Development | D81: 0 | E81: 0 | F81: 0 | G81: 0 | H81: 0 | I81: 0 | J81: 0 | K81: 0
A82: Town Planning, Building Regulations and Enforcement, and City Engineer | D82: 63287 | E82: 99999 | F82: 600000 | G82: 600000 | H82: 600000 | I82: 100000 | J82: 104600 | K82: 109411.6
A83: Project Management Unit | D83: 0 | E83: 0 | F83: 0 | G83: 0 | H83: 0 | I83: 0 | J83: 0 | K83: 0
A84: Provincial Planning | D84: 0 | E84: 0 | F84: 0 | G84: 0 | H84: 0 | I84: 0 | J84: 0 | K84: 0
A85: Support to Local Municipalities | D85: 0 | E85: 0 | F85: 0 | G85: 0 | H85: 0 | I85: 0 | J85: 0 | K85: 0
A86: Road transport | C86: =SUM(C87:C90) -> 0 | D86: 28994365 | E86: 2389520 | F86: 39983654.72 | G86: 26983655 | H86: 26983655 | I86: 26825654.72 | J86: 43749634.84 | K86: 45762118.04
A87: Public Transport | C87: 0 | D87: 0 | E87: 0 | F87: 0 | G87: 0 | H87: 0 | I87: 0 | J87: 0 | K87: 0
A88: Road and Traffic Regulation | E88: 63120 | F88: 0 | G88: 0 | H88: 0 | I88: 0 | J88: 0 | K88: 0
A89: Roads | C89: 0 | D89: 566801 | E89: 736400 | F89: 39983654.72 | G89: 26983655 | H89: 26983655 | I89: 26825654.72 | J89: 43749634.84 | K89: 45762118.04
A90: Taxi Ranks | C90: 0 | D90: 28427564 | E90: 1590000 | F90: 0 | G90: 0 | H90: 0 | I90: 0 | J90: 0 | K90: 0
A91: Environmental protection | C91: 0 | D91: 0 | E91: 0 | F91: =SUM(F92:F97) -> 0 | G91: 0 | H91: 0 | I91: 0 | J91: 0 | K91: 0
A92: Biodiversity and Landscape | C92: 0 | D92: 0 | E92: 0 | F92: 0 | G92: 0 | H92: 0 | I92: 0 | J92: 0 | K92: 0
A93: Coastal Protection | C93: 0 | D93: 0 | E93: 0 | F93: 0 | G93: 0 | H93: 0 | I93: 0 | J93: 0 | K93: 0
A94: Indigenous Forests | C94: 0 | D94: 0 | E94: 0 | F94: 0 | G94: 0 | H94: 0 | I94: 0 | J94: 0 | K94: 0
A95: Nature Conservation | C95: 0 | D95: 0 | E95: 0 | F95: 0 | G95: 0 | H95: 0 | I95: 0 | J95: 0 | K95: 0
A96: Pollution Control | C96: 0 | D96: 0 | E96: 0 | F96: 0 | G96: 0 | H96: 0 | I96: 0 | J96: 0 | K96: 0
A97: Soil Conservation | C97: 0 | D97: 0 | E97: 0 | F97: 0 | G97: 0 | H97: 0 | I97: 0 | J97: 0 | K97: 0
A98: Trading services | C98: =C99+C103+C107+C112 -> 0 | D98: =D99+D103+D107+D112 -> 2037394 | E98: 18000000 | F98: 2100000 | G98: 2100000 | H98: 2100000 | I98: 2600000 | J98: 2719600 | K98: =K99+K103+K107+K112 -> 2844701.6
A99: Energy sources | C99: =SUM(C100:C102) -> 0 | D99: =SUM(D100:D102) -> 0 | E99: 16000000 | F99: 0 | G99: 0 | H99: 0 | I99: 0 | J99: 0 | K99: 0
A100: Electricity | C100: 0 | D100: 0 | E100: 16000000 | F100: 0 | G100: 0 | H100: 0 | I100: 0 | J100: 0 | K100: 0
A101: Street Lighting and Signal Systems | C101: 0 | D101: 0 | E101: 0 | F101: 0 | G101: 0 | H101: 0 | I101: 0 | J101: 0 | K101: 0
A102: Nonelectric Energy | C102: 0 | D102: 0 | E102: 0 | F102: 0 | G102: 0 | H102: 0 | I102: 0 | J102: 0 | K102: 0
A103: Water management | C103: =SUM(C104:C106) -> 0 | D103: =SUM(D104:D106) -> 0 | E103: 0 | F103: 0 | G103: 0 | H103: 0 | I103: 0 | J103: 0 | K103: 0
A104: Water Treatment | C104: 0 | D104: 0 | E104: 0 | F104: 0 | G104: 0 | H104: 0 | I104: 0 | J104: 0 | K104: 0
A105: Water Distribution | C105: 0 | D105: 0 | E105: 0 | F105: 0 | G105: 0 | H105: 0 | I105: 0 | J105: 0 | K105: 0
A106: Water Storage | C106: 0 | D106: 0 | E106: 0 | F106: 0 | G106: 0 | H106: 0 | I106: 0 | J106: 0 | K106: 0
A107: Waste water management | C107: =SUM(C108:C111) -> 0 | D107: =SUM(D108:D111) -> 2037394 | E107: 0 | F107: 0 | G107: 0 | H107: 0 | I107: 0 | J107: 0 | K107: 0
A108: Public Toilets | C108: 0 | D108: 0 | E108: 0 | F108: 0 | G108: 0 | H108: 0 | I108: 0 | J108: 0 | K108: 0
A109: Sewerage | C109: 0 | D109: 0 | E109: 0 | F109: 0 | G109: 0 | H109: 0 | I109: 0 | J109: 0 | K109: 0
A110: Storm Water Management | C110: 0 | D110: 2037394 | E110: 0 | F110: 0 | G110: 0 | H110: 0 | I110: 0 | J110: 0 | K110: 0
A111: Waste Water Treatment | C111: 0 | D111: 0 | E111: 0 | F111: 0 | G111: 0 | H111: 0 | I111: 0 | J111: 0 | K111: 0
A112: Waste management | C112: =SUM(C113:C116) -> 0 | D112: =SUM(D113:D116) -> 0 | E112: 2000000 | F112: 2100000 | G112: 2100000 | H112: 2100000 | I112: 2600000 | J112: 2719600 | K112: 2844701.6
A113: Recycling | C113: 0 | D113: 0 | E113: 0 | F113: 0 | G113: 0 | H113: 0 | I113: 0 | J113: 0 | K113: 0
A114: Solid Waste Disposal (Landfill Sites) | C114: 0 | D114: 0 | E114: 0 | F114: 0 | G114: 0 | H114: 0 | I114: 0 | J114: 0 | K114: 0
A115: Solid Waste Removal | C115: 0 | D115: 0 | E115: 2000000 | F115: 2100000 | G115: 2100000 | H115: 2100000 | I115: 2600000 | J115: 2719600 | K115: 2844701.6
A116: Street Cleaning | C116: 0 | D116: 0 | E116: 0 | F116: 0 | G116: 0 | H116: 0 | I116: 0 | J116: 0 | K116: 0
A117: Other | C117: 0 | D117: 0 | E117: 0 | F117: 0 | G117: 0 | H117: 0 | I117: 0 | J117: 0 | K117: 0
A118: Abattoirs | C118: 0 | D118: 0 | E118: 0 | F118: 0 | G118: 0 | H118: 0 | I118: 0 | J118: 0 | K118: 0
A119: Air Transport | C119: 0 | D119: 0 | E119: 0 | F119: 0 | G119: 0 | H119: 0 | I119: 0 | J119: 0 | K119: 0
A120: Forestry | C120: 0 | D120: 0 | E120: 0 | F120: 0 | G120: 0 | H120: 0 | I120: 0 | J120: 0 | K120: 0
A121: Licensing and Regulation | C121: 0 | D121: 0 | E121: 0 | F121: 0 | G121: 0 | H121: 0 | I121: 0 | J121: 0 | K121: 0
A122: Markets | C122: 0 | D122: 0 | E122: 0 | F122: 0 | G122: 0 | H122: 0 | I122: 0 | J122: 0 | K122: 0
A123: Tourism | C123: 0 | D123: 0 | E123: 0 | F123: 0 | G123: 0 | H123: 0 | I123: 0 | J123: 0 | K123: 0
A124: ="Total "&A4 -> Total Revenue - Functional | B124: 2 | C124: =C5+C25+C74+C98+C117 -> 160854438 | D124: =D5+D25+D74+D98+D117 -> 158918273 | E124: 218313020 | F124: 267948177.7 | G124: 194063444 | H124: 194063444 | I124: 195659474.7 | J124: 236680247.6 | K124: 247567538.9
A126: Expenditure - Functional
A127: =A5 -> Municipal governance and administration | C127: =C128+C131+C145 -> 121945552 | D127: 82776215 | E127: 86527012 | F127: 91581108.42 | G127: 95560560.54 | H127: 95560560.54 | I127: 100433442.3 | J127: 102183904.7 | K127: 106884364.3
A128: Executive and council | C128: =SUM(C129:C130) -> 0 | D128: 20477617 | E128: 23324999 | F128: 25414361.14 | G128: 25060441.28 | H128: 25060441.28 | I128: 26508672.12 | J128: 26573877.68 | K128: 27796276.06
A129: Mayor and Council | D129: 12549511 | E129: 12888892 | F129: 13825585.77 | G129: 13925023.6 | H129: 13925023.6 | I129: 14212056.82 | J129: 14442271.23 | K129: 15106615.77
A130: Municipal Manager, Town Secretary and Chief Executive | D130: 7928106 | E130: 10436107 | F130: 11588775.37 | G130: 11135417.68 | H130: 11135417.68 | I130: 12296615.3 | J130: 12131606.45 | K130: 12689660.29
A131: Finance and administration | C131: =SUM(C132:C144) -> 121945552 | D131: 62298598 | E131: 63095968 | F131: 66166747.28 | G131: 70500119.26 | H131: 70500119.26 | I131: 73844658.36 | J131: 75609909.99 | K131: 79087965.85
A132: Administrative and Corporate Support | D132: 22471354 | E132: 24096388 | F132: 25736404.82 | G132: 26424709.86 | H132: 26424709.86 | I132: 27864525.02 | J132: 27761693.56 | K132: 29038731.46
A133: Asset Management | D133: 0 | E133: 0 | F133: 8000 | G133: 8000 | H133: 8000 | I133: 8360 | J133: 8744.56 | K133: 9146.81
A134: Finance | C134: 121945552 | D134: 39630950 | E134: 38420980 | F134: 40242342.46 | G134: 43887409.4 | H134: 43887409.4 | I134: 45585423.34 | J134: 47642719.27 | K134: 49834284.36
A135: Fleet Management | C135: 0 | D135: 0 | E135: 0 | F135: 0 | G135: 0 | H135: 0 | I135: 0 | J135: 0 | K135: 0
A136: Human Resources | C136: 0 | D136: 0 | E136: 0 | F136: 0 | G136: 0 | H136: 0 | I136: 198250 | J136: 0 | K136: 0
A137: Information Technology | C137: 0 | D137: 0 | E137: 0 | F137: 0 | G137: 0 | H137: 0 | I137: 0 | J137: 0 | K137: 0
A138: Legal Services | C138: 0 | D138: 0 | E138: 0 | F138: 0 | G138: 0 | H138: 0 | I138: 0 | J138: 0 | K138: 0
A139: Marketing, Customer Relations, Publicity and Media Co-ordination | C139: 0 | D139: 0 | E139: 0 | F139: 0 | G139: 0 | H139: 0 | I139: 0 | J139: 0 | K139: 0
A140: Property Services | C140: 0 | D140: 196294 | E140: 0 | F140: 180000 | G140: 180000 | H140: 180000 | I140: 188100 | J140: 196752.6 | K140: 205803.22
A141: Risk Management | C141: 0 | D141: 0 | E141: 578600 | F141: 0 | G141: 0 | H141: 0 | I141: 0 | J141: 0 | K141: 0
A142: Security Services | C142: 0 | D142: 0 | E142: 0 | F142: 0 | G142: 0 | H142: 0 | I142: 0 | J142: 0 | K142: 0
A143: Supply Chain Management | C143: 0 | D143: 0 | E143: 0 | F143: 0 | G143: 0 | H143: 0 | I143: 0 | J143: 0 | K143: 0
A144: Valuation Service | C144: 0 | D144: 0 | E144: 0 | F144: 0 | G144: 0 | H144: 0 | I144: 0 | J144: 0 | K144: 0
A145: Internal audit | C145: =SUM(C146:C146) -> 0 | D145: 0 | E145: 106045 | F145: 0 | G145: 0 | H145: 0 | I145: 80111.84 | J145: 116.98 | K145: 122.37
A146: Governance Function | C146: 0 | D146: 0 | E146: 106045 | F146: 0 | G146: 0 | H146: 0 | I146: 80111.84 | J146: 116.98 | K146: 122.37
A147: Community and public safety | C147: =C148+C170+C176+C185+C188 -> 1364866 | D147: 23060183 | E147: 47463655 | F147: 85976566.88 | G147: 27790871.59 | H147: 27790871.59 | I147: 30021803.05 | J147: 61540357.59 | K147: 64371214.08
A148: Community and social services | C148: =SUM(C149:C169) -> 0 | D148: =SUM(D149:D169) -> 7079850 | E148: 8874138 | F148: 8608052.35 | G148: 9002446.33 | H148: 9002446.33 | I148: 9033632.56 | J148: 8945435.28 | K148: 9356925.35
A149: Aged Care | D149: 0 | E149: 1390000 | F149: 1440000 | G149: 1440000 | H149: 1440000 | I149: 1452550 | J149: 1519367.3 | K149: 1589258.2
A150: Agricultural | D150: 0 | E150: 0 | F150: 0 | G150: 0 | H150: 0 | I150: 0 | J150: 0 | K150: 0
A151: Animal Care and Diseases | D151: 0 | E151: 0 | F151: 0 | G151: 0 | H151: 0 | I151: 0 | J151: 0 | K151: 0
A152: Cemeteries, Funeral Parlours and Crematoriums | D152: 0 | E152: 0 | F152: 0 | G152: 0 | H152: 0 | I152: 0 | J152: 0 | K152: 0
A153: Child Care Facilities | D153: 0 | E153: 0 | F153: 0 | G153: 0 | H153: 0 | I153: 0 | J153: 0 | K153: 0
A154: Community Halls and Facilities | D154: 364286 | E154: 1455613 | F154: 998642.01 | G154: 1055202.09 | H154: 1055202.09 | I154: 1080432.41 | J154: 1130132.3 | K154: 1182118.39
A155: Consumer Protection | D155: 0 | E155: 0 | F155: 0 | G155: 0 | H155: 0 | I155: 0 | J155: 0 | K155: 0
A156: Cultural Matters | D156: 5319152 | E156: 4158405 | F156: 3662282.49 | G156: 3684752.21 | H156: 3684752.21 | I156: 3772947.15 | J156: 3564031.6 | K156: 3727977.07
A157: Disaster Management | D157: 0 | E157: 237000 | F157: 254840 | G157: 294840 | H157: 294840 | I157: 308107.8 | J157: 322280.76 | K157: 337105.68
A158: Education | D158: 0 | E158: 0 | F158: 660560 | G158: 660560 | H158: 660560 | I158: 690285.2 | J158: 722038.32 | K158: 755252.08
A159: =A37 -> Indigenous and Customary Law | D159: 0 | E159: 0 | F159: 0 | G159: 0 | H159: 0 | I159: 0 | J159: 0 | K159: 0
A160: Industrial Promotion | D160: 0 | E160: 0 | F160: 0 | G160: 0 | H160: 0 | I160: 0 | J160: 0 | K160: 0
A161: Language Policy | D161: 0 | E161: 0 | F161: 0 | G161: 0 | H161: 0 | I161: 0 | J161: 0 | K161: 0
A162: Libraries and Archives | D162: 1396412 | E162: 1633120 | F162: 1591727.85 | G162: 1867092.03 | H162: 1867092.03 | I162: 1613370 | J162: 1687585 | K162: 1765213.93
A163: Literacy Programmes | D163: 0 | E163: 0 | F163: 0 | G163: 0 | H163: 0 | I163: 0 | J163: 0 | K163: 0
A164: Media Services | D164: 0 | E164: 0 | F164: 0 | G164: 0 | H164: 0 | I164: 0 | J164: 0 | K164: 0
A165: Museums and Art Galleries | D165: 0 | E165: 0 | F165: 0 | G165: 0 | H165: 0 | I165: 0 | J165: 0 | K165: 0
A166: Population Development | D166: 0 | E166: 0 | F166: 0 | G166: 0 | H166: 0 | I166: 115940 | J166: 0 | K166: 0
A167: Provincial Cultural Matters | D167: 0 | E167: 0 | F167: 0 | G167: 0 | H167: 0 | I167: 0 | J167: 0 | K167: 0
A168: Theatres | D168: 0 | E168: 0 | F168: 0 | G168: 0 | H168: 0 | I168: 0 | J168: 0 | K168: 0
A169: Zoo's | D169: 0 | E169: 0 | F169: 0 | G169: 0 | H169: 0 | I169: 0 | J169: 0 | K169: 0
A170: Sport and recreation | C170: =SUM(C171:C175) -> 0 | D170: 370714 | E170: 617356 | F170: 685538.53 | G170: 667678 | H170: 667678 | I170: 697724.06 | J170: 729819.37 | K170: 763391.06
A171: Beaches and Jetties | D171: 0 | E171: 0 | F171: 0 | G171: 0 | H171: 0 | I171: 0 | J171: 0 | K171: 0
A172: Casinos, Racing, Gambling, Wagering | D172: 0 | E172: 0 | F172: 0 | G172: 0 | H172: 0 | I172: 0 | J172: 0 | K172: 0
A173: Community Parks (including Nurseries) | D173: 0 | E173: 0 | F173: 71000 | G173: 73000 | H173: 73000 | I173: 76285 | J173: 79794.11 | K173: 83464.63
A174: Recreational Facilities | D174: 0 | E174: 592216 | F174: 0 | G174: 0 | H174: 0 | I174: 0 | J174: 0 | K174: 0
A175: Sports Grounds and Stadiums | D175: 370714 | E175: 25140 | F175: 614538.53 | G175: 594678 | H175: 594678 | I175: 621439.06 | J175: 650025.26 | K175: 679926.43
A176: Public safety | C176: =SUM(C177:C184) -> 1364866 | D176: 14429177 | E176: 14588201 | F176: 16427881.22 | G176: 16405224.07 | H176: 16405224.07 | I176: 18030667.14 | J176: 18605305.34 | K176: 19461149.39
A177: Civil Defence | C177: 1364866 | D177: 8377188 | E177: 7774410 | F177: 8640611.12 | G177: 8627462.42 | H177: 8627462.42 | I177: 9159304.39 | J177: 9580632.39 | K177: 10021341.49
A178: Cleansing | D178: 0 | E178: 0 | F178: 0 | G178: 0 | H178: 0 | I178: 0 | J178: 0 | K178: 0
A179: =A57 -> Control of Public Nuisances | D179: 0 | E179: 0 | F179: 0 | G179: 0 | H179: 0 | I179: 0 | J179: 0 | K179: 0
A180: Fencing and Fences | D180: 0 | E180: 0 | F180: 0 | G180: 0 | H180: 0 | I180: 0 | J180: 0 | K180: 0
A181: Fire Fighting and Protection | D181: 6051989 | E181: 6813791 | F181: 7787270.1 | G181: 7777761.65 | H181: 7777761.65 | I181: 8871362.75 | J181: 9024672.95 | K181: 9439807.9
A182: Licensing and Control of Animals | D182: 0 | E182: 0 | F182: 0 | G182: 0 | H182: 0 | I182: 0 | J182: 0 | K182: 0
A183: Police Forces, Traffic and Street Parking Control | C183: 0 | D183: 0 | E183: 0 | F183: 0 | G183: 0 | H183: 0 | I183: 0 | J183: 0 | K183: 0
A184: Pounds | C184: 0 | D184: 0 | E184: 0 | F184: 0 | G184: 0 | H184: 0 | I184: 0 | J184: 0 | K184: 0
A185: =A63 -> Housing | C185: =SUM(C186:C187) -> 0 | D185: 1180442 | E185: 23383960 | F185: 60255094.78 | G185: 1715523.19 | H185: 1715523.19 | I185: 2259779.29 | J185: 33259797.6 | K185: 34789748.28
A186: Housing | D186: 1180442 | E186: 23383960 | F186: 60255094.78 | G186: 1715523.19 | H186: 1715523.19 | I186: 2259779.29 | J186: 33259797.6 | K186: 34789748.28
A187: Informal Settlements | D187: 0 | E187: 0 | F187: 0 | G187: 0 | H187: 0 | I187: 0 | J187: 0 | K187: 0
A188: Health | C188: =SUM(C189:C195) -> 0 | D188: =SUM(D189:D195) -> 0 | E188: 0 | F188: 0 | G188: 0 | H188: 0 | I188: 0 | J188: 0 | K188: 0
A189: Ambulance | C189: 0 | D189: 0 | E189: 0 | F189: 0 | G189: 0 | H189: 0 | I189: 0 | J189: 0 | K189: 0
A190: Health Services | C190: 0 | D190: 0 | E190: 0 | F190: 0 | G190: 0 | H190: 0 | I190: 0 | J190: 0 | K190: 0
A191: Laboratory Services | C191: 0 | D191: 0 | E191: 0 | F191: 0 | G191: 0 | H191: 0 | I191: 0 | J191: 0 | K191: 0
A192: Food Control | C192: 0 | D192: 0 | E192: 0 | F192: 0 | G192: 0 | H192: 0 | I192: 0 | J192: 0 | K192: 0
A193: Health Surveillance and Prevention of Communicable Diseases including immunizations | C193: 0 | D193: 0 | E193: 0 | F193: 0 | G193: 0 | H193: 0 | I193: 0 | J193: 0 | K193: 0
A194: Vector Control | C194: 0 | D194: 0 | E194: 0 | F194: 0 | G194: 0 | H194: 0 | I194: 0 | J194: 0 | K194: 0
A195: Chemical Safety | C195: 0 | D195: 0 | E195: 0 | F195: 0 | G195: 0 | H195: 0 | I195: 0 | J195: 0 | K195: 0
A196: Economic and environmental services | C196: =C197+C208+C213 -> 0 | D196: 23784303 | E196: 25987337 | F196: 41099019.2 | G196: 39971803.95 | H196: 39971803.95 | I196: 30290886.14 | J196: 31210311.91 | K196: 32645986.24
A197: Planning and development | C197: =SUM(C198:C207) -> 0 | D197: =SUM(D198:D207) -> 6218244 | E197: 8737021 | F197: 24953119.06 | G197: 24075696.79 | H197: 24075696.79 | I197: 14916364.75 | J197: 15128679.51 | K197: 15824598.77
A198: Billboards | D198: 0 | E198: 0 | F198: 0 | G198: 0 | H198: 0 | I198: 0 | J198: 0 | K198: 0
A199: Corporate Wide Strategic Planning (IDPs, LEDs) | D199: 0 | E199: 0 | F199: 0 | G199: 0 | H199: 0 | I199: 0 | J199: 0 | K199: 0
A200: Central City Improvement District | D200: 0 | E200: 0 | F200: 0 | G200: 0 | H200: 0 | I200: 0 | J200: 0 | K200: 0
A201: Development Facilitation | D201: 0 | E201: 0 | F201: 296837.09 | G201: 306074.36 | H201: 306074.36 | I201: 383929.47 | J201: 401590.22 | K201: 420063.37
... 53 more rows

Sheet A3-FinPerf V
A1: =muni&" - "&Approve2 -> KZN434 Ubuhlebezwe - Table A3 Budgeted Financial Performance (revenue and expenditure by municipal vote)
A2: =Vdesc -> Vote Description | B2: =head27 -> Ref | C2: =head1b -> 2016/17 | D2: =head1A -> 2017/18 | E2: =Head1 -> 2018/19 | F2: =Head2 -> Current Year 2019/20 | I2: =Head3 -> 2020/21 Medium Term Revenue & Expenditure Framework | L2: =Head4 -> LTFS
A3: R thousand | C3: =Head5 -> Audited Outcome | D3: =Head5 -> Audited Outcome | E3: =Head5 -> Audited Outcome | F3: =Head6 -> Original Budget | G3: =Head7 -> Adjusted Budget | H3: =Head8 -> Full Year Forecast | I3: =Head9 -> Budget Year 2020/21 | J3: =Head10 -> Budget Year +1 2021/22 | K3: =Head11 -> Budget Year +2 2022/23 | L3: =Head12 -> Forecast 2023/24 | M3: =Head13 -> Forecast 2024/25 | N3: =Head14 -> Forecast 2025/26 | O3: =Head15 -> Forecast 2026/27 | P3: =Head16 -> Forecast 2027/28 | Q3: =Head17 -> Forecast 2028/29 | R3: =Head18 -> Forecast 2029/30 | S3: =Head19 -> Forecast 2030/31 | T3: =Head20 -> Forecast 2031/32 | U3: =Head21 -> Forecast 2032/33 | V3: =Head22 -> Forecast 2033/34 | W3: =Head23 -> Forecast 2034/35
A4: Revenue by Vote | B4: 1
A5: =A3A!A5 -> Vote 1 - Finance & Admin | C5: =A3A!C5 -> 157549545 | D5: =A3A!D5 -> 120964461 | E5: =A3A!E5 -> 138590018 | F5: =A3A!F5 -> 152440115.3 | G5: =A3A!G5 -> 149490116 | H5: =A3A!H5 -> 149490116 | I5: =A3A!I5 -> 156711923.9 | J5: =A3A!J5 -> 63749102.54 | K5: =A3A!K5 -> 66681561.25
A6: =A3A!A16 -> Vote 2 - Executive & Council | C6: =A3A!C16 -> 0 | D6: =A3A!D16 -> 0 | E6: =A3A!E16 -> 0 | F6: =A3A!F16 -> 0 | G6: =A3A!G16 -> 0 | H6: =A3A!H16 -> 0 | I6: =A3A!I16 -> 0 | J6: =A3A!J16 -> 0 | K6: =A3A!K16 -> 0
A7: =A3A!A27 -> Vote 3 - Community and Social Services | C7: =A3A!C27 -> 0 | D7: =A3A!D27 -> 2274446 | E7: =A3A!E27 -> 1935496 | F7: =A3A!F27 -> 3866416 | G7: =A3A!G27 -> 3932416 | H7: =A3A!H27 -> 3932416 | I7: =A3A!I27 -> 4272416 | J7: =A3A!J27 -> 4468947.14 | K7: =A3A!K27 -> 4674518.71
A8: =A3A!A38 -> Vote 4 - Housing | C8: =A3A!C38 -> 0 | D8: =A3A!D38 -> 0 | E8: =A3A!E38 -> 22166907 | F8: =A3A!F38 -> 58529511.64 | G8: =A3A!G38 -> 0 | H8: =A3A!H38 -> 0 | I8: =A3A!I38 -> 0 | J8: =A3A!J38 -> 116628573 | K8: =A3A!K38 -> 121993487.3
A9: =A3A!A49 -> Vote 5 - Public Safety | C9: =A3A!C49 -> 3304893 | D9: =A3A!D49 -> 4580553 | E9: =A3A!E49 -> 6626300 | F9: =A3A!F49 -> 10362700 | G9: =A3A!G49 -> 10862700 | H9: =A3A!H49 -> 10862700 | I9: =A3A!I49 -> 4962700 | J9: =A3A!J49 -> 5190984.2 | K9: =A3A!K49 -> 5429769.47
A10: =A3A!A60 -> Vote 6 - Road Transport | C10: =A3A!C60 -> 0 | D10: =A3A!D60 -> 28994365 | E10: =A3A!E60 -> 2389520 | F10: =A3A!F60 -> 39983654.72 | G10: =A3A!G60 -> 26983655 | H10: =A3A!H60 -> 26983655 | I10: =A3A!I60 -> 26825654.72 | J10: =A3A!J60 -> 43749634.84 | K10: =A3A!K60 -> 45762118.04
A11: =A3A!A71 -> Vote 7 - Waste Management | C11: =A3A!C71 -> 0 | D11: =A3A!D71 -> 2037394 | E11: =A3A!E71 -> 2000000 | F11: =A3A!F71 -> 2100000 | G11: =A3A!G71 -> 2100000 | H11: =A3A!H71 -> 2100000 | I11: =A3A!I71 -> 2600000 | J11: =A3A!J71 -> 2719600 | K11: =A3A!K71 -> 2844701.6
A12: =A3A!A82 -> Vote 8 - Energy Sources | C12: =A3A!C82 -> 0 | D12: =A3A!D82 -> 0 | E12: =A3A!E82 -> 16000000 | F12: =A3A!F82 -> 0 | G12: =A3A!G82 -> 0 | H12: =A3A!H82 -> 0 | I12: =A3A!I82 -> 0 | J12: =A3A!J82 -> 0 | K12: =A3A!K82 -> 0
A13: =A3A!A93 -> Vote 9 - Planning and Development | C13: =A3A!C93 -> 0 | D13: =A3A!D93 -> 67054 | E13: =A3A!E93 -> 26554780 | F13: =A3A!F93 -> 615780 | G13: =A3A!G93 -> 665780 | H13: =A3A!H93 -> 665780 | I13: =A3A!I93 -> 286780 | J13: =A3A!J93 -> 173405.88 | K13: =A3A!K93 -> 181382.55
A14: =A3A!A104 -> Vote 10 - Sport and Recreation | C14: =A3A!C104 -> 0 | D14: =A3A!D104 -> 0 | E14: =A3A!E104 -> 2050000 | F14: =A3A!F104 -> 50000 | G14: =A3A!G104 -> 28777 | H14: =A3A!H104 -> 28777 | I14: =A3A!I104 -> 0 | J14: =A3A!J104 -> 0 | K14: =A3A!K104 -> 0
A15: =A3A!A115 -> Vote 11 - [NAME OF VOTE 11] | C15: =A3A!C115 -> 0 | D15: =A3A!D115 -> 0 | E15: =A3A!E115 -> 0 | F15: =A3A!F115 -> 0 | G15: =A3A!G115 -> 0 | H15: =A3A!H115 -> 0 | I15: =A3A!I115 -> 0 | J15: =A3A!J115 -> 0 | K15: =A3A!K115 -> 0 | L15: =A5A!L115 -> 0
A16: =A3A!A126 -> Vote 12 - [NAME OF VOTE 12] | C16: =A3A!C126 -> 0 | D16: =A3A!D126 -> 0 | E16: =A3A!E126 -> 0 | F16: =A3A!F126 -> 0 | G16: =A3A!G126 -> 0 | H16: =A3A!H126 -> 0 | I16: =A3A!I126 -> 0 | J16: =A3A!J126 -> 0 | K16: =A3A!K126 -> 0 | L16: =A5A!L126 -> 0
A17: =A3A!A137 -> Vote 13 - [NAME OF VOTE 13] | C17: =A3A!C137 -> 0 | D17: =A3A!D137 -> 0 | E17: =A3A!E137 -> 0 | F17: =A3A!F137 -> 0 | G17: =A3A!G137 -> 0 | H17: =A3A!H137 -> 0 | I17: =A3A!I137 -> 0 | J17: =A3A!J137 -> 0 | K17: =A3A!K137 -> 0 | L17: =A5A!L137 -> 0
A18: =A3A!A148 -> Vote 14 - [NAME OF VOTE 14] | C18: =A3A!C148 -> 0 | D18: =A3A!D148 -> 0 | E18: =A3A!E148 -> 0 | F18: =A3A!F148 -> 0 | G18: =A3A!G148 -> 0 | H18: =A3A!H148 -> 0 | I18: =A3A!I148 -> 0 | J18: =A3A!J148 -> 0 | K18: =A3A!K148 -> 0 | L18: =A5A!L148 -> 0
A19: =A3A!A159 -> Vote 15 - [NAME OF VOTE 15] | C19: =A3A!C159 -> 0 | D19: =A3A!D159 -> 0 | E19: =A3A!E159 -> 0 | F19: =A3A!F159 -> 0 | G19: =A3A!G159 -> 0 | H19: =A3A!H159 -> 0 | I19: =A3A!I159 -> 0 | J19: =A3A!J159 -> 0 | K19: =A3A!K159 -> 0 | L19: =A5A!L159 -> 0
A20: Total Revenue by Vote | B20: 2 | C20: =SUM(C5:C19) -> 160854438 | D20: =SUM(D5:D19) -> 158918273 | E20: 218313021 | F20: 267948177.7 | G20: 194063444 | H20: 194063444 | I20: 195659474.7 | J20: 236680247.6 | K20: 247567538.9
A22: Expenditure by Vote to be appropriated | B22: 1
A23: =A3A!A173 -> Vote 1 - Finance & Admin | C23: =A3A!C173 -> 121945552 | D23: =A3A!D173 -> 62298597.67 | E23: =A3A!E173 -> 63095968 | F23: =A3A!F173 -> 66166747.28 | G23: =A3A!G173 -> 70300119.26 | H23: =A3A!H173 -> 70300119.26 | I23: =A3A!I173 -> 73844658.36 | J23: =A3A!J173 -> 75609909.99 | K23: =A3A!K173 -> 79087965.85
A24: =A3A!A184 -> Vote 2 - Executive & Council | C24: =A3A!C184 -> 0 | D24: =A3A!D184 -> 20477677 | E24: =A3A!E184 -> 23431044 | F24: =A3A!F184 -> 25414361.14 | G24: =A3A!G184 -> 25060441.28 | H24: =A3A!H184 -> 25060441.28 | I24: =A3A!I184 -> 26588783.96 | J24: =A3A!J184 -> 26573994.66 | K24: =A3A!K184 -> 27796398.43
A25: =A3A!A195 -> Vote 3 - Community and Social Services | C25: =A3A!C195 -> 0 | D25: =A3A!D195 -> 7079850 | E25: =A3A!E195 -> 8874120 | F25: =A3A!F195 -> 8961879.87 | G25: =A3A!G195 -> 9406508.69 | H25: =A3A!H195 -> 9406508.69 | I25: =A3A!I195 -> 9555488.99 | J25: =A3A!J195 -> 9491297.1 | K25: =A3A!K195 -> 9927896.8
A26: =A3A!A206 -> Vote 4 - Housing | C26: =A3A!C206 -> 0 | D26: =A3A!D206 -> 1180442 | E26: =A3A!E206 -> 1217078 | F26: =A3A!F206 -> 60255094.78 | G26: =A3A!G206 -> 1715523.19 | H26: =A3A!H206 -> 1715523.19 | I26: =A3A!I206 -> 2259779.29 | J26: =A3A!J206 -> 33259797.6 | K26: =A3A!K206 -> 34789748.28
A27: =A3A!A217 -> Vote 5 - Public Safety | C27: =A3A!C217 -> 1364866 | D27: =A3A!D217 -> 14429177 | E27: =A3A!E217 -> 14588201 | F27: =A3A!F217 -> 16427881.22 | G27: =A3A!G217 -> 16405224.07 | H27: =A3A!H217 -> 16405224.07 | I27: =A3A!I217 -> 18030667.14 | J27: =A3A!J217 -> 18605305.34 | K27: =A3A!K217 -> 19461149.39
A28: =A3A!A228 -> Vote 6 - Road Transport | C28: =A3A!C228 -> 2881474 | D28: =A3A!D228 -> 17566059 | E28: =A3A!E228 -> 10215307 | F28: =A3A!F228 -> 16145900.14 | G28: =A3A!G228 -> 16046107.16 | H28: =A3A!H228 -> 16046107.16 | I28: =A3A!I228 -> 15374521.39 | J28: =A3A!J228 -> 16081632.4 | K28: =A3A!K228 -> 16821387.47
A29: =A3A!A239 -> Vote 7 - Waste Management | C29: =A3A!C239 -> 0 | D29: =A3A!D239 -> 9359355 | E29: =A3A!E239 -> 10893472 | F29: =A3A!F239 -> 12076761.4 | G29: =A3A!G239 -> 12146487.04 | H29: =A3A!H239 -> 12146487.04 | I29: =A3A!I239 -> 12966912.11 | J29: =A3A!J239 -> 13201382.39 | K29: =A3A!K239 -> 13808645.96
A30: =A3A!A250 -> Vote 8 - Energy Sources | C30: =A3A!C250 -> 0 | D30: =A3A!D250 -> 0 | E30: =A3A!E250 -> 0 | F30: =A3A!F250 -> 13000000 | G30: =A3A!G250 -> 0 | H30: =A3A!H250 -> 0 | I30: =A3A!I250 -> 0 | J30: =A3A!J250 -> 0 | K30: =A3A!K250 -> 0
A31: =A3A!A261 -> Vote 9 - Planning and Development | C31: =A3A!C261 -> 0 | D31: =A3A!D261 -> 6218244 | E31: =A3A!E261 -> 53944760 | F31: =A3A!F261 -> 24953119.06 | G31: =A3A!G261 -> 24075696.79 | H31: =A3A!H261 -> 24075696.79 | I31: =A3A!I261 -> 14532435.28 | J31: =A3A!J261 -> 14727089.29 | K31: =A3A!K261 -> 15404535.4
A32: =A3A!A272 -> Vote 10 - Sport and Recreation | C32: =A3A!C272 -> 0 | D32: =A3A!D272 -> 370714 | E32: =A3A!E272 -> 617356 | F32: =A3A!F272 -> 685538.53 | G32: =A3A!G272 -> 667678 | H32: =A3A!H272 -> 667678 | I32: =A3A!I272 -> 621439.06 | J32: =A3A!J272 -> 650025.26 | K32: =A3A!K272 -> 679926.43
A33: =A3A!A283 -> Vote 11 - [NAME OF VOTE 11] | C33: =A3A!C283 -> 0 | D33: =A3A!D283 -> 0 | E33: =A3A!E283 -> 0 | F33: =A3A!F283 -> 0 | G33: =A3A!G283 -> 0 | H33: =A3A!H283 -> 0 | I33: =A3A!I283 -> 0 | J33: =A3A!J283 -> 0 | K33: =A3A!K283 -> 0 | L33: =A3A!L284 -> 0
A34: =A3A!A294 -> Vote 12 - [NAME OF VOTE 12] | C34: =A3A!C294 -> 0 | D34: =A3A!D294 -> 0 | E34: =A3A!E294 -> 0 | F34: =A3A!F294 -> 0 | G34: =A3A!G294 -> 0 | H34: =A3A!H294 -> 0 | I34: =A3A!I294 -> 0 | J34: =A3A!J294 -> 0 | K34: =A3A!K294 -> 0 | L34: =A3A!L295 -> 0
A35: =A3A!A305 -> Vote 13 - [NAME OF VOTE 13] | C35: =A3A!C305 -> 0 | D35: =A3A!D305 -> 0 | E35: =A3A!E305 -> 0 | F35: =A3A!F305 -> 0 | G35: =A3A!G305 -> 0 | H35: =A3A!H305 -> 0 | I35: =A3A!I305 -> 0 | J35: =A3A!J305 -> 0 | K35: =A3A!K305 -> 0 | L35: =A3A!L306 -> 0
A36: =A3A!A316 -> Vote 14 - [NAME OF VOTE 14] | C36: =A3A!C316 -> 0 | D36: =A3A!D316 -> 0 | E36: =A3A!E316 -> 0 | F36: =A3A!F316 -> 0 | G36: =A3A!G316 -> 0 | H36: =A3A!H316 -> 0 | I36: =A3A!I316 -> 0 | J36: =A3A!J316 -> 0 | K36: =A3A!K316 -> 0 | L36: =A3A!L317 -> 0
A37: =A3A!A327 -> Vote 15 - [NAME OF VOTE 15] | C37: =A3A!C327 -> 0 | D37: =A3A!D327 -> 0 | E37: =A3A!E327 -> 0 | F37: =A3A!F327 -> 0 | G37: =A3A!G327 -> 0 | H37: =A3A!H327 -> 0 | I37: =A3A!I327 -> 0 | J37: =A3A!J327 -> 0 | K37: =A3A!K327 -> 0 | L37: =A3A!L328 -> 0
A38: Total Expenditure by Vote | B38: 2 | C38: =SUM(C23:C37) -> 126191892 | D38: =SUM(D23:D37) -> 138980115.7 | E38: 186877306 | F38: 244087283.4 | G38: 175823785.5 | H38: 175823785.5 | I38: 173774685.6 | J38: 208200434 | K38: 217777654 | L38: =SUM(L23:L29) -> 0 | M38: 0 | N38: 0 | O38: 0 | P38: 0 | Q38: 0 | R38: 0 | S38: 0 | T38: 0 | U38: 0 | V38: 0 | W38: 0
A39: =result -> Surplus/(Deficit) for the year | B39: 2 | C39: =C20-C38 -> 34662546 | D39: 19938157.33 | E39: 31435715 | F39: 23860894.27 | G39: 18239658.52 | H39: 18239658.52 | I39: 21884789.08 | J39: 28479813.53 | K39: 29789884.93 | L39: 0 | M39: 0 | N39: 0 | O39: 0 | P39: 0 | Q39: 0 | R39: 0 | S39: 0 | T39: 0 | U39: 0 | V39: 0 | W39: 0
A40: =head27a -> References
A41: 1. Insert 'Vote'; e.g. department, if different to functional classification structure
A42: 2. Must reconcile to Budgeted Financial Performance (revenue and expenditure)
A43: 3. Assign share in 'associate' to relevant Vote
A45: ="check "&A39 -> check Surplus/(Deficit) for the year | C45: =C39-A3A!C340 -> 0 | D45: =D39-A3A!D340 -> 0 | E45: =E39-A3A!E340 -> 0 | F45: =F39-A3A!F340 -> 0 | G45: =G39-A3A!G340 -> 0 | H45: =H39-A3A!H340 -> 0 | I45: =I39-A3A!I340 -> 0 | J45: =J39-A3A!J340 -> 0 | K45: =K39-A3A!K340 -> 0

Sheet A3A
A1: =muni&" - "&Approve2&"A" -> KZN434 Ubuhlebezwe - Table A3 Budgeted Financial Performance (revenue and expenditure by municipal vote)A
A2: =Vdesc -> Vote Description | B2: =head27 -> Ref | C2: =head1b -> 2016/17 | D2: =head1A -> 2017/18 | E2: =Head1 -> 2018/19 | F2: =Head2 -> Current Year 2019/20 | I2: =Head3 -> 2020/21 Medium Term Revenue & Expenditure Framework | L2: =Head4 -> LTFS
A3: R thousand | C3: =Head5 -> Audited Outcome | D3: =Head5 -> Audited Outcome | E3: =Head5 -> Audited Outcome | F3: =Head6 -> Original Budget | G3: =Head7 -> Adjusted Budget | H3: =Head8 -> Full Year Forecast | I3: =Head9 -> Budget Year 2020/21 | J3: =Head10 -> Budget Year +1 2021/22 | K3: =Head11 -> Budget Year +2 2022/23 | L3: =Head12 -> Forecast 2023/24 | M3: =Head13 -> Forecast 2024/25 | N3: =Head14 -> Forecast 2025/26 | O3: =Head15 -> Forecast 2026/27 | P3: =Head16 -> Forecast 2027/28 | Q3: =Head17 -> Forecast 2028/29 | R3: =Head18 -> Forecast 2029/30 | S3: =Head19 -> Forecast 2030/31 | T3: =Head20 -> Forecast 2031/32 | U3: =Head21 -> Forecast 2032/33 | V3: =Head22 -> Forecast 2033/34 | W3: =Head23 -> Forecast 2034/35
A4: Revenue by Vote | B4: 1
A5: ='Org structure'!A2 -> Vote 1 - Finance & Admin | C5: =SUM(C6:C15) -> 157549545 | D5: =SUM(D6:D15) -> 120964461 | E5: 138590018 | F5: 152440115.3 | G5: 149490116 | H5: 149490116 | I5: 156711923.9 | J5: 63749102.54 | K5: 66681561.25
A6: 1.1 - Asset Management | C6: 0 | D6: 0 | E6: 0 | F6: 0 | G6: 0 | H6: 0 | I6: 0 | J6: 0 | K6: 0
A7: 1.2 - Information Technology | C7: 156376322 | D7: 120564517 | E7: 137440018 | F7: 0 | G7: 0 | H7: 0 | I7: 0 | J7: 0 | K7: 0
A8: 1.3 - Finance | C8: 0 | D8: 0 | E8: 0 | F8: 151440115.3 | G8: 148490116 | H8: 148490116 | I8: 156211923.9 | J8: 63226102.54 | K8: 66134503.25
A9: 1.4 - Fleet Management | C9: 0 | D9: 0 | E9: 0 | F9: 0 | G9: 0 | H9: 0 | I9: 0 | J9: 0 | K9: 0
A10: 1.5 - Administrative and Corporate Support | C10: 0 | D10: 327929 | E10: 1000000 | F10: 1000000 | G10: 1000000 | H10: 1000000 | I10: 500000 | J10: 523000 | K10: 547058
A11: 1.6 - Property Services | C11: 1173223 | D11: 72015 | E11: 150000 | F11: 0 | G11: 0 | H11: 0 | I11: 0 | J11: 0 | K11: 0
A12: 1.7 - Legal Services | C12: 0 | D12: 0 | E12: 0 | F12: 0 | G12: 0 | H12: 0 | I12: 0 | J12: 0 | K12: 0
A13: 1.8 - Human Resources | C13: 0 | D13: 0 | E13: 0 | F13: 0 | G13: 0 | H13: 0 | I13: 0 | J13: 0 | K13: 0
C14: 0 | D14: 0 | E14: 0 | F14: 0 | G14: 0 | H14: 0 | I14: 0 | J14: 0 | K14: 0
C15: 0 | D15: 0 | E15: 0 | F15: 0 | G15: 0 | H15: 0 | I15: 0 | J15: 0 | K15: 0
A16: ='Org structure'!A3 -> Vote 2 - Executive & Council | C16: =SUM(C17:C26) -> 0 | D16: =SUM(D17:D26) -> 0 | E16: 0 | F16: 0 | G16: 0 | H16: 0 | I16: 0 | K16: 0
A17: 2.1 - Mayor and Council | C17: 0 | D17: 0 | E17: 0 | F17: 0 | G17: 0 | H17: 0 | I17: 0 | J17: 0 | K17: 0
A18: 2.2 - Municipal Manager, Town Secretary and Chief Executive | C18: 0 | D18: 0 | E18: 0 | F18: 0 | G18: 0 | H18: 0 | I18: 0 | J18: 0 | K18: 0
A19: 2.3 - Governance Function | C19: 0 | D19: 0 | E19: 0 | F19: 0 | G19: 0 | H19: 0 | I19: 0 | J19: 0 | K19: 0
C20: 0 | D20: 0 | E20: 0 | F20: 0 | G20: 0 | H20: 0 | I20: 0 | J20: 0 | K20: 0
C21: 0 | D21: 0 | E21: 0 | F21: 0 | G21: 0 | H21: 0 | I21: 0 | J21: 0 | K21: 0
C22: 0 | D22: 0 | E22: 0 | F22: 0 | G22: 0 | H22: 0 | I22: 0 | J22: 0 | K22: 0
C23: 0 | D23: 0 | E23: 0 | F23: 0 | G23: 0 | H23: 0 | I23: 0 | J23: 0 | K23: 0
C24: 0 | D24: 0 | E24: 0 | F24: 0 | G24: 0 | H24: 0 | I24: 0 | J24: 0 | K24: 0
C25: 0 | D25: 0 | E25: 0 | F25: 0 | G25: 0 | H25: 0 | I25: 0 | J25: 0 | K25: 0
C26: 0 | D26: 0 | E26: 0 | F26: 0 | G26: 0 | H26: 0 | I26: 0 | J26: 0 | K26: 0
A27: ='Org structure'!A4 -> Vote 3 - Community and Social Services | C27: =SUM(C28:C37) -> 0 | D27: 2274446 | E27: 1935496 | F27: 3866416 | G27: 3932416 | H27: 3932416 | I27: 4272416 | J27: 4468947.14 | K27: 4674518.71
A28: 3.1 - Cultural Matters | C28: 0 | D28: 0 | E28: 0 | F28: 0 | G28: 0 | H28: 0 | I28: 0 | J28: 0 | K28: 0
A29: 3.2 - Population Development | C29: 0 | D29: 39581 | E29: 892080 | F29: 1793000 | G29: 1793000 | H29: 1793000 | I29: 1903000 | J29: 1990538 | K29: 2082102.75
A30: 3.3 - Recreational Facilities | C30: 0 | D30: 779657 | E30: 1043416 | F30: 0 | G30: 0 | H30: 0 | I30: 0 | J30: 0 | K30: 0
A31: 3.4 - Education | C31: 0 | D31: 1455208 | E31: 0 | F31: 0 | G31: 0 | H31: 0 | I31: 0 | J31: 0 | K31: 0
A32: 3.5 - Libraries and Archives | C32: 0 | D32: 0 | E32: 0 | F32: 1043416 | G32: 1109416 | H32: 1109416 | I32: 1139416 | J32: 1191829.14 | K32: 1246653.28
A33: 3.6 - Community Halls and Facilities | C33: 0 | D33: 0 | E33: 0 | F33: 1030000 | G33: 1030000 | H33: 1030000 | I33: 1230000 | J33: 1286580 | K33: 1345762.68
A34: 3.7 - Development Facilitation | C34: 0 | D34: 0 | E34: 0 | F34: 0 | G34: 0 | H34: 0 | I34: 0 | J34: 0 | K34: 0
A35: 3.8 - Community Parks (including Nurseries) | C35: 0 | D35: 0 | E35: 0 | F35: 0 | G35: 0 | H35: 0 | I35: 0 | J35: 0 | K35: 0
A36: 3.9 - Tourism | C36: 0 | D36: 0 | E36: 0 | F36: 0 | G36: 0 | H36: 0 | I36: 0 | J36: 0 | K36: 0
A37: 3.10 - Aged Care | C37: 0 | D37: 0 | E37: 0 | F37: 0 | G37: 0 | H37: 0 | I37: 0 | J37: 0 | K37: 0
A38: ='Org structure'!A5 -> Vote 4 - Housing | C38: =SUM(C39:C48) -> 0 | D38: 0 | E38: 22166907 | F38: 58529511.64 | G38: 0 | H38: 0 | I38: 0 | J38: 116628573 | K38: 121993487.3
A39: 4.1 - Housing | C39: 0 | D39: 0 | E39: 22166907 | F39: 58529511.64 | G39: 0 | H39: 0 | I39: 0 | J39: 116628573 | K39: 121993487.3
C40: 0 | D40: 0 | E40: 0 | F40: 0 | G40: 0 | H40: 0 | I40: 0 | J40: 0 | K40: 0
C41: 0 | D41: 0 | E41: 0 | F41: 0 | G41: 0 | H41: 0 | I41: 0 | J41: 0 | K41: 0
C42: 0 | D42: 0 | E42: 0 | F42: 0 | G42: 0 | H42: 0 | I42: 0 | J42: 0 | K42: 0
C43: 0 | D43: 0 | E43: 0 | F43: 0 | G43: 0 | H43: 0 | I43: 0 | J43: 0 | K43: 0
C44: 0 | D44: 0 | E44: 0 | F44: 0 | G44: 0 | H44: 0 | I44: 0 | J44: 0 | K44: 0
C45: 0 | D45: 0 | E45: 0 | F45: 0 | G45: 0 | H45: 0 | I45: 0 | J45: 0 | K45: 0
C46: 0 | D46: 0 | E46: 0 | F46: 0 | G46: 0 | H46: 0 | I46: 0 | J46: 0 | K46: 0
C47: 0 | D47: 0 | E47: 0 | F47: 0 | G47: 0 | H47: 0 | I47: 0 | J47: 0 | K47: 0
C48: 0 | D48: 0 | E48: 0 | F48: 0 | G48: 0 | H48: 0 | I48: 0 | J48: 0 | K48: 0
A49: ='Org structure'!A6 -> Vote 5 - Public Safety | C49: =SUM(C50:C59) -> 3304893 | D49: =SUM(D50:D59) -> 4580553 | E49: 6626300 | F49: 10362700 | G49: 10862700 | H49: 10862700 | I49: 4962700 | J49: 5190984.2 | K49: 5429769.47
A50: 5.1 - Civil Defence | C50: 0 | D50: 14879 | E50: 3026300 | F50: 4336400 | G50: 4836400 | H50: 4836400 | I50: 4936400 | J50: 5163474.4 | K50: 5400994.22
A51: 5.2 - Fire Fighting and Protection | C51: 3304893 | D51: 4565674 | E51: 3600000 | F51: 6026300 | G51: 6026300 | H51: 6026300 | I51: 26300 | J51: 27509.8 | K51: 28775.25
C52: 0 | D52: 0 | E52: 0 | F52: 0 | G52: 0 | H52: 0 | I52: 0 | J52: 0 | K52: 0
C53: 0 | D53: 0 | E53: 0 | F53: 0 | G53: 0 | H53: 0 | I53: 0 | J53: 0 | K53: 0
C54: 0 | D54: 0 | E54: 0 | F54: 0 | G54: 0 | H54: 0 | I54: 0 | J54: 0 | K54: 0
C55: 0 | D55: 0 | E55: 0 | F55: 0 | G55: 0 | H55: 0 | I55: 0 | J55: 0 | K55: 0
C56: 0 | D56: 0 | E56: 0 | F56: 0 | G56: 0 | H56: 0 | I56: 0 | J56: 0 | K56: 0
C57: 0 | D57: 0 | E57: 0 | F57: 0 | G57: 0 | H57: 0 | I57: 0 | J57: 0 | K57: 0
C58: 0 | D58: 0 | E58: 0 | F58: 0 | G58: 0 | H58: 0 | I58: 0 | J58: 0 | K58: 0
C59: 0 | D59: 0 | E59: 0 | F59: 0 | G59: 0 | H59: 0 | I59: 0 | J59: 0 | K59: 0
A60: ='Org structure'!A7 -> Vote 6 - Road Transport | C60: =SUM(C61:C70) -> 0 | D60: =SUM(D61:D70) -> 28994365 | E60: 2389520 | F60: 39983654.72 | G60: 26983655 | H60: 26983655 | I60: 26825654.72 | J60: 43749634.84 | K60: 45762118.04
A61: 6.1 - Roads | D61: 28994365 | E61: 2389520 | F61: 39983654.72 | G61: 26983655 | H61: 26983655 | I61: 26825654.72 | J61: 43749634.84 | K61: 45762118.04
C62: 0 | D62: 0 | E62: 0 | F62: 0 | G62: 0 | H62: 0 | I62: 0 | J62: 0 | K62: 0
C63: 0 | D63: 0 | E63: 0 | F63: 0 | G63: 0 | H63: 0 | I63: 0 | J63: 0 | K63: 0
C64: 0 | D64: 0 | E64: 0 | F64: 0 | G64: 0 | H64: 0 | I64: 0 | J64: 0 | K64: 0
C65: 0 | D65: 0 | E65: 0 | F65: 0 | G65: 0 | H65: 0 | I65: 0 | J65: 0 | K65: 0
C66: 0 | D66: 0 | E66: 0 | F66: 0 | G66: 0 | H66: 0 | I66: 0 | J66: 0 | K66: 0
C67: 0 | D67: 0 | E67: 0 | F67: 0 | G67: 0 | H67: 0 | I67: 0 | J67: 0 | K67: 0
C68: 0 | D68: 0 | E68: 0 | F68: 0 | G68: 0 | H68: 0 | I68: 0 | J68: 0 | K68: 0
C69: 0 | D69: 0 | E69: 0 | F69: 0 | G69: 0 | H69: 0 | I69: 0 | J69: 0 | K69: 0
C70: 0 | D70: 0 | E70: 0 | F70: 0 | G70: 0 | H70: 0 | I70: 0 | J70: 0 | K70: 0
A71: ='Org structure'!A8 -> Vote 7 - Waste Management | C71: =SUM(C72:C81) -> 0 | D71: 2037394 | E71: 2000000 | F71: 2100000 | G71: 2100000 | H71: 2100000 | I71: 2600000 | J71: 2719600 | K71: 2844701.6
A72: 7.1 - Solid Waste Removal | C72: 0 | D72: 2037394 | E72: 2000000 | F72: 2100000 | G72: 2100000 | H72: 2100000 | I72: 2600000 | J72: 2719600 | K72: 2844701.6
C73: 0 | D73: 0 | E73: 0 | F73: 0 | G73: 0 | H73: 0 | I73: 0 | J73: 0 | K73: 0
C74: 0 | D74: 0 | E74: 0 | F74: 0 | G74: 0 | H74: 0 | I74: 0 | J74: 0 | K74: 0
C75: 0 | D75: 0 | E75: 0 | F75: 0 | G75: 0 | H75: 0 | I75: 0 | J75: 0 | K75: 0
C76: 0 | D76: 0 | E76: 0 | F76: 0 | G76: 0 | H76: 0 | I76: 0 | J76: 0 | K76: 0
C77: 0 | D77: 0 | E77: 0 | F77: 0 | G77: 0 | H77: 0 | I77: 0 | J77: 0 | K77: 0
C78: 0 | D78: 0 | E78: 0 | F78: 0 | G78: 0 | H78: 0 | I78: 0 | J78: 0 | K78: 0
C79: 0 | D79: 0 | E79: 0 | F79: 0 | G79: 0 | H79: 0 | I79: 0 | J79: 0 | K79: 0
C80: 0 | D80: 0 | E80: 0 | F80: 0 | G80: 0 | H80: 0 | I80: 0 | J80: 0 | K80: 0
C81: 0 | D81: 0 | E81: 0 | F81: 0 | G81: 0 | H81: 0 | I81: 0 | J81: 0 | K81: 0
A82: ='Org structure'!A9 -> Vote 8 - Energy Sources | C82: =SUM(C83:C92) -> 0 | D82: =SUM(D83:D92) -> 0 | E82: 16000000 | F82: 0 | G82: 0 | H82: 0 | I82: 0 | J82: 0 | K82: 0
A83: 8.1 - Electricity | C83: 0 | D83: 0 | E83: 16000000 | F83: 0 | G83: 0 | H83: 0 | I83: 0 | J83: 0 | K83: 0
C84: 0 | D84: 0 | E84: 0 | F84: 0 | G84: 0 | H84: 0 | I84: 0 | J84: 0 | K84: 0
C85: 0 | D85: 0 | E85: 0 | F85: 0 | G85: 0 | H85: 0 | I85: 0 | J85: 0 | K85: 0
C86: 0 | D86: 0 | E86: 0 | F86: 0 | G86: 0 | H86: 0 | I86: 0 | J86: 0 | K86: 0
C87: 0 | D87: 0 | E87: 0 | F87: 0 | G87: 0 | H87: 0 | I87: 0 | J87: 0 | K87: 0
C88: 0 | D88: 0 | E88: 0 | F88: 0 | G88: 0 | H88: 0 | I88: 0 | J88: 0 | K88: 0
C89: 0 | D89: 0 | E89: 0 | F89: 0 | G89: 0 | H89: 0 | I89: 0 | J89: 0 | K89: 0
C90: 0 | D90: 0 | E90: 0 | F90: 0 | G90: 0 | H90: 0 | I90: 0 | J90: 0 | K90: 0
C91: 0 | D91: 0 | E91: 0 | F91: 0 | G91: 0 | H91: 0 | I91: 0 | J91: 0 | K91: 0
C92: 0 | D92: 0 | E92: 0 | F92: 0 | G92: 0 | H92: 0 | I92: 0 | J92: 0 | K92: 0
A93: ='Org structure'!A10 -> Vote 9 - Planning and Development | C93: =SUM(C94:C103) -> 0 | D93: =SUM(D94:D103) -> 67054 | E93: 26554780 | F93: 615780 | G93: 665780 | H93: 665780 | I93: 286780 | J93: 173405.88 | K93: 181382.55
A94: 9.1 - Town Planning, Building Regulations and Enforcement, and City Engineer | D94: 3767 | E94: 0 | F94: 600000 | G94: 600000 | H94: 600000 | I94: 100000 | J94: 104600 | K94: 109411.6
A95: 9.2 - Economic Development/Planning | D95: 63287 | E95: 100000 | F95: 15780 | G95: 65780 | H95: 65780 | I95: 186780 | J95: 68805.88 | K95: 71970.95
A96: 9.3 - Regional Planning and Development | C96: 0 | D96: 0 | E96: 26454780 | F96: 0 | G96: 0 | H96: 0 | I96: 0 | J96: 0 | K96: 0
A97: 9.4 - Street Lighting and Signal Systems | C97: 0 | D97: 0 | E97: 0 | F97: 0 | G97: 0 | H97: 0 | I97: 0 | J97: 0 | K97: 0
A98: 9.5 - Project Management Unit | C98: 0 | D98: 0 | E98: 0 | F98: 0 | G98: 0 | H98: 0 | I98: 0 | J98: 0 | K98: 0
C99: 0 | D99: 0 | E99: 0 | F99: 0 | G99: 0 | H99: 0 | I99: 0 | J99: 0 | K99: 0
C100: 0 | D100: 0 | E100: 0 | F100: 0 | G100: 0 | H100: 0 | I100: 0 | J100: 0 | K100: 0
C101: 0 | D101: 0 | E101: 0 | F101: 0 | G101: 0 | H101: 0 | I101: 0 | J101: 0 | K101: 0
C102: 0 | D102: 0 | E102: 0 | F102: 0 | G102: 0 | H102: 0 | I102: 0 | J102: 0 | K102: 0
C103: 0 | D103: 0 | E103: 0 | F103: 0 | G103: 0 | H103: 0 | I103: 0 | J103: 0 | K103: 0
A104: ='Org structure'!A11 -> Vote 10 - Sport and Recreation | C104: =SUM(C105:C114) -> 0 | D104: =SUM(D105:D114) -> 0 | E104: 2050000 | F104: 50000 | G104: 28777 | H104: 28777 | I104: 0 | J104: 0 | K104: 0
A105: 10.1 - Sports Grounds and Stadiums | C105: 0 | D105: 0 | E105: 2000000 | F105: 50000 | G105: 28777 | H105: 28777 | I105: 0 | J105: 0 | K105: 0
C106: 0 | D106: 0 | E106: 50000 | F106: 0 | G106: 0 | H106: 0 | I106: 0 | J106: 0 | K106: 0
C107: 0 | D107: 0 | E107: 0 | F107: 0 | G107: 0 | H107: 0 | I107: 0 | J107: 0 | K107: 0
C108: 0 | D108: 0 | E108: 0 | F108: 0 | G108: 0 | H108: 0 | I108: 0 | J108: 0 | K108: 0
C109: 0 | D109: 0 | E109: 0 | F109: 0 | G109: 0 | H109: 0 | I109: 0 | J109: 0 | K109: 0
C110: 0 | D110: 0 | E110: 0 | F110: 0 | G110: 0 | H110: 0 | I110: 0 | J110: 0 | K110: 0
C111: 0 | D111: 0 | E111: 0 | F111: 0 | G111: 0 | H111: 0 | I111: 0 | J111: 0 | K111: 0
C112: 0 | D112: 0 | E112: 0 | F112: 0 | G112: 0 | H112: 0 | I112: 0 | J112: 0 | K112: 0
C113: 0 | D113: 0 | E113: 0 | F113: 0 | G113: 0 | H113: 0 | I113: 0 | J113: 0 | K113: 0
C114: 0 | D114: 0 | E114: 0 | F114: 0 | G114: 0 | H114: 0 | I114: 0 | J114: 0 | K114: 0
A115: ='Org structure'!A12 -> Vote 11 - [NAME OF VOTE 11] | C115: =SUM(C116:C125) -> 0 | D115: =SUM(D116:D125) -> 0 | E115: 0 | F115: 0 | G115: 0 | H115: 0 | I115: 0 | J115: 0 | K115: 0
C116: 0 | D116: 0 | E116: 0 | F116: 0 | G116: 0 | H116: 0 | I116: 0 | J116: 0 | K116: 0
C117: 0 | D117: 0 | E117: 0 | F117: 0 | G117: 0 | H117: 0 | I117: 0 | J117: 0 | K117: 0
C118: 0 | D118: 0 | E118: 0 | F118: 0 | G118: 0 | H118: 0 | I118: 0 | J118: 0 | K118: 0
C119: 0 | D119: 0 | E119: 0 | F119: 0 | G119: 0 | H119: 0 | I119: 0 | J119: 0 | K119: 0
C120: 0 | D120: 0 | E120: 0 | F120: 0 | G120: 0 | H120: 0 | I120: 0 | J120: 0 | K120: 0
C121: 0 | D121: 0 | E121: 0 | F121: 0 | G121: 0 | H121: 0 | I121: 0 | J121: 0 | K121: 0
C122: 0 | D122: 0 | E122: 0 | F122: 0 | G122: 0 | H122: 0 | I122: 0 | J122: 0 | K122: 0
C123: 0 | D123: 0 | E123: 0 | F123: 0 | G123: 0 | H123: 0 | I123: 0 | J123: 0 | K123: 0
C124: 0 | D124: 0 | E124: 0 | F124: 0 | G124: 0 | H124: 0 | I124: 0 | J124: 0 | K124: 0
C125: 0 | D125: 0 | E125: 0 | F125: 0 | G125: 0 | H125: 0 | I125: 0 | J125: 0 | K125: 0
A126: ='Org structure'!A13 -> Vote 12 - [NAME OF VOTE 12] | C126: =SUM(C127:C136) -> 0 | D126: =SUM(D127:D136) -> 0 | E126: 0 | F126: 0 | G126: 0 | H126: 0 | I126: 0 | J126: 0 | K126: 0
C127: 0 | D127: 0 | E127: 0 | F127: 0 | G127: 0 | H127: 0 | I127: 0 | J127: 0 | K127: 0
C128: 0 | D128: 0 | E128: 0 | F128: 0 | G128: 0 | H128: 0 | I128: 0 | J128: 0 | K128: 0
C129: 0 | D129: 0 | E129: 0 | F129: 0 | G129: 0 | H129: 0 | I129: 0 | J129: 0 | K129: 0
C130: 0 | D130: 0 | E130: 0 | F130: 0 | G130: 0 | H130: 0 | I130: 0 | J130: 0 | K130: 0
C131: 0 | D131: 0 | E131: 0 | F131: 0 | G131: 0 | H131: 0 | I131: 0 | J131: 0 | K131: 0
C132: 0 | D132: 0 | E132: 0 | F132: 0 | G132: 0 | H132: 0 | I132: 0 | J132: 0 | K132: 0
C133: 0 | D133: 0 | E133: 0 | F133: 0 | G133: 0 | H133: 0 | I133: 0 | J133: 0 | K133: 0
C134: 0 | D134: 0 | E134: 0 | F134: 0 | G134: 0 | H134: 0 | I134: 0 | J134: 0 | K134: 0
C135: 0 | D135: 0 | E135: 0 | F135: 0 | G135: 0 | H135: 0 | I135: 0 | J135: 0 | K135: 0
C136: 0 | D136: 0 | E136: 0 | F136: 0 | G136: 0 | H136: 0 | I136: 0 | J136: 0 | K136: 0
A137: ='Org structure'!A14 -> Vote 13 - [NAME OF VOTE 13] | C137: =SUM(C138:C147) -> 0 | D137: =SUM(D138:D147) -> 0 | E137: 0 | F137: 0 | G137: 0 | H137: 0 | I137: 0 | J137: 0 | K137: 0
C138: 0 | D138: 0 | E138: 0 | F138: 0 | G138: 0 | H138: 0 | I138: 0 | J138: 0 | K138: 0
C139: 0 | D139: 0 | E139: 0 | F139: 0 | G139: 0 | H139: 0 | I139: 0 | J139: 0 | K139: 0
C140: 0 | D140: 0 | E140: 0 | F140: 0 | G140: 0 | H140: 0 | I140: 0 | J140: 0 | K140: 0
C141: 0 | D141: 0 | E141: 0 | F141: 0 | G141: 0 | H141: 0 | I141: 0 | J141: 0 | K141: 0
C142: 0 | D142: 0 | E142: 0 | F142: 0 | G142: 0 | H142: 0 | I142: 0 | J142: 0 | K142: 0
C143: 0 | D143: 0 | E143: 0 | F143: 0 | G143: 0 | H143: 0 | I143: 0 | J143: 0 | K143: 0
C144: 0 | D144: 0 | E144: 0 | F144: 0 | G144: 0 | H144: 0 | I144: 0 | J144: 0 | K144: 0
C145: 0 | D145: 0 | E145: 0 | F145: 0 | G145: 0 | H145: 0 | I145: 0 | J145: 0 | K145: 0
C146: 0 | D146: 0 | E146: 0 | F146: 0 | G146: 0 | H146: 0 | I146: 0 | J146: 0 | K146: 0
C147: 0 | D147: 0 | E147: 0 | F147: 0 | G147: 0 | H147: 0 | I147: 0 | J147: 0 | K147: 0
A148: ='Org structure'!A15 -> Vote 14 - [NAME OF VOTE 14] | C148: =SUM(C149:C158) -> 0 | D148: =SUM(D149:D158) -> 0 | E148: 0 | F148: 0 | G148: 0 | H148: 0 | I148: 0 | J148: 0 | K148: 0
C149: 0 | D149: 0 | E149: 0 | F149: 0 | G149: 0 | H149: 0 | I149: 0 | J149: 0 | K149: 0
C150: 0 | D150: 0 | E150: 0 | F150: 0 | G150: 0 | H150: 0 | I150: 0 | J150: 0 | K150: 0
C151: 0 | D151: 0 | E151: 0 | F151: 0 | G151: 0 | H151: 0 | I151: 0 | J151: 0 | K151: 0
C152: 0 | D152: 0 | E152: 0 | F152: 0 | G152: 0 | H152: 0 | I152: 0 | J152: 0 | K152: 0
C153: 0 | D153: 0 | E153: 0 | F153: 0 | G153: 0 | H153: 0 | I153: 0 | J153: 0 | K153: 0
C154: 0 | D154: 0 | E154: 0 | F154: 0 | G154: 0 | H154: 0 | I154: 0 | J154: 0 | K154: 0
C155: 0 | D155: 0 | E155: 0 | F155: 0 | G155: 0 | H155: 0 | I155: 0 | J155: 0 | K155: 0
C156: 0 | D156: 0 | E156: 0 | F156: 0 | G156: 0 | H156: 0 | I156: 0 | J156: 0 | K156: 0
C157: 0 | D157: 0 | E157: 0 | F157: 0 | G157: 0 | H157: 0 | I157: 0 | J157: 0 | K157: 0
C158: 0 | D158: 0 | E158: 0 | F158: 0 | G158: 0 | H158: 0 | I158: 0 | J158: 0 | K158: 0
A159: ='Org structure'!A16 -> Vote 15 - [NAME OF VOTE 15] | C159: =SUM(C160:C169) -> 0 | D159: =SUM(D160:D169) -> 0 | E159: 0 | F159: 0 | G159: 0 | H159: 0 | I159: 0 | J159: 0 | K159: 0
C160: 0 | D160: 0 | E160: 0 | F160: 0 | G160: 0 | H160: 0 | I160: 0 | J160: 0 | K160: 0
C161: 0 | D161: 0 | E161: 0 | F161: 0 | G161: 0 | H161: 0 | I161: 0 | J161: 0 | K161: 0
C162: 0 | D162: 0 | E162: 0 | F162: 0 | G162: 0 | H162: 0 | I162: 0 | J162: 0 | K162: 0
C163: 0 | D163: 0 | E163: 0 | F163: 0 | G163: 0 | H163: 0 | I163: 0 | J163: 0 | K163: 0
C164: 0 | D164: 0 | E164: 0 | F164: 0 | G164: 0 | H164: 0 | I164: 0 | J164: 0 | K164: 0
C165: 0 | D165: 0 | E165: 0 | F165: 0 | G165: 0 | H165: 0 | I165: 0 | J165: 0 | K165: 0
C166: 0 | D166: 0 | E166: 0 | F166: 0 | G166: 0 | H166: 0 | I166: 0 | J166: 0 | K166: 0
C167: 0 | D167: 0 | E167: 0 | F167: 0 | G167: 0 | H167: 0 | I167: 0 | J167: 0 | K167: 0
C168: 0 | D168: 0 | E168: 0 | F168: 0 | G168: 0 | H168: 0 | I168: 0 | J168: 0 | K168: 0
C169: 0 | D169: 0 | E169: 0 | F169: 0 | G169: 0 | H169: 0 | I169: 0 | J169: 0 | K169: 0
A170: Total Revenue by Vote | B170: 2 | C170: =C5+C16+C27+C38+C49+C60+C71+C82+C93+C104+C115+C126+C137+C148+C159 -> 160854438 | D170: =D5+D16+D27+D38+D49+D60+D71+D82+D93+D104+D115+D126+D137+D148+D159 -> 158918273 | E170: =E5+E16+E27+E38+E49+E60+E71+E82+E93+E104+E115+E126+E137+E148+E159 -> 218313021 | F170: 267948177.7 | G170: 194063444 | H170: 194063444 | I170: =I5+I16+I27+I38+I49+I60+I71+I82+I93+I104+I115+I126+I137+I148+I159 -> 195659474.7 | J170: 236680247.6 | K170: 247567538.9 | L170: =SUM(L78:L81) -> 0 | M170: 0 | N170: 0 | O170: 0 | P170: 0 | Q170: 0 | R170: 0 | S170: 0 | T170: 0 | U170: 0 | V170: 0 | W170: 0
A172: Expenditure by Vote | B172: 1
A173: =A5 -> Vote 1 - Finance & Admin | C173: =SUM(C174:C183) -> 121945552 | D173: 62298597.67 | E173: 63095968 | F173: 66166747.28 | G173: 70300119.26 | H173: 70300119.26 | I173: 73844658.36 | J173: 75609909.99 | K173: 79087965.85
A174: 1.1 - Asset Management | C174: 0 | D174: 0 | E174: 0 | F174: 8000 | G174: 8000 | H174: 8000 | I174: 8360 | J174: 8744.56 | K174: 9146.81
A175: 1.2 - Information Technology | C175: 121945552 | D175: 39630949.67 | E175: 38420980 | F175: 0 | G175: 0 | H175: 0 | I175: 0 | J175: 0 | K175: 0
A176: 1.3 - Finance | C176: 0 | D176: 0 | E176: 0 | F176: 40242342.46 | G176: 43887409.4 | H176: 43887409.4 | I176: 45585423.34 | J176: 47642719.27 | K176: 49834284.36
A177: 1.4 - Fleet Management | C177: 0 | D177: 0 | E177: 0 | F177: 0 | G177: 0 | H177: 0 | I177: 0 | J177: 0 | K177: 0
A178: 1.5 - Administrative and Corporate Support | D178: 22471354 | E178: 24096388 | F178: 25736404.82 | G178: 26224709.86 | H178: 26224709.86 | I178: 27864525.02 | J178: 27761693.56 | K178: 29038731.46
A179: 1.6 - Property Services | C179: 0 | D179: 196294 | E179: 578600 | F179: 180000 | G179: 180000 | H179: 180000 | I179: 188100 | J179: 196752.6 | K179: 205803.22
A180: 1.7 - Legal Services | C180: 0 | F180: 0 | G180: 0 | H180: 0 | I180: 0 | J180: 0 | K180: 0
A181: 1.8 - Human Resources | C181: 0 | F181: 0 | G181: 0 | H181: 0 | I181: 198250 | J181: 0 | K181: 0
C182: 0 | D182: 0 | E182: 0 | F182: 0 | G182: 0 | H182: 0 | I182: 0 | J182: 0 | K182: 0
C183: 0 | D183: 0 | E183: 0 | F183: 0 | G183: 0 | H183: 0 | I183: 0 | J183: 0 | K183: 0
A184: =A16 -> Vote 2 - Executive & Council | C184: =SUM(C185:C194) -> 0 | D184: =SUM(D185:D194) -> 20477677 | E184: =SUM(E185:E194) -> 23431044 | F184: 25414361.14 | G184: 25060441.28 | H184: 25060441.28 | I184: 26588783.96 | J184: 26573994.66 | K184: 27796398.43
A185: 2.1 - Mayor and Council | D185: 12549571 | E185: 12888892 | F185: 13825585.77 | G185: 13925023.6 | H185: 13925023.6 | I185: 14212056.82 | J185: 14442271.23 | K185: 15106615.77
A186: 2.2 - Municipal Manager, Town Secretary and Chief Executive | C186: 0 | D186: 7928106 | E186: 10542152 | F186: 11588775.37 | G186: 11135417.68 | H186: 11135417.68 | I186: 12296615.3 | J186: 12131606.45 | K186: 12689660.29
A187: 2.3 - Governance Function | C187: 0 | D187: 0 | E187: 0 | F187: 0 | G187: 0 | H187: 0 | I187: 80111.84 | J187: 116.98 | K187: 122.37
C188: 0 | D188: 0 | E188: 0 | F188: 0 | G188: 0 | H188: 0 | I188: 0 | J188: 0 | K188: 0
C189: 0 | D189: 0 | E189: 0 | F189: 0 | G189: 0 | H189: 0 | I189: 0 | J189: 0 | K189: 0
C190: 0 | D190: 0 | E190: 0 | F190: 0 | G190: 0 | H190: 0 | I190: 0 | J190: 0 | K190: 0
C191: 0 | D191: 0 | E191: 0 | F191: 0 | G191: 0 | H191: 0 | I191: 0 | J191: 0 | K191: 0
C192: 0 | D192: 0 | E192: 0 | F192: 0 | G192: 0 | H192: 0 | I192: 0 | J192: 0 | K192: 0
C193: 0 | D193: 0 | E193: 0 | F193: 0 | G193: 0 | H193: 0 | I193: 0 | J193: 0 | K193: 0
C194: 0 | D194: 0 | E194: 0 | F194: 0 | G194: 0 | H194: 0 | I194: 0 | J194: 0 | K194: 0
A195: =A27 -> Vote 3 - Community and Social Services | C195: =SUM(C196:C205) -> 0 | D195: 7079850 | E195: 8874120 | F195: 8961879.87 | G195: 9406508.69 | H195: 9406508.69 | I195: 9555488.99 | J195: 9491297.1 | K195: 9927896.8
A196: 3.1 - Cultural Matters | C196: 0 | D196: 0 | E196: 0 | F196: 660560 | G196: =3684752.21-34000 -> 3650752.21 | H196: =3684752.21-34000 -> 3650752.21 | I196: 3772947.15 | J196: 3564031.6 | K196: 3727977.07
A197: 3.2 - Population Development | C197: 0 | D197: 364286 | E197: 80000 | F197: 998642.01 | G197: 0 | H197: 0 | I197: 115940 | J197: 0 | K197: 0
A198: 3.3 - Recreational Facilities | D198: 1396412 | E198: 1633120 | F198: 1591727.85 | G198: 0 | H198: 0 | I198: 0 | J198: 0 | K198: 0
A199: 3.4 - Education | C199: 0 | D199: 5319152 | E199: 7161000 | F199: 3662282.49 | G199: 660560 | H199: 660560 | I199: 690285.2 | J199: 722038.32 | K199: 755252.08
A200: 3.5 - Libraries and Archives | C200: 0 | D200: 0 | E200: 0 | F200: 254840 | G200: 1867092.03 | H200: 1867092.03 | I200: 1613370 | J200: 1687585 | K200: 1765213.93
A201: 3.6 - Community Halls and Facilities | C201: 0 | D201: 0 | E201: 0 | F201: 1440000 | G201: 1055202.09 | H201: 1055202.09 | I201: 1080432.41 | J201: 1130132.3 | K201: 1182118.39
... 144 more rows

Sheet A4-FinPerf RE
A1: =muni&" - "&Approve4 -> KZN434 Ubuhlebezwe - Table A4 Budgeted Financial Performance (revenue and expenditure)
A2: =desc -> Description | B2: =head27 -> Ref | C2: =head1b -> 2016/17 | D2: =head1A -> 2017/18 | E2: =Head1 -> 2018/19 | F2: =Head2 -> Current Year 2019/20 | J2: =Head3 -> 2020/21 Medium Term Revenue & Expenditure Framework | M2: =Head4 -> LTFS
A3: R thousand | B3: 1 | C3: =Head5 -> Audited Outcome | D3: =Head5 -> Audited Outcome | E3: =Head5 -> Audited Outcome | F3: =Head6 -> Original Budget | G3: =Head7 -> Adjusted Budget | H3: =Head8 -> Full Year Forecast | I3: =Head5b -> Pre-audit outcome | J3: =Head9 -> Budget Year 2020/21 | K3: =Head10 -> Budget Year +1 2021/22 | L3: =Head11 -> Budget Year +2 2022/23 | M3: =Head12 -> Forecast 2023/24 | N3: =Head13 -> Forecast 2024/25 | O3: =Head14 -> Forecast 2025/26 | P3: =Head15 -> Forecast 2026/27 | Q3: =Head16 -> Forecast 2027/28 | R3: =Head17 -> Forecast 2028/29 | S3: =Head18 -> Forecast 2029/30 | T3: =Head19 -> Forecast 2030/31 | U3: =Head20 -> Forecast 2031/32 | V3: =Head21 -> Forecast 2032/33 | W3: =Head22 -> Forecast 2033/34 | X3: =Head23 -> Forecast 2034/35
A4: Revenue By Source
A5: Property rates | B5: 2 | C5: ='SA1'!C9 -> 13122243 | D5: ='SA1'!D9 -> 12744064 | E5: ='SA1'!E9 -> 21926722 | F5: ='SA1'!F9 -> 23023059.33 | G5: ='SA1'!G9 -> 23023059.33 | H5: ='SA1'!H9 -> 23023059.33 | I5: ='SA1'!I9 -> 23023059.33 | J5: ='SA1'!J9 -> 23573023.94 | K5: ='SA1'!K9 -> 24633810.01 | L5: ='SA1'!L9 -> 25742331.47
A6: Service charges - electricity revenue | B6: 2 | C6: ='SA1'!C15 -> 0 | D6: ='SA1'!D15 -> 0 | E6: ='SA1'!E15 -> 0 | F6: ='SA1'!F15 -> 0 | G6: ='SA1'!G15 -> 0 | H6: ='SA1'!H15 -> 0 | I6: ='SA1'!I15 -> 0 | J6: ='SA1'!J15 -> 0 | K6: ='SA1'!K15 -> 0 | L6: ='SA1'!L15 -> 0
A7: Service charges - water revenue | B7: 2 | C7: ='SA1'!C21 -> 0 | D7: ='SA1'!D21 -> 0 | E7: ='SA1'!E21 -> 0 | F7: ='SA1'!F21 -> 0 | G7: ='SA1'!G21 -> 0 | H7: ='SA1'!H21 -> 0 | I7: ='SA1'!I21 -> 0 | J7: ='SA1'!J21 -> 0 | K7: ='SA1'!K21 -> 0 | L7: ='SA1'!L21 -> 0
A8: Service charges - sanitation revenue | B8: 2 | C8: ='SA1'!C27 -> 0 | D8: ='SA1'!D27 -> 0 | E8: ='SA1'!E27 -> 0 | F8: ='SA1'!F27 -> 0 | G8: ='SA1'!G27 -> 0 | H8: ='SA1'!H27 -> 0 | I8: ='SA1'!I27 -> 0 | J8: ='SA1'!J27 -> 0 | K8: ='SA1'!K27 -> 0 | L8: ='SA1'!L27 -> 0
A9: Service charges - refuse revenue | B9: 2 | C9: ='SA1'!C34 -> 1726005 | D9: ='SA1'!D34 -> 2155141 | E9: ='SA1'!E34 -> 2000000 | F9: ='SA1'!F34 -> 2100000 | G9: ='SA1'!G34 -> 2100000 | H9: ='SA1'!H34 -> 2100000 | I9: ='SA1'!I34 -> 2100000 | J9: ='SA1'!J34 -> 3299864.16 | K9: ='SA1'!K34 -> 3448358.047 | L9: ='SA1'!L34 -> 3603534.159
A11: Rental of facilities and equipment | C11: 1173223 | D11: 923761 | E11: 1000000 | F11: 1000000 | G11: 1000000 | H11: 1000000 | I11: 1000000 | J11: 1200000 | K11: 1255200 | L11: 1312939.2
A12: Interest earned - external investments | C12: 9215250 | D12: 11001948 | E12: 16000000 | F12: 16000000 | G12: 13000000 | H12: 13000000 | I12: 13000000 | J12: 12000000 | K12: =J12*1.045 -> 12540000 | L12: =K12*1.045 -> 13104300
A13: Interest earned - outstanding debtors | D13: 0 | E13: 0 | F13: 0 | G13: 0 | H13: 0 | I13: 0 | J13: 0 | K13: 0 | L13: 0
A14: Dividends received | D14: 0 | E14: 0 | F14: 0 | G14: 0 | H14: 0 | I14: 0 | J14: 0 | K14: 0 | L14: 0
A15: Fines, penalties and forfeits | C15: 1579580 | D15: 1957000 | E15: 1000000 | F15: 1000000 | G15: 1000000 | H15: 1000000 | I15: 1000000 | J15: 1000000 | K15: 1046000 | L15: 1094116
A16: Licences and permits | C16: 3304893 | D16: 2710002 | E16: 2678900 | F16: 3418834.72 | G16: 3968835 | H16: 3968835 | I16: 3968835 | J16: 4068834.72 | K16: 4256001.12 | L16: 4451777.17
A17: Agency services | D17: 634223 | E17: 745300 | F17: 33900 | G17: 28900 | H17: 28900 | I17: 28900 | J17: 28900 | K17: 30229.4 | L17: 31619.95
A18: Transfers and subsidies | C18: 95039000 | D18: 99114000 | E18: 142130906 | F18: 186786511.6 | G18: 115301777 | H18: 115301777 | I18: 115301777 | J18: 122063000 | K18: =J18*1.045 -> 127555835 | L18: =K18*1.045 -> 133295847.6
A19: Other revenue | B19: 2 | C19: ='SA1'!C57 -> 5975327 | D19: ='SA1'!D57 -> 220901 | E19: ='SA1'!E57 -> 1392192 | F19: ='SA1'!F57 -> 1268872 | G19: ='SA1'!G57 -> 1323872 | H19: ='SA1'!H57 -> 1323872 | I19: ='SA1'!I57 -> 1323872 | J19: ='SA1'!J57 -> 824716 | K19: ='SA1'!K57 -> 862781.6 | L19: ='SA1'!L57 -> 902469.55
A20: Gains on disposal of PPE | C20: 0 | D20: 127230 | E20: 0 | F20: 0 | G20: 0 | H20: 0 | I20: 0 | J20: 0 | K20: 0 | L20: 0
A21: Total Revenue (excluding capital transfers and contributions) | C21: =SUM(C5:C9)+SUM(C11:C20) -> 131135521 | D21: =SUM(D5:D9)+SUM(D11:D20) -> 131588270 | E21: 188874020 | F21: 234631177.7 | G21: 160746443.3 | H21: 160746443.3 | I21: 160746443.3 | J21: 168058338.8 | K21: 175628215.2 | L21: 183538935.1 | M21: =SUM(M5:M20) -> 0 | N21: 0 | O21: 0 | P21: 0 | Q21: 0 | R21: 0 | S21: 0 | T21: 0 | U21: 0 | V21: 0 | W21: 0 | X21: 0
A23: Expenditure By Type
A24: Employee related costs | B24: 2 | C24: ='SA1'!C75 -> 52842444 | D24: ='SA1'!D75 -> 62912128 | E24: ='SA1'!E75 -> 67856351 | F24: ='SA1'!F75 -> 77459290.38 | G24: ='SA1'!G75 -> 77893785 | H24: ='SA1'!H75 -> 77893785 | I24: ='SA1'!I75 -> 77893785 | J24: ='SA1'!J75 -> 84552341.28 | K24: ='SA1'!K75 -> 86463712.98 | L24: ='SA1'!L75 -> 90441043.76
A25: Remuneration of councillors | C25: 8378802 | D25: 9901684 | E25: 10358844 | F25: 11097335.02 | G25: 11097336 | H25: 11097336 | I25: 11097336 | J25: 11097335.06 | K25: 11607812.47 | L25: 12141771.85
A26: Debt impairment | B26: 3 | C26: 1364866 | D26: 4477729 | E26: 1578000 | F26: 1578000 | G26: 2000000 | H26: 2000000 | I26: 2000000 | J26: 2090000 | K26: 2186140 | L26: 2286702.44
A27: Depreciation & asset impairment | B27: 2 | C27: ='SA1'!C91 -> 20172670 | D27: ='SA1'!D91 -> 21270935 | E27: ='SA1'!E91 -> 20000000 | F27: ='SA1'!F91 -> 20000000 | G27: ='SA1'!G91 -> 22000000 | H27: ='SA1'!H91 -> 22000000 | I27: ='SA1'!I91 -> 22000000 | J27: ='SA1'!J91 -> 23188000 | K27: ='SA1'!K91 -> 24254647.99 | L27: ='SA1'!L91 -> 25370361.81
A28: Finance charges | C28: 0 | D28: 2856 | E28: 0 | F28: 0 | G28: 0 | H28: 0 | I28: 0 | J28: 0 | K28: 0 | L28: 0
A29: Bulk purchases | B29: 2 | C29: ='SA1'!C96 -> 0 | D29: ='SA1'!D96 -> 0 | E29: ='SA1'!E96 -> 0 | F29: ='SA1'!F96 -> 0 | G29: ='SA1'!G96 -> 0 | H29: ='SA1'!H96 -> 0 | I29: ='SA1'!I96 -> 0 | J29: ='SA1'!J96 -> 0 | K29: ='SA1'!K96 -> 0 | L29: ='SA1'!L96 -> 0
A30: Other materials | B30: 8 | C30: 2882897 | D30: 0 | E30: 770454 | F30: 869840 | G30: 1145840 | H30: 1145840 | I30: 1145840 | J30: 1121002.8 | K30: 1172568.94 | L30: 1226507.09
A31: Contracted services | C31: ='SA1'!C135 -> 6764739 | D31: ='SA1'!D135 -> 15349679 | E31: ='SA1'!E135 -> 21021934 | F31: ='SA1'!F135 -> 21116107.78 | G31: ='SA1'!G135 -> 21481988.96 | H31: ='SA1'!H135 -> 21481988.96 | I31: ='SA1'!I135 -> 21481988.96 | J31: ='SA1'!J135 -> 21360882.31 | K31: ='SA1'!K135 -> 21053262.83 | L31: ='SA1'!L135 -> 22021712.91
A32: Transfers and subsidies | C32: ='SA1'!C101 -> 1296000 | D32: ='SA1'!D101 -> 0 | E32: ='SA1'!E101 -> 40767000 | F32: ='SA1'!F101 -> 86040321.17 | G32: ='SA1'!G101 -> 14603947.28 | H32: ='SA1'!H101 -> 14603947.28 | I32: ='SA1'!I101 -> 14603947.28 | J32: ='SA1'!J101 -> 3844875.2 | K32: ='SA1'!K101 -> 4021739.46 | L32: ='SA1'!L101 -> 4206739.47
A33: Other expenditure | B33: 4, 5 | C33: ='SA1'!C174 -> 30712792 | D33: ='SA1'!D174 -> 19761814 | E33: ='SA1'!E174 -> 25177572 | F33: ='SA1'!F174 -> 25925753.87 | G33: ='SA1'!G174 -> 25600653.88 | H33: ='SA1'!H174 -> 25600653.88 | I33: ='SA1'!I174 -> 25600653.88 | J33: ='SA1'!J174 -> 26828356.73 | K33: ='SA1'!K174 -> 26866761.66 | L33: ='SA1'!L174 -> 28102632.75
A34: Loss on disposal of PPE | C34: 1776891 | D34: 0 | E34: 0 | F34: 0 | G34: 0 | H34: 0 | I34: 0 | J34: 0 | K34: 0 | L34: 0
A35: Total Expenditure | C35: =SUM(C24:C34) -> 126192101 | D35: =SUM(D24:D34) -> 133676825 | E35: 187530155 | F35: 244086648.2 | G35: 175823551.1 | H35: 175823551.1 | I35: 175823551.1 | J35: 174082793.4 | K35: 177626646.3 | L35: 185797472.1 | M35: =SUM(M24:M34) -> 0 | N35: 0 | O35: 0 | P35: 0 | Q35: 0 | R35: 0 | S35: 0 | T35: 0 | U35: 0 | V35: 0 | W35: 0 | X35: 0
A37: Surplus/(Deficit) | C37: =C21-C35 -> 4943420 | D37: -2088555 | E37: 1343865 | F37: -9455470.53 | G37: -15077107.79 | H37: -15077107.79 | I37: -15077107.79 | J37: -6024454.56 | K37: -1998431.153 | L37: -2258537.006 | M37: =M21+M35 -> 0 | N37: 0 | O37: 0 | P37: 0 | Q37: 0 | R37: 0 | S37: 0 | T37: 0 | U37: 0 | V37: 0 | W37: 0 | X37: 0
A38: Transfers and subsidies - capital (monetary allocations) (National / Provincial and District) | C38: 29718917 | D38: 27330000 | E38: 31439000 | F38: 33317000 | G38: 33317000 | H38: 33317000 | I38: 33317000 | J38: 26759000 | K38: 27989914 | L38: 29277450.04
A39: Transfers and subsidies - capital (monetary allocations) (National / Provincial Departmental Agencies, Households, Non-profit Institutions, Private Enterprises, Public Corporatons, Higher Educational Institutions) | B39: 6 | C39: ='SA1'!C84 -> 0 | D39: ='SA1'!D84 -> 0 | E39: ='SA1'!E84 -> 0 | F39: ='SA1'!F84 -> 0 | G39: ='SA1'!G84 -> 0 | H39: ='SA1'!H84 -> 0 | I39: ='SA1'!I84 -> 0 | J39: ='SA1'!J84 -> 0 | K39: ='SA1'!K84 -> 0 | L39: ='SA1'!L84 -> 0
A40: Transfers and subsidies - capital (in-kind - all) | C40: 0 | D40: 0 | E40: 0 | F40: 0 | G40: 0 | H40: 0 | I40: 0 | J40: 0 | K40: 0 | L40: 0
A41: Surplus/(Deficit) after capital transfers & contributions | C41: =SUM(C37:C40) -> 34662337 | D41: 25241445 | E41: 32782865 | F41: 23861529.47 | G41: 18239892.21 | H41: 18239892.21 | I41: 18239892.21 | J41: 20734545.44 | K41: 25991482.85 | L41: 27018913.03
A42: Taxation | C42: 0 | D42: 0 | E42: 0 | F42: 0 | G42: 0 | H42: 0 | I42: 0 | J42: 0 | K42: 0 | L42: 0
A43: Surplus/(Deficit) after taxation | C43: =C41-C42 -> 34662337 | D43: 25241445 | E43: 32782865 | F43: 23861529.47 | G43: 18239892.21 | H43: 18239892.21 | I43: 18239892.21 | J43: 20734545.44 | K43: 25991482.85 | L43: 27018913.03
A44: Attributable to minorities | C44: 0 | D44: 0 | E44: 0 | F44: 0 | G44: 0 | H44: 0 | I44: 0 | J44: 0 | K44: 0 | L44: 0
A45: Surplus/(Deficit) attributable to municipality | C45: =SUM(C43:C44) -> 34662337 | D45: 25241445 | E45: 32782865 | F45: 23861529.47 | G45: 18239892.21 | H45: 18239892.21 | I45: 18239892.21 | J45: 20734545.44 | K45: 25991482.85 | L45: 27018913.03
A46: Share of surplus/ (deficit) of associate | B46: 7 | C46: 0 | D46: 0 | E46: 0 | F46: 0 | G46: 0 | H46: 0 | I46: 0 | J46: 0 | K46: 0 | L46: 0
A47: =result -> Surplus/(Deficit) for the year | C47: =SUM(C45:C46) -> 34662337 | D47: 25241445 | E47: 32782865 | F47: 23861529.47 | G47: 18239892.21 | H47: 18239892.21 | I47: 18239892.21 | J47: 20734545.44 | K47: 25991482.85 | L47: 27018913.03 | M47: =M25+M46 -> 0 | N47: 0 | O47: 0 | P47: 0 | Q47: 0 | R47: 0 | S47: 0 | T47: 0 | U47: 0 | V47: 0 | W47: 0 | X47: 0
A48: =head27a -> References
A49: 1. Classifications are revenue sources and expenditure type
A50: 2. Detail to be provided in Table SA1
A51: 3. Previously described as 'bad or doubtful debts' - amounts shown should reflect the change in the provision for debt impairment
A52: 4. Expenditure type components previously shown under repairs and maintenance should be allocated back to the originating expenditure group/item; e.g. employee costs
A53: 5. Repairs & maintenance detailed in Table A9 and Table SA34c
A54: 6. Contributions are funds provided by external organisations to assist with infrastructure development; e.g. developer contributions (detail to be provided in Table SA1)
A55: 7. Equity method ( Includes Joint Ventures)
A56: 8. All materials not part of 'bulk' e.g road making materials, pipe, cable etc.
A57: check balance | C57: =C45-'A3-FinPerf V'!C39 -> -209 | D57: =D45-'A3-FinPerf V'!D39 -> 5303287.67 | E57: =E45-'A3-FinPerf V'!E39 -> 1347150 | F57: =F45-'A3-FinPerf V'!F39 -> 635.2 | G57: =G45-'A3-FinPerf V'!G39 -> 233.69 | H57: =H45-'A3-FinPerf V'!H39 -> 233.69 | J57: =J45-'A3-FinPerf V'!I39 -> -1150243.64 | K57: =K45-'A3-FinPerf V'!J39 -> -2488330.683 | L57: =L45-'A3-FinPerf V'!K39 -> -2770971.896
A59: Total revenue | C59: =C21+SUM(C38:C40) -> 160854438 | D59: 158918270 | E59: 220313020 | F59: 267948177.7 | G59: 194063443.3 | H59: 194063443.3 | I59: 194063443.3 | J59: 194817338.8 | K59: 203618129.2 | L59: 212816385.1

Sheet A5-Capex
A2: =Vdesc -> Vote Description | B2: =head27 -> Ref | C2: =head1b -> 2016/17 | D2: =head1A -> 2017/18 | E2: =Head1 -> 2018/19 | F2: =Head2 -> Current Year 2019/20 | J2: =Head3 -> 2020/21 Medium Term Revenue & Expenditure Framework
A3: R thousand | B3: 1 | C3: =Head5 -> Audited Outcome | D3: =Head5 -> Audited Outcome | E3: =Head5 -> Audited Outcome | F3: =Head6 -> Original Budget | G3: =Head7 -> Adjusted Budget | H3: =Head8 -> Full Year Forecast | I3: =Head5b -> Pre-audit outcome | J3: =Head9 -> Budget Year 2020/21 | K3: =Head10 -> Budget Year +1 2021/22 | L3: =Head11 -> Budget Year +2 2022/23
A4: Capital expenditure - Vote
A5: Multi-year expenditure to be appropriated | B5: 2
A6: =A5A!A6 -> Vote 1 - Finance & Admin | C6: =A5A!C6 -> 0 | D6: =A5A!D6 -> 0 | E6: =A5A!E6 -> 0 | F6: =A5A!F6 -> 0 | G6: =A5A!G6 -> 0 | H6: =A5A!H6 -> 0 | I6: =A5A!I6 -> 0 | J6: =A5A!J6 -> 0 | K6: =A5A!K6 -> 0 | L6: =A5A!L6 -> 0
A7: =A5A!A17 -> Vote 2 - Executive & Council | C7: =A5A!C17 -> 0 | D7: =A5A!D17 -> 0 | E7: =A5A!E17 -> 0 | F7: =A5A!F17 -> 0 | G7: =A5A!G17 -> 0 | H7: =A5A!H17 -> 0 | I7: =A5A!I17 -> 0 | J7: =A5A!J17 -> 0 | K7: =A5A!K17 -> 0 | L7: =A5A!L17 -> 0
A8: =A5A!A28 -> Vote 3 - Community and Social Services | C8: =A5A!C28 -> 0 | D8: =A5A!D28 -> 0 | E8: =A5A!E28 -> 0 | F8: =A5A!F28 -> 0 | G8: =A5A!G28 -> 0 | H8: =A5A!H28 -> 0 | I8: =A5A!I28 -> 0 | J8: =A5A!J28 -> 0 | K8: =A5A!K28 -> 0 | L8: =A5A!L28 -> 0
A9: =A5A!A39 -> Vote 4 - Housing | C9: =A5A!C39 -> 0 | D9: =A5A!D39 -> 0 | E9: =A5A!E39 -> 0 | F9: =A5A!F39 -> 0 | G9: =A5A!G39 -> 0 | H9: =A5A!H39 -> 0 | I9: =A5A!I39 -> 0 | J9: =A5A!J39 -> 0 | K9: =A5A!K39 -> 0 | L9: =A5A!L39 -> 0
A10: =A5A!A50 -> Vote 5 - Public Safety | C10: =A5A!C50 -> 0 | D10: =A5A!D50 -> 0 | E10: =A5A!E50 -> 0 | F10: =A5A!F50 -> 0 | G10: =A5A!G50 -> 0 | H10: =A5A!H50 -> 0 | I10: =A5A!I50 -> 0 | J10: =A5A!J50 -> 0 | K10: =A5A!K50 -> 0 | L10: =A5A!L50 -> 0
A11: =A5A!A61 -> Vote 6 - Road Transport | C11: =A5A!C61 -> 0 | D11: =A5A!D61 -> 0 | E11: =A5A!E61 -> 0 | F11: =A5A!F61 -> 0 | G11: =A5A!G61 -> 0 | H11: =A5A!H61 -> 0 | I11: =A5A!I61 -> 0 | J11: =A5A!J61 -> 0 | K11: =A5A!K61 -> 0 | L11: =A5A!L61 -> 0
A12: =A5A!A72 -> Vote 7 - Waste Management | C12: =A5A!C72 -> 0 | D12: =A5A!D72 -> 0 | E12: =A5A!E72 -> 0 | F12: =A5A!F72 -> 0 | G12: =A5A!G72 -> 0 | H12: =A5A!H72 -> 0 | I12: =A5A!I72 -> 0 | J12: =A5A!J72 -> 0 | K12: =A5A!K72 -> 0 | L12: =A5A!L72 -> 0
A13: =A5A!A83 -> Vote 8 - Energy Sources | C13: =A5A!C83 -> 0 | D13: =A5A!D83 -> 0 | E13: =A5A!E83 -> 0 | F13: =A5A!F83 -> 0 | G13: =A5A!G83 -> 0 | H13: =A5A!H83 -> 0 | I13: =A5A!I83 -> 0 | J13: =A5A!J83 -> 0 | K13: =A5A!K83 -> 0 | L13: =A5A!L83 -> 0
A14: =A5A!A94 -> Vote 9 - Planning and Development | C14: =A5A!C94 -> 0 | D14: =A5A!D94 -> 0 | E14: =A5A!E94 -> 0 | F14: =A5A!F94 -> 0 | G14: =A5A!G94 -> 0 | H14: =A5A!H94 -> 0 | I14: =A5A!I94 -> 0 | J14: =A5A!J94 -> 0 | K14: =A5A!K94 -> 0 | L14: =A5A!L94 -> 0
A15: =A5A!A105 -> Vote 10 - Sport and Recreation | C15: =A5A!C105 -> 0 | D15: =A5A!D105 -> 0 | E15: =A5A!E105 -> 0 | F15: =A5A!F105 -> 0 | G15: =A5A!G105 -> 0 | H15: =A5A!H105 -> 0 | I15: =A5A!I105 -> 0 | J15: =A5A!J105 -> 0 | K15: =A5A!K105 -> 0 | L15: =A5A!L105 -> 0
A16: =A5A!A116 -> Vote 11 - [NAME OF VOTE 11] | C16: =A5A!C116 -> 0 | D16: =A5A!D116 -> 0 | E16: =A5A!E116 -> 0 | F16: =A5A!F116 -> 0 | G16: =A5A!G116 -> 0 | H16: =A5A!H116 -> 0 | I16: =A5A!I116 -> 0 | J16: =A5A!J116 -> 0 | K16: =A5A!K116 -> 0 | L16: =A5A!L116 -> 0
A17: =A5A!A127 -> Vote 12 - [NAME OF VOTE 12] | C17: =A5A!C127 -> 0 | D17: =A5A!D127 -> 0 | E17: =A5A!E127 -> 0 | F17: =A5A!F127 -> 0 | G17: =A5A!G127 -> 0 | H17: =A5A!H127 -> 0 | I17: =A5A!I127 -> 0 | J17: =A5A!J127 -> 0 | K17: =A5A!K127 -> 0 | L17: =A5A!L127 -> 0
A18: =A5A!A138 -> Vote 13 - [NAME OF VOTE 13] | C18: =A5A!C138 -> 0 | D18: =A5A!D138 -> 0 | E18: =A5A!E138 -> 0 | F18: =A5A!F138 -> 0 | G18: =A5A!G138 -> 0 | H18: =A5A!H138 -> 0 | I18: =A5A!I138 -> 0 | J18: =A5A!J138 -> 0 | K18: =A5A!K138 -> 0 | L18: =A5A!L138 -> 0
A19: =A5A!A149 -> Vote 14 - [NAME OF VOTE 14] | C19: =A5A!C149 -> 0 | D19: =A5A!D149 -> 0 | E19: =A5A!E149 -> 0 | F19: =A5A!F149 -> 0 | G19: =A5A!G149 -> 0 | H19: =A5A!H149 -> 0 | I19: =A5A!I149 -> 0 | J19: =A5A!J149 -> 0 | K19: =A5A!K149 -> 0 | L19: =A5A!L149 -> 0
A20: =A5A!A160 -> Vote 15 - [NAME OF VOTE 15] | C20: =A5A!C160 -> 0 | D20: =A5A!D160 -> 0 | E20: =A5A!E160 -> 0 | F20: =A5A!F160 -> 0 | G20: =A5A!G160 -> 0 | H20: =A5A!H160 -> 0 | I20: =A5A!I160 -> 0 | J20: =A5A!J160 -> 0 | K20: =A5A!K160 -> 0 | L20: =A5A!L160 -> 0
A21: Capital multi-year expenditure sub-total | B21: 7 | C21: =SUM(C6:C20) -> 0 | D21: =SUM(D6:D20) -> 0 | E21: 0 | F21: 0 | G21: 0 | H21: =SUM(H6:H20) -> 0 | I21: 0 | J21: 0 | K21: 0 | L21: 0
A23: Single-year expenditure to be appropriated | B23: 2
A24: =A6 -> Vote 1 - Finance & Admin | C24: =A5A!C175 -> 1982443 | D24: =A5A!D175 -> 2402370.71 | E24: =A5A!E175 -> 1578705 | F24: =A5A!F175 -> 3708000 | G24: =A5A!G175 -> 3879805.89 | H24: =A5A!H175 -> 3879805.89 | I24: =A5A!I175 -> 3879805.89 | J24: =A5A!J175 -> 5563800 | K24: =A5A!K175 -> 3891747.6 | L24: =A5A!L175 -> 4070767.99
A25: =A7 -> Vote 2 - Executive & Council | C25: =A5A!C186 -> 1013248 | D25: =A5A!D186 -> 243160.33 | E25: =A5A!E186 -> 552000 | F25: =A5A!F186 -> 1130000 | G25: =A5A!G186 -> 660000 | H25: =A5A!H186 -> 660000 | I25: =A5A!I186 -> 660000 | J25: =A5A!J186 -> 850000 | K25: =A5A!K186 -> 889100 | L25: =A5A!L186 -> 929998.6
A26: Vote 3 - Community and Social Services | C26: =A5A!C197 -> 15619505 | D26: =A5A!D197 -> 8171567 | E26: =A5A!E197 -> 7826017 | F26: =A5A!F197 -> 4098594.93 | G26: =A5A!G197 -> 4968827.7 | H26: =A5A!H197 -> 4968827.7 | I26: =A5A!I197 -> 4968827.7 | J26: =A5A!J197 -> 5605621.57 | K26: =A5A!K197 -> 5872198.84 | L26: =A5A!L197 -> 6142319.98
A27: Vote 4 - Housing | C27: =A5A!C208 -> 0 | D27: =A5A!D208 -> 0 | E27: =A5A!E208 -> 0 | F27: =A5A!F208 -> 10000000 | G27: =A5A!G208 -> 10000000 | H27: =A5A!H208 -> 10000000 | I27: =A5A!I208 -> 10000000 | J27: =A5A!J208 -> 10540000 | K27: =A5A!K208 -> 11024840 | L27: =A5A!L208 -> 11531982.64
A28: Vote 5 - Public Safety | C28: =A5A!C219 -> 0 | D28: =A5A!D219 -> 923190 | E28: =A5A!E219 -> 3022537 | F28: =A5A!F219 -> 15729759 | G28: =A5A!G219 -> 15512546.94 | H28: =A5A!H219 -> 15512546.94 | I28: =A5A!I219 -> 15512546.94 | J28: =A5A!J219 -> 1470000 | K28: =A5A!K219 -> 1537620 | L28: =A5A!L219 -> 1608350.52
A29: Vote 6 - Road Transport | C29: =A5A!C230 -> 54702306 | D29: =A5A!D230 -> 0 | E29: =A5A!E230 -> 21892605 | F29: =A5A!F230 -> 36975314.32 | G29: =A5A!G230 -> 31204663.88 | H29: =A5A!H230 -> 31204663.88 | I29: =A5A!I230 -> 31204663.88 | J29: =A5A!J230 -> 22795020.09 | K29: =A5A!K230 -> 14381598.65 | L29: =A5A!L230 -> 15043152.17
A30: Vote 7 - Waste Management | C30: =A5A!C241 -> 0 | D30: =A5A!D241 -> 0 | E30: =A5A!E241 -> 0 | F30: =A5A!F241 -> 1091000 | G30: =A5A!G241 -> 1103000 | H30: =A5A!H241 -> 1103000 | I30: =A5A!I241 -> 1103000 | J30: =A5A!J241 -> 2117378 | K30: =A5A!K241 -> 2214777.39 | L30: =A5A!L241 -> 2316657.15
A31: Vote 8 - Energy Sources | C31: =A5A!C252 -> 0 | D31: =A5A!D252 -> 0 | E31: =A5A!E252 -> 0 | F31: =A5A!F252 -> 0 | G31: =A5A!G252 -> 0 | H31: =A5A!H252 -> 0 | I31: =A5A!I252 -> 0 | J31: =A5A!J252 -> 0 | K31: =A5A!K252 -> 0 | L31: =A5A!L252 -> 0
A32: Vote 9 - Planning and Development | C32: =A5A!C263 -> 0 | D32: =A5A!D263 -> 20245184.55 | E32: =A5A!E263 -> 19754066 | F32: =A5A!F263 -> 3358333 | G32: =A5A!G263 -> 5332541.58 | H32: =A5A!H263 -> 5332541.58 | I32: =A5A!I263 -> 5332541.58 | J32: =A5A!J263 -> 6964638.8 | K32: =A5A!K263 -> 1840960 | L32: =A5A!L263 -> 1925644.16
A33: Vote 10 - Sport and Recreation | C33: =A5A!C274 -> 0 | D33: =A5A!D274 -> 6034547 | E33: =A5A!E274 -> 6273517 | F33: =A5A!F274 -> 2204827.76 | G33: =A5A!G274 -> 3792788.25 | H33: =A5A!H274 -> 3792788.25 | I33: =A5A!I274 -> 3792788.25 | J33: =A5A!J274 -> 3272224.13 | K33: =A5A!K274 -> 3422746.44 | L33: =A5A!L274 -> 3580192.78
A34: Vote 11 - [NAME OF VOTE 11] | C34: =A5A!C285 -> 0 | D34: =A5A!D285 -> 0 | E34: =A5A!E285 -> 0 | F34: =A5A!F285 -> 0 | G34: =A5A!G285 -> 0 | H34: =A5A!H285 -> 0 | I34: =A5A!I285 -> 0 | J34: =A5A!J285 -> 0 | K34: =A5A!K285 -> 0 | L34: =A5A!L285 -> 0
A35: Vote 12 - [NAME OF VOTE 12] | C35: =A5A!C296 -> 0 | D35: =A5A!D296 -> 0 | E35: =A5A!E296 -> 0 | F35: =A5A!F296 -> 0 | G35: =A5A!G296 -> 0 | H35: =A5A!H296 -> 0 | I35: =A5A!I296 -> 0 | J35: =A5A!J296 -> 0 | K35: =A5A!K296 -> 0 | L35: =A5A!L296 -> 0
A36: Vote 13 - [NAME OF VOTE 13] | C36: =A5A!C307 -> 0 | D36: =A5A!D307 -> 0 | E36: =A5A!E307 -> 0 | F36: =A5A!F307 -> 0 | G36: =A5A!G307 -> 0 | H36: =A5A!H307 -> 0 | I36: =A5A!I307 -> 0 | J36: =A5A!J307 -> 0 | K36: =A5A!K307 -> 0 | L36: =A5A!L307 -> 0
A37: Vote 14 - [NAME OF VOTE 14] | C37: =A5A!C318 -> 0 | D37: =A5A!D318 -> 0 | E37: =A5A!E318 -> 0 | F37: =A5A!F318 -> 0 | G37: =A5A!G318 -> 0 | H37: =A5A!H318 -> 0 | I37: =A5A!I318 -> 0 | J37: =A5A!J318 -> 0 | K37: =A5A!K318 -> 0 | L37: =A5A!L318 -> 0
A38: =A20 -> Vote 15 - [NAME OF VOTE 15] | C38: =A5A!C329 -> 0 | D38: =A5A!D329 -> 0 | E38: =A5A!E329 -> 0 | F38: =A5A!F329 -> 0 | G38: =A5A!G329 -> 0 | H38: =A5A!H329 -> 0 | I38: =A5A!I329 -> 0 | J38: =A5A!J329 -> 0 | K38: =A5A!K329 -> 0 | L38: =A5A!L329 -> 0
A39: Capital single-year expenditure sub-total | C39: =SUM(C24:C38) -> 73317502 | D39: =SUM(D24:D38) -> 38020019.59 | E39: 60899447 | F39: 78295829.01 | G39: 76454174.24 | H39: 76454174.24 | I39: 76454174.24 | J39: 59178682.59 | K39: 45075588.92 | L39: 47149065.99
A40: Total Capital Expenditure - Vote | C40: =C39+C21 -> 73317502 | D40: =D39+D21 -> 38020019.59 | E40: 60899447 | F40: 78295829.01 | G40: 76454174.24 | H40: 76454174.24 | I40: 76454174.24 | J40: 59178682.59 | K40: 45075588.92 | L40: 47149065.99
A42: Capital Expenditure - Functional
A43: Governance and administration | C43: =SUM(C44:C46) -> 2995691 | D43: =SUM(D44:D46) -> 243160.33 | E43: 2207843 | F43: 4838000 | G43: 4539805.89 | H43: 4539805.89 | I43: 4539805.89 | J43: 6413800 | K43: 4780847.6 | L43: 5000766.59
A44: Executive and council | C44: 1013248 | D44: 243160.33 | E44: 552000 | F44: 1130000 | G44: 660000 | H44: 660000 | I44: 660000 | J44: 850000 | K44: 889100 | L44: 929998.6
A45: Finance and administration | C45: 261672 | D45: 0 | E45: 457843 | F45: 3708000 | G45: 3879805.89 | H45: 3879805.89 | I45: 3879805.89 | J45: 5563800 | K45: 3891747.6 | L45: 4070767.99
A46: Internal audit | C46: 1720771 | D46: 0 | E46: 1198000 | F46: 0 | G46: 0 | H46: 0 | I46: 0 | J46: 0 | K46: 0 | L46: 0
A47: Community and public safety | C47: =SUM(C48:C52) -> 15619505 | D47: =SUM(D48:D52) -> 17531674.71 | E47: 17544933 | F47: 32033181.69 | G47: 34274162.89 | H47: 34274162.89 | I47: 34274162.89 | J47: 20887845.7 | K47: 21857405.28 | L47: 22862845.92
A48: Community and social services | C48: 15619505 | D48: 9094757 | E48: 8271416 | F48: 4098594.93 | G48: 4968827.7 | H48: 4968827.7 | I48: 4968827.7 | J48: 5605621.57 | K48: 5872198.84 | L48: 6142319.98
A49: Sport and recreation | C49: 0 | D49: 6034547 | E49: 6273517 | F49: 2204827.76 | G49: 3792788.25 | H49: 3792788.25 | I49: 3792788.25 | J49: 3272224.13 | K49: 3422746.44 | L49: 3580192.78
A50: Public safety | C50: 0 | D50: 0 | E50: 3000000 | F50: 15729759 | G50: 15512546.94 | H50: 15512546.94 | I50: 15512546.94 | J50: 1470000 | K50: 1537620 | L50: 1608350.52
A51: Housing | C51: 0 | D51: 2402370.71 | E51: 0 | F51: 10000000 | G51: 10000000 | H51: 10000000 | I51: 10000000 | J51: 10540000 | K51: 11024840 | L51: 11531982.64
A52: Health | C52: 0 | D52: 0 | E52: 0 | F52: 0 | G52: 0 | H52: 0 | I52: 0 | J52: 0 | K52: 0 | L52: 0
A53: Economic and environmental services | C53: =SUM(C54:C56) -> 54702306 | D53: =SUM(D54:D56) -> 20245184.55 | E53: 41146671 | F53: 40333647.32 | G53: 36537205.46 | H53: 36537205.46 | I53: 36537205.46 | J53: 24755020.09 | K53: 16222558.65 | L53: 16968796.33
A54: Planning and development | C54: 0 | D54: 0 | E54: 19225905 | F54: 3358333 | G54: 5332541.58 | H54: 5332541.58 | I54: 5332541.58 | J54: 1960000 | K54: 1840960 | L54: 1925644.16
A55: Road transport | C55: 54702306 | D55: 20245184.55 | E55: 21920766 | F55: 36975314.32 | G55: 31204663.88 | H55: 31204663.88 | I55: 31204663.88 | J55: 22795020.09 | K55: 14381598.65 | L55: 15043152.17
A56: Environmental protection | C56: 0 | D56: 0 | E56: 0 | F56: 0 | G56: 0 | H56: 0 | I56: 0 | J56: 0 | K56: 0 | L56: 0
A57: Trading services | C57: =SUM(C58:C61) -> 0 | D57: =SUM(D58:D61) -> 0 | E57: 0 | F57: 1091000 | G57: 1103000 | H57: 1103000 | I57: 1103000 | J57: 7122016.8 | K57: 2214777.39 | L57: 2316657.15
A58: Energy sources | C58: 0 | D58: 0 | E58: 0 | F58: 0 | G58: 0 | H58: 0 | I58: 0 | J58: 5004638.8 | K58: 0 | L58: 0
A59: Water management | C59: 0 | D59: 0 | E59: 0 | F59: 0 | G59: 0 | H59: 0 | I59: 0 | J59: 0 | K59: 0 | L59: 0
A60: Waste water management | C60: 0 | D60: 0 | E60: 0 | F60: 0 | G60: 0 | H60: 0 | I60: 0 | J60: 0 | K60: 0 | L60: 0
A61: Waste management | C61: 0 | D61: 0 | E61: 0 | F61: 1091000 | G61: 1103000 | H61: 1103000 | I61: 1103000 | J61: 2117378 | K61: 2214777.39 | L61: 2316657.15
A62: Other | C62: 0 | D62: 0 | E62: 0 | F62: 0 | G62: 0 | H62: 0 | I62: 0 | J62: 0 | K62: 0 | L62: 0
A63: Total Capital Expenditure - Functional | B63: 3 | C63: =C43+C47+C53+C57+C62 -> 73317502 | D63: =D43+D47+D53+D57+D62 -> 38020019.59 | E63: 60899447 | F63: 78295829.01 | G63: 76454174.24 | H63: 76454174.24 | I63: 76454174.24 | J63: 59178682.59 | K63: 45075588.92 | L63: =L43+L47+L53+L57+L62 -> 47149065.99
A65: Funded by:
A66: National Government | C66: 56089892 | D66: 26279731.55 | E66: 26439003 | F66: 26917000.01 | G66: 26917001 | H66: 26917001 | I66: 26917001 | J66: 26758999.98 | K66: 22826540.49 | L66: 23876561.34
A67: Provincial Government | C67: 0 | D67: 0 | E67: 5000000 | F67: 6400000 | G67: 6400000 | H67: 6400000 | I67: 6400000 | J67: 0 | K67: 0 | L67: 0
A68: District Municipality | C68: 0 | D68: 0 | E68: 0 | F68: 0 | G68: 0 | H68: 0 | I68: 0 | J68: 0 | K68: 0 | L68: 0
A69: Other transfers and grants | C69: 0 | D69: 0 | E69: 0 | F69: 0 | G69: 0 | H69: 0 | I69: 0 | J69: 0 | K69: 0 | L69: 0
A70: Transfers recognised - capital | B70: 4 | C70: =SUM(C66:C69) -> 56089892 | D70: 26279731.55 | E70: 31439003 | F70: 33317000.01 | G70: 33317001 | H70: 33317001 | I70: 33317001 | J70: 26758999.98 | K70: 22826540.49 | L70: 23876561.34
A72: Borrowing | B72: 6 | C72: 0 | D72: 0 | E72: 0 | F72: 0 | G72: 0 | H72: 0 | I72: 0 | J72: 0 | K72: 0 | L72: 0
A73: Internally generated funds | C73: 17227610 | D73: 11740288.04 | E73: 29460444 | F73: 44978829 | G73: =43130173.24+7000 -> 43137173.24 | H73: =43130173.24+7000 -> 43137173.24 | I73: =43130173.24+7000 -> 43137173.24 | J73: 32420326.61 | K73: 22249000 | L73: 23272438.66
A74: Total Capital Funding | B74: 7 | C74: =+C70+C72+C73 -> 73317502 | D74: =+D70+D72+D73 -> 38020019.59 | E74: 60899447 | F74: 78295829.01 | G74: 76454174.24 | H74: 76454174.24 | I74: 76454174.24 | J74: 59179326.59 | K74: 45075540.49 | L74: 47149000
A75: =head27a -> References
A76: 1. Municipalities may choose to appropriate for capital expenditure for three years or for one year (if one year appropriation projected expenditure required for yr2 and yr3).
A77: 2. Include capital component of PPP unitary payment. Note that capital transfers are only appropriated to municipalities for the budget year
A78: 3. Capital expenditure by functional classification must reconcile to the appropriations by vote
A79: 4. Must reconcile to supporting table SA20 and to Budgeted Financial Performance (revenue and expenditure)
A81: 6. Include finance leases and PPP capital funding component of unitary payment - total borrowing/repayments to reconcile to changes in Table SA17
A82: 7. Total Capital Funding must balance with Total Capital Expenditure
A83: 8. Include any capitalised interest (MFMA section 46) as part of relevant capital budget
A85: check balance | C85: =IF((C63-C74)=0,0,"Unbalanced") -> 0 | D85: =IF((D63-D74)=0,0,"Unbalanced") -> 0 | E85: 0 | F85: 0 | G85: 0 | H85: 0 | I85: 0 | J85: Unbalanced | K85: Unbalanced | L85: Unbalanced

Sheet A5A
A1: =muni&" - "&Approve5 -> KZN434 Ubuhlebezwe - Table A5 Budgeted Capital Expenditure by vote, functional classification and funding
A2: =Vdesc -> Vote Description | B2: =head27 -> Ref | C2: =head1b -> 2016/17 | D2: =head1A -> 2017/18 | E2: =Head1 -> 2018/19 | F2: =Head2 -> Current Year 2019/20 | J2: =Head3 -> 2020/21 Medium Term Revenue & Expenditure Framework | N2: ="Multi-year appropriation for "&Head9& " in the "&Head2A&" Annual Budget" -> Multi-year appropriation for Budget Year 2020/21 in the 2019/20 Annual Budget | R2: ="Multi-year appropriation for "&RIGHT(Head10,7)& " in the "&Head2A&" Annual Budget" -> Multi-year appropriation for 2021/22 in the 2019/20 Annual Budget | V2: New multi-year appropriations (funds for new and existing projects)
A3: R thousand | B3: 1 | C3: =Head5 -> Audited Outcome | D3: =Head5 -> Audited Outcome | E3: =Head5 -> Audited Outcome | F3: =Head6 -> Original Budget | G3: =Head7 -> Adjusted Budget | H3: =Head8 -> Full Year Forecast | I3: =Head5b -> Pre-audit outcome | J3: =Head9 -> Budget Year 2020/21 | K3: =Head10 -> Budget Year +1 2021/22 | L3: =Head11 -> Budget Year +2 2022/23 | N3: ="Appropriation for "&RIGHT(Head9,7) -> Appropriation for 2020/21 | O3: ="Adjustments in "&Head2A -> Adjustments in 2019/20 | P3: ="Downward adjustments for "&RIGHT(Head9,7) -> Downward adjustments for 2020/21 | Q3: Appropriation carried forward | R3: ="Appropriation for "&RIGHT(Head9,7) -> Appropriation for 2020/21 | S3: ="Adjustments in "&Head2A -> Adjustments in 2019/20 | T3: ="Downward adjustments for "&RIGHT(Head9,7) -> Downward adjustments for 2020/21 | U3: Appropriation carried forward | V3: =Head9 -> Budget Year 2020/21 | W3: =Head10 -> Budget Year +1 2021/22 | X3: =Head11 -> Budget Year +2 2022/23
A4: Capital expenditure - Municipal Vote
A5: Multi-year expenditure appropriation | B5: 2
A6: ='Org structure'!A2 -> Vote 1 - Finance & Admin | C6: =SUM(C7:C16) -> 0 | D6: =SUM(D7:D16) -> 0 | E6: 0 | F6: 0 | G6: 0 | H6: 0 | I6: =SUM(I7:I16) -> 0 | J6: 0 | K6: 0 | L6: 0 | N6: =SUM(N7:N16) -> 0 | O6: 0 | P6: 0 | Q6: 0 | R6: 0 | S6: 0 | T6: 0 | U6: 0 | V6: =SUM(V7:V16) -> 0 | W6: =SUM(W7:W16) -> 0 | X6: =SUM(X7:X16) -> 0
A7: =IF(RIGHT('Org structure'!D3,18)<>"[Name of sub-vote]",'Org structure'!D3,"") -> 1.1 - Asset Management | C7: 0 | D7: 0 | E7: 0 | F7: 0 | G7: 0 | H7: 0 | I7: 0 | J7: =Q7+V7 -> 0 | K7: =U7+W7 -> 0 | L7: =X7 -> 0 | N7: 0 | O7: 0 | P7: 0 | Q7: =SUM(N7:P7) -> 0 | R7: 0 | S7: 0 | T7: 0 | U7: =SUM(R7:T7) -> 0 | V7: 0 | W7: 0 | X7: 0
A8: =IF(RIGHT('Org structure'!D4,18)<>"[Name of sub-vote]",'Org structure'!D4,"") -> 1.2 - Information Technology | C8: 0 | D8: 0 | E8: 0 | F8: 0 | G8: 0 | H8: 0 | I8: 0 | J8: =Q8+V8 -> 0 | K8: =U8+W8 -> 0 | L8: =X8 -> 0 | N8: 0 | O8: 0 | P8: 0 | Q8: =SUM(N8:P8) -> 0 | R8: 0 | S8: 0 | T8: 0 | U8: =SUM(R8:T8) -> 0 | V8: 0 | W8: 0 | X8: 0
A9: =IF(RIGHT('Org structure'!D5,18)<>"[Name of sub-vote]",'Org structure'!D5,"") -> 1.3 - Finance | C9: 0 | D9: 0 | E9: 0 | F9: 0 | G9: 0 | H9: 0 | I9: 0 | J9: =Q9+V9 -> 0 | K9: =U9+W9 -> 0 | L9: 0 | N9: 0 | O9: 0 | P9: 0 | Q9: 0 | R9: 0 | S9: 0 | T9: 0 | U9: 0 | V9: 0 | W9: 0 | X9: 0
A10: =IF(RIGHT('Org structure'!D6,18)<>"[Name of sub-vote]",'Org structure'!D6,"") -> 1.4 - Fleet Management | C10: 0 | D10: 0 | E10: 0 | F10: 0 | G10: 0 | H10: 0 | I10: 0 | J10: 0 | K10: 0 | L10: 0 | N10: 0 | O10: 0 | P10: 0 | Q10: 0 | R10: 0 | S10: 0 | T10: 0 | U10: 0 | V10: 0 | W10: 0 | X10: 0
A11: =IF(RIGHT('Org structure'!D7,18)<>"[Name of sub-vote]",'Org structure'!D7,"") -> 1.5 - Administrative and Corporate Support | C11: 0 | D11: 0 | E11: 0 | F11: 0 | G11: 0 | H11: 0 | I11: 0 | J11: 0 | K11: 0 | L11: =X11 -> 0 | N11: 0 | O11: 0 | P11: 0 | Q11: 0 | R11: 0 | S11: 0 | T11: 0 | U11: 0 | V11: 0 | W11: 0 | X11: 0
A12: =IF(RIGHT('Org structure'!D8,18)<>"[Name of sub-vote]",'Org structure'!D8,"") -> 1.6 - Property Services | C12: 0 | D12: 0 | E12: 0 | F12: 0 | G12: 0 | H12: 0 | I12: 0 | J12: 0 | K12: 0 | L12: 0 | N12: 0 | O12: 0 | P12: 0 | Q12: 0 | R12: 0 | S12: 0 | T12: 0 | U12: 0 | V12: 0 | W12: 0 | X12: 0
A13: =IF(RIGHT('Org structure'!D9,18)<>"[Name of sub-vote]",'Org structure'!D9,"") -> 1.7 - Legal Services | C13: 0 | D13: 0 | E13: 0 | F13: 0 | G13: 0 | H13: 0 | I13: 0 | J13: 0 | K13: 0 | L13: 0 | N13: 0 | O13: 0 | P13: 0 | Q13: 0 | R13: 0 | S13: 0 | T13: 0 | U13: 0 | V13: 0 | W13: 0 | X13: 0
A14: =IF(RIGHT('Org structure'!D10,18)<>"[Name of sub-vote]",'Org structure'!D10,"") -> 1.8 - Human Resources | C14: 0 | D14: 0 | E14: 0 | F14: 0 | G14: 0 | H14: 0 | I14: 0 | J14: 0 | K14: 0 | L14: 0 | N14: 0 | O14: 0 | P14: 0 | Q14: 0 | R14: 0 | S14: 0 | T14: 0 | U14: 0 | V14: 0 | W14: 0 | X14: 0
A15: =IF(RIGHT('Org structure'!D11,18)<>"[Name of sub-vote]",'Org structure'!D11,"") ->  | C15: 0 | D15: 0 | E15: 0 | F15: 0 | G15: 0 | H15: 0 | I15: 0 | J15: 0 | K15: 0 | L15: 0 | N15: 0 | O15: 0 | P15: 0 | Q15: 0 | R15: 0 | S15: 0 | T15: 0 | U15: 0 | V15: 0 | W15: 0 | X15: 0
A16: =IF(RIGHT('Org structure'!D12,18)<>"[Name of sub-vote]",'Org structure'!D12,"") ->  | C16: 0 | D16: 0 | E16: 0 | F16: 0 | G16: 0 | H16: 0 | I16: 0 | J16: 0 | K16: 0 | L16: 0 | N16: 0 | O16: 0 | P16: 0 | Q16: 0 | R16: 0 | S16: 0 | T16: 0 | U16: 0 | V16: 0 | W16: 0 | X16: 0
A17: ='Org structure'!A3 -> Vote 2 - Executive & Council | C17: =SUM(C18:C27) -> 0 | D17: =SUM(D18:D27) -> 0 | E17: 0 | F17: 0 | G17: 0 | H17: 0 | I17: =SUM(I18:I27) -> 0 | J17: 0 | K17: 0 | L17: 0 | N17: =SUM(N18:N27) -> 0 | O17: 0 | P17: 0 | Q17: 0 | R17: 0 | S17: 0 | T17: 0 | U17: 0 | V17: 0 | W17: 0 | X17: 0
A18: =IF(RIGHT('Org structure'!D14,18)<>"[Name of sub-vote]",'Org structure'!D14,"") -> 2.1 - Mayor and Council | C18: 0 | D18: 0 | E18: 0 | F18: 0 | G18: 0 | H18: 0 | I18: 0 | J18: =Q18+V18 -> 0 | K18: =U18+W18 -> 0 | L18: =X18 -> 0 | N18: 0 | O18: 0 | P18: 0 | Q18: =SUM(N18:P18) -> 0 | R18: 0 | S18: 0 | T18: 0 | U18: =SUM(R18:T18) -> 0 | V18: 0 | W18: 0 | X18: 0
A19: =IF(RIGHT('Org structure'!D15,18)<>"[Name of sub-vote]",'Org structure'!D15,"") -> 2.2 - Municipal Manager, Town Secretary and Chief Executive | C19: 0 | D19: 0 | E19: 0 | F19: 0 | G19: 0 | H19: 0 | I19: 0 | J19: =Q19+V19 -> 0 | K19: =U19+W19 -> 0 | L19: 0 | N19: 0 | O19: 0 | P19: 0 | Q19: 0 | R19: 0 | S19: 0 | T19: 0 | U19: 0 | V19: 0 | W19: 0 | X19: 0
A20: =IF(RIGHT('Org structure'!D16,18)<>"[Name of sub-vote]",'Org structure'!D16,"") -> 2.3 - Governance Function | C20: 0 | D20: 0 | E20: 0 | F20: 0 | G20: 0 | H20: 0 | I20: 0 | J20: 0 | K20: 0 | L20: 0 | N20: 0 | O20: 0 | P20: 0 | Q20: 0 | R20: 0 | S20: 0 | T20: 0 | U20: 0 | V20: 0 | W20: 0 | X20: 0
A21: =IF(RIGHT('Org structure'!D17,18)<>"[Name of sub-vote]",'Org structure'!D17,"") ->  | C21: 0 | D21: 0 | E21: 0 | F21: 0 | G21: 0 | H21: 0 | I21: 0 | J21: 0 | K21: =U21+W21 -> 0 | L21: 0 | N21: 0 | O21: 0 | P21: 0 | Q21: 0 | R21: 0 | S21: 0 | T21: 0 | U21: 0 | V21: 0 | W21: 0 | X21: 0
A22: =IF(RIGHT('Org structure'!D18,18)<>"[Name of sub-vote]",'Org structure'!D18,"") ->  | C22: 0 | D22: 0 | E22: 0 | F22: 0 | G22: 0 | H22: 0 | I22: 0 | J22: 0 | K22: 0 | L22: 0 | N22: 0 | O22: 0 | P22: 0 | Q22: 0 | R22: 0 | S22: 0 | T22: 0 | U22: 0 | V22: 0 | W22: 0 | X22: 0
A23: =IF(RIGHT('Org structure'!D19,18)<>"[Name of sub-vote]",'Org structure'!D19,"") ->  | C23: 0 | D23: 0 | E23: 0 | F23: 0 | G23: 0 | H23: 0 | I23: 0 | J23: 0 | K23: 0 | L23: 0 | N23: 0 | O23: 0 | P23: 0 | Q23: 0 | R23: 0 | S23: 0 | T23: 0 | U23: 0 | V23: 0 | W23: 0 | X23: 0
A24: =IF(RIGHT('Org structure'!D20,18)<>"[Name of sub-vote]",'Org structure'!D20,"") ->  | C24: 0 | D24: 0 | E24: 0 | F24: 0 | G24: 0 | H24: 0 | I24: 0 | J24: 0 | K24: 0 | L24: 0 | N24: 0 | O24: 0 | P24: 0 | Q24: 0 | R24: 0 | S24: 0 | T24: 0 | U24: 0 | V24: 0 | W24: 0 | X24: 0
A25: =IF(RIGHT('Org structure'!D21,18)<>"[Name of sub-vote]",'Org structure'!D21,"") ->  | C25: 0 | D25: 0 | E25: 0 | F25: 0 | G25: 0 | H25: 0 | I25: 0 | J25: 0 | K25: 0 | L25: 0 | N25: 0 | O25: 0 | P25: 0 | Q25: 0 | R25: 0 | S25: 0 | T25: 0 | U25: 0 | V25: 0 | W25: 0 | X25: 0
A26: =IF(RIGHT('Org structure'!D22,18)<>"[Name of sub-vote]",'Org structure'!D22,"") ->  | C26: 0 | D26: 0 | E26: 0 | F26: 0 | G26: 0 | H26: 0 | I26: 0 | J26: 0 | K26: 0 | L26: 0 | N26: 0 | O26: 0 | P26: 0 | Q26: 0 | R26: 0 | S26: 0 | T26: 0 | U26: 0 | V26: 0 | W26: 0 | X26: 0
A27: =IF(RIGHT('Org structure'!D23,18)<>"[Name of sub-vote]",'Org structure'!D23,"") ->  | C27: 0 | D27: 0 | E27: 0 | F27: 0 | G27: 0 | H27: 0 | I27: 0 | J27: 0 | K27: 0 | L27: 0 | N27: 0 | O27: 0 | P27: 0 | Q27: 0 | R27: 0 | S27: 0 | T27: 0 | U27: 0 | V27: 0 | W27: 0 | X27: 0
A28: ='Org structure'!A4 -> Vote 3 - Community and Social Services | C28: =SUM(C29:C38) -> 0 | D28: =SUM(D29:D38) -> 0 | E28: 0 | F28: 0 | G28: 0 | H28: 0 | I28: =SUM(I29:I38) -> 0 | J28: 0 | K28: 0 | L28: 0 | N28: =SUM(N29:N38) -> 0 | O28: 0 | P28: 0 | Q28: 0 | R28: 0 | S28: 0 | T28: 0 | U28: 0 | V28: 0 | W28: 0 | X28: 0
A29: =IF(RIGHT('Org structure'!D25,18)<>"[Name of sub-vote]",'Org structure'!D25,"") -> 3.1 - Cultural Matters | C29: 0 | D29: 0 | E29: 0 | F29: 0 | G29: 0 | H29: 0 | I29: 0 | J29: =Q29+V29 -> 0 | K29: =U29+W29 -> 0 | L29: =X29 -> 0 | N29: 0 | O29: 0 | P29: 0 | Q29: =SUM(N29:P29) -> 0 | R29: 0 | S29: 0 | T29: 0 | U29: =SUM(R29:T29) -> 0 | V29: 0 | W29: 0 | X29: 0
A30: =IF(RIGHT('Org structure'!D26,18)<>"[Name of sub-vote]",'Org structure'!D26,"") -> 3.2 - Population Development | C30: 0 | D30: 0 | E30: 0 | F30: 0 | G30: 0 | H30: 0 | I30: 0 | J30: 0 | K30: 0 | L30: 0 | N30: 0 | O30: 0 | P30: 0 | Q30: 0 | R30: 0 | S30: 0 | T30: 0 | U30: 0 | V30: 0 | W30: 0 | X30: 0
A31: =IF(RIGHT('Org structure'!D27,18)<>"[Name of sub-vote]",'Org structure'!D27,"") -> 3.3 - Recreational Facilities | C31: 0 | D31: 0 | E31: 0 | F31: 0 | G31: 0 | H31: 0 | I31: 0 | J31: 0 | K31: 0 | L31: 0 | N31: 0 | O31: 0 | P31: 0 | Q31: 0 | R31: 0 | S31: 0 | T31: 0 | U31: 0 | V31: 0 | W31: 0 | X31: 0
A32: =IF(RIGHT('Org structure'!D28,18)<>"[Name of sub-vote]",'Org structure'!D28,"") -> 3.4 - Education | C32: 0 | D32: 0 | E32: 0 | F32: 0 | G32: 0 | H32: 0 | I32: 0 | J32: 0 | K32: =U32+W32 -> 0 | L32: 0 | N32: 0 | O32: 0 | P32: 0 | Q32: 0 | R32: 0 | S32: 0 | T32: 0 | U32: 0 | V32: 0 | W32: 0 | X32: 0
A33: =IF(RIGHT('Org structure'!D29,18)<>"[Name of sub-vote]",'Org structure'!D29,"") -> 3.5 - Libraries and Archives | C33: 0 | D33: 0 | E33: 0 | F33: 0 | G33: 0 | H33: 0 | I33: 0 | J33: =Q33+V33 -> 0 | K33: 0 | L33: 0 | N33: 0 | O33: 0 | P33: 0 | Q33: 0 | R33: 0 | S33: 0 | T33: 0 | U33: 0 | V33: 0 | W33: 0 | X33: 0
A34: =IF(RIGHT('Org structure'!D30,18)<>"[Name of sub-vote]",'Org structure'!D30,"") -> 3.6 - Community Halls and Facilities | C34: 0 | D34: 0 | E34: 0 | F34: 0 | G34: 0 | H34: 0 | I34: 0 | J34: 0 | K34: 0 | L34: 0 | N34: 0 | O34: 0 | P34: 0 | Q34: 0 | R34: 0 | S34: 0 | T34: 0 | U34: 0 | V34: 0 | W34: 0 | X34: 0
A35: =IF(RIGHT('Org structure'!D31,18)<>"[Name of sub-vote]",'Org structure'!D31,"") -> 3.7 - Development Facilitation | C35: 0 | D35: 0 | E35: 0 | F35: 0 | G35: 0 | H35: 0 | I35: 0 | J35: 0 | K35: 0 | L35: 0 | N35: 0 | O35: 0 | P35: 0 | Q35: 0 | R35: 0 | S35: 0 | T35: 0 | U35: 0 | V35: 0 | W35: 0 | X35: 0
A36: =IF(RIGHT('Org structure'!D32,18)<>"[Name of sub-vote]",'Org structure'!D32,"") -> 3.8 - Community Parks (including Nurseries) | C36: 0 | D36: 0 | E36: 0 | F36: 0 | G36: 0 | H36: 0 | I36: 0 | J36: 0 | K36: 0 | L36: 0 | N36: 0 | O36: 0 | P36: 0 | Q36: 0 | R36: 0 | S36: 0 | T36: 0 | U36: 0 | V36: 0 | W36: 0 | X36: 0
A37: =IF(RIGHT('Org structure'!D33,18)<>"[Name of sub-vote]",'Org structure'!D33,"") -> 3.9 - Tourism | C37: 0 | D37: 0 | E37: 0 | F37: 0 | G37: 0 | H37: 0 | I37: 0 | J37: 0 | K37: 0 | L37: 0 | N37: 0 | O37: 0 | P37: 0 | Q37: 0 | R37: 0 | S37: 0 | T37: 0 | U37: 0 | V37: 0 | W37: 0 | X37: 0
A38: =IF(RIGHT('Org structure'!D34,18)<>"[Name of sub-vote]",'Org structure'!D34,"") -> 3.10 - Aged Care | C38: 0 | D38: 0 | E38: 0 | F38: 0 | G38: 0 | H38: 0 | I38: 0 | J38: 0 | K38: 0 | L38: 0 | N38: 0 | O38: 0 | P38: 0 | Q38: 0 | R38: 0 | S38: 0 | T38: 0 | U38: 0 | V38: 0 | W38: 0 | X38: 0
A39: ='Org structure'!A5 -> Vote 4 - Housing | C39: =SUM(C40:C49) -> 0 | D39: =SUM(D40:D49) -> 0 | E39: 0 | F39: 0 | G39: 0 | H39: 0 | I39: =SUM(I40:I49) -> 0 | J39: 0 | K39: 0 | L39: 0 | N39: =SUM(N40:N49) -> 0 | O39: 0 | P39: 0 | Q39: 0 | R39: 0 | S39: 0 | T39: 0 | U39: 0 | V39: 0 | W39: 0 | X39: 0
A40: =IF(RIGHT('Org structure'!D36,18)<>"[Name of sub-vote]",'Org structure'!D36,"") -> 4.1 - Housing | C40: 0 | D40: 0 | E40: 0 | F40: 0 | G40: 0 | H40: 0 | I40: 0 | J40: =Q40+V40 -> 0 | K40: =U40+W40 -> 0 | L40: =X40 -> 0 | N40: 0 | O40: 0 | P40: 0 | Q40: =SUM(N40:P40) -> 0 | R40: 0 | S40: 0 | T40: 0 | U40: =SUM(R40:T40) -> 0 | V40: 0 | W40: 0 | X40: 0
A41: =IF(RIGHT('Org structure'!D37,18)<>"[Name of sub-vote]",'Org structure'!D37,"") ->  | C41: 0 | D41: 0 | E41: 0 | F41: 0 | G41: 0 | H41: 0 | I41: 0 | J41: 0 | K41: 0 | L41: 0 | N41: 0 | O41: 0 | P41: 0 | Q41: 0 | R41: 0 | S41: 0 | T41: 0 | U41: 0 | V41: 0 | W41: 0 | X41: 0
A42: =IF(RIGHT('Org structure'!D38,18)<>"[Name of sub-vote]",'Org structure'!D38,"") ->  | C42: 0 | D42: 0 | E42: 0 | F42: 0 | G42: 0 | H42: 0 | I42: 0 | J42: 0 | K42: 0 | L42: 0 | N42: 0 | O42: 0 | P42: 0 | Q42: 0 | R42: 0 | S42: 0 | T42: 0 | U42: 0 | V42: 0 | W42: 0 | X42: 0
A43: =IF(RIGHT('Org structure'!D39,18)<>"[Name of sub-vote]",'Org structure'!D39,"") ->  | C43: 0 | D43: 0 | E43: 0 | F43: 0 | G43: 0 | H43: 0 | I43: 0 | J43: 0 | K43: 0 | L43: 0 | N43: 0 | O43: 0 | P43: 0 | Q43: 0 | R43: 0 | S43: 0 | T43: 0 | U43: 0 | V43: 0 | W43: 0 | X43: 0
A44: =IF(RIGHT('Org structure'!D40,18)<>"[Name of sub-vote]",'Org structure'!D40,"") ->  | C44: 0 | D44: 0 | E44: 0 | F44: 0 | G44: 0 | H44: 0 | I44: 0 | J44: 0 | K44: 0 | L44: 0 | N44: 0 | O44: 0 | P44: 0 | Q44: 0 | R44: 0 | S44: 0 | T44: 0 | U44: 0 | V44: 0 | W44: 0 | X44: 0
A45: =IF(RIGHT('Org structure'!D41,18)<>"[Name of sub-vote]",'Org structure'!D41,"") ->  | C45: 0 | D45: 0 | E45: 0 | F45: 0 | G45: 0 | H45: 0 | I45: 0 | J45: 0 | K45: 0 | L45: 0 | N45: 0 | O45: 0 | P45: 0 | Q45: 0 | R45: 0 | S45: 0 | T45: 0 | U45: 0 | V45: 0 | W45: 0 | X45: 0
A46: =IF(RIGHT('Org structure'!D42,18)<>"[Name of sub-vote]",'Org structure'!D42,"") ->  | C46: 0 | D46: 0 | E46: 0 | F46: 0 | G46: 0 | H46: 0 | I46: 0 | J46: 0 | K46: 0 | L46: 0 | N46: 0 | O46: 0 | P46: 0 | Q46: 0 | R46: 0 | S46: 0 | T46: 0 | U46: 0 | V46: 0 | W46: 0 | X46: 0
A47: =IF(RIGHT('Org structure'!D43,18)<>"[Name of sub-vote]",'Org structure'!D43,"") ->  | C47: 0 | D47: 0 | E47: 0 | F47: 0 | G47: 0 | H47: 0 | I47: 0 | J47: 0 | K47: 0 | L47: 0 | N47: 0 | O47: 0 | P47: 0 | Q47: 0 | R47: 0 | S47: 0 | T47: 0 | U47: 0 | V47: 0 | W47: 0 | X47: 0
A48: =IF(RIGHT('Org structure'!D44,18)<>"[Name of sub-vote]",'Org structure'!D44,"") ->  | C48: 0 | D48: 0 | E48: 0 | F48: 0 | G48: 0 | H48: 0 | I48: 0 | J48: 0 | K48: 0 | L48: 0 | N48: 0 | O48: 0 | P48: 0 | Q48: 0 | R48: 0 | S48: 0 | T48: 0 | U48: 0 | V48: 0 | W48: 0 | X48: 0
A49: =IF(RIGHT('Org structure'!D45,18)<>"[Name of sub-vote]",'Org structure'!D45,"") ->  | C49: 0 | D49: 0 | E49: 0 | F49: 0 | G49: 0 | H49: 0 | I49: 0 | J49: 0 | K49: 0 | L49: 0 | N49: 0 | O49: 0 | P49: 0 | Q49: 0 | R49: 0 | S49: 0 | T49: 0 | U49: 0 | V49: 0 | W49: 0 | X49: 0
A50: ='Org structure'!A6 -> Vote 5 - Public Safety | C50: =SUM(C51:C60) -> 0 | D50: =SUM(D51:D60) -> 0 | E50: 0 | F50: 0 | G50: 0 | H50: 0 | I50: =SUM(I51:I60) -> 0 | J50: 0 | K50: 0 | L50: 0 | N50: =SUM(N51:N60) -> 0 | O50: 0 | P50: 0 | Q50: 0 | R50: 0 | S50: 0 | T50: 0 | U50: 0 | V50: 0 | W50: 0 | X50: 0
A51: =IF(RIGHT('Org structure'!D47,18)<>"[Name of sub-vote]",'Org structure'!D47,"") -> 5.1 - Civil Defence | C51: 0 | D51: 0 | E51: 0 | F51: 0 | G51: 0 | H51: 0 | I51: 0 | J51: =Q51+V51 -> 0 | K51: =U51+W51 -> 0 | L51: =X51 -> 0 | N51: 0 | O51: 0 | P51: 0 | Q51: =SUM(N51:P51) -> 0 | R51: 0 | S51: 0 | T51: 0 | U51: =SUM(R51:T51) -> 0 | V51: 0 | W51: 0 | X51: 0
A52: =IF(RIGHT('Org structure'!D48,18)<>"[Name of sub-vote]",'Org structure'!D48,"") -> 5.2 - Fire Fighting and Protection | C52: 0 | D52: 0 | E52: 0 | F52: 0 | G52: 0 | H52: 0 | I52: 0 | J52: 0 | K52: 0 | L52: 0 | N52: 0 | O52: 0 | P52: 0 | Q52: 0 | R52: 0 | S52: 0 | T52: 0 | U52: 0 | V52: 0 | W52: 0 | X52: 0
A53: =IF(RIGHT('Org structure'!D49,18)<>"[Name of sub-vote]",'Org structure'!D49,"") ->  | C53: 0 | D53: 0 | E53: 0 | F53: 0 | G53: 0 | H53: 0 | I53: 0 | J53: 0 | K53: 0 | L53: 0 | N53: 0 | O53: 0 | P53: 0 | Q53: 0 | R53: 0 | S53: 0 | T53: 0 | U53: 0 | V53: 0 | W53: 0 | X53: 0
A54: =IF(RIGHT('Org structure'!D50,18)<>"[Name of sub-vote]",'Org structure'!D50,"") ->  | C54: 0 | D54: 0 | E54: 0 | F54: 0 | G54: 0 | H54: 0 | I54: 0 | J54: 0 | K54: 0 | L54: 0 | N54: 0 | O54: 0 | P54: 0 | Q54: 0 | R54: 0 | S54: 0 | T54: 0 | U54: 0 | V54: 0 | W54: 0 | X54: 0
A55: =IF(RIGHT('Org structure'!D51,18)<>"[Name of sub-vote]",'Org structure'!D51,"") ->  | C55: 0 | D55: 0 | E55: 0 | F55: 0 | G55: 0 | H55: 0 | I55: 0 | J55: 0 | K55: 0 | L55: 0 | N55: 0 | O55: 0 | P55: 0 | Q55: 0 | R55: 0 | S55: 0 | T55: 0 | U55: 0 | V55: 0 | W55: 0 | X55: 0
A56: =IF(RIGHT('Org structure'!D52,18)<>"[Name of sub-vote]",'Org structure'!D52,"") ->  | C56: 0 | D56: 0 | E56: 0 | F56: 0 | G56: 0 | H56: 0 | I56: 0 | J56: 0 | K56: 0 | L56: 0 | N56: 0 | O56: 0 | P56: 0 | Q56: 0 | R56: 0 | S56: 0 | T56: 0 | U56: 0 | V56: 0 | W56: 0 | X56: 0
A57: =IF(RIGHT('Org structure'!D53,18)<>"[Name of sub-vote]",'Org structure'!D53,"") ->  | C57: 0 | D57: 0 | E57: 0 | F57: 0 | G57: 0 | H57: 0 | I57: 0 | J57: 0 | K57: 0 | L57: 0 | N57: 0 | O57: 0 | P57: 0 | Q57: 0 | R57: 0 | S57: 0 | T57: 0 | U57: 0 | V57: 0 | W57: 0 | X57: 0
A58: =IF(RIGHT('Org structure'!D54,18)<>"[Name of sub-vote]",'Org structure'!D54,"") ->  | C58: 0 | D58: 0 | E58: 0 | F58: 0 | G58: 0 | H58: 0 | I58: 0 | J58: 0 | K58: 0 | L58: 0 | N58: 0 | O58: 0 | P58: 0 | Q58: 0 | R58: 0 | S58: 0 | T58: 0 | U58: 0 | V58: 0 | W58: 0 | X58: 0
A59: =IF(RIGHT('Org structure'!D55,18)<>"[Name of sub-vote]",'Org structure'!D55,"") ->  | C59: 0 | D59: 0 | E59: 0 | F59: 0 | G59: 0 | H59: 0 | I59: 0 | J59: 0 | K59: 0 | L59: 0 | N59: 0 | O59: 0 | P59: 0 | Q59: 0 | R59: 0 | S59: 0 | T59: 0 | U59: 0 | V59: 0 | W59: 0 | X59: 0
A60: =IF(RIGHT('Org structure'!D56,18)<>"[Name of sub-vote]",'Org structure'!D56,"") ->  | C60: 0 | D60: 0 | E60: 0 | F60: 0 | G60: 0 | H60: 0 | I60: 0 | J60: 0 | K60: 0 | L60: 0 | N60: 0 | O60: 0 | P60: 0 | Q60: 0 | R60: 0 | S60: 0 | T60: 0 | U60: 0 | V60: 0 | W60: 0 | X60: 0
A61: ='Org structure'!A7 -> Vote 6 - Road Transport | C61: =SUM(C62:C71) -> 0 | D61: =SUM(D62:D71) -> 0 | E61: 0 | F61: 0 | G61: 0 | H61: 0 | I61: =SUM(I62:I71) -> 0 | J61: 0 | K61: 0 | L61: 0 | N61: =SUM(N62:N71) -> 0 | O61: 0 | P61: 0 | Q61: 0 | R61: 0 | S61: 0 | T61: 0 | U61: 0 | V61: 0 | W61: 0 | X61: 0
A62: =IF(RIGHT('Org structure'!D58,18)<>"[Name of sub-vote]",'Org structure'!D58,"") -> 6.1 - Roads | C62: 0 | D62: 0 | E62: 0 | F62: 0 | G62: 0 | H62: 0 | I62: 0 | J62: =Q62+V62 -> 0 | K62: =U62+W62 -> 0 | L62: =X62 -> 0 | N62: 0 | O62: 0 | P62: 0 | Q62: =SUM(N62:P62) -> 0 | R62: 0 | S62: 0 | T62: 0 | U62: =SUM(R62:T62) -> 0 | V62: 0 | W62: 0 | X62: 0
A63: =IF(RIGHT('Org structure'!D59,18)<>"[Name of sub-vote]",'Org structure'!D59,"") ->  | C63: 0 | D63: 0 | E63: 0 | F63: 0 | G63: 0 | H63: 0 | I63: 0 | J63: 0 | K63: 0 | L63: 0 | N63: 0 | O63: 0 | P63: 0 | Q63: 0 | R63: 0 | S63: 0 | T63: 0 | U63: 0 | V63: 0 | W63: 0 | X63: 0
A64: =IF(RIGHT('Org structure'!D60,18)<>"[Name of sub-vote]",'Org structure'!D60,"") ->  | C64: 0 | D64: 0 | E64: 0 | F64: 0 | G64: 0 | H64: 0 | I64: 0 | J64: 0 | K64: 0 | L64: 0 | N64: 0 | O64: 0 | P64: 0 | Q64: 0 | R64: 0 | S64: 0 | T64: 0 | U64: 0 | V64: 0 | W64: 0 | X64: 0
A65: =IF(RIGHT('Org structure'!D61,18)<>"[Name of sub-vote]",'Org structure'!D61,"") ->  | C65: 0 | D65: 0 | E65: 0 | F65: 0 | G65: 0 | H65: 0 | I65: 0 | J65: 0 | K65: 0 | L65: 0 | N65: 0 | O65: 0 | P65: 0 | Q65: 0 | R65: 0 | S65: 0 | T65: 0 | U65: 0 | V65: 0 | W65: 0 | X65: 0
A66: =IF(RIGHT('Org structure'!D62,18)<>"[Name of sub-vote]",'Org structure'!D62,"") ->  | C66: 0 | D66: 0 | E66: 0 | F66: 0 | G66: 0 | H66: 0 | I66: 0 | J66: 0 | K66: 0 | L66: 0 | N66: 0 | O66: 0 | P66: 0 | Q66: 0 | R66: 0 | S66: 0 | T66: 0 | U66: 0 | V66: 0 | W66: 0 | X66: 0
A67: =IF(RIGHT('Org structure'!D63,18)<>"[Name of sub-vote]",'Org structure'!D63,"") ->  | C67: 0 | D67: 0 | E67: 0 | F67: 0 | G67: 0 | H67: 0 | I67: 0 | J67: 0 | K67: 0 | L67: 0 | N67: 0 | O67: 0 | P67: 0 | Q67: 0 | R67: 0 | S67: 0 | T67: 0 | U67: 0 | V67: 0 | W67: 0 | X67: 0
A68: =IF(RIGHT('Org structure'!D64,18)<>"[Name of sub-vote]",'Org structure'!D64,"") ->  | C68: 0 | D68: 0 | E68: 0 | F68: 0 | G68: 0 | H68: 0 | I68: 0 | J68: 0 | K68: 0 | L68: 0 | N68: 0 | O68: 0 | P68: 0 | Q68: 0 | R68: 0 | S68: 0 | T68: 0 | U68: 0 | V68: 0 | W68: 0 | X68: 0
A69: =IF(RIGHT('Org structure'!D65,18)<>"[Name of sub-vote]",'Org structure'!D65,"") ->  | C69: 0 | D69: 0 | E69: 0 | F69: 0 | G69: 0 | H69: 0 | I69: 0 | J69: 0 | K69: 0 | L69: 0 | N69: 0 | O69: 0 | P69: 0 | Q69: 0 | R69: 0 | S69: 0 | T69: 0 | U69: 0 | V69: 0 | W69: 0 | X69: 0
A70: =IF(RIGHT('Org structure'!D66,18)<>"[Name of sub-vote]",'Org structure'!D66,"") ->  | C70: 0 | D70: 0 | E70: 0 | F70: 0 | G70: 0 | H70: 0 | I70: 0 | J70: 0 | K70: 0 | L70: 0 | N70: 0 | O70: 0 | P70: 0 | Q70: 0 | R70: 0 | S70: 0 | T70: 0 | U70: 0 | V70: 0 | W70: 0 | X70: 0
A71: =IF(RIGHT('Org structure'!D67,18)<>"[Name of sub-vote]",'Org structure'!D67,"") ->  | C71: 0 | D71: 0 | E71: 0 | F71: 0 | G71: 0 | H71: 0 | I71: 0 | J71: 0 | K71: 0 | L71: 0 | N71: 0 | O71: 0 | P71: 0 | Q71: 0 | R71: 0 | S71: 0 | T71: 0 | U71: 0 | V71: 0 | W71: 0 | X71: 0
A72: ='Org structure'!A8 -> Vote 7 - Waste Management | C72: =SUM(C73:C82) -> 0 | D72: 0 | E72: 0 | F72: 0 | G72: 0 | H72: 0 | I72: 0 | J72: 0 | K72: 0 | L72: 0 | N72: =SUM(N73:N82) -> 0 | O72: 0 | P72: 0 | Q72: 0 | R72: 0 | S72: 0 | T72: 0 | U72: 0 | V72: 0 | W72: 0 | X72: 0
A73: =IF(RIGHT('Org structure'!D69,18)<>"[Name of sub-vote]",'Org structure'!D69,"") -> 7.1 - Solid Waste Removal | C73: 0 | D73: 0 | E73: 0 | F73: 0 | G73: 0 | H73: 0 | I73: 0 | J73: =Q73+V73 -> 0 | K73: =U73+W73 -> 0 | L73: =X73 -> 0 | N73: 0 | O73: 0 | P73: 0 | Q73: =SUM(N73:P73) -> 0 | R73: 0 | S73: 0 | T73: 0 | U73: =SUM(R73:T73) -> 0 | V73: 0 | W73: 0 | X73: 0
A74: =IF(RIGHT('Org structure'!D70,18)<>"[Name of sub-vote]",'Org structure'!D70,"") ->  | C74: 0 | D74: 0 | E74: 0 | F74: 0 | G74: 0 | H74: 0 | I74: 0 | J74: 0 | K74: 0 | L74: 0 | N74: 0 | O74: 0 | P74: 0 | Q74: 0 | R74: 0 | S74: 0 | T74: 0 | U74: 0 | V74: 0 | W74: 0 | X74: 0
A75: =IF(RIGHT('Org structure'!D71,18)<>"[Name of sub-vote]",'Org structure'!D71,"") ->  | C75: 0 | D75: 0 | E75: 0 | F75: 0 | G75: 0 | H75: 0 | I75: 0 | J75: 0 | K75: 0 | L75: 0 | N75: 0 | O75: 0 | P75: 0 | Q75: 0 | R75: 0 | S75: 0 | T75: 0 | U75: 0 | V75: 0 | W75: 0 | X75: 0
A76: =IF(RIGHT('Org structure'!D72,18)<>"[Name of sub-vote]",'Org structure'!D72,"") ->  | C76: 0 | D76: 0 | E76: 0 | F76: 0 | G76: 0 | H76: 0 | I76: 0 | J76: 0 | K76: 0 | L76: 0 | N76: 0 | O76: 0 | P76: 0 | Q76: 0 | R76: 0 | S76: 0 | T76: 0 | U76: 0 | V76: 0 | W76: 0 | X76: 0
A77: =IF(RIGHT('Org structure'!D73,18)<>"[Name of sub-vote]",'Org structure'!D73,"") ->  | C77: 0 | D77: 0 | E77: 0 | F77: 0 | G77: 0 | H77: 0 | I77: 0 | J77: 0 | K77: 0 | L77: 0 | N77: 0 | O77: 0 | P77: 0 | Q77: 0 | R77: 0 | S77: 0 | T77: 0 | U77: 0 | V77: 0 | W77: 0 | X77: 0
A78: =IF(RIGHT('Org structure'!D74,18)<>"[Name of sub-vote]",'Org structure'!D74,"") ->  | C78: 0 | D78: 0 | E78: 0 | F78: 0 | G78: 0 | H78: 0 | I78: 0 | J78: 0 | K78: 0 | L78: 0 | N78: 0 | O78: 0 | P78: 0 | Q78: 0 | R78: 0 | S78: 0 | T78: 0 | U78: 0 | V78: 0 | W78: 0 | X78: 0
A79: =IF(RIGHT('Org structure'!D75,18)<>"[Name of sub-vote]",'Org structure'!D75,"") ->  | C79: 0 | D79: 0 | E79: 0 | F79: 0 | G79: 0 | H79: 0 | I79: 0 | J79: 0 | K79: 0 | L79: 0 | N79: 0 | O79: 0 | P79: 0 | Q79: 0 | R79: 0 | S79: 0 | T79: 0 | U79: 0 | V79: 0 | W79: 0 | X79: 0
A80: =IF(RIGHT('Org structure'!D76,18)<>"[Name of sub-vote]",'Org structure'!D76,"") ->  | C80: 0 | D80: 0 | E80: 0 | F80: 0 | G80: 0 | H80: 0 | I80: 0 | J80: 0 | K80: 0 | L80: 0 | N80: 0 | O80: 0 | P80: 0 | Q80: 0 | R80: 0 | S80: 0 | T80: 0 | U80: 0 | V80: 0 | W80: 0 | X80: 0
A81: =IF(RIGHT('Org structure'!D77,18)<>"[Name of sub-vote]",'Org structure'!D77,"") ->  | C81: 0 | D81: 0 | E81: 0 | F81: 0 | G81: 0 | H81: 0 | I81: 0 | J81: 0 | K81: 0 | L81: 0 | N81: 0 | O81: 0 | P81: 0 | Q81: 0 | R81: 0 | S81: 0 | T81: 0 | U81: 0 | V81: 0 | W81: 0 | X81: 0
A82: =IF(RIGHT('Org structure'!D78,18)<>"[Name of sub-vote]",'Org structure'!D78,"") ->  | C82: 0 | D82: 0 | E82: 0 | F82: 0 | G82: 0 | H82: 0 | I82: 0 | J82: 0 | K82: 0 | L82: 0 | N82: 0 | O82: 0 | P82: 0 | Q82: 0 | R82: 0 | S82: 0 | T82: 0 | U82: 0 | V82: 0 | W82: 0 | X82: 0
A83: ='Org structure'!A9 -> Vote 8 - Energy Sources | C83: =SUM(C84:C93) -> 0 | D83: 0 | E83: 0 | F83: 0 | G83: 0 | H83: 0 | I83: 0 | J83: 0 | K83: 0 | L83: 0 | N83: =SUM(N84:N93) -> 0 | O83: 0 | P83: 0 | Q83: 0 | R83: 0 | S83: 0 | T83: 0 | U83: 0 | V83: 0 | W83: 0 | X83: 0
A84: =IF(RIGHT('Org structure'!D80,18)<>"[Name of sub-vote]",'Org structure'!D80,"") -> 8.1 - Electricity | C84: 0 | D84: 0 | E84: 0 | F84: 0 | G84: 0 | H84: 0 | I84: 0 | J84: =Q84+V84 -> 0 | K84: =U84+W84 -> 0 | L84: =X84 -> 0 | N84: 0 | O84: 0 | P84: 0 | Q84: =SUM(N84:P84) -> 0 | R84: 0 | S84: 0 | T84: 0 | U84: =SUM(R84:T84) -> 0 | V84: 0 | W84: 0 | X84: 0
A85: =IF(RIGHT('Org structure'!D81,18)<>"[Name of sub-vote]",'Org structure'!D81,"") ->  | C85: 0 | D85: 0 | E85: 0 | F85: 0 | G85: 0 | H85: 0 | I85: 0 | J85: 0 | K85: 0 | L85: 0 | N85: 0 | O85: 0 | P85: 0 | Q85: 0 | R85: 0 | S85: 0 | T85: 0 | U85: 0 | V85: 0 | W85: 0 | X85: 0
A86: =IF(RIGHT('Org structure'!D82,18)<>"[Name of sub-vote]",'Org structure'!D82,"") ->  | C86: 0 | D86: 0 | E86: 0 | F86: 0 | G86: 0 | H86: 0 | I86: 0 | J86: 0 | K86: 0 | L86: 0 | N86: 0 | O86: 0 | P86: 0 | Q86: 0 | R86: 0 | S86: 0 | T86: 0 | U86: 0 | V86: 0 | W86: 0 | X86: 0
A87: =IF(RIGHT('Org structure'!D83,18)<>"[Name of sub-vote]",'Org structure'!D83,"") ->  | C87: 0 | D87: 0 | E87: 0 | F87: 0 | G87: 0 | H87: 0 | I87: 0 | J87: 0 | K87: 0 | L87: 0 | N87: 0 | O87: 0 | P87: 0 | Q87: 0 | R87: 0 | S87: 0 | T87: 0 | U87: 0 | V87: 0 | W87: 0 | X87: 0
A88: =IF(RIGHT('Org structure'!D84,18)<>"[Name of sub-vote]",'Org structure'!D84,"") ->  | C88: 0 | D88: 0 | E88: 0 | F88: 0 | G88: 0 | H88: 0 | I88: 0 | J88: 0 | K88: 0 | L88: 0 | N88: 0 | O88: 0 | P88: 0 | Q88: 0 | R88: 0 | S88: 0 | T88: 0 | U88: 0 | V88: 0 | W88: 0 | X88: 0
A89: =IF(RIGHT('Org structure'!D85,18)<>"[Name of sub-vote]",'Org structure'!D85,"") ->  | C89: 0 | D89: 0 | E89: 0 | F89: 0 | G89: 0 | H89: 0 | I89: 0 | J89: 0 | K89: 0 | L89: 0 | N89: 0 | O89: 0 | P89: 0 | Q89: 0 | R89: 0 | S89: 0 | T89: 0 | U89: 0 | V89: 0 | W89: 0 | X89: 0
A90: =IF(RIGHT('Org structure'!D86,18)<>"[Name of sub-vote]",'Org structure'!D86,"") ->  | C90: 0 | D90: 0 | E90: 0 | F90: 0 | G90: 0 | H90: 0 | I90: 0 | J90: 0 | K90: 0 | L90: 0 | N90: 0 | O90: 0 | P90: 0 | Q90: 0 | R90: 0 | S90: 0 | T90: 0 | U90: 0 | V90: 0 | W90: 0 | X90: 0
A91: =IF(RIGHT('Org structure'!D87,18)<>"[Name of sub-vote]",'Org structure'!D87,"") ->  | C91: 0 | D91: 0 | E91: 0 | F91: 0 | G91: 0 | H91: 0 | I91: 0 | J91: 0 | K91: 0 | L91: 0 | N91: 0 | O91: 0 | P91: 0 | Q91: 0 | R91: 0 | S91: 0 | T91: 0 | U91: 0 | V91: 0 | W91: 0 | X91: 0
A92: =IF(RIGHT('Org structure'!D88,18)<>"[Name of sub-vote]",'Org structure'!D88,"") ->  | C92: 0 | D92: 0 | E92: 0 | F92: 0 | G92: 0 | H92: 0 | I92: 0 | J92: 0 | K92: 0 | L92: 0 | N92: 0 | O92: 0 | P92: 0 | Q92: 0 | R92: 0 | S92: 0 | T92: 0 | U92: 0 | V92: 0 | W92: 0 | X92: 0
A93: =IF(RIGHT('Org structure'!D89,18)<>"[Name of sub-vote]",'Org structure'!D89,"") ->  | C93: 0 | D93: 0 | E93: 0 | F93: 0 | G93: 0 | H93: 0 | I93: 0 | J93: 0 | K93: 0 | L93: 0 | N93: 0 | O93: 0 | P93: 0 | Q93: 0 | R93: 0 | S93: 0 | T93: 0 | U93: 0 | V93: 0 | W93: 0 | X93: 0
A94: ='Org structure'!A10 -> Vote 9 - Planning and Development | C94: =SUM(C95:C104) -> 0 | D94: =SUM(D95:D104) -> 0 | E94: 0 | F94: 0 | G94: 0 | H94: 0 | I94: 0 | J94: 0 | K94: 0 | L94: 0 | N94: =SUM(N95:N104) -> 0 | O94: 0 | P94: 0 | Q94: 0 | R94: 0 | S94: 0 | T94: 0 | U94: 0 | V94: 0 | W94: 0 | X94: 0
A95: =IF(RIGHT('Org structure'!D91,18)<>"[Name of sub-vote]",'Org structure'!D91,"") -> 9.1 - Town Planning, Building Regulations and Enforcement, and City Engineer | C95: 0 | D95: 0 | E95: 0 | F95: 0 | G95: 0 | H95: 0 | I95: 0 | J95: =Q95+V95 -> 0 | K95: =U95+W95 -> 0 | L95: =X95 -> 0 | N95: 0 | O95: 0 | P95: 0 | Q95: =SUM(N95:P95) -> 0 | R95: 0 | S95: 0 | T95: 0 | U95: =SUM(R95:T95) -> 0 | V95: 0 | W95: 0 | X95: 0
A96: =IF(RIGHT('Org structure'!D92,18)<>"[Name of sub-vote]",'Org structure'!D92,"") -> 9.2 - Economic Development/Planning | C96: 0 | D96: 0 | E96: 0 | F96: 0 | G96: 0 | H96: 0 | I96: 0 | J96: 0 | K96: 0 | L96: 0 | N96: 0 | O96: 0 | P96: 0 | Q96: 0 | R96: 0 | S96: 0 | T96: 0 | U96: 0 | V96: 0 | W96: 0 | X96: 0
A97: =IF(RIGHT('Org structure'!D93,18)<>"[Name of sub-vote]",'Org structure'!D93,"") -> 9.3 - Regional Planning and Development | C97: 0 | D97: 0 | E97: 0 | F97: 0 | G97: 0 | H97: 0 | I97: 0 | J97: 0 | K97: 0 | L97: 0 | N97: 0 | O97: 0 | P97: 0 | Q97: 0 | R97: 0 | S97: 0 | T97: 0 | U97: 0 | V97: 0 | W97: 0 | X97: 0
A98: =IF(RIGHT('Org structure'!D94,18)<>"[Name of sub-vote]",'Org structure'!D94,"") -> 9.4 - Street Lighting and Signal Systems | C98: 0 | D98: 0 | E98: 0 | F98: 0 | G98: 0 | H98: 0 | I98: 0 | J98: 0 | K98: 0 | L98: 0 | N98: 0 | O98: 0 | P98: 0 | Q98: 0 | R98: 0 | S98: 0 | T98: 0 | U98: 0 | V98: 0 | W98: 0 | X98: 0
A99: =IF(RIGHT('Org structure'!D95,18)<>"[Name of sub-vote]",'Org structure'!D95,"") -> 9.5 - Project Management Unit | C99: 0 | D99: 0 | E99: 0 | F99: 0 | G99: 0 | H99: 0 | I99: 0 | J99: 0 | K99: 0 | L99: 0 | N99: 0 | O99: 0 | P99: 0 | Q99: 0 | R99: 0 | S99: 0 | T99: 0 | U99: 0 | V99: 0 | W99: 0 | X99: 0
A100: =IF(RIGHT('Org structure'!D96,18)<>"[Name of sub-vote]",'Org structure'!D96,"") ->  | C100: 0 | D100: 0 | E100: 0 | F100: 0 | G100: 0 | H100: 0 | I100: 0 | J100: 0 | K100: 0 | L100: 0 | N100: 0 | O100: 0 | P100: 0 | Q100: 0 | R100: 0 | S100: 0 | T100: 0 | U100: 0 | V100: 0 | W100: 0 | X100: 0
A101: =IF(RIGHT('Org structure'!D97,18)<>"[Name of sub-vote]",'Org structure'!D97,"") ->  | C101: 0 | D101: 0 | E101: 0 | F101: 0 | G101: 0 | H101: 0 | I101: 0 | J101: 0 | K101: 0 | L101: 0 | N101: 0 | O101: 0 | P101: 0 | Q101: 0 | R101: 0 | S101: 0 | T101: 0 | U101: 0 | V101: 0 | W101: 0 | X101: 0
A102: =IF(RIGHT('Org structure'!D98,18)<>"[Name of sub-vote]",'Org structure'!D98,"") ->  | C102: 0 | D102: 0 | E102: 0 | F102: 0 | G102: 0 | H102: 0 | I102: 0 | J102: 0 | K102: 0 | L102: 0 | N102: 0 | O102: 0 | P102: 0 | Q102: 0 | R102: 0 | S102: 0 | T102: 0 | U102: 0 | V102: 0 | W102: 0 | X102: 0
A103: =IF(RIGHT('Org structure'!D99,18)<>"[Name of sub-vote]",'Org structure'!D99,"") ->  | C103: 0 | D103: 0 | E103: 0 | F103: 0 | G103: 0 | H103: 0 | I103: 0 | J103: 0 | K103: 0 | L103: 0 | N103: 0 | O103: 0 | P103: 0 | Q103: 0 | R103: 0 | S103: 0 | T103: 0 | U103: 0 | V103: 0 | W103: 0 | X103: 0
A104: =IF(RIGHT('Org structure'!D100,18)<>"[Name of sub-vote]",'Org structure'!D100,"") ->  | C104: 0 | D104: 0 | E104: 0 | F104: 0 | G104: 0 | H104: 0 | I104: 0 | J104: 0 | K104: 0 | L104: 0 | N104: 0 | O104: 0 | P104: 0 | Q104: 0 | R104: 0 | S104: 0 | T104: 0 | U104: 0 | V104: 0 | W104: 0 | X104: 0
A105: ='Org structure'!A11 -> Vote 10 - Sport and Recreation | C105: =SUM(C106:C115) -> 0 | D105: =SUM(D106:D115) -> 0 | E105: 0 | F105: 0 | G105: 0 | H105: 0 | I105: 0 | J105: 0 | K105: 0 | L105: 0 | N105: =SUM(N106:N115) -> 0 | O105: 0 | P105: 0 | Q105: 0 | R105: 0 | S105: 0 | T105: 0 | U105: 0 | V105: 0 | W105: 0 | X105: 0
A106: =IF(RIGHT('Org structure'!D102,18)<>"[Name of sub-vote]",'Org structure'!D102,"") -> 10.1 - Sports Grounds and Stadiums | C106: 0 | D106: 0 | E106: 0 | F106: 0 | G106: 0 | H106: 0 | I106: 0 | J106: =Q106+V106 -> 0 | K106: =U106+W106 -> 0 | L106: =X106 -> 0 | N106: 0 | O106: 0 | P106: 0 | Q106: =SUM(N106:P106) -> 0 | R106: 0 | S106: 0 | T106: 0 | U106: =SUM(R106:T106) -> 0 | V106: 0 | W106: 0 | X106: 0
A107: =IF(RIGHT('Org structure'!D103,18)<>"[Name of sub-vote]",'Org structure'!D103,"") ->  | C107: 0 | D107: 0 | E107: 0 | F107: 0 | G107: 0 | H107: 0 | I107: 0 | J107: 0 | K107: 0 | L107: 0 | N107: 0 | O107: 0 | P107: 0 | Q107: 0 | R107: 0 | S107: 0 | T107: 0 | U107: 0 | V107: 0 | W107: 0 | X107: 0
A108: =IF(RIGHT('Org structure'!D104,18)<>"[Name of sub-vote]",'Org structure'!D104,"") ->  | C108: 0 | D108: 0 | E108: 0 | F108: 0 | G108: 0 | H108: 0 | I108: 0 | J108: 0 | K108: 0 | L108: 0 | N108: 0 | O108: 0 | P108: 0 | Q108: 0 | R108: 0 | S108: 0 | T108: 0 | U108: 0 | V108: 0 | W108: 0 | X108: 0
A109: =IF(RIGHT('Org structure'!D105,18)<>"[Name of sub-vote]",'Org structure'!D105,"") ->  | C109: 0 | D109: 0 | E109: 0 | F109: 0 | G109: 0 | H109: 0 | I109: 0 | J109: 0 | K109: 0 | L109: 0 | N109: 0 | O109: 0 | P109: 0 | Q109: 0 | R109: 0 | S109: 0 | T109: 0 | U109: 0 | V109: 0 | W109: 0 | X109: 0
A110: =IF(RIGHT('Org structure'!D106,18)<>"[Name of sub-vote]",'Org structure'!D106,"") ->  | C110: 0 | D110: 0 | E110: 0 | F110: 0 | G110: 0 | H110: 0 | I110: 0 | J110: 0 | K110: 0 | L110: 0 | N110: 0 | O110: 0 | P110: 0 | Q110: 0 | R110: 0 | S110: 0 | T110: 0 | U110: 0 | V110: 0 | W110: 0 | X110: 0
A111: =IF(RIGHT('Org structure'!D107,18)<>"[Name of sub-vote]",'Org structure'!D107,"") ->  | C111: 0 | D111: 0 | E111: 0 | F111: 0 | G111: 0 | H111: 0 | I111: 0 | J111: 0 | K111: 0 | L111: 0 | N111: 0 | O111: 0 | P111: 0 | Q111: 0 | R111: 0 | S111: 0 | T111: 0 | U111: 0 | V111: 0 | W111: 0 | X111: 0
A112: =IF(RIGHT('Org structure'!D108,18)<>"[Name of sub-vote]",'Org structure'!D108,"") ->  | C112: 0 | D112: 0 | E112: 0 | F112: 0 | G112: 0 | H112: 0 | I112: 0 | J112: 0 | K112: 0 | L112: 0 | N112: 0 | O112: 0 | P112: 0 | Q112: 0 | R112: 0 | S112: 0 | T112: 0 | U112: 0 | V112: 0 | W112: 0 | X112: 0
A113: =IF(RIGHT('Org structure'!D109,18)<>"[Name of sub-vote]",'Org structure'!D109,"") ->  | C113: 0 | D113: 0 | E113: 0 | F113: 0 | G113: 0 | H113: 0 | I113: 0 | J113: 0 | K113: 0 | L113: 0 | N113: 0 | O113: 0 | P113: 0 | Q113: 0 | R113: 0 | S113: 0 | T113: 0 | U113: 0 | V113: 0 | W113: 0 | X113: 0
A114: =IF(RIGHT('Org structure'!D110,18)<>"[Name of sub-vote]",'Org structure'!D110,"") ->  | C114: 0 | D114: 0 | E114: 0 | F114: 0 | G114: 0 | H114: 0 | I114: 0 | J114: 0 | K114: 0 | L114: 0 | N114: 0 | O114: 0 | P114: 0 | Q114: 0 | R114: 0 | S114: 0 | T114: 0 | U114: 0 | V114: 0 | W114: 0 | X114: 0
A115: =IF(RIGHT('Org structure'!D111,18)<>"[Name of sub-vote]",'Org structure'!D111,"") ->  | C115: 0 | D115: 0 | E115: 0 | F115: 0 | G115: 0 | H115: 0 | I115: 0 | J115: 0 | K115: 0 | L115: 0 | N115: 0 | O115: 0 | P115: 0 | Q115: 0 | R115: 0 | S115: 0 | T115: 0 | U115: 0 | V115: 0 | W115: 0 | X115: 0
A116: ='Org structure'!A12 -> Vote 11 - [NAME OF VOTE 11] | C116: =SUM(C117:C126) -> 0 | D116: 0 | E116: 0 | F116: 0 | G116: 0 | H116: 0 | I116: 0 | J116: 0 | K116: 0 | L116: 0 | N116: =SUM(N117:N126) -> 0 | O116: 0 | P116: 0 | Q116: 0 | R116: 0 | S116: 0 | T116: 0 | U116: 0 | V116: 0 | W116: 0 | X116: 0
A117: =IF(RIGHT('Org structure'!D113,18)<>"[Name of sub-vote]",'Org structure'!D113,"") ->  | C117: 0 | D117: 0 | E117: 0 | F117: 0 | G117: 0 | H117: 0 | I117: 0 | J117: =Q117+V117 -> 0 | K117: =U117+W117 -> 0 | L117: =X117 -> 0 | N117: 0 | O117: 0 | P117: 0 | Q117: =SUM(N117:P117) -> 0 | R117: 0 | S117: 0 | T117: 0 | U117: =SUM(R117:T117) -> 0 | V117: 0 | W117: 0 | X117: 0
A118: =IF(RIGHT('Org structure'!D114,18)<>"[Name of sub-vote]",'Org structure'!D114,"") ->  | C118: 0 | D118: 0 | E118: 0 | F118: 0 | G118: 0 | H118: 0 | I118: 0 | J118: 0 | K118: 0 | L118: 0 | N118: 0 | O118: 0 | P118: 0 | Q118: 0 | R118: 0 | S118: 0 | T118: 0 | U118: 0 | V118: 0 | W118: 0 | X118: 0
A119: =IF(RIGHT('Org structure'!D115,18)<>"[Name of sub-vote]",'Org structure'!D115,"") ->  | C119: 0 | D119: 0 | E119: 0 | F119: 0 | G119: 0 | H119: 0 | I119: 0 | J119: 0 | K119: 0 | L119: 0 | N119: 0 | O119: 0 | P119: 0 | Q119: 0 | R119: 0 | S119: 0 | T119: 0 | U119: 0 | V119: 0 | W119: 0 | X119: 0
A120: =IF(RIGHT('Org structure'!D116,18)<>"[Name of sub-vote]",'Org structure'!D116,"") ->  | C120: 0 | D120: 0 | E120: 0 | F120: 0 | G120: 0 | H120: 0 | I120: 0 | J120: 0 | K120: 0 | L120: 0 | N120: 0 | O120: 0 | P120: 0 | Q120: 0 | R120: 0 | S120: 0 | T120: 0 | U120: 0 | V120: 0 | W120: 0 | X120: 0
A121: =IF(RIGHT('Org structure'!D117,18)<>"[Name of sub-vote]",'Org structure'!D117,"") ->  | C121: 0 | D121: 0 | E121: 0 | F121: 0 | G121: 0 | H121: 0 | I121: 0 | J121: 0 | K121: 0 | L121: 0 | N121: 0 | O121: 0 | P121: 0 | Q121: 0 | R121: 0 | S121: 0 | T121: 0 | U121: 0 | V121: 0 | W121: 0 | X121: 0
A122: =IF(RIGHT('Org structure'!D118,18)<>"[Name of sub-vote]",'Org structure'!D118,"") ->  | C122: 0 | D122: 0 | E122: 0 | F122: 0 | G122: 0 | H122: 0 | I122: 0 | J122: 0 | K122: 0 | L122: 0 | N122: 0 | O122: 0 | P122: 0 | Q122: 0 | R122: 0 | S122: 0 | T122: 0 | U122: 0 | V122: 0 | W122: 0 | X122: 0
A123: =IF(RIGHT('Org structure'!D119,18)<>"[Name of sub-vote]",'Org structure'!D119,"") ->  | C123: 0 | D123: 0 | E123: 0 | F123: 0 | G123: 0 | H123: 0 | I123: 0 | J123: 0 | K123: 0 | L123: 0 | N123: 0 | O123: 0 | P123: 0 | Q123: 0 | R123: 0 | S123: 0 | T123: 0 | U123: 0 | V123: 0 | W123: 0 | X123: 0
A124: =IF(RIGHT('Org structure'!D120,18)<>"[Name of sub-vote]",'Org structure'!D120,"") ->  | C124: 0 | D124: 0 | E124: 0 | F124: 0 | G124: 0 | H124: 0 | I124: 0 | J124: 0 | K124: 0 | L124: 0 | N124: 0 | O124: 0 | P124: 0 | Q124: 0 | R124: 0 | S124: 0 | T124: 0 | U124: 0 | V124: 0 | W124: 0 | X124: 0
A125: =IF(RIGHT('Org structure'!D121,18)<>"[Name of sub-vote]",'Org structure'!D121,"") ->  | C125: 0 | D125: 0 | E125: 0 | F125: 0 | G125: 0 | H125: 0 | I125: 0 | J125: 0 | K125: 0 | L125: 0 | N125: 0 | O125: 0 | P125: 0 | Q125: 0 | R125: 0 | S125: 0 | T125: 0 | U125: 0 | V125: 0 | W125: 0 | X125: 0
A126: =IF(RIGHT('Org structure'!D122,18)<>"[Name of sub-vote]",'Org structure'!D122,"") ->  | C126: 0 | D126: 0 | E126: 0 | F126: 0 | G126: 0 | H126: 0 | I126: 0 | J126: 0 | K126: 0 | L126: 0 | N126: 0 | O126: 0 | P126: 0 | Q126: 0 | R126: 0 | S126: 0 | T126: 0 | U126: 0 | V126: 0 | W126: 0 | X126: 0
A127: ='Org structure'!A13 -> Vote 12 - [NAME OF VOTE 12] | C127: =SUM(C128:C137) -> 0 | D127: 0 | E127: 0 | F127: 0 | G127: 0 | H127: 0 | I127: 0 | J127: 0 | K127: 0 | L127: 0 | N127: =SUM(N128:N137) -> 0 | O127: 0 | P127: 0 | Q127: 0 | R127: 0 | S127: 0 | T127: 0 | U127: 0 | V127: 0 | W127: 0 | X127: 0
A128: =IF(RIGHT('Org structure'!D124,18)<>"[Name of sub-vote]",'Org structure'!D124,"") ->  | C128: 0 | D128: 0 | E128: 0 | F128: 0 | G128: 0 | H128: 0 | I128: 0 | J128: =Q128+V128 -> 0 | K128: =U128+W128 -> 0 | L128: =X128 -> 0 | N128: 0 | O128: 0 | P128: 0 | Q128: =SUM(N128:P128) -> 0 | R128: 0 | S128: 0 | T128: 0 | U128: =SUM(R128:T128) -> 0 | V128: 0 | W128: 0 | X128: 0
A129: =IF(RIGHT('Org structure'!D125,18)<>"[Name of sub-vote]",'Org structure'!D125,"") ->  | C129: 0 | D129: 0 | E129: 0 | F129: 0 | G129: 0 | H129: 0 | I129: 0 | J129: 0 | K129: 0 | L129: 0 | N129: 0 | O129: 0 | P129: 0 | Q129: 0 | R129: 0 | S129: 0 | T129: 0 | U129: 0 | V129: 0 | W129: 0 | X129: 0
A130: =IF(RIGHT('Org structure'!D126,18)<>"[Name of sub-vote]",'Org structure'!D126,"") ->  | C130: 0 | D130: 0 | E130: 0 | F130: 0 | G130: 0 | H130: 0 | I130: 0 | J130: 0 | K130: 0 | L130: 0 | N130: 0 | O130: 0 | P130: 0 | Q130: 0 | R130: 0 | S130: 0 | T130: 0 | U130: 0 | V130: 0 | W130: 0 | X130: 0
A131: =IF(RIGHT('Org structure'!D127,18)<>"[Name of sub-vote]",'Org structure'!D127,"") ->  | C131: 0 | D131: 0 | E131: 0 | F131: 0 | G131: 0 | H131: 0 | I131: 0 | J131: 0 | K131: 0 | L131: 0 | N131: 0 | O131: 0 | P131: 0 | Q131: 0 | R131: 0 | S131: 0 | T131: 0 | U131: 0 | V131: 0 | W131: 0 | X131: 0
A132: =IF(RIGHT('Org structure'!D128,18)<>"[Name of sub-vote]",'Org structure'!D128,"") ->  | C132: 0 | D132: 0 | E132: 0 | F132: 0 | G132: 0 | H132: 0 | I132: 0 | J132: 0 | K132: 0 | L132: 0 | N132: 0 | O132: 0 | P132: 0 | Q132: 0 | R132: 0 | S132: 0 | T132: 0 | U132: 0 | V132: 0 | W132: 0 | X132: 0
A133: =IF(RIGHT('Org structure'!D129,18)<>"[Name of sub-vote]",'Org structure'!D129,"") ->  | C133: 0 | D133: 0 | E133: 0 | F133: 0 | G133: 0 | H133: 0 | I133: 0 | J133: =Q133+V133 -> 0 | K133: 0 | L133: 0 | N133: 0 | O133: 0 | P133: 0 | Q133: 0 | R133: 0 | S133: 0 | T133: 0 | U133: 0 | V133: 0 | W133: 0 | X133: 0
A134: =IF(RIGHT('Org structure'!D130,18)<>"[Name of sub-vote]",'Org structure'!D130,"") ->  | C134: 0 | D134: 0 | E134: 0 | F134: 0 | G134: 0 | H134: 0 | I134: 0 | J134: 0 | K134: 0 | L134: 0 | N134: 0 | O134: 0 | P134: 0 | Q134: 0 | R134: 0 | S134: 0 | T134: 0 | U134: 0 | V134: 0 | W134: 0 | X134: 0
A135: =IF(RIGHT('Org structure'!D131,18)<>"[Name of sub-vote]",'Org structure'!D131,"") ->  | C135: 0 | D135: 0 | E135: 0 | F135: 0 | G135: 0 | H135: 0 | I135: 0 | J135: 0 | K135: 0 | L135: 0 | N135: 0 | O135: 0 | P135: 0 | Q135: 0 | R135: 0 | S135: 0 | T135: 0 | U135: 0 | V135: 0 | W135: 0 | X135: 0
A136: =IF(RIGHT('Org structure'!D132,18)<>"[Name of sub-vote]",'Org structure'!D132,"") ->  | C136: 0 | D136: 0 | E136: 0 | F136: 0 | G136: 0 | H136: 0 | I136: 0 | J136: 0 | K136: 0 | L136: 0 | N136: 0 | O136: 0 | P136: 0 | Q136: 0 | R136: 0 | S136: 0 | T136: 0 | U136: 0 | V136: 0 | W136: 0 | X136: 0
A137: =IF(RIGHT('Org structure'!D133,18)<>"[Name of sub-vote]",'Org structure'!D133,"") ->  | C137: 0 | D137: 0 | E137: 0 | F137: 0 | G137: 0 | H137: 0 | I137: 0 | J137: 0 | K137: 0 | L137: 0 | N137: 0 | O137: 0 | P137: 0 | Q137: 0 | R137: 0 | S137: 0 | T137: 0 | U137: 0 | V137: 0 | W137: 0 | X137: 0
A138: ='Org structure'!A14 -> Vote 13 - [NAME OF VOTE 13] | C138: =SUM(C139:C148) -> 0 | D138: 0 | E138: 0 | F138: 0 | G138: 0 | H138: 0 | I138: 0 | J138: 0 | K138: 0 | L138: 0 | N138: =SUM(N139:N148) -> 0 | O138: 0 | P138: 0 | Q138: 0 | R138: 0 | S138: 0 | T138: 0 | U138: 0 | V138: 0 | W138: 0 | X138: 0
A139: =IF(RIGHT('Org structure'!D135,18)<>"[Name of sub-vote]",'Org structure'!D135,"") ->  | C139: 0 | D139: 0 | E139: 0 | F139: 0 | G139: 0 | H139: 0 | I139: 0 | J139: =Q139+V139 -> 0 | K139: =U139+W139 -> 0 | L139: =X139 -> 0 | N139: 0 | O139: 0 | P139: 0 | Q139: =SUM(N139:P139) -> 0 | R139: 0 | S139: 0 | T139: 0 | U139: =SUM(R139:T139) -> 0 | V139: 0 | W139: 0 | X139: 0
A140: =IF(RIGHT('Org structure'!D136,18)<>"[Name of sub-vote]",'Org structure'!D136,"") ->  | C140: 0 | D140: 0 | E140: 0 | F140: 0 | G140: 0 | H140: 0 | I140: 0 | J140: 0 | K140: 0 | L140: 0 | N140: 0 | O140: 0 | P140: 0 | Q140: 0 | R140: 0 | S140: 0 | T140: 0 | U140: 0 | V140: 0 | W140: 0 | X140: 0
A141: =IF(RIGHT('Org structure'!D137,18)<>"[Name of sub-vote]",'Org structure'!D137,"") ->  | C141: 0 | D141: 0 | E141: 0 | F141: 0 | G141: 0 | H141: 0 | I141: 0 | J141: 0 | K141: 0 | L141: 0 | N141: 0 | O141: 0 | P141: 0 | Q141: 0 | R141: 0 | S141: 0 | T141: 0 | U141: 0 | V141: 0 | W141: 0 | X141: 0
A142: =IF(RIGHT('Org structure'!D138,18)<>"[Name of sub-vote]",'Org structure'!D138,"") ->  | C142: 0 | D142: 0 | E142: 0 | F142: 0 | G142: 0 | H142: 0 | I142: 0 | J142: 0 | K142: 0 | L142: 0 | N142: 0 | O142: 0 | P142: 0 | Q142: 0 | R142: 0 | S142: 0 | T142: 0 | U142: 0 | V142: 0 | W142: 0 | X142: 0
A143: =IF(RIGHT('Org structure'!D139,18)<>"[Name of sub-vote]",'Org structure'!D139,"") ->  | C143: 0 | D143: 0 | E143: 0 | F143: 0 | G143: 0 | H143: 0 | I143: 0 | J143: 0 | K143: 0 | L143: 0 | N143: 0 | O143: 0 | P143: 0 | Q143: 0 | R143: 0 | S143: 0 | T143: 0 | U143: 0 | V143: 0 | W143: 0 | X143: 0
A144: =IF(RIGHT('Org structure'!D140,18)<>"[Name of sub-vote]",'Org structure'!D140,"") ->  | C144: 0 | D144: 0 | E144: 0 | F144: 0 | G144: 0 | H144: 0 | I144: 0 | J144: 0 | K144: 0 | L144: 0 | N144: 0 | O144: 0 | P144: 0 | Q144: 0 | R144: 0 | S144: 0 | T144: 0 | U144: 0 | V144: 0 | W144: 0 | X144: 0
A145: =IF(RIGHT('Org structure'!D141,18)<>"[Name of sub-vote]",'Org structure'!D141,"") ->  | C145: 0 | D145: 0 | E145: 0 | F145: 0 | G145: 0 | H145: 0 | I145: 0 | J145: 0 | K145: 0 | L145: 0 | N145: 0 | O145: 0 | P145: 0 | Q145: 0 | R145: 0 | S145: 0 | T145: 0 | U145: 0 | V145: 0 | W145: 0 | X145: 0
A146: =IF(RIGHT('Org structure'!D142,18)<>"[Name of sub-vote]",'Org structure'!D142,"") ->  | C146: 0 | D146: 0 | E146: 0 | F146: 0 | G146: 0 | H146: 0 | I146: 0 | J146: 0 | K146: 0 | L146: 0 | N146: 0 | O146: 0 | P146: 0 | Q146: 0 | R146: 0 | S146: 0 | T146: 0 | U146: 0 | V146: 0 | W146: 0 | X146: 0
A147: =IF(RIGHT('Org structure'!D143,18)<>"[Name of sub-vote]",'Org structure'!D143,"") ->  | C147: 0 | D147: 0 | E147: 0 | F147: 0 | G147: 0 | H147: 0 | I147: 0 | J147: 0 | K147: 0 | L147: 0 | N147: 0 | O147: 0 | P147: 0 | Q147: 0 | R147: 0 | S147: 0 | T147: 0 | U147: 0 | V147: 0 | W147: 0 | X147: 0
A148: =IF(RIGHT('Org structure'!D144,18)<>"[Name of sub-vote]",'Org structure'!D144,"") ->  | C148: 0 | D148: 0 | E148: 0 | F148: 0 | G148: 0 | H148: 0 | I148: 0 | J148: 0 | K148: 0 | L148: 0 | N148: 0 | O148: 0 | P148: 0 | Q148: 0 | R148: 0 | S148: 0 | T148: 0 | U148: 0 | V148: 0 | W148: 0 | X148: 0
A149: ='Org structure'!A15 -> Vote 14 - [NAME OF VOTE 14] | C149: =SUM(C150:C159) -> 0 | D149: 0 | E149: 0 | F149: 0 | G149: 0 | H149: 0 | I149: 0 | J149: 0 | K149: 0 | L149: 0 | N149: =SUM(N150:N159) -> 0 | O149: 0 | P149: 0 | Q149: 0 | R149: 0 | S149: 0 | T149: 0 | U149: 0 | V149: 0 | W149: 0 | X149: 0
A150: =IF(RIGHT('Org structure'!D146,18)<>"[Name of sub-vote]",'Org structure'!D146,"") ->  | C150: 0 | D150: 0 | E150: 0 | F150: 0 | G150: 0 | H150: 0 | I150: 0 | J150: =Q150+V150 -> 0 | K150: =U150+W150 -> 0 | L150: =X150 -> 0 | N150: 0 | O150: 0 | P150: 0 | Q150: =SUM(N150:P150) -> 0 | R150: 0 | S150: 0 | T150: 0 | U150: =SUM(R150:T150) -> 0 | V150: 0 | W150: 0 | X150: 0
A151: =IF(RIGHT('Org structure'!D147,18)<>"[Name of sub-vote]",'Org structure'!D147,"") ->  | C151: 0 | D151: 0 | E151: 0 | F151: 0 | G151: 0 | H151: 0 | I151: 0 | J151: 0 | K151: 0 | L151: 0 | N151: 0 | O151: 0 | P151: 0 | Q151: 0 | R151: 0 | S151: 0 | T151: 0 | U151: 0 | V151: 0 | W151: 0 | X151: 0
A152: =IF(RIGHT('Org structure'!D148,18)<>"[Name of sub-vote]",'Org structure'!D148,"") ->  | C152: 0 | D152: 0 | E152: 0 | F152: 0 | G152: 0 | H152: 0 | I152: 0 | J152: 0 | K152: 0 | L152: 0 | N152: 0 | O152: 0 | P152: 0 | Q152: 0 | R152: 0 | S152: 0 | T152: 0 | U152: 0 | V152: 0 | W152: 0 | X152: 0
A153: =IF(RIGHT('Org structure'!D149,18)<>"[Name of sub-vote]",'Org structure'!D149,"") ->  | C153: 0 | D153: 0 | E153: 0 | F153: 0 | G153: 0 | H153: 0 | I153: 0 | J153: 0 | K153: 0 | L153: 0 | N153: 0 | O153: 0 | P153: 0 | Q153: 0 | R153: 0 | S153: 0 | T153: 0 | U153: 0 | V153: 0 | W153: 0 | X153: 0
A154: =IF(RIGHT('Org structure'!D150,18)<>"[Name of sub-vote]",'Org structure'!D150,"") ->  | C154: 0 | D154: 0 | E154: 0 | F154: 0 | G154: 0 | H154: 0 | I154: 0 | J154: 0 | K154: 0 | L154: 0 | N154: 0 | O154: 0 | P154: 0 | Q154: 0 | R154: 0 | S154: 0 | T154: 0 | U154: 0 | V154: 0 | W154: 0 | X154: 0
A155: =IF(RIGHT('Org structure'!D151,18)<>"[Name of sub-vote]",'Org structure'!D151,"") ->  | C155: 0 | D155: 0 | E155: 0 | F155: 0 | G155: 0 | H155: 0 | I155: 0 | J155: 0 | K155: 0 | L155: 0 | N155: 0 | O155: 0 | P155: 0 | Q155: 0 | R155: 0 | S155: 0 | T155: 0 | U155: 0 | V155: 0 | W155: 0 | X155: 0
A156: =IF(RIGHT('Org structure'!D152,18)<>"[Name of sub-vote]",'Org structure'!D152,"") ->  | C156: 0 | D156: 0 | E156: 0 | F156: 0 | G156: 0 | H156: 0 | I156: 0 | J156: 0 | K156: 0 | L156: 0 | N156: 0 | O156: 0 | P156: 0 | Q156: 0 | R156: 0 | S156: 0 | T156: 0 | U156: 0 | V156: 0 | W156: 0 | X156: 0
A157: =IF(RIGHT('Org structure'!D153,18)<>"[Name of sub-vote]",'Org structure'!D153,"") ->  | C157: 0 | D157: 0 | E157: 0 | F157: 0 | G157: 0 | H157: 0 | I157: 0 | J157: 0 | K157: 0 | L157: 0 | N157: 0 | O157: 0 | P157: 0 | Q157: 0 | R157: 0 | S157: 0 | T157: 0 | U157: 0 | V157: 0 | W157: 0 | X157: 0
A158: =IF(RIGHT('Org structure'!D154,18)<>"[Name of sub-vote]",'Org structure'!D154,"") ->  | C158: 0 | D158: 0 | E158: 0 | F158: 0 | G158: 0 | H158: 0 | I158: 0 | J158: 0 | K158: 0 | L158: 0 | N158: 0 | O158: 0 | P158: 0 | Q158: 0 | R158: 0 | S158: 0 | T158: 0 | U158: 0 | V158: 0 | W158: 0 | X158: 0
A159: =IF(RIGHT('Org structure'!D155,18)<>"[Name of sub-vote]",'Org structure'!D155,"") ->  | C159: 0 | D159: 0 | E159: 0 | F159: 0 | G159: 0 | H159: 0 | I159: 0 | J159: 0 | K159: 0 | L159: 0 | N159: 0 | O159: 0 | P159: 0 | Q159: 0 | R159: 0 | S159: 0 | T159: 0 | U159: 0 | V159: 0 | W159: 0 | X159: 0
A160: ='Org structure'!A16 -> Vote 15 - [NAME OF VOTE 15] | C160: =SUM(C161:C170) -> 0 | D160: 0 | E160: 0 | F160: 0 | G160: 0 | H160: 0 | I160: 0 | J160: 0 | K160: 0 | L160: 0 | N160: 0 | O160: 0 | P160: 0 | Q160: =SUM(Q161:Q170) -> 0 | R160: 0 | S160: 0 | T160: 0 | U160: 0 | V160: 0 | W160: 0 | X160: 0
A161: =IF(RIGHT('Org structure'!D157,18)<>"[Name of sub-vote]",'Org structure'!D157,"") ->  | C161: 0 | D161: 0 | E161: 0 | F161: 0 | G161: 0 | H161: 0 | I161: 0 | J161: =Q161+V161 -> 0 | K161: =U161+W161 -> 0 | L161: =X161 -> 0 | N161: 0 | O161: 0 | P161: 0 | Q161: =SUM(N161:P161) -> 0 | R161: 0 | S161: 0 | T161: 0 | U161: =SUM(R161:T161) -> 0 | V161: 0 | W161: 0 | X161: 0
A162: =IF(RIGHT('Org structure'!D158,18)<>"[Name of sub-vote]",'Org structure'!D158,"") ->  | C162: 0 | D162: 0 | E162: 0 | F162: 0 | G162: 0 | H162: 0 | I162: 0 | J162: 0 | K162: 0 | L162: 0 | N162: 0 | O162: 0 | P162: 0 | Q162: 0 | R162: 0 | S162: 0 | T162: 0 | U162: 0 | V162: 0 | W162: 0 | X162: 0
A163: =IF(RIGHT('Org structure'!D159,18)<>"[Name of sub-vote]",'Org structure'!D159,"") ->  | C163: 0 | D163: 0 | E163: 0 | F163: 0 | G163: 0 | H163: 0 | I163: 0 | J163: 0 | K163: 0 | L163: 0 | N163: 0 | O163: 0 | P163: 0 | Q163: 0 | R163: 0 | S163: 0 | T163: 0 | U163: 0 | V163: 0 | W163: 0 | X163: 0
A164: =IF(RIGHT('Org structure'!D160,18)<>"[Name of sub-vote]",'Org structure'!D160,"") ->  | C164: 0 | D164: 0 | E164: 0 | F164: 0 | G164: 0 | H164: 0 | I164: 0 | J164: 0 | K164: 0 | L164: 0 | N164: 0 | O164: 0 | P164: 0 | Q164: 0 | R164: 0 | S164: 0 | T164: 0 | U164: 0 | V164: 0 | W164: 0 | X164: 0
A165: =IF(RIGHT('Org structure'!D161,18)<>"[Name of sub-vote]",'Org structure'!D161,"") ->  | C165: 0 | D165: 0 | E165: 0 | F165: 0 | G165: 0 | H165: 0 | I165: 0 | J165: 0 | K165: 0 | L165: 0 | N165: 0 | O165: 0 | P165: 0 | Q165: 0 | R165: 0 | S165: 0 | T165: 0 | U165: 0 | V165: 0 | W165: 0 | X165: 0
A166: =IF(RIGHT('Org structure'!D162,18)<>"[Name of sub-vote]",'Org structure'!D162,"") ->  | C166: 0 | D166: 0 | E166: 0 | F166: 0 | G166: 0 | H166: 0 | I166: 0 | J166: 0 | K166: 0 | L166: 0 | N166: 0 | O166: 0 | P166: 0 | Q166: 0 | R166: 0 | S166: 0 | T166: 0 | U166: 0 | V166: 0 | W166: 0 | X166: 0
A167: =IF(RIGHT('Org structure'!D163,18)<>"[Name of sub-vote]",'Org structure'!D163,"") ->  | C167: 0 | D167: 0 | E167: 0 | F167: 0 | G167: 0 | H167: 0 | I167: 0 | J167: 0 | K167: 0 | L167: 0 | N167: 0 | O167: 0 | P167: 0 | Q167: 0 | R167: 0 | S167: 0 | T167: 0 | U167: 0 | V167: 0 | W167: 0 | X167: 0
A168: =IF(RIGHT('Org structure'!D164,18)<>"[Name of sub-vote]",'Org structure'!D164,"") ->  | C168: 0 | D168: 0 | E168: 0 | F168: 0 | G168: 0 | H168: 0 | I168: 0 | J168: 0 | K168: 0 | L168: 0 | N168: 0 | O168: 0 | P168: 0 | Q168: 0 | R168: 0 | S168: 0 | T168: 0 | U168: 0 | V168: 0 | W168: 0 | X168: 0
A169: =IF(RIGHT('Org structure'!D165,18)<>"[Name of sub-vote]",'Org structure'!D165,"") ->  | C169: 0 | D169: 0 | E169: 0 | F169: 0 | G169: 0 | H169: 0 | I169: 0 | J169: 0 | K169: 0 | L169: 0 | N169: 0 | O169: 0 | P169: 0 | Q169: 0 | R169: 0 | S169: 0 | T169: 0 | U169: 0 | V169: 0 | W169: 0 | X169: 0
A170: =IF(RIGHT('Org structure'!D166,18)<>"[Name of sub-vote]",'Org structure'!D166,"") ->  | C170: 0 | D170: 0 | E170: 0 | F170: 0 | G170: 0 | H170: 0 | I170: 0 | J170: 0 | K170: 0 | L170: 0 | N170: 0 | O170: 0 | P170: 0 | Q170: 0 | R170: 0 | S170: 0 | T170: 0 | U170: 0 | V170: 0 | W170: 0 | X170: 0
A171: Capital multi-year expenditure sub-total | C171: =C6+C17+C28+C39+C50+C61+C72+C83+C94+C105+C116+C127+C138+C149+C160 -> 0 | D171: =D6+D17+D28+D39+D50+D61+D72+D83+D94+D105+D116+D127+D138+D149+D160 -> 0 | E171: 0 | F171: 0 | G171: 0 | H171: 0 | I171: 0 | J171: 0 | K171: 0 | L171: 0 | N171: =N6+N17+N28+N39+N50+N61+N72+N83+N94+N105+N116+N127+N138+N149+N160 -> 0 | O171: 0 | P171: 0 | Q171: 0 | R171: 0 | S171: 0 | U171: 0 | V171: =V6+V17+V28+V39+V50+V61+V72+V83+V94+V105+V116+V127+V138+V149+V160 -> 0 | W171: =W6+W17+W28+W39+W50+W61+W72+W83+W94+W105+W116+W127+W138+W149+W160 -> 0
A173: Capital expenditure - Municipal Vote
A174: Single-year expenditure appropriation | B174: 2
A175: =A6 -> Vote 1 - Finance & Admin | C175: =SUM(C176:C185) -> 1982443 | D175: 2402370.71 | E175: 1578705 | F175: 3708000 | G175: 3879805.89 | H175: 3879805.89 | I175: 3879805.89 | J175: 5563800 | K175: 3891747.6 | L175: 4070767.99
A176: =A7 -> 1.1 - Asset Management | F176: 0 | G176: 0 | H176: 0 | I176: 0 | J176: 0 | K176: 0 | L176: 0
A177: 1.2 - Information Technology | F177: 90000 | G177: 90000 | H177: 90000 | I177: 90000 | J177: 0 | K177: 0 | L177: 0
A178: 1.3 - Finance | C178: 261672 | E178: 148501 | F178: 2500000 | G178: 2500000 | H178: 2500000 | I178: 2500000 | J178: 1000000 | K178: 1046000 | L178: 1094116
A179: 1.4 - Fleet Management | F179: 0 | G179: 0 | H179: 0 | I179: 0 | J179: 500000 | K179: 523000 | L179: 547058
A180: 1.5 - Administrative and Corporate Support | C180: 1720771 | D180: 2402370.71 | E180: 1430204 | F180: 1118000 | G180: 1289805.89 | H180: 1289805.89 | I180: 1289805.89 | J180: 4063800 | K180: 2322747.6 | L180: 2429593.99
A181: 1.6 - Property Services | F181: 0 | G181: 0 | H181: 0 | I181: 0 | J181: 0 | K181: 0 | L181: 0
A182: 1.7 - Legal Services | F182: 0 | G182: 0 | H182: 0 | I182: 0 | J182: 0 | K182: 0 | L182: 0
A183: 1.8 - Human Resources | C183: 0 | D183: 0 | E183: 0 | F183: 0 | G183: 0 | H183: 0 | I183: 0 | J183: 0 | K183: 0 | L183: 0
C184: 0 | D184: 0 | E184: 0 | F184: 0 | G184: 0 | H184: 0 | I184: 0 | J184: 0 | K184: 0 | L184: 0
C185: 0 | D185: 0 | E185: 0 | F185: 0 | G185: 0 | H185: 0 | I185: 0 | J185: 0 | K185: 0 | L185: 0
A186: Vote 2 - Executive & Council | C186: =SUM(C187:C196) -> 1013248 | D186: 243160.33 | E186: 552000 | F186: 1130000 | G186: 660000 | H186: 660000 | I186: 660000 | J186: 850000 | K186: 889100 | L186: 929998.6
A187: 2.1 - Mayor and Council | C187: 1013248 | E187: 552000 | F187: 1130000 | G187: 660000 | H187: 660000 | I187: 660000 | J187: 0 | K187: 0 | L187: 0
A188: 2.2 - Municipal Manager, Town Secretary and Chief Executive | C188: 0 | D188: 243160.33 | E188: 0 | F188: 0 | G188: 0 | H188: 0 | I188: 0 | J188: 850000 | K188: 889100 | L188: 929998.6
A189: 2.3 - Governance Function | C189: 0 | D189: 0 | E189: 0 | F189: 0 | G189: 0 | H189: 0 | I189: 0 | J189: 0 | K189: 0 | L189: 0
C190: 0 | D190: 0 | E190: 0 | F190: 0 | G190: 0 | H190: 0 | I190: 0 | J190: 0 | K190: 0 | L190: 0
C191: 0 | D191: 0 | E191: 0 | F191: 0 | G191: 0 | H191: 0 | I191: 0 | J191: 0 | K191: 0 | L191: 0
C192: 0 | D192: 0 | E192: 0 | F192: 0 | G192: 0 | H192: 0 | I192: 0 | J192: 0 | K192: 0 | L192: 0
C193: 0 | D193: 0 | E193: 0 | F193: 0 | G193: 0 | H193: 0 | I193: 0 | J193: 0 | K193: 0 | L193: 0
C194: 0 | D194: 0 | E194: 0 | F194: 0 | G194: 0 | H194: 0 | I194: 0 | J194: 0 | K194: 0 | L194: 0
C195: 0 | D195: 0 | E195: 0 | F195: 0 | G195: 0 | H195: 0 | I195: 0 | J195: 0 | K195: 0 | L195: 0
C196: 0 | D196: 0 | E196: 0 | F196: 0 | G196: 0 | H196: 0 | I196: 0 | J196: 0 | K196: 0 | L196: 0
A197: Vote 3 - Community and Social Services | C197: =SUM(C198:C207) -> 15619505 | D197: 8171567 | E197: 7826017 | F197: 4098594.93 | G197: 4968827.7 | H197: 4968827.7 | I197: 4968827.7 | J197: 5605621.57 | K197: 5872198.84 | L197: 6142319.98
A198: 3.1 - Cultural Matters | C198: 0 | E198: 189339 | F198: 201000 | G198: 356000 | H198: 356000 | I198: 356000 | J198: 0 | K198: 0 | L198: 0
A199: 3.2 - Population Development | C199: 0 | F199: 0 | G199: 0 | H199: 0 | I199: 0 | J199: 0 | K199: 0 | L199: 0
A200: 3.3 - Recreational Facilities | C200: 0 | F200: 0 | G200: 890000 | H200: 890000 | I200: 890000 | J200: 0 | K200: 0 | L200: 0
A201: 3.4 - Education | C201: 0 | F201: 0 | G201: 0 | H201: 0 | I201: 0 | J201: 0 | K201: 0 | L201: 0
... 140 more rows

Sheet A6-FinPos
A1: =muni&" - "&Approve6 -> KZN434 Ubuhlebezwe - Table A6 Budgeted Financial Position
A2: =desc -> Description | B2: =head27 -> Ref | C2: =head1b -> 2016/17 | D2: =head1A -> 2017/18 | E2: =Head1 -> 2018/19 | F2: =Head2 -> Current Year 2019/20 | J2: =Head3 -> 2020/21 Medium Term Revenue & Expenditure Framework
A3: R thousand | C3: =Head5 -> Audited Outcome | D3: =Head5 -> Audited Outcome | E3: =Head5 -> Audited Outcome | F3: =Head6 -> Original Budget | G3: =Head7 -> Adjusted Budget | H3: =Head8 -> Full Year Forecast | I3: =Head5b -> Pre-audit outcome | J3: =Head9 -> Budget Year 2020/21 | K3: =Head10 -> Budget Year +1 2021/22 | L3: =Head11 -> Budget Year +2 2022/23
A4: ASSETS
A5: Current assets
A6: Cash | C6: 6396226 | D6: 102395778 | E6: 2500000 | F6: 0 | G6: 24573573 | H6: 24573573 | I6: 24573573 | J6: 4650227 | K6: =J6*1.045 -> 4859487.215 | L6: =K6*1.045 -> 5078164.14
A7: Call investment deposits | B7: 1 | C7: ='SA3'!C9 -> 111904376 | D7: ='SA3'!D9 -> 0 | E7: ='SA3'!E9 -> 101904376 | F7: ='SA3'!F9 -> 105302255 | G7: ='SA3'!G9 -> 146881746 | H7: ='SA3'!H9 -> 146881746 | I7: ='SA3'!I9 -> 146881746 | J7: ='SA3'!J9 -> 162118518.5 | K7: ='SA3'!K9 -> 169413851.8 | L7: ='SA3'!L9 -> 177037475.1
A8: Consumer debtors | B8: 1 | C8: ='SA3'!C14 -> 13978664 | D8: ='SA3'!D14 -> 0 | E8: ='SA3'!E14 -> 27099227 | F8: ='SA3'!F14 -> 0 | G8: ='SA3'!G14 -> 29062837.08 | H8: ='SA3'!H14 -> 29062837.08 | I8: ='SA3'!I14 -> 29062837.08 | J8: ='SA3'!J14 -> 25638498.78 | K8: ='SA3'!K14 -> 26792231.22 | L8: ='SA3'!L14 -> 27997881.63
A9: Other debtors | C9: 373815 | E9: 247145 | F9: 0 | G9: 530118 | H9: 530118 | I9: 530118 | J9: =10251637.7552336+5300118 -> 15551755.76 | K9: =J9*1.045 -> 16251584.76 | L9: =K9*1.045 -> 16982906.08
A10: Current portion of long-term receivables | E10: 0 | F10: 0 | G10: 0 | H10: 0 | I10: 0 | J10: 0 | K10: 0 | L10: 0
A11: Inventory | B11: 2 | C11: 2532983 | E11: 3119463 | F11: 0 | G11: 0 | H11: 0 | I11: 2904733.45 | J11: 8999474 | K11: =J11*1.045 -> 9404450.33 | L11: =K11*1.045 -> 9827650.595
A12: Total current assets | C12: =SUM(C6:C11) -> 135186064 | D12: 102395778 | E12: 134870211 | F12: 105302255 | G12: 201048274.1 | H12: 201048274.1 | I12: 203953007.5 | J12: 216958474 | K12: 226721605.3 | L12: 236924077.6
A14: Non current assets
A15: Long-term receivables | D15: 0 | E15: 0 | F15: 0 | G15: 0 | H15: 0 | I15: 0 | J15: 0 | K15: 0 | L15: 0
A16: Investments | D16: 0 | E16: 0 | F16: 0 | G16: 0 | H16: 0 | I16: 0 | J16: 0 | K16: 0 | L16: 0
A17: Investment property | C17: 20364596 | D17: 19853275 | E17: 19020365 | F17: 0 | G17: 20670810 | H17: 20670810 | I17: 21445532.71 | J17: 20670810 | K17: =J17*1.045 -> 21600996.45 | L17: =K17*1.045 -> 22573041.29
A18: Investment in Associate | D18: 0 | E18: 0 | F18: 0 | G18: 0 | H18: 0 | I18: 0 | J18: 0 | K18: 0 | L18: 0
A19: Property, plant and equipment | B19: 3 | C19: ='SA3'!C26 -> 240093018 | D19: ='SA3'!D26 -> 251702032 | E19: ='SA3'!E26 -> 312601018 | F19: ='SA3'!F26 -> 75245829.01 | G19: ='SA3'!G26 -> 322252967 | H19: ='SA3'!H26 -> 322252967 | I19: ='SA3'!I26 -> 322252967 | J19: ='SA3'!J26 -> 301230449.6 | K19: ='SA3'!K26 -> 314785819.8 | L19: ='SA3'!L26 -> 328951181.7
A21: Biological | C21: 0 | D21: 0 | E21: 0 | F21: 0 | G21: 0 | H21: 0 | I21: 0 | J21: 0 | K21: 0 | L21: 0
A22: Intangible | C22: 881020 | D22: 1105036 | E22: 1201145 | F22: 3050000 | G22: 3300000 | H22: 3300000 | I22: 1451431.34 | J22: 4556848 | K22: =J22*1.045 -> 4761906.16 | L22: =K22*1.045 -> 4976191.937
A23: Other non-current assets | C23: 4808819 | D23: 4808819 | E23: 5078112.864 | F23: 0 | G23: 0 | H23: 0 | I23: 0 | J23: 4808819 | K23: =J23*1.045 -> 5025215.855 | L23: =K23*1.045 -> 5251350.568
A24: Total non current assets | C24: =SUM(C15:C19)+SUM(A21:A23) -> 260457614 | D24: =SUM(D15:D19)+SUM(B21:B23) -> 271555307 | E24: 337311222 | F24: 81159684.01 | G24: 349203034.9 | H24: 345973777 | I24: 346998499.7 | J24: 325201259.6 | K24: 337838247.6 | L24: 360889890
A25: TOTAL ASSETS | C25: =C12+C24 -> 395643678 | D25: =D12+D24 -> 373951085 | E25: =E12+E24 -> 472181433 | F25: =F12+F24 -> 186461939 | G25: 550251308.9 | H25: 547022051.1 | I25: 550951507.2 | J25: 542159733.6 | K25: 564559853 | L25: 597813967.6
A27: LIABILITIES
A28: Current liabilities
A29: Bank overdraft | B29: 1 | C29: 0 | D29: 0 | E29: 0 | F29: 0 | G29: 0 | H29: 0 | I29: 0 | J29: 0 | K29: 0 | L29: 0
A30: Borrowing | B30: 4 | C30: ='SA3'!C32 -> 0 | D30: ='SA3'!D32 -> 0 | E30: ='SA3'!E32 -> 0 | F30: ='SA3'!F32 -> 0 | G30: ='SA3'!G32 -> 0 | H30: ='SA3'!H32 -> 0 | I30: ='SA3'!I32 -> 0 | J30: ='SA3'!J32 -> 0 | K30: ='SA3'!K32 -> 0 | L30: ='SA3'!L32 -> 0
A31: Consumer deposits | C31: 0 | D31: 28799622 | E31: 0 | F31: 0 | G31: 0 | H31: 0 | J31: 0 | K31: 0 | L31: 0
A32: Trade and other payables | B32: 4 | C32: ='SA3'!C39 -> 37579225 | D32: ='SA3'!D39 -> 29963137 | E32: ='SA3'!E39 -> 26129834 | F32: ='SA3'!F39 -> -27338825 | G32: ='SA3'!G39 -> 33373081 | H32: ='SA3'!H39 -> 33373081 | I32: ='SA3'!I39 -> 33373081 | J32: ='SA3'!J39 -> 33423256 | K32: ='SA3'!K39 -> 34869452.59 | L32: ='SA3'!L39 -> 36380728.03
A33: Provisions | C33: 0 | D33: 3893612 | E33: 0 | F33: 0 | G33: 0 | H33: 0 | J33: 3264536 | K33: =J33*1.045 -> 3411440.12 | L33: =K33*1.045 -> 3564954.925
A34: Total current liabilities | C34: =SUM(C29:C33) -> 37579225 | D34: 62656371 | E34: 26129834 | F34: -27338825 | G34: 33373081 | H34: 33373081 | I34: 33373081 | J34: 36687792 | K34: 38280892.71 | L34: 39945682.95
A36: Non current liabilities
A37: Borrowing | C37: ='SA3'!C44 -> 0 | D37: ='SA3'!D44 -> 0 | E37: ='SA3'!E44 -> 0 | F37: ='SA3'!F44 -> 0 | G37: ='SA3'!G44 -> 0 | H37: ='SA3'!H44 -> 0 | I37: ='SA3'!I44 -> 0 | J37: ='SA3'!J44 -> 0 | K37: ='SA3'!K44 -> 0 | L37: ='SA3'!L44 -> 0
A38: Provisions | C38: ='SA3'!C51 -> 6700000 | D38: ='SA3'!D51 -> 8444000 | E38: ='SA3'!E51 -> 9410201 | F38: ='SA3'!F51 -> 0 | G38: ='SA3'!G51 -> 0 | H38: ='SA3'!H51 -> 0 | I38: ='SA3'!I51 -> 0 | J38: ='SA3'!J51 -> 7217000 | K38: ='SA3'!K51 -> 7541765 | L38: ='SA3'!L51 -> 7881144.425
A39: Total non current liabilities | C39: =SUM(C37:C38) -> 6700000 | D39: =SUM(D37:D38) -> 8444000 | E39: =SUM(E37:E38) -> 9410201 | F39: =SUM(F37:F38) -> 0 | G39: 0 | H39: 0 | I39: 0 | J39: 7217000 | K39: =SUM(K37:K38) -> 7541765 | L39: 7881144.425
A40: TOTAL LIABILITIES | C40: =C34+C39 -> 44279225 | D40: =D34+D39 -> 71100371 | E40: =E34+E39 -> 35540035 | F40: =F34+F39 -> -27338825 | G40: 33373081 | H40: 33373081 | I40: 33373081 | J40: 43904792 | K40: =K34+K39 -> 45822657.71 | L40: 47826827.38
A42: NET ASSETS | B42: 5 | C42: =C25-C40 -> 351364453 | D42: 302850714 | E42: 436641398 | F42: 213800764 | G42: 516878227.9 | H42: 513648970.1 | I42: 517578426.2 | J42: 498254941.6 | K42: 518737195.3 | L42: 549987140.2
A44: COMMUNITY WEALTH/EQUITY
A45: Accumulated Surplus/(Deficit) | C45: 366196707.4 | D45: 0 | E45: 337798.03 | F45: 132398433 | G45: 594677056 | H45: 594677056 | I45: 594677056 | J45: 504320608.6 | K45: =J45*1.045 -> 527015036 | L45: =K45*1.045 -> 550730712.6
A46: Reserves | B46: 4 | C46: ='SA3'!C70 -> 329591746 | D46: ='SA3'!D70 -> 386262949 | E46: ='SA3'!E70 -> 429380702.9 | F46: ='SA3'!F70 -> 0 | G46: ='SA3'!G70 -> 0 | H46: ='SA3'!H70 -> 0 | I46: ='SA3'!I70 -> 0 | J46: ='SA3'!J70 -> 373787 | K46: ='SA3'!K70 -> 373787 | L46: ='SA3'!L70 -> 373787
A48: TOTAL COMMUNITY WEALTH/EQUITY | B48: 5 | C48: =SUM(C45:C46) -> 695788453.4 | D48: =SUM(D45:D46) -> 386262949 | E48: 429718500.9 | F48: 132398433 | G48: 594677056 | H48: 594677056 | I48: 594677056 | J48: 504694395.6 | K48: 527388823 | L48: 551104499.6
A49: =head27a -> References
A50: 1. Detail to be provided in Table SA3
A51: 2. Include completed low cost housing to be transferred to beneficiaries within 12 months
A52: 3. Include 'Construction-work-in-progress' (disclosed separately in annual financial statements)
A53: 4. Detail to be provided in Table SA3. Includes reserves to be funded by statute.
A54: 5. Net assets must balance with Total Community Wealth/Equity
A55: check balance | C55: =IF((C42-C48)=0,0,"Unbalanced") -> Unbalanced | D55: =IF((D42-D48)=0,0,"Unbalanced") -> Unbalanced | E55: Unbalanced | F55: Unbalanced | G55: Unbalanced | H55: Unbalanced | I55: Unbalanced | J55: Unbalanced | K55: Unbalanced | L55: Unbalanced
A71: Test | C71: =IF(C25<>C40,"Unbalanced",0) -> Unbalanced | D71: =IF(D25<>D40,"Unbalanced",0) -> Unbalanced | E71: Unbalanced | F71: Unbalanced | G71: Unbalanced | H71: Unbalanced | I71: Unbalanced | J71: Unbalanced | K71: Unbalanced | L71: Unbalanced

Sheet A7-CFlow
A1: =muni&" - "&Approve7 -> KZN434 Ubuhlebezwe - Table A7 Budgeted Cash Flows
A2: =desc -> Description | B2: =head27 -> Ref | C2: =head1b -> 2016/17 | D2: =head1A -> 2017/18 | E2: =Head1 -> 2018/19 | F2: =Head2 -> Current Year 2019/20 | J2: =Head3 -> 2020/21 Medium Term Revenue & Expenditure Framework
A3: R thousand | C3: =Head5 -> Audited Outcome | D3: =Head5 -> Audited Outcome | E3: =Head5 -> Audited Outcome | F3: =Head6 -> Original Budget | G3: =Head7 -> Adjusted Budget | H3: =Head8 -> Full Year Forecast | I3: =Head5b -> Pre-audit outcome | J3: =Head9 -> Budget Year 2020/21 | K3: =Head10 -> Budget Year +1 2021/22 | L3: =Head11 -> Budget Year +2 2022/23
A4: CASH FLOW FROM OPERATING ACTIVITIES
A5: Receipts
A6: Property rates | C6: 13122243 | D6: 12292781 | E6: 11941155.8 | F6: 23023000 | G6: 18220402 | H6: 18220402 | I6: 18220402 | J6: ='SA30'!N5 -> 12305546.16 | K6: ='SA30'!O5 -> 12970045.65 | L6: ='SA30'!P5 -> 13683398.16
A7: Service charges | C7: 1726005 | D7: 2155141 | E7: 1134709.95 | F7: 2100000 | G7: 1413930 | H7: 1413930 | I7: 1413930 | J7: ='SA30'!N6+'SA30'!N7+'SA30'!N8+'SA30'!N9 -> 1336574.09 | K7: ='SA30'!O6+'SA30'!O7+'SA30'!O8+'SA30'!O9 -> 1408749.091 | L7: ='SA30'!P6+'SA30'!P7+'SA30'!P8+'SA30'!P9 -> 1486230.291
A8: Other revenue | C8: 12033023 | D8: 6573117 | E8: 7000392 | F8: 4869426.72 | G8: 3608816.3 | H8: 3608816.3 | I8: 3608816.3 | J8: ='SA30'!N11+'SA30'!N15+'SA30'!N16+'SA30'!N17+'SA30'!N19 -> 9716347.8 | K8: ='SA30'!O11+'SA30'!O15+'SA30'!O16+'SA30'!O17+'SA30'!O19 -> 10241030.58 | L8: ='SA30'!P11+'SA30'!P15+'SA30'!P16+'SA30'!P17+'SA30'!P19 -> 10804287.26
A9: Government - operating | B9: 1 | C9: 89633423 | D9: 119114000 | E9: 145280692 | F9: 187638691.6 | G9: 187588691.6 | H9: 187588691.6 | I9: 187588691.6 | J9: ='SA30'!N18 -> 223266591.3 | K9: ='SA30'!O18 -> 235322987.3 | L9: ='SA30'!P18 -> 248265751.6
A10: Government - capital | B10: 1 | C10: 54057000 | D10: 27330000 | E10: 26439000 | F10: 33317000 | G10: 33317000 | H10: 33317000 | I10: 33317000 | J10: ='SA30'!N23 -> 26759000 | K10: ='SA30'!O23 -> 27989914 | L10: ='SA30'!P23 -> 29277450.04
A11: Interest | C11: 9215250 | D11: 11001948 | E11: 12500000 | F11: 16000000 | G11: 13000000 | H11: 13000000 | I11: 13000000 | J11: ='SA30'!N12+'SA30'!N13 -> 12000000 | K11: ='SA30'!O12+'SA30'!O13 -> 12540000 | L11: ='SA30'!P12+'SA30'!P13 -> 13104300
A12: Dividends | C12: 0 | D12: 0 | E12: 0 | F12: 0 | G12: 0 | H12: 0 | I12: 0 | J12: ='SA30'!N14 -> 0 | K12: ='SA30'!O14 -> 0 | L12: ='SA30'!P14 -> 0
A13: Payments
A14: Suppliers and employees | C14: -75048298 | D14: -118495132 | E14: -127468206 | F14: -136122327 | G14: -133718989.7 | H14: -133718989.7 | I14: -133718989.7 | J14: =-('SA30'!N35+'SA30'!N36+'SA30'!N38+'SA30'!N39+'SA30'!N40+'SA30'!N41+'SA30'!N44+'SA30'!N50) -> -144959918.2 | K14: =-('SA30'!O35+'SA30'!O36+'SA30'!O38+'SA30'!O39+'SA30'!O40+'SA30'!O41+'SA30'!O44+'SA30'!O50) -> -147164118.9 | L14: =-('SA30'!P35+'SA30'!P36+'SA30'!P38+'SA30'!P39+'SA30'!P40+'SA30'!P41+'SA30'!P44+'SA30'!P50) -> -153933668.4
A15: Finance charges | C15: 0 | D15: -2856 | E15: 0 | F15: 0 | G15: 0 | H15: 0 | I15: 0 | J15: =-('SA30'!N37) -> 0 | K15: =-('SA30'!O37) -> 0 | L15: =-('SA30'!P37) -> 0
A16: Transfers and Grants | B16: 1 | C16: 0 | D16: 0 | E16: -37045801 | F16: -83134760.37 | G16: -83184760.37 | H16: -83184760.37 | I16: -83184760.37 | J16: =-('SA30'!N42+'SA30'!N43) -> -105048466.5 | K16: =-('SA30'!O42+'SA30'!O43) -> -110721083.7 | L16: =-('SA30'!P42+'SA30'!P43) -> -116810743.3
A17: NET CASH FROM/(USED) OPERATING ACTIVITIES | C17: =SUM(C6:C12)+SUM(C14:C16) -> 104738646 | D17: 59968999 | E17: 39781942.75 | F17: 47691030.94 | G17: 40245089.87 | H17: 40245089.87 | I17: 40245089.87 | J17: 35375674.67 | K17: 42587523.98 | L17: 45877005.63
A19: CASH FLOWS FROM INVESTING ACTIVITIES
A20: Receipts
A21: Proceeds on disposal of PPE | C21: 0 | D21: 0 | E21: 0 | F21: 1000000 | G21: 1000000 | H21: 1000000 | I21: 1000000 | J21: ='SA30'!N24+'SA30'!N25 -> 0 | K21: ='SA30'!O24+'SA30'!O25 -> 0 | L21: ='SA30'!P24+'SA30'!P25 -> 0
A22: Decrease (Increase) in non-current debtors | C22: 0 | D22: 0 | E22: 0 | F22: 0 | G22: 0 | H22: 0 | I22: 0 | J22: ='SA30'!N29 -> 0 | K22: ='SA30'!O29 -> 0 | L22: ='SA30'!P29 -> 0
A23: Decrease (increase) other non-current receivables | C23: 0 | D23: 0 | E23: 0 | F23: 0 | G23: 0 | H23: 0 | I23: 0 | J23: ='SA30'!N30 -> 0 | K23: ='SA30'!O30 -> 0 | L23: ='SA30'!P30 -> 0
A24: Decrease (increase) in non-current investments | C24: 0 | D24: 0 | E24: 0 | F24: 0 | G24: 0 | H24: 0 | I24: 0 | J24: ='SA30'!N31 -> 0 | K24: ='SA30'!O31 -> 0 | L24: ='SA30'!P31 -> 0
A25: Payments
A26: Capital assets | C26: -73317502 | D26: -38020019.59 | E26: -60899447 | F26: -78295829.01 | G26: -76454174.24 | H26: -76454174.24 | I26: -76454174.24 | J26: =-('SA30'!N48) -> -59198682.61 | K26: =-('SA30'!O48) -> -45075588.92 | L26: =-('SA30'!P48) -> -47149065.99
A27: NET CASH FROM/(USED) INVESTING ACTIVITIES | C27: =SUM(C21:C24)+C26 -> -73317502 | D27: =SUM(D21:D24)+D26 -> -38020019.59 | E27: -60899447 | F27: -77295829.01 | G27: -75454174.24 | H27: -75454174.24 | I27: -75454174.24 | J27: -59198682.61 | K27: -45075588.92 | L27: -47149065.99
A29: CASH FLOWS FROM FINANCING ACTIVITIES
A30: Receipts
A31: Short term loans | C31: 0 | D31: 0 | E31: 0 | F31: 0 | G31: 0 | H31: 0 | I31: 0 | J31: ='SA30'!N26 -> 0 | K31: ='SA30'!O26 -> 0 | L31: ='SA30'!P26 -> 0
A32: Borrowing long term/refinancing | C32: 0 | D32: 0 | E32: 0 | F32: 0 | G32: 0 | H32: 0 | I32: 0 | J32: ='SA30'!N27 -> 0 | K32: ='SA30'!O27 -> 0 | L32: ='SA30'!P27 -> 0
A33: Increase (decrease) in consumer deposits | C33: 0 | D33: 0 | E33: 0 | F33: 0 | G33: 0 | H33: 0 | I33: 0 | J33: ='SA30'!N28 -> 0 | K33: ='SA30'!O28 -> 0 | L33: ='SA30'!P28 -> 0
A34: Payments
A35: Repayment of borrowing | C35: 0 | D35: 0 | E35: 0 | F35: 0 | G35: 0 | H35: 0 | I35: 0 | J35: =-('SA30'!N49) -> 0 | K35: =-('SA30'!O49) -> 0 | L35: =-('SA30'!P49) -> 0
A36: NET CASH FROM/(USED) FINANCING ACTIVITIES | C36: =SUM(C31:C33)+C35 -> 0 | D36: =SUM(D31:D33)+D35 -> 0 | E36: 0 | F36: 0 | G36: 0 | H36: 0 | I36: 0 | J36: 0 | K36: 0 | L36: 0
A38: NET INCREASE/ (DECREASE) IN CASH HELD | C38: =C17+C27+C36 -> 31421144 | D38: =D17+D27+D36 -> 21948979.41 | E38: -21117504.25 | F38: -29604798.07 | G38: -35209084.37 | H38: -35209084.37 | I38: -35209084.37 | J38: -23823007.94 | K38: -2488064.936 | L38: -1272060.359
A39: Cash/cash equivalents at the year begin: | B39: 2 | C39: 103229764 | D39: 281285912 | E39: 379274930.6 | F39: 479956320.3 | G39: 338995061.9 | H39: 266531245.1 | I39: 197246251.1 | J39: ='SA30'!N54 -> 187174450 | K39: =J40 -> 163351442.1 | L39: =K40 -> 160863377.1
A40: Cash/cash equivalents at the year end: | B40: 2 | C40: =C38+C39 -> 134650908 | D40: =D38+D39 -> 303234891.4 | E40: =E38+E39 -> 358157426.3 | F40: =F38+F39 -> 450351522.3 | G40: 303785977.6 | H40: 231322160.7 | I40: 162037166.7 | J40: 163351442.1 | K40: 160863377.1 | L40: 159591316.8
A41: =head27a -> References
A42: 1. Local/District municipalities to include transfers from/to District/Local Municipalities
A43: 2. Cash equivalents includes investments with maturities of 3 months or less
A44: 3. The MTREF is populated directly from SA30.
A45: Total receipts | C45: =SUM(C6:C12)+SUM(C21:C23) -> 179786944 | D45: 178466987 | E45: 204295949.8 | F45: 267948118.4 | G45: 258148839.9 | H45: 258148839.9 | I45: 258148839.9 | J45: 285384059.4 | K45: 300472726.6 | L45: 316621417.3
A46: Total payments | C46: =SUM(C14:C16)+C26 -> -148365800 | D46: =SUM(D14:D16)+D26 -> -156518007.6 | E46: -225413454 | F46: -297552916.4 | G46: -293357924.3 | H46: -293357924.3 | I46: -293357924.3 | J46: -309207067.3 | K46: -302960791.5 | L46: -317893477.7
C47: =C45+C46 -> 31421144 | D47: =D45+D46 -> 21948979.41 | E47: -21117504.25 | F47: -29604798.07 | G47: -35209084.37 | H47: -35209084.37 | I47: -35209084.37 | J47: -23823007.94 | K47: -2488064.936 | L47: -1272060.359
A48: Borrowings & investments & c.deposits | C48: =C24+C32+C33 -> 0 | D48: =D24+D32+D33 -> 0 | E48: 0 | F48: 0 | G48: 0 | H48: 0 | I48: 0 | J48: 0 | K48: 0 | L48: 0
A49: =A35 -> Repayment of borrowing | C49: =C35 -> 0 | D49: =D35 -> 0 | E49: 0 | F49: 0 | G49: 0 | H49: 0 | I49: =I35 -> 0 | J49: 0 | K49: 0 | L49: 0
C50: =C47+C48+C49 -> 31421144 | D50: =D47+D48+D49 -> 21948979.41 | E50: -21117504.25 | F50: -29604798.07 | G50: -35209084.37 | H50: -35209084.37 | I50: -35209084.37 | J50: -23823007.94 | K50: -2488064.936 | L50: -1272060.359
C51: =C38-C50 -> 0 | D51: 0 | E51: 0 | F51: 0 | G51: 0 | H51: 0 | I51: 0 | J51: 0 | K51: 7.450580597e-09 | L51: 7.450580597e-09

Sheet A8-ResRecon
A1: =muni&" - "&Approve8 -> KZN434 Ubuhlebezwe - Table A8 Cash backed reserves/accumulated surplus reconciliation
A2: =desc -> Description | B2: =head27 -> Ref | C2: =head1b -> 2016/17 | D2: =head1A -> 2017/18 | E2: =Head1 -> 2018/19 | F2: =Head2 -> Current Year 2019/20 | J2: =Head3 -> 2020/21 Medium Term Revenue & Expenditure Framework
A3: R thousand | C3: =Head5 -> Audited Outcome | D3: =Head5 -> Audited Outcome | E3: =Head5 -> Audited Outcome | F3: =Head6 -> Original Budget | G3: =Head7 -> Adjusted Budget | H3: =Head8 -> Full Year Forecast | I3: =Head5b -> Pre-audit outcome | J3: =Head9 -> Budget Year 2020/21 | K3: =Head10 -> Budget Year +1 2021/22 | L3: =Head11 -> Budget Year +2 2022/23
A4: Cash and investments available
A5: =LEFT('A7-CFlow'!A40,37) -> Cash/cash equivalents at the year end | B5: 1 | C5: ='A7-CFlow'!C40 -> 134650908 | D5: ='A7-CFlow'!D40 -> 303234891.4 | E5: ='A7-CFlow'!E40 -> 358157426.3 | F5: ='A7-CFlow'!F40 -> 450351522.3 | G5: ='A7-CFlow'!G40 -> 303785977.6 | H5: ='A7-CFlow'!H40 -> 231322160.7 | I5: ='A7-CFlow'!I40 -> 162037166.7 | J5: ='A7-CFlow'!J40 -> 163351442.1 | K5: ='A7-CFlow'!K40 -> 160863377.1 | L5: ='A7-CFlow'!L40 -> 159591316.8
A6: Other current investments > 90 days | C6: ='A6-FinPos'!C6+'A6-FinPos'!C7-'A6-FinPos'!C29-'A8-ResRecon'!C5 -> -16350306 | D6: ='A6-FinPos'!D6+'A6-FinPos'!D7-'A6-FinPos'!D29-'A8-ResRecon'!D5 -> -200839113.4 | E6: ='A6-FinPos'!E6+'A6-FinPos'!E7-'A6-FinPos'!E29-'A8-ResRecon'!E5 -> -253753050.3 | F6: ='A6-FinPos'!F6+'A6-FinPos'!F7-'A6-FinPos'!F29-'A8-ResRecon'!F5 -> -345049267.3 | G6: ='A6-FinPos'!G6+'A6-FinPos'!G7-'A6-FinPos'!G29-'A8-ResRecon'!G5 -> -132330658.6 | H6: ='A6-FinPos'!H6+'A6-FinPos'!H7-'A6-FinPos'!H29-'A8-ResRecon'!H5 -> -59866841.68 | I6: ='A6-FinPos'!I6+'A6-FinPos'!I7-'A6-FinPos'!I29-'A8-ResRecon'!I5 -> 9418152.26 | J6: ='A6-FinPos'!J6+'A6-FinPos'!J7-'A6-FinPos'!J29-'A8-ResRecon'!J5 -> 3417303.412 | K6: ='A6-FinPos'!K6+'A6-FinPos'!K7-'A6-FinPos'!K29-'A8-ResRecon'!K5 -> 13409961.89 | L6: ='A6-FinPos'!L6+'A6-FinPos'!L7-'A6-FinPos'!L29-'A8-ResRecon'!L5 -> 22524322.51
A7: ='A6-FinPos'!A14&" - "&'A6-FinPos'!A16 -> Non current assets - Investments | B7: 1 | C7: ='A6-FinPos'!C16 -> 0 | D7: ='A6-FinPos'!D16 -> 0 | E7: ='A6-FinPos'!E16 -> 0 | F7: ='A6-FinPos'!F16 -> 0 | G7: ='A6-FinPos'!G16 -> 0 | H7: ='A6-FinPos'!H16 -> 0 | I7: ='A6-FinPos'!I16 -> 0 | J7: ='A6-FinPos'!J16 -> 0 | K7: ='A6-FinPos'!K16 -> 0 | L7: ='A6-FinPos'!L16 -> 0
A8: Cash and investments available: | C8: =SUM(C5:C7) -> 118300602 | D8: =SUM(D5:D7) -> 102395778 | E8: 104404376 | F8: 105302255 | G8: 171455319 | H8: 171455319 | I8: 171455319 | J8: 166768745.5 | K8: 174273339 | L8: 182115639.3
A10: Application of cash and investments
A11: ='SA3'!A37 -> Unspent conditional transfers | C11: ='SA3'!C37 -> 7200000 | D11: ='SA3'!D37 -> 1163515 | E11: ='SA3'!E37 -> 1483600 | F11: ='SA3'!F37 -> 0 | G11: ='SA3'!G37 -> 1285554 | H11: ='SA3'!H37 -> 1285554 | I11: ='SA3'!I37 -> 1285554 | J11: ='SA3'!J37 -> 1285554 | K11: ='SA3'!K37 -> 1285554 | L11: ='SA3'!L37 -> 1285554
A12: Unspent borrowing | C12: ='SA17'!C67 -> 0 | D12: ='SA17'!D67 -> 0 | E12: ='SA17'!E67 -> 0 | F12: ='SA17'!F67 -> 0 | G12: ='SA17'!G67 -> 0 | H12: ='SA17'!H67 -> 0 | J12: ='SA17'!I67 -> 0 | K12: ='SA17'!J67 -> 0 | L12: ='SA17'!K67 -> 0
A13: Statutory requirements | B13: 2
A14: Other working capital requirements | B14: 3 | C14: =-C32 -> 16027225 | D14: =-D32 -> 28799622 | E14: 6788234 | F14: =-F32 -> -27338825 | G14: 10887527 | H14: 10887527 | I14: 10887527 | J14: 3835702 | K14: 3759898.59 | L14: 3637174.027
A15: Other provisions
A16: Long term investments committed | B16: 4 | C16: =C52 -> 0 | D16: =D52 -> 0 | E16: 0 | F16: 0 | G16: 0 | H16: 0 | I16: 0 | J16: 0 | K16: 0 | L16: 0
A17: Reserves to be backed by cash/investments | B17: 5
A18: ="Total "&A10&":" -> Total Application of cash and investments: | C18: =SUM(C11:C17) -> 23227225 | D18: =SUM(D11:D17) -> 29963137 | E18: 8271834 | F18: -27338825 | G18: 12173081 | H18: 12173081 | I18: 12173081 | J18: 5121256 | K18: 5045452.59 | L18: 4922728.027
A19: Surplus(shortfall) | C19: =C8-C18 -> 95073377 | D19: =D8-D18 -> 72432641 | E19: 96132542 | F19: 132641080 | G19: 159282238 | H19: 159282238 | I19: 159282238 | J19: 161647489.5 | K19: 169227886.4 | L19: 177192911.3
A20: =head27a -> References
A21: 1. Must reconcile with Budgeted Cash Flows
A22: 2. For example: VAT, taxation
A23: 3. Council approval for policy required - include sufficient working capital (e.g. allowing for a % of current debtors > 90 days as uncollectable)
A24: 4. For example: sinking fund requirements for borrowing
A25: 5. Council approval required for each reserve created and basis of cash backing of reserves
A28: Other working capital requirements
A29: Debtors | C29: =IF(ISERROR(ROUND(C35*C36,-3)),0,(ROUND(C35*C36,-3))) -> 14352000 | D29: =IF(ISERROR(ROUND(D35*D36,-3)),0,(ROUND(D35*D36,-3))) -> 0 | E29: 17858000 | F29: 0 | G29: 21200000 | H29: 21200000 | I29: 21200000 | J29: 28302000 | K29: 29824000 | L29: 31458000
A31: Creditors due | C31: ='SA3'!C35+'SA3'!C36 -> 30379225 | D31: ='SA3'!D35+'SA3'!D36 -> 28799622 | E31: ='SA3'!E35+'SA3'!E36 -> 24646234 | F31: ='SA3'!F35+'SA3'!F36 -> -27338825 | G31: ='SA3'!G35+'SA3'!G36 -> 32087527 | H31: ='SA3'!H35+'SA3'!H36 -> 32087527 | I31: ='SA3'!I35+'SA3'!I36 -> 32087527 | J31: ='SA3'!J35+'SA3'!J36 -> 32137702 | K31: ='SA3'!K35+'SA3'!K36 -> 33583898.59 | L31: ='SA3'!L35+'SA3'!L36 -> 35095174.03
A32: Total | C32: =C29-C31 -> -16027225 | D32: =D29-D31 -> -28799622 | E32: -6788234 | F32: 27338825 | G32: -10887527 | H32: -10887527 | I32: -10887527 | J32: -3835702 | K32: -3759898.59 | L32: -3637174.027
A34: Debtors collection assumptions
A35: Balance outstanding - debtors | C35: ='A6-FinPos'!C8+'A6-FinPos'!C9+'A6-FinPos'!C15 -> 14352479 | D35: ='A6-FinPos'!D8+'A6-FinPos'!D9+'A6-FinPos'!D15 -> 0 | E35: ='A6-FinPos'!E8+'A6-FinPos'!E9+'A6-FinPos'!E15 -> 27346372 | F35: ='A6-FinPos'!F8+'A6-FinPos'!F9+'A6-FinPos'!F15 -> 0 | G35: ='A6-FinPos'!G8+'A6-FinPos'!G9+'A6-FinPos'!G15 -> 29592955.08 | H35: ='A6-FinPos'!H8+'A6-FinPos'!H9+'A6-FinPos'!H15 -> 29592955.08 | I35: ='A6-FinPos'!I8+'A6-FinPos'!I9+'A6-FinPos'!I15 -> 29592955.08 | J35: ='A6-FinPos'!J8+'A6-FinPos'!J9+'A6-FinPos'!J15 -> 41190254.53 | K35: ='A6-FinPos'!K8+'A6-FinPos'!K9+'A6-FinPos'!K15 -> 43043815.99 | L35: ='A6-FinPos'!L8+'A6-FinPos'!L9+'A6-FinPos'!L15 -> 44980787.71
A36: Estimate of debtors collection rate | C36: =IF(ISERROR('SA10'!D10),0,('SA10'!D10)) -> 1 | D36: =IF(ISERROR('SA10'!E10),0,('SA10'!E10)) -> 0.9848183835 | E36: =IF(ISERROR('SA10'!F10),0,('SA10'!F10)) -> 0.6530326677 | F36: =IF(ISERROR('SA10'!G10),0,('SA10'!G10)) -> 0.9418351781 | G36: =IF(ISERROR('SA10'!H10),0,('SA10'!H10)) -> 0.7163935071 | H36: =IF(ISERROR('SA10'!I10),0,('SA10'!I10)) -> 0.7163935071 | I36: =IF(ISERROR('SA10'!J10),0,('SA10'!J10)) -> 0.7163935071 | J36: =IF(ISERROR('SA10'!K10),0,('SA10'!K10)) -> 0.6871079642 | K36: =IF(ISERROR('SA10'!L10),0,('SA10'!L10)) -> 0.6928842144 | L36: =IF(ISERROR('SA10'!M10),0,('SA10'!M10)) -> 0.6993743594
K39: `
A40: =A16 -> Long term investments committed
A41: Balance (Insert description; eg sinking fund)
C52: =SUM(C41:C51) -> 0 | D52: =SUM(D41:D51) -> 0 | E52: 0 | F52: 0 | G52: 0 | H52: 0 | I52: 0 | J52: 0 | K52: 0 | L52: 0
A53: =A17 -> Reserves to be backed by cash/investments
A54: ='SA3'!A65 -> Housing Development Fund | C54: ='SA3'!C65 -> 0 | D54: ='SA3'!D65 -> 373787 | E54: ='SA3'!E65 -> 387000 | F54: ='SA3'!F65 -> 0 | G54: ='SA3'!G65 -> 0 | H54: ='SA3'!H65 -> 0 | I54: ='SA3'!I65 -> 0 | J54: ='SA3'!J65 -> 373787 | K54: ='SA3'!K65 -> 373787 | L54: ='SA3'!L65 -> 373787
A55: ='SA3'!A66 -> Capital replacement
A56: ='SA3'!A67 -> Self-insurance
A57: Other (list)
C67: =SUM(C54:C65) -> 0 | D67: 373787 | E67: 387000 | F67: 0 | G67: 0 | H67: 0 | I67: 0 | J67: 373787 | K67: 373787 | L67: 373787

Sheet A9-Asset
A1: =muni&" - "&Approve9 -> KZN434 Ubuhlebezwe - Table A9 Asset Management
A2: =desc -> Description | B2: =head27 -> Ref | C2: =head1b -> 2016/17 | D2: =head1A -> 2017/18 | E2: =Head1 -> 2018/19 | F2: =Head2 -> Current Year 2019/20 | I2: =Head3 -> 2020/21 Medium Term Revenue & Expenditure Framework
A3: R thousand | C3: =Head5 -> Audited Outcome | D3: =Head5 -> Audited Outcome | E3: =Head5 -> Audited Outcome | F3: =Head6 -> Original Budget | G3: =Head7 -> Adjusted Budget | H3: =Head8 -> Full Year Forecast | I3: =Head9 -> Budget Year 2020/21 | J3: =Head10 -> Budget Year +1 2021/22 | K3: =Head11 -> Budget Year +2 2022/23
A4: CAPITAL EXPENDITURE
A5: Total New Assets | B5: 1 | C5: =C15+C18+C19+C22+C25+C26+SUM(C29:C35) -> 64694843 | D5: =D15+D18+D19+D22+D25+D26+SUM(D29:D35) -> 18057331 | E5: 47807970 | F5: 55634821.49 | G5: 53766760.61 | H5: 53766760.61 | I5: 47055031.45 | J5: 32322771.15 | K5: 33809618.61
A6: Roads Infrastructure | C6: =SA34a!C7 -> 10120102 | D6: =SA34a!D7 -> 4323732 | E6: =SA34a!E7 -> 23462159 | F6: =SA34a!F7 -> 11171296.84 | G6: =SA34a!G7 -> 10947431.98 | H6: =SA34a!H7 -> 10947431.98 | I6: =SA34a!I7 -> 21111368.95 | J6: =SA34a!J7 -> 12620499.55 | K6: =SA34a!K7 -> 13201042.52
A7: Storm water Infrastructure | C7: =SA34a!C12 -> 0 | D7: =SA34a!D12 -> 0 | E7: =SA34a!E12 -> 0 | F7: =SA34a!F12 -> 0 | G7: =SA34a!G12 -> 0 | H7: =SA34a!H12 -> 0 | I7: =SA34a!I12 -> 0 | J7: =SA34a!J12 -> 0 | K7: =SA34a!K12 -> 0
A8: Electrical Infrastructure | C8: =SA34a!C16 -> 0 | D8: =SA34a!D16 -> 0 | E8: =SA34a!E16 -> 6727218 | F8: =SA34a!F16 -> 0 | G8: =SA34a!G16 -> 0 | H8: =SA34a!H16 -> 0 | I8: =SA34a!I16 -> 5004638.8 | J8: =SA34a!J16 -> 0 | K8: =SA34a!K16 -> 0
A9: Water Supply Infrastructure | C9: =SA34a!C26 -> 0 | D9: =SA34a!D26 -> 0 | E9: =SA34a!E26 -> 0 | F9: =SA34a!F26 -> 0 | G9: =SA34a!G26 -> 0 | H9: =SA34a!H26 -> 0 | I9: =SA34a!I26 -> 0 | J9: =SA34a!J26 -> 0 | K9: =SA34a!K26 -> 0
A10: Sanitation Infrastructure | C10: =SA34a!C37 -> 0 | D10: =SA34a!D37 -> 0 | E10: =SA34a!E37 -> 0 | F10: =SA34a!F37 -> 0 | G10: =SA34a!G37 -> 0 | H10: =SA34a!H37 -> 0 | I10: =SA34a!I37 -> 0 | J10: =SA34a!J37 -> 0 | K10: =SA34a!K37 -> 0
A11: Solid Waste Infrastructure | C11: =SA34a!C44 -> 0 | D11: =SA34a!D44 -> 0 | E11: =SA34a!E44 -> 0 | F11: =SA34a!F44 -> 0 | G11: =SA34a!G44 -> 0 | H11: =SA34a!H44 -> 0 | I11: =SA34a!I44 -> 0 | J11: =SA34a!J44 -> 0 | K11: =SA34a!K44 -> 0
A12: Rail Infrastructure | C12: =SA34a!C52 -> 0 | D12: =SA34a!D52 -> 0 | E12: =SA34a!E52 -> 0 | F12: =SA34a!F52 -> 0 | G12: =SA34a!G52 -> 0 | H12: =SA34a!H52 -> 0 | I12: =SA34a!I52 -> 0 | J12: =SA34a!J52 -> 0 | K12: =SA34a!K52 -> 0
A13: Coastal Infrastructure | C13: =SA34a!C62 -> 0 | D13: =SA34a!D62 -> 0 | E13: =SA34a!E62 -> 9724863 | F13: =SA34a!F62 -> 0 | G13: =SA34a!G62 -> 0 | H13: =SA34a!H62 -> 0 | I13: =SA34a!I62 -> 0 | J13: =SA34a!J62 -> 0 | K13: =SA34a!K62 -> 0
A14: Information and Communication Infrastructure | C14: =SA34a!C68 -> 0 | D14: =SA34a!D68 -> 0 | E14: =SA34a!E68 -> 0 | F14: =SA34a!F68 -> 0 | G14: =SA34a!G68 -> 0 | H14: =SA34a!H68 -> 0 | I14: =SA34a!I68 -> 0 | J14: =SA34a!J68 -> 0 | K14: =SA34a!K68 -> 0
A15: Infrastructure | C15: =SUM(C6:C14) -> 10120102 | D15: =SUM(D6:D14) -> 4323732 | E15: 39914240 | F15: 11171296.84 | G15: 10947431.98 | H15: 10947431.98 | I15: 26116007.75 | J15: 12620499.55 | K15: 13201042.52
A16: Community Facilities | C16: =SA34a!C75 -> 51358426 | D16: =SA34a!D75 -> 8123461 | E16: =SA34a!E75 -> 3000000 | F16: =SA34a!F75 -> 15915618.89 | G16: =SA34a!G75 -> 16004866.35 | H16: =SA34a!H75 -> 16004866.35 | I16: =SA34a!I75 -> 5333312.81 | J16: =SA34a!J75 -> 5578645.2 | K16: =SA34a!K75 -> 5835262.88
A17: Sport and Recreation Facilities | C17: =SA34a!C98 -> 0 | D17: =SA34a!D98 -> 0 | E17: =SA34a!E98 -> 2000000 | F17: =SA34a!F98 -> 3362964.76 | G17: =SA34a!G98 -> 4947531.59 | H17: =SA34a!H98 -> 4947531.59 | I17: =SA34a!I98 -> 3484532.89 | J17: =SA34a!J98 -> 3644821.41 | K17: =SA34a!K98 -> 3812483.19
A18: Community Assets | C18: =SUM(C16:C17) -> 51358426 | D18: =SUM(D16:D17) -> 8123461 | E18: 5000000 | F18: 19278583.65 | G18: 20952397.94 | H18: 20952397.94 | I18: 8817845.7 | J18: 9223466.61 | K18: 9647746.07
A19: Heritage Assets | C19: =SA34a!C103 -> 0 | D19: =SA34a!D103 -> 0 | E19: =SA34a!E103 -> 0 | F19: =SA34a!F103 -> 0 | G19: =SA34a!G103 -> 0 | H19: =SA34a!H103 -> 0 | I19: =SA34a!I103 -> 0 | J19: =SA34a!J103 -> 0 | K19: =SA34a!K103 -> 0
A20: Revenue Generating | C20: =SA34a!C111 -> 0 | D20: =SA34a!D111 -> 0 | E20: =SA34a!E111 -> 0 | F20: =SA34a!F111 -> 0 | G20: =SA34a!G111 -> 0 | H20: =SA34a!H111 -> 0 | I20: =SA34a!I111 -> 0 | J20: =SA34a!J111 -> 0 | K20: =SA34a!K111 -> 0
A21: Non-revenue Generating | C21: =SA34a!C114 -> 0 | D21: =SA34a!D114 -> 0 | E21: =SA34a!E114 -> 0 | F21: =SA34a!F114 -> 0 | G21: =SA34a!G114 -> 0 | H21: =SA34a!H114 -> 0 | I21: =SA34a!I114 -> 0 | J21: =SA34a!J114 -> 0 | K21: =SA34a!K114 -> 0
A22: Investment properties | C22: =SUM(C20:C21) -> 0 | D22: =SUM(D20:D21) -> 0 | E22: 0 | F22: 0 | G22: 0 | H22: 0 | I22: 0 | J22: 0 | K22: 0
A23: Operational Buildings | C23: =SA34a!C119 -> 555985 | D23: =SA34a!D119 -> 2237941 | E23: =SA34a!E119 -> 500000 | F23: =SA34a!F119 -> 3302000 | G23: =SA34a!G119 -> 3436000 | H23: =SA34a!H119 -> 3436000 | I23: =SA34a!I119 -> 1360000 | J23: =SA34a!J119 -> 1213360 | K23: =SA34a!K119 -> 1269174.56
A24: Housing | C24: =SA34a!C131 -> 0 | D24: =SA34a!D131 -> 0 | E24: =SA34a!E131 -> 12000 | F24: =SA34a!F131 -> 0 | G24: =SA34a!G131 -> 0 | H24: =SA34a!H131 -> 0 | I24: =SA34a!I131 -> 105000 | J24: =SA34a!J131 -> 109830 | K24: =SA34a!K131 -> 114882.18
A25: Other Assets | C25: =SUM(C23:C24) -> 555985 | D25: =SUM(D23:D24) -> 2237941 | E25: 512000 | F25: 3302000 | G25: 3436000 | H25: 3436000 | I25: 1465000 | J25: 1323190 | K25: 1384056.74
A26: Biological or Cultivated Assets | C26: =SA34a!C136 -> 0 | D26: =SA34a!D136 -> 0 | E26: =SA34a!E136 -> 0 | F26: =SA34a!F136 -> 0 | G26: =SA34a!G136 -> 0 | H26: =SA34a!H136 -> 0 | I26: =SA34a!I136 -> 0 | J26: =SA34a!J136 -> 0 | K26: =SA34a!K136 -> 0
A27: Servitudes | C27: =SA34a!C140 -> 0 | D27: =SA34a!D140 -> 0 | E27: =SA34a!E140 -> 0 | F27: =SA34a!F140 -> 0 | G27: =SA34a!G140 -> 0 | H27: =SA34a!H140 -> 0 | I27: =SA34a!I140 -> 0 | J27: =SA34a!J140 -> 0 | K27: =SA34a!K140 -> 0
A28: Licences and Rights | C28: =SA34a!C141 -> 0 | D28: =SA34a!D141 -> 0 | E28: =SA34a!E141 -> 75000 | F28: =SA34a!F141 -> 2900000 | G28: =SA34a!G141 -> 2900000 | H28: =SA34a!H141 -> 2900000 | I28: =SA34a!I141 -> 2310000 | J28: =SA34a!J141 -> 2416260 | K28: =SA34a!K141 -> 2527407.96
A29: Intangible Assets | C29: =SUM(C27:C28) -> 0 | D29: =SUM(D27:D28) -> 0 | E29: 75000 | F29: 2900000 | G29: 2900000 | H29: 2900000 | I29: 2310000 | J29: 2416260 | K29: 2527407.96
A30: Computer Equipment | C30: =SA34a!C149 -> 0 | D30: =SA34a!D149 -> 35813 | E30: =SA34a!E149 -> 1198000 | F30: =SA34a!F149 -> 640000 | G30: =SA34a!G149 -> 890000 | H30: =SA34a!H149 -> 890000 | I30: =SA34a!I149 -> 843200 | J30: =SA34a!J149 -> 0 | K30: =SA34a!K149 -> 0
A31: Furniture and Office Equipment | C31: =SA34a!C152 -> 820120 | D31: =SA34a!D152 -> 360840 | E31: =SA34a!E152 -> 231382 | F31: =SA34a!F152 -> 719000 | G31: =SA34a!G152 -> 790805.89 | H31: =SA34a!H152 -> 790805.89 | I31: =SA34a!I152 -> 648000 | J31: =SA34a!J152 -> 343088 | K31: =SA34a!K152 -> 358870.05
A32: Machinery and Equipment | C32: =SA34a!C155 -> 0 | D32: =SA34a!D155 -> 1747810 | E32: =SA34a!E155 -> 227182 | F32: =SA34a!F155 -> 15113941 | G32: =SA34a!G155 -> 11900124.8 | H32: =SA34a!H155 -> 11900124.8 | I32: =SA34a!I155 -> 1914978 | J32: =SA34a!J155 -> 1229026.99 | K32: =SA34a!K155 -> 1285562.23
A33: Transport Assets | C33: =SA34a!C158 -> 1840210 | D33: =SA34a!D158 -> 1227734 | E33: =SA34a!E158 -> 650166 | F33: =SA34a!F158 -> 2510000 | G33: =SA34a!G158 -> 1950000 | H33: =SA34a!H158 -> 1950000 | I33: =SA34a!I158 -> 3940000 | J33: =SA34a!J158 -> 4121240 | K33: =SA34a!K158 -> 4310817.04
A34: Land | C34: =SA34a!C161 -> 0 | D34: =SA34a!D161 -> 0 | E34: =SA34a!E161 -> 0 | F34: =SA34a!F161 -> 0 | G34: =SA34a!G161 -> 0 | H34: =SA34a!H161 -> 0 | I34: =SA34a!I161 -> 1000000 | J34: =SA34a!J161 -> 1046000 | K34: =SA34a!K161 -> 1094116
A35: Zoo's, Marine and Non-biological Animals | C35: =SA34a!C164 -> 0 | D35: =SA34a!D164 -> 0 | E35: =SA34a!E164 -> 0 | F35: =SA34a!F164 -> 0 | G35: =SA34a!G164 -> 0 | H35: =SA34a!H164 -> 0 | I35: =SA34a!I164 -> 0 | J35: =SA34a!J164 -> 0 | K35: =SA34a!K164 -> 0
A37: Total Renewal of Existing Assets | B37: 2 | C37: =C47+C50+C51+C54+C57+C58+SUM(C61:C67) -> 8622659 | D37: =D47+D50+D51+D54+D57+D58+SUM(D61:D67) -> 15974124.83 | E37: 9754775.58 | F37: 16994414.86 | G37: 15337006.72 | H37: 15337006.72 | I37: 11326450.08 | J37: 11918945.46 | K37: 12467216.95
A38: Roads Infrastructure | C38: =SA34b!C7 -> 8622659 | D38: =SA34b!D7 -> 10624593.7 | E38: =SA34b!E7 -> 4126792.14 | F38: =SA34b!F7 -> 6599316.82 | G38: =SA34b!G7 -> 5009741.77 | H38: =SA34b!H7 -> 5009741.77 | I38: =SA34b!I7 -> 786450.08 | J38: =SA34b!J7 -> 822626.79 | K38: =SA34b!K7 -> 860467.62
A39: Storm water Infrastructure | C39: =SA34b!C12 -> 0 | D39: =SA34b!D12 -> 0 | E39: =SA34b!E12 -> 0 | F39: =SA34b!F12 -> 0 | G39: =SA34b!G12 -> 0 | H39: =SA34b!H12 -> 0 | I39: =SA34b!I12 -> 0 | J39: =SA34b!J12 -> 0 | K39: =SA34b!K12 -> 0
A40: Electrical Infrastructure | C40: =SA34b!C16 -> 0 | D40: =SA34b!D16 -> 0 | E40: =SA34b!E16 -> 0 | F40: =SA34b!F16 -> 0 | G40: =SA34b!G16 -> 0 | H40: =SA34b!H16 -> 0 | I40: =SA34b!I16 -> 0 | J40: =SA34b!J16 -> 0 | K40: =SA34b!K16 -> 0
A41: Water Supply Infrastructure | C41: =SA34b!C26 -> 0 | D41: =SA34b!D26 -> 0 | E41: =SA34b!E26 -> 0 | F41: =SA34b!F26 -> 0 | G41: =SA34b!G26 -> 0 | H41: =SA34b!H26 -> 0 | I41: =SA34b!I26 -> 0 | J41: =SA34b!J26 -> 0 | K41: =SA34b!K26 -> 0
A42: Sanitation Infrastructure | C42: =SA34b!C37 -> 0 | D42: =SA34b!D37 -> 0 | E42: =SA34b!E37 -> 0 | F42: =SA34b!F37 -> 0 | G42: =SA34b!G37 -> 0 | H42: =SA34b!H37 -> 0 | I42: =SA34b!I37 -> 0 | J42: =SA34b!J37 -> 0 | K42: =SA34b!K37 -> 0
A43: Solid Waste Infrastructure | C43: =SA34b!C44 -> 0 | D43: =SA34b!D44 -> 0 | E43: =SA34b!E44 -> 0 | F43: =SA34b!F44 -> 0 | G43: =SA34b!G44 -> 0 | H43: =SA34b!H44 -> 0 | I43: =SA34b!I44 -> 0 | J43: =SA34b!J44 -> 0 | K43: =SA34b!K44 -> 0
A44: Rail Infrastructure | C44: =SA34b!C52 -> 0 | D44: =SA34b!D52 -> 0 | E44: =SA34b!E52 -> 0 | F44: =SA34b!F52 -> 0 | G44: =SA34b!G52 -> 0 | H44: =SA34b!H52 -> 0 | I44: =SA34b!I52 -> 0 | J44: =SA34b!J52 -> 0 | K44: =SA34b!K52 -> 0
A45: Coastal Infrastructure | C45: =SA34b!C62 -> 0 | D45: =SA34b!D62 -> 0 | E45: =SA34b!E62 -> 0 | F45: =SA34b!F62 -> 0 | G45: =SA34b!G62 -> 0 | H45: =SA34b!H62 -> 0 | I45: =SA34b!I62 -> 0 | J45: =SA34b!J62 -> 0 | K45: =SA34b!K62 -> 0
A46: Information and Communication Infrastructure | C46: =SA34b!C68 -> 0 | D46: =SA34b!D68 -> 0 | E46: =SA34b!E68 -> 0 | F46: =SA34b!F68 -> 0 | G46: =SA34b!G68 -> 0 | H46: =SA34b!H68 -> 0 | I46: =SA34b!I68 -> 0 | J46: =SA34b!J68 -> 0 | K46: =SA34b!K68 -> 0
A47: Infrastructure | C47: =SUM(C38:C46) -> 8622659 | D47: =SUM(D38:D46) -> 10624593.7 | E47: 4126792.14 | F47: 6599316.82 | G47: 5009741.77 | H47: 5009741.77 | I47: 786450.08 | J47: 822626.79 | K47: 860467.62
A48: Community Facilities | C48: =SA34b!C75 -> 0 | D48: =SA34b!D75 -> 647670.44 | E48: =SA34b!E75 -> 0 | F48: =SA34b!F75 -> 0 | G48: =SA34b!G75 -> 0 | H48: =SA34b!H75 -> 0 | I48: =SA34b!I75 -> 0 | J48: =SA34b!J75 -> 0 | K48: =SA34b!K75 -> 0
A49: Sport and Recreation Facilities | C49: =SA34b!C98 -> 0 | D49: =SA34b!D98 -> 895293.85 | E49: =SA34b!E98 -> 389587.07 | F49: =SA34b!F98 -> 395098.04 | G49: =SA34b!G98 -> 327264.95 | H49: =SA34b!H98 -> 327264.95 | I49: =SA34b!I98 -> 0 | J49: =SA34b!J98 -> 71478.67 | K49: =SA34b!K98 -> 74766.69
A50: Community Assets | C50: =SUM(C48:C49) -> 0 | D50: =SUM(D48:D49) -> 1542964.29 | E50: 389587.07 | F50: 395098.04 | G50: 327264.95 | H50: 327264.95 | I50: 0 | J50: 71478.67 | K50: 74766.69
A51: Heritage Assets | C51: =SA34b!C103 -> 0 | D51: =SA34b!D103 -> 0 | E51: =SA34b!E103 -> 0 | F51: =SA34b!F103 -> 0 | G51: =SA34b!G103 -> 0 | H51: =SA34b!H103 -> 0 | I51: =SA34b!I103 -> 0 | J51: =SA34b!J103 -> 0 | K51: =SA34b!K103 -> 0
A52: Revenue Generating | C52: =SA34b!C111 -> 0 | D52: =SA34b!D111 -> 0 | E52: =SA34b!E111 -> 0 | F52: =SA34b!F111 -> 0 | G52: =SA34b!G111 -> 0 | H52: =SA34b!H111 -> 0 | I52: =SA34b!I111 -> 0 | J52: =SA34b!J111 -> 0 | K52: =SA34b!K111 -> 0
A53: Non-revenue Generating | C53: =SA34b!C114 -> 0 | D53: =SA34b!D114 -> 0 | E53: =SA34b!E114 -> 0 | F53: =SA34b!F114 -> 0 | G53: =SA34b!G114 -> 0 | H53: =SA34b!H114 -> 0 | I53: =SA34b!I114 -> 0 | J53: =SA34b!J114 -> 0 | K53: =SA34b!K114 -> 0
A54: Investment properties | C54: =SUM(C52:C53) -> 0 | D54: =SUM(D52:D53) -> 0 | E54: 0 | F54: 0 | G54: 0 | H54: 0 | I54: 0 | J54: 0 | K54: 0
A55: Operational Buildings | C55: =SA34b!C119 -> 0 | D55: =SA34b!D119 -> 3806566.84 | E55: =SA34b!E119 -> 5238396.37 | F55: =SA34b!F119 -> 10000000 | G55: =SA34b!G119 -> 10000000 | H55: =SA34b!H119 -> 10000000 | I55: =SA34b!I119 -> 10540000 | J55: =SA34b!J119 -> 11024840 | K55: =SA34b!K119 -> 11531982.64
A56: Housing | C56: =SA34b!C131 -> 0 | D56: =SA34b!D131 -> 0 | E56: =SA34b!E131 -> 0 | F56: =SA34b!F131 -> 0 | G56: =SA34b!G131 -> 0 | H56: =SA34b!H131 -> 0 | I56: =SA34b!I131 -> 0 | J56: =SA34b!J131 -> 0 | K56: =SA34b!K131 -> 0
A57: Other Assets | C57: =SUM(C55:C56) -> 0 | D57: =SUM(D55:D56) -> 3806566.84 | E57: 5238396.37 | F57: 10000000 | G57: 10000000 | H57: 10000000 | I57: 10540000 | J57: 11024840 | K57: 11531982.64
A58: Biological or Cultivated Assets | C58: =SA34b!C136 -> 0 | D58: =SA34b!D136 -> 0 | E58: =SA34b!E136 -> 0 | F58: =SA34b!F136 -> 0 | G58: =SA34b!G136 -> 0 | H58: =SA34b!H136 -> 0 | I58: =SA34b!I136 -> 0 | J58: =SA34b!J136 -> 0 | K58: =SA34b!K136 -> 0
A59: Servitudes | C59: =SA34b!C140 -> 0 | D59: =SA34b!D140 -> 0 | E59: =SA34b!E140 -> 0 | F59: =SA34b!F140 -> 0 | G59: =SA34b!G140 -> 0 | H59: =SA34b!H140 -> 0 | I59: =SA34b!I140 -> 0 | J59: =SA34b!J140 -> 0 | K59: =SA34b!K140 -> 0
A60: Licences and Rights | C60: =SA34b!C141 -> 0 | D60: =SA34b!D141 -> 0 | E60: =SA34b!E141 -> 0 | F60: =SA34b!F141 -> 0 | G60: =SA34b!G141 -> 0 | H60: =SA34b!H141 -> 0 | I60: =SA34b!I141 -> 0 | J60: =SA34b!J141 -> 0 | K60: =SA34b!K141 -> 0
A61: Intangible Assets | C61: =SUM(C59:C60) -> 0 | D61: =SUM(D59:D60) -> 0 | E61: 0 | F61: 0 | G61: 0 | H61: 0 | I61: 0 | J61: 0 | K61: 0
A62: Computer Equipment | C62: =SA34b!C149 -> 0 | D62: =SA34b!D149 -> 0 | E62: =SA34b!E149 -> 0 | F62: =SA34b!F149 -> 0 | G62: =SA34b!G149 -> 0 | H62: =SA34b!H149 -> 0 | I62: =SA34b!I149 -> 0 | J62: =SA34b!J149 -> 0 | K62: =SA34b!K149 -> 0
A63: Furniture and Office Equipment | C63: =SA34b!C152 -> 0 | D63: =SA34b!D152 -> 0 | E63: =SA34b!E152 -> 0 | F63: =SA34b!F152 -> 0 | G63: =SA34b!G152 -> 0 | H63: =SA34b!H152 -> 0 | I63: =SA34b!I152 -> 0 | J63: =SA34b!J152 -> 0 | K63: =SA34b!K152 -> 0
A64: Machinery and Equipment | C64: =SA34b!C155 -> 0 | D64: =SA34b!D155 -> 0 | E64: =SA34b!E155 -> 0 | F64: =SA34b!F155 -> 0 | G64: =SA34b!G155 -> 0 | H64: =SA34b!H155 -> 0 | I64: =SA34b!I155 -> 0 | J64: =SA34b!J155 -> 0 | K64: =SA34b!K155 -> 0
A65: Transport Assets | C65: =SA34b!C158 -> 0 | D65: =SA34b!D158 -> 0 | E65: =SA34b!E158 -> 0 | F65: =SA34b!F158 -> 0 | G65: =SA34b!G158 -> 0 | H65: =SA34b!H158 -> 0 | I65: =SA34b!I158 -> 0 | J65: =SA34b!J158 -> 0 | K65: =SA34b!K158 -> 0
A66: Land | C66: =SA34b!C161 -> 0 | D66: =SA34b!D161 -> 0 | E66: =SA34b!E161 -> 0 | F66: =SA34b!F161 -> 0 | G66: =SA34b!G161 -> 0 | H66: =SA34b!H161 -> 0 | I66: =SA34b!I161 -> 0 | J66: =SA34b!J161 -> 0 | K66: =SA34b!K161 -> 0
A67: Zoo's, Marine and Non-biological Animals | C67: =SA34b!C164 -> 0 | D67: =SA34b!D164 -> 0 | E67: =SA34b!E164 -> 0 | F67: =SA34b!F164 -> 0 | G67: =SA34b!G164 -> 0 | H67: =SA34b!H164 -> 0 | I67: =SA34b!I164 -> 0 | J67: =SA34b!J164 -> 0 | K67: =SA34b!K164 -> 0
A69: Total Upgrading of Existing Assets | B69: 6 | C69: =C79+C82+C83+C86+C89+C90+SUM(C93:C99) -> 0 | D69: =D79+D82+D83+D86+D89+D90+SUM(D93:D99) -> 3988563.64 | E69: 3336701.91 | F69: 5666592.66 | G69: 7350406.91 | H69: 7350406.91 | I69: 797201.06 | J69: 833872.31 | K69: 872230.43
A70: Roads Infrastructure | C70: =SA34e!C7 -> 0 | D70: =SA34e!D7 -> 3988563.64 | E70: =SA34e!E7 -> 3336701.91 | F70: =SA34e!F7 -> 5118259.66 | G70: =SA34e!G7 -> 4919365.33 | H70: =SA34e!H7 -> 4919365.33 | I70: =SA34e!I7 -> 797201.06 | J70: =SA34e!J7 -> 833872.31 | K70: =SA34e!K7 -> 872230.43
A71: Storm water Infrastructure | C71: =SA34e!C12 -> 0 | D71: =SA34e!D12 -> 0 | E71: =SA34e!E12 -> 0 | F71: =SA34e!F12 -> 0 | G71: =SA34e!G12 -> 0 | H71: =SA34e!H12 -> 0 | I71: =SA34e!I12 -> 0 | J71: =SA34e!J12 -> 0 | K71: =SA34e!K12 -> 0
A72: Electrical Infrastructure | C72: =SA34e!C16 -> 0 | D72: =SA34e!D16 -> 0 | E72: =SA34e!E16 -> 0 | F72: =SA34e!F16 -> 0 | G72: =SA34e!G16 -> 0 | H72: =SA34e!H16 -> 0 | I72: =SA34e!I16 -> 0 | J72: =SA34e!J16 -> 0 | K72: =SA34e!K16 -> 0
A73: Water Supply Infrastructure | C73: =SA34e!C26 -> 0 | D73: =SA34e!D26 -> 0 | E73: =SA34e!E26 -> 0 | F73: =SA34e!F26 -> 0 | G73: =SA34e!G26 -> 0 | H73: =SA34e!H26 -> 0 | I73: =SA34e!I26 -> 0 | J73: =SA34e!J26 -> 0 | K73: =SA34e!K26 -> 0
A74: Sanitation Infrastructure | C74: =SA34e!C37 -> 0 | D74: =SA34e!D37 -> 0 | E74: =SA34e!E37 -> 0 | F74: =SA34e!F37 -> 0 | G74: =SA34e!G37 -> 0 | H74: =SA34e!H37 -> 0 | I74: =SA34e!I37 -> 0 | J74: =SA34e!J37 -> 0 | K74: =SA34e!K37 -> 0
A75: Solid Waste Infrastructure | C75: =SA34e!C44 -> 0 | D75: =SA34e!D44 -> 0 | E75: =SA34e!E44 -> 0 | F75: =SA34e!F44 -> 0 | G75: =SA34e!G44 -> 0 | H75: =SA34e!H44 -> 0 | I75: =SA34e!I44 -> 0 | J75: =SA34e!J44 -> 0 | K75: =SA34e!K44 -> 0
A76: Rail Infrastructure | C76: =SA34e!C52 -> 0 | D76: =SA34e!D52 -> 0 | E76: =SA34e!E52 -> 0 | F76: =SA34e!F52 -> 0 | G76: =SA34e!G52 -> 0 | H76: =SA34e!H52 -> 0 | I76: =SA34e!I52 -> 0 | J76: =SA34e!J52 -> 0 | K76: =SA34e!K52 -> 0
A77: Coastal Infrastructure | C77: =SA34e!C62 -> 0 | D77: =SA34e!D62 -> 0 | E77: =SA34e!E62 -> 0 | F77: =SA34e!F62 -> 0 | G77: =SA34e!G62 -> 0 | H77: =SA34e!H62 -> 0 | I77: =SA34e!I62 -> 0 | J77: =SA34e!J62 -> 0 | K77: =SA34e!K62 -> 0
A78: Information and Communication Infrastructure | C78: =SA34e!C68 -> 0 | D78: =SA34e!D68 -> 0 | E78: =SA34e!E68 -> 0 | F78: =SA34e!F68 -> 0 | G78: =SA34e!G68 -> 0 | H78: =SA34e!H68 -> 0 | I78: =SA34e!I68 -> 0 | J78: =SA34e!J68 -> 0 | K78: =SA34e!K68 -> 0
A79: Infrastructure | C79: =SUM(C70:C78) -> 0 | D79: 3988563.64 | E79: 3336701.91 | F79: 5118259.66 | G79: 4919365.33 | H79: 4919365.33 | I79: 797201.06 | J79: 833872.31 | K79: 872230.43
A80: Community Facilities | C80: =SA34e!C75 -> 0 | D80: =SA34e!D75 -> 0 | E80: =SA34e!E75 -> 0 | F80: =SA34e!F75 -> 0 | G80: =SA34e!G75 -> 0 | H80: =SA34e!H75 -> 0 | I80: =SA34e!I75 -> 0 | J80: =SA34e!J75 -> 0 | K80: =SA34e!K75 -> 0
A81: Sport and Recreation Facilities | C81: =SA34e!C98 -> 0 | D81: =SA34e!D98 -> 0 | E81: =SA34e!E98 -> 0 | F81: =SA34e!F98 -> 0 | G81: =SA34e!G98 -> 0 | H81: =SA34e!H98 -> 0 | I81: =SA34e!I98 -> 0 | J81: =SA34e!J98 -> 0 | K81: =SA34e!K98 -> 0
A82: Community Assets | C82: =SUM(C80:C81) -> 0 | D82: 0 | E82: 0 | F82: 0 | G82: 0 | H82: 0 | I82: 0 | J82: 0 | K82: 0
A83: Heritage Assets | C83: =SA34e!C103 -> 0 | D83: =SA34e!D103 -> 0 | E83: =SA34e!E103 -> 0 | F83: =SA34e!F103 -> 0 | G83: =SA34e!G103 -> 0 | H83: =SA34e!H103 -> 0 | I83: =SA34e!I103 -> 0 | J83: =SA34e!J103 -> 0 | K83: =SA34e!K103 -> 0
A84: Revenue Generating | C84: =SA34e!C111 -> 0 | D84: =SA34e!D111 -> 0 | E84: =SA34e!E111 -> 0 | F84: =SA34e!F111 -> 0 | G84: =SA34e!G111 -> 0 | H84: =SA34e!H111 -> 0 | I84: =SA34e!I111 -> 0 | J84: =SA34e!J111 -> 0 | K84: =SA34e!K111 -> 0
A85: Non-revenue Generating | C85: =SA34e!C114 -> 0 | D85: =SA34e!D114 -> 0 | E85: =SA34e!E114 -> 0 | F85: =SA34e!F114 -> 0 | G85: =SA34e!G114 -> 0 | H85: =SA34e!H114 -> 0 | I85: =SA34e!I114 -> 0 | J85: =SA34e!J114 -> 0 | K85: =SA34e!K114 -> 0
A86: Investment properties | C86: =SUM(C84:C85) -> 0 | D86: 0 | E86: 0 | F86: 0 | G86: 0 | H86: 0 | I86: 0 | J86: 0 | K86: 0
A87: Operational Buildings | C87: =SA34e!C119 -> 0 | D87: =SA34e!D119 -> 0 | E87: =SA34e!E119 -> 0 | F87: =SA34e!F119 -> 548333 | G87: =SA34e!G119 -> 2431041.58 | H87: =SA34e!H119 -> 2431041.58 | I87: =SA34e!I119 -> 0 | J87: =SA34e!J119 -> 0 | K87: =SA34e!K119 -> 0
A88: Housing | C88: =SA34e!C131 -> 0 | D88: =SA34e!D131 -> 0 | E88: =SA34e!E131 -> 0 | F88: =SA34e!F131 -> 0 | G88: =SA34e!G131 -> 0 | H88: =SA34e!H131 -> 0 | I88: =SA34e!I131 -> 0 | J88: =SA34e!J131 -> 0 | K88: =SA34e!K131 -> 0
A89: Other Assets | C89: =SUM(C87:C88) -> 0 | D89: 0 | E89: 0 | F89: 548333 | G89: 2431041.58 | H89: 2431041.58 | I89: 0 | J89: 0 | K89: 0
A90: Biological or Cultivated Assets | C90: =SA34e!C136 -> 0 | D90: =SA34e!D136 -> 0 | E90: =SA34e!E136 -> 0 | F90: =SA34e!F136 -> 0 | G90: =SA34e!G136 -> 0 | H90: =SA34e!H136 -> 0 | I90: =SA34e!I136 -> 0 | J90: =SA34e!J136 -> 0 | K90: =SA34e!K136 -> 0
A91: Servitudes | C91: =SA34e!C140 -> 0 | D91: =SA34e!D140 -> 0 | E91: =SA34e!E140 -> 0 | F91: =SA34e!F140 -> 0 | G91: =SA34e!G140 -> 0 | H91: =SA34e!H140 -> 0 | I91: =SA34e!I140 -> 0 | J91: =SA34e!J140 -> 0 | K91: =SA34e!K140 -> 0
A92: Licences and Rights | C92: =SA34e!C141 -> 0 | D92: =SA34e!D141 -> 0 | E92: =SA34e!E141 -> 0 | F92: =SA34e!F141 -> 0 | G92: =SA34e!G141 -> 0 | H92: =SA34e!H141 -> 0 | I92: =SA34e!I141 -> 0 | J92: =SA34e!J141 -> 0 | K92: =SA34e!K141 -> 0
A93: Intangible Assets | C93: =SUM(C91:C92) -> 0 | D93: 0 | E93: 0 | F93: 0 | G93: 0 | H93: 0 | I93: 0 | J93: 0 | K93: 0
A94: Computer Equipment | C94: =SA34e!C149 -> 0 | D94: =SA34e!D149 -> 0 | E94: =SA34e!E149 -> 0 | F94: =SA34e!F149 -> 0 | G94: =SA34e!G149 -> 0 | H94: =SA34e!H149 -> 0 | I94: =SA34e!I149 -> 0 | J94: =SA34e!J149 -> 0 | K94: =SA34e!K149 -> 0
A95: Furniture and Office Equipment | C95: =SA34e!C152 -> 0 | D95: =SA34e!D152 -> 0 | E95: =SA34e!E152 -> 0 | F95: =SA34e!F152 -> 0 | G95: =SA34e!G152 -> 0 | H95: =SA34e!H152 -> 0 | I95: =SA34e!I152 -> 0 | J95: =SA34e!J152 -> 0 | K95: =SA34e!K152 -> 0
A96: Machinery and Equipment | C96: =SA34e!C155 -> 0 | D96: =SA34e!D155 -> 0 | E96: =SA34e!E155 -> 0 | F96: =SA34e!F155 -> 0 | G96: =SA34e!G155 -> 0 | H96: =SA34e!H155 -> 0 | I96: =SA34e!I155 -> 0 | J96: =SA34e!J155 -> 0 | K96: =SA34e!K155 -> 0
A97: Transport Assets | C97: =SA34e!C158 -> 0 | D97: =SA34e!D158 -> 0 | E97: =SA34e!E158 -> 0 | F97: =SA34e!F158 -> 0 | G97: =SA34e!G158 -> 0 | H97: =SA34e!H158 -> 0 | I97: =SA34e!I158 -> 0 | J97: =SA34e!J158 -> 0 | K97: =SA34e!K158 -> 0
A98: Land | C98: =SA34e!C161 -> 0 | D98: =SA34e!D161 -> 0 | E98: =SA34e!E161 -> 0 | F98: =SA34e!F161 -> 0 | G98: =SA34e!G161 -> 0 | H98: =SA34e!H161 -> 0 | I98: =SA34e!I161 -> 0 | J98: =SA34e!J161 -> 0 | K98: =SA34e!K161 -> 0
A99: Zoo's, Marine and Non-biological Animals | C99: =SA34e!C164 -> 0 | D99: =SA34e!D164 -> 0 | E99: =SA34e!E164 -> 0 | F99: =SA34e!F164 -> 0 | G99: =SA34e!G164 -> 0 | H99: =SA34e!H164 -> 0 | I99: =SA34e!I164 -> 0 | J99: =SA34e!J164 -> 0 | K99: =SA34e!K164 -> 0
A101: Total Capital Expenditure | B101: 4 | C101: =+C5+C37+C69 -> 73317502 | D101: =+D5+D37+D69 -> 38020019.47 | E101: 60899447.49 | F101: 78295829.01 | G101: 76454174.24 | H101: 76454174.24 | I101: 59178682.59 | J101: 45075588.92 | K101: 47149065.99
A102: Roads Infrastructure | C102: =+C6+C38+C70 -> 18742761 | D102: =+D6+D38+D70 -> 18936889.34 | E102: 30925653.05 | F102: 22888873.32 | G102: 20876539.08 | H102: 20876539.08 | I102: 22695020.09 | J102: 14276998.65 | K102: 14933740.57
A103: Storm water Infrastructure | C103: =+C7+C39+C71 -> 0 | D103: 0 | E103: 0 | F103: 0 | G103: 0 | H103: 0 | I103: 0 | J103: 0 | K103: 0
A104: Electrical Infrastructure | C104: 0 | D104: 0 | E104: 6727218 | F104: 0 | G104: 0 | H104: 0 | I104: 5004638.8 | J104: 0 | K104: 0
A105: Water Supply Infrastructure | C105: 0 | D105: 0 | E105: 0 | F105: 0 | G105: 0 | H105: 0 | I105: 0 | J105: 0 | K105: 0
A106: Sanitation Infrastructure | C106: 0 | D106: 0 | E106: 0 | F106: 0 | G106: 0 | H106: 0 | I106: 0 | J106: 0 | K106: 0
A107: Solid Waste Infrastructure | C107: 0 | D107: 0 | E107: 0 | F107: 0 | G107: 0 | H107: 0 | I107: 0 | J107: 0 | K107: 0
A108: Rail Infrastructure | C108: 0 | D108: 0 | E108: 0 | F108: 0 | G108: 0 | H108: 0 | I108: 0 | J108: 0 | K108: 0
A109: Coastal Infrastructure | C109: 0 | D109: 0 | E109: 9724863 | F109: 0 | G109: 0 | H109: 0 | I109: 0 | J109: 0 | K109: 0
A110: Information and Communication Infrastructure | C110: 0 | D110: 0 | E110: 0 | F110: 0 | G110: 0 | H110: 0 | I110: 0 | J110: 0 | K110: 0
A111: Infrastructure | C111: =SUM(C102:C110) -> 18742761 | D111: =SUM(D102:D110) -> 18936889.34 | E111: 47377734.05 | F111: 22888873.32 | G111: 20876539.08 | H111: 20876539.08 | I111: 27699658.89 | J111: 14276998.65 | K111: 14933740.57
A112: Community Facilities | C112: =+C16+C48+C80 -> 51358426 | D112: =+D16+D48+D80 -> 8771131.44 | E112: 3000000 | F112: 15915618.89 | G112: 16004866.35 | H112: 16004866.35 | I112: 5333312.81 | J112: 5578645.2 | K112: 5835262.88
A113: Sport and Recreation Facilities | C113: =+C17+C49+C81 -> 0 | D113: =+D17+D49+D81 -> 895293.85 | E113: 2389587.07 | F113: 3758062.8 | G113: 5274796.54 | H113: 5274796.54 | I113: 3484532.89 | J113: 3716300.08 | K113: 3887249.88
